Workbook

Sheet 廃棄物事業経費（市町村）
A1: 廃棄物処理事業経費（市区町村の合計）（平成28年度実績）
A2: 都道府県名 | B2: 地方公共団体コード | C2: 市区町村名 | D2: ごみ | M2: し尿 | V2: 合計 | AE2: ごみ（建設改良費＋処理維持管理費＋その他）（組合分担金を除く） | BG2: し尿（建設改良費＋処理維持管理費＋その他）（組合分担金を除く） | CI2: 合計（建設改良費＋処理維持管理費＋その他）（組合分担金を除く）
D3: 合計 (特定財源(市区町村分担金を除く)+一般財源) | M3: 合計 (特定財源(市区町村分担金を除く)+一般財源) | V3: 合計 (特定財源(市区町村分担金を除く)+一般財源) | AE3: 建設改良費 (工事費+調査費)(組合分担金を除く) | AM3: 処理及び維持管理費 (人件費+処理費+車両購入費+委託費+調査研究費)(組合分担金を除く) | BE3: その他 | BF3: 合計 | BG3: 建設改良費 (工事費+調査費)(組合分担金を除く) | BO3: 処理及び維持管理費 (人件費+処理費+車両購入費+委託費+調査研究費)(組合分担金を除く) | CG3: その他 | CH3: 合計 | CI3: 建設改良費 (工事費+調査費)(組合分担金を除く) | CQ3: 処理及び維持管理費 (人件費+処理費+車両購入費+委託費+調査研究費)(組合分担金を除く) | DI3: その他 | DJ3: 合計
E4: 特定財源 (市区町村分担金を除く) | L4: 一般財源 | N4: 特定財源 (市区町村分担金を除く) | U4: 一般財源 | W4: 特定財源 (市区町村分担金を除く) | AD4: 一般財源 | AE4: 合計 | AF4: 工事費 (中間処理施設+最終処分場+その他) | AK4: 調査費 | AL4: （建設改良費組合分担金） | AM4: 合計 | AN4: 人件費（一般職＋収集運搬＋中間処理＋最終処分） | AS4: 処理費 (収集運搬費+中間処理費+最終処分費) | AW4: 車両等購入費 | AX4: 委託費 (収集運搬費+中間処理費+最終処分費+その他) | BC4: (組合分担金) | BD4: 調査研究費 | BG4: 合計 | BH4: 工事費 (中間処理施設+最終処分場+その他) | BM4: 調査費 | BN4: （建設改良費組合分担金） | BO4: 合計 | BP4: 人件費（一般職＋収集運搬＋中間処理＋最終処分） | BU4: 処理費 (収集運搬費+中間処理費+最終処分費) | BY4: 車両等購入費 | BZ4: 委託費 (収集運搬費+中間処理費+最終処分費+その他) | CE4: (組合分担金) | CF4: 調査研究費 | CI4: 合計 | CJ4: 工事費 (中間処理施設+最終処分場+その他) | CO4: 調査費 | CP4: （建設改良費組合分担金） | CQ4: 合計 | CR4: 人件費（一般職＋収集運搬＋中間処理＋最終処分） | CW4: 処理費 (収集運搬費+中間処理費+最終処分費) | DA4: 車両等購入費 | DB4: 委託費 (収集運搬費+中間処理費+最終処分費+その他) | DG4: (組合分担金) | DH4: 調査研究費
F5: 国庫支出金 | G5: 都道府県 支出金 | H5: 地方債 | I5: 使用料及び 手数料 | J5: （市区町村 分担金） | K5: その他 | O5: 国庫支出金 | P5: 都道府県 支出金 | Q5: 地方債 | R5: 使用料及び 手数料 | S5: （市区町村 分担金） | T5: その他 | X5: 国庫支出金 | Y5: 都道府県 支出金 | Z5: 地方債 | AA5: 使用料及び 手数料 | AB5: （市区町村 分担金） | AC5: その他 | AF5: 合計 | AG5: 収集運搬施設 | AH5: 中間処理施設 | AI5: 最終処分場 | AJ5: その他 | AO5: 一般職 | AP5: 収集運搬 | AQ5: 中間処理 | AR5: 最終処分 | AS5: 合計 | AT5: 収集運搬費 | AU5: 中間処理費 | AV5: 最終処分費 | AY5: 収集運搬費 | AZ5: 中間処理費 | BA5: 最終処分費 | BB5: その他 | BH5: 合計 | BI5: 収集運搬施設 | BJ5: 中間処理施設 | BK5: 最終処分場 | BL5: その他 | BQ5: 一般職 | BR5: 収集運搬 | BS5: 中間処理 | BT5: 最終処分 | BU5: 合計 | BV5: 収集運搬費 | BW5: 中間処理費 | BX5: 最終処分費 | CA5: 収集運搬費 | CB5: 中間処理費 | CC5: 最終処分費 | CD5: その他 | CJ5: 合計 | CK5: 収集運搬施設 | CL5: 中間処理施設 | CM5: 最終処分場 | CN5: その他 | CS5: 一般職 | CT5: 収集運搬 | CU5: 中間処理 | CV5: 最終処分 | CW5: 合計 | CX5: 収集運搬費 | CY5: 中間処理費 | CZ5: 最終処分費 | DC5: 収集運搬費 | DD5: 中間処理費 | DE5: 最終処分費 | DF5: その他
D6: （千円） | E6: （千円） | F6: （千円） | G6: （千円） | H6: （千円） | I6: （千円） | J6: （千円） | K6: （千円） | L6: （千円） | M6: （千円） | N6: （千円） | O6: （千円） | P6: （千円） | Q6: （千円） | R6: （千円） | S6: （千円） | T6: （千円） | U6: （千円） | V6: （千円） | W6: （千円） | X6: （千円） | Y6: （千円） | Z6: （千円） | AA6: （千円） | AB6: （千円） | AC6: （千円） | AD6: （千円） | AE6: （千円） | AF6: （千円） | AG6: （千円） | AH6: （千円） | AI6: （千円） | AJ6: （千円） | AK6: （千円） | AL6: （千円） | AM6: （千円） | AN6: （千円） | AO6: （千円） | AP6: （千円） | AQ6: （千円） | AR6: （千円） | AS6: （千円） | AT6: （千円） | AU6: （千円） | AV6: （千円） | AW6: （千円） | AX6: （千円） | AY6: （千円） | AZ6: （千円） | BA6: （千円） | BB6: （千円） | BC6: （千円） | BD6: （千円） | BE6: （千円） | BF6: （千円） | BG6: （千円） | BH6: （千円） | BI6: （千円） | BJ6: （千円） | BK6: （千円） | BL6: （千円） | BM6: （千円） | BN6: （千円） | BO6: （千円） | BP6: （千円） | BQ6: （千円） | BR6: （千円） | BS6: （千円） | BT6: （千円） | BU6: （千円） | BV6: （千円） | BW6: （千円） | BX6: （千円） | BY6: （千円） | BZ6: （千円） | CA6: （千円） | CB6: （千円） | CC6: （千円） | CD6: （千円） | CE6: （千円） | CF6: （千円） | CG6: （千円） | CH6: （千円） | CI6: （千円） | CJ6: （千円） | CK6: （千円） | CL6: （千円） | CM6: （千円） | CN6: （千円） | CO6: （千円） | CP6: （千円） | CQ6: （千円） | CR6: （千円） | CS6: （千円） | CT6: （千円） | CU6: （千円） | CV6: （千円） | CW6: （千円） | CX6: （千円） | CY6: （千円） | CZ6: （千円） | DA6: （千円） | DB6: （千円） | DC6: （千円） | DD6: （千円） | DE6: （千円） | DF6: （千円） | DG6: （千円） | DH6: （千円） | DI6: （千円） | DJ6: （千円）
A7: 京都府 | B7: 26000 | C7: 合計 | D7: =SUM(E7,+L7) -> 43,578,115 | E7: =SUM(F7:I7,K7) -> 16,358,806 | F7: =SUM(F$8:F$1000) -> 3,132,101 | G7: 68,227 | H7: 3,652,000 | I7: 5,133,449 | J7: - | K7: 4,373,029 | L7: 27,219,309 | M7: =SUM(N7,+U7) -> 4,824,203 | N7: =SUM(O7:R7,T7) -> 1,320,797 | O7: =SUM(O$8:O$1000) -> 224,384 | P7: 6,817 | Q7: 257,998 | R7: 800,591 | S7: - | T7: 31,007 | U7: 3,503,406 | V7: =+SUM(D7,M7) -> 48,402,318 | W7: 17,679,603 | X7: 3,356,485 | Y7: 75,044 | Z7: 3,909,998 | AA7: 5,934,040 | AB7: =IF(+SUM(J7,S7)=0,"-",+SUM(J7,S7)) -> - | AC7: =+SUM(K7,T7) -> 4,404,036 | AD7: =+SUM(L7,U7) -> 30,722,715 | AE7: =SUM(AF7,+AK7) -> 10,662,724 | AF7: =SUM(AG7:AJ7) -> 9,890,305 | AG7: =SUM(AG$8:AG$1000) -> 0 | AH7: 9,409,774 | AI7: 173,517 | AJ7: 307,014 | AK7: 772,419 | AL7: 1,666,081 | AM7: =SUM(AN7,AS7,AW7,AX7,BD7) -> 26,233,509 | AN7: =SUM(AO7:AR7) -> 10,610,423 | AO7: =SUM(AO$8:AO$1000) -> 2,053,177 | AP7: =SUM(AP$8:AP$1000) -> 6,084,764 | AQ7: =SUM(AQ$8:AQ$1000) -> 2,271,830 | AR7: =SUM(AR$8:AR$1000) -> 200,652 | AS7: =SUM(AT7:AV7) -> 6,797,174 | AT7: =SUM(AT$8:AT$1000) -> 1,348,247 | AU7: =SUM(AU$8:AU$1000) -> 4,523,660 | AV7: =SUM(AV$8:AV$1000) -> 925,267 | AW7: =SUM(AW$8:AW$1000) -> 152,731 | AX7: =SUM(AY7:BB7) -> 8,648,539 | AY7: =SUM(AY$8:AY$1000) -> 5,642,871 | AZ7: 2,533,990 | BA7: 327,271 | BB7: 144,407 | BC7: 2,994,671 | BD7: 24,642 | BE7: 2,021,130 | BF7: =SUM(AE7,+AM7,+BE7) -> 38,917,363 | BG7: =SUM(BH7,+BM7) -> 835,619 | BH7: =SUM(BI7:BL7) -> 835,619 | BI7: =SUM(BI$8:BI$1000) -> 0 | BJ7: 703,041 | BK7: 11,200 | BL7: 121,378 | BM7: 0 | BN7: 97,234 | BO7: =SUM(BP7,BU7,BY7,BZ7,CF7) -> 2,362,185 | BP7: =SUM(BQ7:BT7) -> 405,727 | BQ7: =SUM(BQ$8:BQ$1000) -> 231,703 | BR7: =SUM(BR$8:BR$1000) -> 148,774 | BS7: =SUM(BS$8:BS$1000) -> 25,250 | BT7: =SUM(BT$8:BT$1000) -> 0 | BU7: =SUM(BV7:BX7) -> 348,616 | BV7: =SUM(BV$8:BV$1000) -> 91,032 | BW7: =SUM(BW$8:BW$1000) -> 257,584 | BX7: =SUM(BX$8:BX$1000) -> 0 | BY7: =SUM(BY$8:BY$1000) -> 9,666 | BZ7: =SUM(CA7:CD7) -> 1,598,176 | CA7: =SUM(CA$8:CA$1000) -> 1,043,389 | CB7: 361,441 | CC7: 12,606 | CD7: 180,740 | CE7: 1,398,047 | CF7: 0 | CG7: 131,118 | CH7: =SUM(BG7,+BO7,+CG7) -> 3,328,922 | CI7: =SUM(AE7,+BG7) -> 11,498,343 | CJ7: 10,725,924 | CK7: 0 | CL7: 10,112,815 | CM7: 184,717 | CN7: 428,392 | CO7: 772,419 | CP7: 1,763,315 | CQ7: 28,595,694 | CR7: 11,016,150 | CS7: 2,284,880 | CT7: 6,233,538 | CU7: 2,297,080 | CV7: 200,652 | CW7: 7,145,790 | CX7: 1,439,279 | CY7: 4,781,244 | CZ7: 925,267 | DA7: 162,397 | DB7: 10,246,715 | DC7: 6,686,260 | DD7: 2,895,431 | DE7: 339,877 | DF7: 325,147 | DG7: 4,392,718 | DH7: 24,642 | DI7: 2,152,248 | DJ7: 42,246,285
A8: 京都府 | B8: 26100 | C8: 京都市 | D8: =SUM(E8,+L8) -> 22,994,933 | E8: =SUM(F8:I8,K8) -> 13,928,596 | F8: 2,784,851 | G8: 0 | H8: 2,912,000 | I8: 4,049,530 | J8: - | K8: 4,182,215 | L8: 9,066,337 | M8: =SUM(N8,+U8) -> 817,474 | N8: =SUM(O8:R8,T8) -> 77,531 | O8: 0 | P8: 0 | Q8: 0 | R8: 75,454 | S8: - | T8: 2,077 | U8: 739,943 | V8: =+SUM(D8,M8) -> 23,812,407 | W8: =+SUM(E8,N8) -> 14,006,127 | X8: =+SUM(F8,O8) -> 2,784,851 | Y8: =+SUM(G8,P8) -> 0 | Z8: =+SUM(H8,Q8) -> 2,912,000 | AA8: =+SUM(I8,R8) -> 4,124,984 | AB8: =IF(+SUM(J8,S8)=0,"-",+SUM(J8,S8)) -> - | AC8: =+SUM(K8,T8) -> 4,184,292 | AD8: =+SUM(L8,U8) -> 9,806,280 | AE8: =SUM(AF8,+AK8) -> 5,854,069 | AF8: =SUM(AG8:AJ8) -> 5,832,452 | AG8: 0 | AH8: 5,714,416 | AI8: 118,036 | AJ8: 0 | AK8: 21,617 | AL8: 0 | AM8: =SUM(AN8,AS8,AW8,AX8,BD8) -> 15,402,063 | AN8: =SUM(AO8:AR8) -> 7,891,731 | AO8: 1,066,193 | AP8: 4,548,696 | AQ8: 2,105,968 | AR8: 170,874 | AS8: =SUM(AT8:AV8) -> 5,025,181 | AT8: 895,564 | AU8: 3,411,058 | AV8: 718,559 | AW8: 77,627 | AX8: =SUM(AY8:BB8) -> 2,392,519 | AY8: 1,783,200 | AZ8: 602,367 | BA8: 6,952 | BB8: 0 | BC8: 0 | BD8: 15,005 | BE8: 1,738,801 | BF8: =SUM(AE8,+AM8,+BE8) -> 22,994,933 | BG8: =SUM(BH8,+BM8) -> 179,606 | BH8: =SUM(BI8:BL8) -> 179,606 | BI8: 0 | BJ8: 58,228 | BK8: 0 | BL8: 121,378 | BM8: 0 | BN8: 0 | BO8: =SUM(BP8,BU8,BY8,BZ8,CF8) -> 632,876 | BP8: =SUM(BQ8:BT8) -> 154,034 | BQ8: 40,082 | BR8: 113,952 | BS8: 0 | BT8: 0 | BU8: =SUM(BV8:BX8) -> 73,443 | BV8: 52,046 | BW8: 21,397 | BX8: 0 | BY8: 9,666 | BZ8: =SUM(CA8:CD8) -> 395,733 | CA8: 365,506 | CB8: 30,227 | CC8: 0 | CD8: 0 | CE8: 0 | CF8: 0 | CG8: 4,992 | CH8: =SUM(BG8,+BO8,+CG8) -> 817,474 | CI8: =SUM(AE8,+BG8) -> 6,033,675 | CJ8: =SUM(AF8,+BH8) -> 6,012,058 | CK8: =SUM(AG8,+BI8) -> 0 | CL8: =SUM(AH8,+BJ8) -> 5,772,644 | CM8: =SUM(AI8,+BK8) -> 118,036 | CN8: =SUM(AJ8,+BL8) -> 121,378 | CO8: =SUM(AK8,+BM8) -> 21,617 | CP8: =SUM(AL8,+BN8) -> 0 | CQ8: =SUM(AM8,+BO8) -> 16,034,939 | CR8: =SUM(AN8,+BP8) -> 8,045,765 | CS8: =SUM(AO8,+BQ8) -> 1,106,275 | CT8: =SUM(AP8,+BR8) -> 4,662,648 | CU8: =SUM(AQ8,+BS8) -> 2,105,968 | CV8: =SUM(AR8,+BT8) -> 170,874 | CW8: =SUM(AS8,+BU8) -> 5,098,624 | CX8: =SUM(AT8,+BV8) -> 947,610 | CY8: =SUM(AU8,+BW8) -> 3,432,455 | CZ8: =SUM(AV8,+BX8) -> 718,559 | DA8: =SUM(AW8,+BY8) -> 87,293 | DB8: =SUM(AX8,+BZ8) -> 2,788,252 | DC8: =SUM(AY8,+CA8) -> 2,148,706 | DD8: =SUM(AZ8,+CB8) -> 632,594 | DE8: =SUM(BA8,+CC8) -> 6,952 | DF8: =SUM(BB8,+CD8) -> 0 | DG8: =SUM(BC8,+CE8) -> 0 | DH8: =SUM(BD8,+CF8) -> 15,005 | DI8: =SUM(BE8,+CG8) -> 1,743,793 | DJ8: =SUM(BF8,+CH8) -> 23,812,407
A9: 京都府 | B9: 26201 | C9: 福知山市 | D9: =SUM(E9,+L9) -> 1,709,669 | E9: =SUM(F9:I9,K9) -> 1,009,598 | F9: 244,803 | G9: 13,896 | H9: 282,100 | I9: 440,367 | J9: - | K9: 28,432 | L9: 700,071 | M9: =SUM(N9,+U9) -> 111,268 | N9: =SUM(O9:R9,T9) -> 27,973 | O9: 0 | P9: 0 | Q9: 0 | R9: 27,973 | S9: - | T9: 0 | U9: 83,295 | V9: =+SUM(D9,M9) -> 1,820,937 | W9: =+SUM(E9,N9) -> 1,037,571 | X9: =+SUM(F9,O9) -> 244,803 | Y9: =+SUM(G9,P9) -> 13,896 | Z9: =+SUM(H9,Q9) -> 282,100 | AA9: =+SUM(I9,R9) -> 468,340 | AB9: =IF(+SUM(J9,S9)=0,"-",+SUM(J9,S9)) -> - | AC9: =+SUM(K9,T9) -> 28,432 | AD9: =+SUM(L9,U9) -> 783,366 | AE9: =SUM(AF9,+AK9) -> 515,319 | AF9: =SUM(AG9:AJ9) -> 504,634 | AG9: 0 | AH9: 500,044 | AI9: 0 | AJ9: 4,590 | AK9: 10,685 | AL9: 0 | AM9: =SUM(AN9,AS9,AW9,AX9,BD9) -> 1,121,224 | AN9: =SUM(AO9:AR9) -> 133,098 | AO9: 133,098 | AP9: 0 | AQ9: 0 | AR9: 0 | AS9: =SUM(AT9:AV9) -> 230,565 | AT9: 0 | AU9: 215,817 | AV9: 14,748 | AW9: 0 | AX9: =SUM(AY9:BB9) -> 753,273 | AY9: 445,854 | AZ9: 286,422 | BA9: 13,519 | BB9: 7,478 | BC9: 0 | BD9: 4,288 | BE9: 73,126 | BF9: =SUM(AE9,+AM9,+BE9) -> 1,709,669 | BG9: =SUM(BH9,+BM9) -> 0 | BH9: =SUM(BI9:BL9) -> 0 | BI9: 0 | BJ9: 0 | BK9: 0 | BL9: 0 | BM9: 0 | BN9: 0 | BO9: =SUM(BP9,BU9,BY9,BZ9,CF9) -> 111,268 | BP9: =SUM(BQ9:BT9) -> 1,287 | BQ9: 1,287 | BR9: 0 | BS9: 0 | BT9: 0 | BU9: =SUM(BV9:BX9) -> 9,930 | BV9: 9,930 | BW9: 0 | BX9: 0 | BY9: 0 | BZ9: =SUM(CA9:CD9) -> 100,051 | CA9: 98,928 | CB9: 0 | CC9: 0 | CD9: 1,123 | CE9: 0 | CF9: 0 | CG9: 0 | CH9: =SUM(BG9,+BO9,+CG9) -> 111,268 | CI9: =SUM(AE9,+BG9) -> 515,319 | CJ9: =SUM(AF9,+BH9) -> 504,634 | CK9: =SUM(AG9,+BI9) -> 0 | CL9: =SUM(AH9,+BJ9) -> 500,044 | CM9: =SUM(AI9,+BK9) -> 0 | CN9: =SUM(AJ9,+BL9) -> 4,590 | CO9: =SUM(AK9,+BM9) -> 10,685 | CP9: =SUM(AL9,+BN9) -> 0 | CQ9: =SUM(AM9,+BO9) -> 1,232,492 | CR9: =SUM(AN9,+BP9) -> 134,385 | CS9: =SUM(AO9,+BQ9) -> 134,385 | CT9: =SUM(AP9,+BR9) -> 0 | CU9: =SUM(AQ9,+BS9) -> 0 | CV9: =SUM(AR9,+BT9) -> 0 | CW9: =SUM(AS9,+BU9) -> 240,495 | CX9: =SUM(AT9,+BV9) -> 9,930 | CY9: =SUM(AU9,+BW9) -> 215,817 | CZ9: =SUM(AV9,+BX9) -> 14,748 | DA9: =SUM(AW9,+BY9) -> 0 | DB9: =SUM(AX9,+BZ9) -> 853,324 | DC9: =SUM(AY9,+CA9) -> 544,782 | DD9: =SUM(AZ9,+CB9) -> 286,422 | DE9: =SUM(BA9,+CC9) -> 13,519 | DF9: =SUM(BB9,+CD9) -> 8,601 | DG9: =SUM(BC9,+CE9) -> 0 | DH9: =SUM(BD9,+CF9) -> 4,288 | DI9: =SUM(BE9,+CG9) -> 73,126 | DJ9: =SUM(BF9,+CH9) -> 1,820,937
A10: 京都府 | B10: 26202 | C10: 舞鶴市 | D10: =SUM(E10,+L10) -> 1,391,348 | E10: =SUM(F10:I10,K10) -> 377,311 | F10: 59,364 | G10: 40,000 | H10: 157,700 | I10: 111,443 | J10: - | K10: 8,804 | L10: 1,014,037 | M10: =SUM(N10,+U10) -> 645,914 | N10: =SUM(O10:R10,T10) -> 471,421 | O10: 221,723 | P10: 0 | Q10: 249,698 | R10: 0 | S10: - | T10: 0 | U10: 174,493 | V10: =+SUM(D10,M10) -> 2,037,262 | W10: =+SUM(E10,N10) -> 848,732 | X10: =+SUM(F10,O10) -> 281,087 | Y10: =+SUM(G10,P10) -> 40,000 | Z10: =+SUM(H10,Q10) -> 407,398 | AA10: =+SUM(I10,R10) -> 111,443 | AB10: =IF(+SUM(J10,S10)=0,"-",+SUM(J10,S10)) -> - | AC10: =+SUM(K10,T10) -> 8,804 | AD10: =+SUM(L10,U10) -> 1,188,530 | AE10: =SUM(AF10,+AK10) -> 296,543 | AF10: =SUM(AG10:AJ10) -> 273,588 | AG10: 0 | AH10: 7,571 | AI10: 0 | AJ10: 266,017 | AK10: 22,955 | AL10: 0 | AM10: =SUM(AN10,AS10,AW10,AX10,BD10) -> 1,076,842 | AN10: =SUM(AO10:AR10) -> 151,521 | AO10: 126,834 | AP10: 0 | AQ10: 20,576 | AR10: 4,111 | AS10: =SUM(AT10:AV10) -> 230,316 | AT10: 5,188 | AU10: 212,764 | AV10: 12,364 | AW10: 0 | AX10: =SUM(AY10:BB10) -> 695,005 | AY10: 382,731 | AZ10: 192,521 | BA10: 41,653 | BB10: 78,100 | BC10: 0 | BD10: 0 | BE10: 17,963 | BF10: =SUM(AE10,+AM10,+BE10) -> 1,391,348 | BG10: =SUM(BH10,+BM10) -> 502,253 | BH10: =SUM(BI10:BL10) -> 502,253 | BI10: 0 | BJ10: 502,253 | BK10: 0 | BL10: 0 | BM10: 0 | BN10: 0 | BO10: =SUM(BP10,BU10,BY10,BZ10,CF10) -> 143,054 | BP10: =SUM(BQ10:BT10) -> 16,564 | BQ10: 16,564 | BR10: 0 | BS10: 0 | BT10: 0 | BU10: =SUM(BV10:BX10) -> 19,282 | BV10: 0 | BW10: 19,282 | BX10: 0 | BY10: 0 | BZ10: =SUM(CA10:CD10) -> 107,208 | CA10: 25,191 | CB10: 82,017 | CC10: 0 | CD10: 0 | CE10: 0 | CF10: 0 | CG10: 607 | CH10: =SUM(BG10,+BO10,+CG10) -> 645,914 | CI10: =SUM(AE10,+BG10) -> 798,796 | CJ10: =SUM(AF10,+BH10) -> 775,841 | CK10: =SUM(AG10,+BI10) -> 0 | CL10: =SUM(AH10,+BJ10) -> 509,824 | CM10: =SUM(AI10,+BK10) -> 0 | CN10: =SUM(AJ10,+BL10) -> 266,017 | CO10: =SUM(AK10,+BM10) -> 22,955 | CP10: =SUM(AL10,+BN10) -> 0 | CQ10: =SUM(AM10,+BO10) -> 1,219,896 | CR10: =SUM(AN10,+BP10) -> 168,085 | CS10: =SUM(AO10,+BQ10) -> 143,398 | CT10: =SUM(AP10,+BR10) -> 0 | CU10: =SUM(AQ10,+BS10) -> 20,576 | CV10: =SUM(AR10,+BT10) -> 4,111 | CW10: =SUM(AS10,+BU10) -> 249,598 | CX10: =SUM(AT10,+BV10) -> 5,188 | CY10: =SUM(AU10,+BW10) -> 232,046 | CZ10: =SUM(AV10,+BX10) -> 12,364 | DA10: =SUM(AW10,+BY10) -> 0 | DB10: =SUM(AX10,+BZ10) -> 802,213 | DC10: =SUM(AY10,+CA10) -> 407,922 | DD10: =SUM(AZ10,+CB10) -> 274,538 | DE10: =SUM(BA10,+CC10) -> 41,653 | DF10: =SUM(BB10,+CD10) -> 78,100 | DG10: =SUM(BC10,+CE10) -> 0 | DH10: =SUM(BD10,+CF10) -> 0 | DI10: =SUM(BE10,+CG10) -> 18,570 | DJ10: =SUM(BF10,+CH10) -> 2,037,262
A11: 京都府 | B11: 26203 | C11: 綾部市 | D11: =SUM(E11,+L11) -> 725,996 | E11: =SUM(F11:I11,K11) -> 132,500 | F11: 4,608 | G11: 0 | H11: 2,500 | I11: 102,198 | J11: - | K11: 23,194 | L11: 593,496 | M11: =SUM(N11,+U11) -> 484,252 | N11: =SUM(O11:R11,T11) -> 117,133 | O11: 0 | P11: 0 | Q11: 0 | R11: 117,082 | S11: - | T11: 51 | U11: 367,119 | V11: =+SUM(D11,M11) -> 1,210,248 | W11: =+SUM(E11,N11) -> 249,633 | X11: =+SUM(F11,O11) -> 4,608 | Y11: =+SUM(G11,P11) -> 0 | Z11: =+SUM(H11,Q11) -> 2,500 | AA11: =+SUM(I11,R11) -> 219,280 | AB11: =IF(+SUM(J11,S11)=0,"-",+SUM(J11,S11)) -> - | AC11: =+SUM(K11,T11) -> 23,245 | AD11: =+SUM(L11,U11) -> 960,615 | AE11: =SUM(AF11,+AK11) -> 580 | AF11: =SUM(AG11:AJ11) -> 580 | AG11: 0 | AH11: 0 | AI11: 0 | AJ11: 580 | AK11: 0 | AL11: 0 | AM11: =SUM(AN11,AS11,AW11,AX11,BD11) -> 725,416 | AN11: =SUM(AO11:AR11) -> 72,038 | AO11: 72,038 | AP11: 0 | AQ11: 0 | AR11: 0 | AS11: =SUM(AT11:AV11) -> 119,541 | AT11: 0 | AU11: 112,725 | AV11: 6,816 | AW11: 0 | AX11: =SUM(AY11:BB11) -> 533,837 | AY11: 205,390 | AZ11: 266,932 | BA11: 8,838 | BB11: 52,677 | BC11: 0 | BD11: 0 | BE11: 0 | BF11: =SUM(AE11,+AM11,+BE11) -> 725,996 | BG11: =SUM(BH11,+BM11) -> 142,560 | BH11: =SUM(BI11:BL11) -> 142,560 | BI11: 0 | BJ11: 142,560 | BK11: 0 | BL11: 0 | BM11: 0 | BN11: 0 | BO11: =SUM(BP11,BU11,BY11,BZ11,CF11) -> 341,692 | BP11: =SUM(BQ11:BT11) -> 19,608 | BQ11: 19,608 | BR11: 0 | BS11: 0 | BT11: 0 | BU11: =SUM(BV11:BX11) -> 0 | BV11: 0 | BW11: 0 | BX11: 0 | BY11: 0 | BZ11: =SUM(CA11:CD11) -> 322,084 | CA11: 142,683 | CB11: 0 | CC11: 0 | CD11: 179,401 | CE11: 0 | CF11: 0 | CG11: 0 | CH11: =SUM(BG11,+BO11,+CG11) -> 484,252 | CI11: =SUM(AE11,+BG11) -> 143,140 | CJ11: =SUM(AF11,+BH11) -> 143,140 | CK11: =SUM(AG11,+BI11) -> 0 | CL11: =SUM(AH11,+BJ11) -> 142,560 | CM11: =SUM(AI11,+BK11) -> 0 | CN11: =SUM(AJ11,+BL11) -> 580 | CO11: =SUM(AK11,+BM11) -> 0 | CP11: =SUM(AL11,+BN11) -> 0 | CQ11: =SUM(AM11,+BO11) -> 1,067,108 | CR11: =SUM(AN11,+BP11) -> 91,646 | CS11: =SUM(AO11,+BQ11) -> 91,646 | CT11: =SUM(AP11,+BR11) -> 0 | CU11: =SUM(AQ11,+BS11) -> 0 | CV11: =SUM(AR11,+BT11) -> 0 | CW11: =SUM(AS11,+BU11) -> 119,541 | CX11: =SUM(AT11,+BV11) -> 0 | CY11: =SUM(AU11,+BW11) -> 112,725 | CZ11: =SUM(AV11,+BX11) -> 6,816 | DA11: =SUM(AW11,+BY11) -> 0 | DB11: =SUM(AX11,+BZ11) -> 855,921 | DC11: =SUM(AY11,+CA11) -> 348,073 | DD11: =SUM(AZ11,+CB11) -> 266,932 | DE11: =SUM(BA11,+CC11) -> 8,838 | DF11: =SUM(BB11,+CD11) -> 232,078 | DG11: =SUM(BC11,+CE11) -> 0 | DH11: =SUM(BD11,+CF11) -> 0 | DI11: =SUM(BE11,+CG11) -> 0 | DJ11: =SUM(BF11,+CH11) -> 1,210,248
A12: 京都府 | B12: 26204 | C12: 宇治市 | D12: =SUM(E12,+L12) -> 2,314,732 | E12: =SUM(F12:I12,K12) -> 20,271 | F12: 0 | G12: 0 | H12: 0 | I12: 18,195 | J12: - | K12: 2,076 | L12: 2,294,461 | M12: =SUM(N12,+U12) -> 335,726 | N12: =SUM(O12:R12,T12) -> 0 | O12: 0 | P12: 0 | Q12: 0 | R12: 0 | S12: - | T12: 0 | U12: 335,726 | V12: =+SUM(D12,M12) -> 2,650,458 | W12: =+SUM(E12,N12) -> 20,271 | X12: =+SUM(F12,O12) -> 0 | Y12: =+SUM(G12,P12) -> 0 | Z12: =+SUM(H12,Q12) -> 0 | AA12: =+SUM(I12,R12) -> 18,195 | AB12: =IF(+SUM(J12,S12)=0,"-",+SUM(J12,S12)) -> - | AC12: =+SUM(K12,T12) -> 2,076 | AD12: =+SUM(L12,U12) -> 2,630,187 | AE12: =SUM(AF12,+AK12) -> 0 | AF12: =SUM(AG12:AJ12) -> 0 | AG12: 0 | AH12: 0 | AI12: 0 | AJ12: 0 | AK12: 0 | AL12: 434,293 | AM12: =SUM(AN12,AS12,AW12,AX12,BD12) -> 1,183,743 | AN12: =SUM(AO12:AR12) -> 720,349 | AO12: 203,557 | AP12: 516,792 | AQ12: 0 | AR12: 0 | AS12: =SUM(AT12:AV12) -> 90,509 | AT12: 38,168 | AU12: 0 | AV12: 52,341 | AW12: 32,344 | AX12: =SUM(AY12:BB12) -> 340,541 | AY12: 333,996 | AZ12: 0 | BA12: 6,545 | BB12: 0 | BC12: 696,696 | BD12: 0 | BE12: 0 | BF12: =SUM(AE12,+AM12,+BE12) -> 1,183,743 | BG12: =SUM(BH12,+BM12) -> 0 | BH12: =SUM(BI12:BL12) -> 0 | BI12: 0 | BJ12: 0 | BK12: 0 | BL12: 0 | BM12: 0 | BN12: 48,646 | BO12: =SUM(BP12,BU12,BY12,BZ12,CF12) -> 0 | BP12: =SUM(BQ12:BT12) -> 0 | BQ12: 0 | BR12: 0 | BS12: 0 | BT12: 0 | BU12: =SUM(BV12:BX12) -> 0 | BV12: 0 | BW12: 0 | BX12: 0 | BY12: 0 | BZ12: =SUM(CA12:CD12) -> 0 | CA12: 0 | CB12: 0 | CC12: 0 | CD12: 0 | CE12: 287,080 | CF12: 0 | CG12: 0 | CH12: =SUM(BG12,+BO12,+CG12) -> 0 | CI12: =SUM(AE12,+BG12) -> 0 | CJ12: =SUM(AF12,+BH12) -> 0 | CK12: =SUM(AG12,+BI12) -> 0 | CL12: =SUM(AH12,+BJ12) -> 0 | CM12: =SUM(AI12,+BK12) -> 0 | CN12: =SUM(AJ12,+BL12) -> 0 | CO12: =SUM(AK12,+BM12) -> 0 | CP12: =SUM(AL12,+BN12) -> 482,939 | CQ12: =SUM(AM12,+BO12) -> 1,183,743 | CR12: =SUM(AN12,+BP12) -> 720,349 | CS12: =SUM(AO12,+BQ12) -> 203,557 | CT12: =SUM(AP12,+BR12) -> 516,792 | CU12: =SUM(AQ12,+BS12) -> 0 | CV12: =SUM(AR12,+BT12) -> 0 | CW12: =SUM(AS12,+BU12) -> 90,509 | CX12: =SUM(AT12,+BV12) -> 38,168 | CY12: =SUM(AU12,+BW12) -> 0 | CZ12: =SUM(AV12,+BX12) -> 52,341 | DA12: =SUM(AW12,+BY12) -> 32,344 | DB12: =SUM(AX12,+BZ12) -> 340,541 | DC12: =SUM(AY12,+CA12) -> 333,996 | DD12: =SUM(AZ12,+CB12) -> 0 | DE12: =SUM(BA12,+CC12) -> 6,545 | DF12: =SUM(BB12,+CD12) -> 0 | DG12: =SUM(BC12,+CE12) -> 983,776 | DH12: =SUM(BD12,+CF12) -> 0 | DI12: =SUM(BE12,+CG12) -> 0 | DJ12: =SUM(BF12,+CH12) -> 1,183,743
A13: 京都府 | B13: 26205 | C13: 宮津市 | D13: =SUM(E13,+L13) -> 603,244 | E13: =SUM(F13:I13,K13) -> 216,089 | F13: 0 | G13: 3,597 | H13: 155,800 | I13: 56,574 | J13: - | K13: 118 | L13: 387,155 | M13: =SUM(N13,+U13) -> 162,828 | N13: =SUM(O13:R13,T13) -> 94,002 | O13: 0 | P13: 3,513 | Q13: 8,300 | R13: 82,189 | S13: - | T13: 0 | U13: 68,826 | V13: =+SUM(D13,M13) -> 766,072 | W13: =+SUM(E13,N13) -> 310,091 | X13: =+SUM(F13,O13) -> 0 | Y13: =+SUM(G13,P13) -> 7,110 | Z13: =+SUM(H13,Q13) -> 164,100 | AA13: =+SUM(I13,R13) -> 138,763 | AB13: =IF(+SUM(J13,S13)=0,"-",+SUM(J13,S13)) -> - | AC13: =+SUM(K13,T13) -> 118 | AD13: =+SUM(L13,U13) -> 455,981 | AE13: =SUM(AF13,+AK13) -> 68,785 | AF13: =SUM(AG13:AJ13) -> 68,785 | AG13: 0 | AH13: 68,785 | AI13: 0 | AJ13: 0 | AK13: 0 | AL13: 133,857 | AM13: =SUM(AN13,AS13,AW13,AX13,BD13) -> 400,602 | AN13: =SUM(AO13:AR13) -> 32,222 | AO13: 32,222 | AP13: 0 | AQ13: 0 | AR13: 0 | AS13: =SUM(AT13:AV13) -> 61,890 | AT13: 0 | AU13: 61,756 | AV13: 134 | AW13: 0 | AX13: =SUM(AY13:BB13) -> 306,490 | AY13: 133,086 | AZ13: 159,614 | BA13: 13,790 | BB13: 0 | BC13: 0 | BD13: 0 | BE13: 0 | BF13: =SUM(AE13,+AM13,+BE13) -> 469,387 | BG13: =SUM(BH13,+BM13) -> 11,200 | BH13: =SUM(BI13:BL13) -> 11,200 | BI13: 0 | BJ13: 0 | BK13: 11,200 | BL13: 0 | BM13: 0 | BN13: 0 | BO13: =SUM(BP13,BU13,BY13,BZ13,CF13) -> 151,628 | BP13: =SUM(BQ13:BT13) -> 24,166 | BQ13: 24,166 | BR13: 0 | BS13: 0 | BT13: 0 | BU13: =SUM(BV13:BX13) -> 17,059 | BV13: 0 | BW13: 17,059 | BX13: 0 | BY13: 0 | BZ13: =SUM(CA13:CD13) -> 110,403 | CA13: 83,235 | CB13: 25,749 | CC13: 1,419 | CD13: 0 | CE13: 0 | CF13: 0 | CG13: 0 | CH13: =SUM(BG13,+BO13,+CG13) -> 162,828 | CI13: =SUM(AE13,+BG13) -> 79,985 | CJ13: =SUM(AF13,+BH13) -> 79,985 | CK13: =SUM(AG13,+BI13) -> 0 | CL13: =SUM(AH13,+BJ13) -> 68,785 | CM13: =SUM(AI13,+BK13) -> 11,200 | CN13: =SUM(AJ13,+BL13) -> 0 | CO13: =SUM(AK13,+BM13) -> 0 | CP13: =SUM(AL13,+BN13) -> 133,857 | CQ13: =SUM(AM13,+BO13) -> 552,230 | CR13: =SUM(AN13,+BP13) -> 56,388 | CS13: =SUM(AO13,+BQ13) -> 56,388 | CT13: =SUM(AP13,+BR13) -> 0 | CU13: =SUM(AQ13,+BS13) -> 0 | CV13: =SUM(AR13,+BT13) -> 0 | CW13: =SUM(AS13,+BU13) -> 78,949 | CX13: =SUM(AT13,+BV13) -> 0 | CY13: =SUM(AU13,+BW13) -> 78,815 | CZ13: =SUM(AV13,+BX13) -> 134 | DA13: =SUM(AW13,+BY13) -> 0 | DB13: =SUM(AX13,+BZ13) -> 416,893 | DC13: =SUM(AY13,+CA13) -> 216,321 | DD13: =SUM(AZ13,+CB13) -> 185,363 | DE13: =SUM(BA13,+CC13) -> 15,209 | DF13: =SUM(BB13,+CD13) -> 0 | DG13: =SUM(BC13,+CE13) -> 0 | DH13: =SUM(BD13,+CF13) -> 0 | DI13: =SUM(BE13,+CG13) -> 0 | DJ13: =SUM(BF13,+CH13) -> 632,215
A14: 京都府 | B14: 26206 | C14: 亀岡市 | D14: =SUM(E14,+L14) -> 902,261 | E14: =SUM(F14:I14,K14) -> 243,274 | F14: 0 | G14: 8,877 | H14: 0 | I14: 218,644 | J14: - | K14: 15,753 | L14: 658,987 | M14: =SUM(N14,+U14) -> 269,938 | N14: =SUM(O14:R14,T14) -> 90,445 | O14: 0 | P14: 0 | Q14: 0 | R14: 88,444 | S14: - | T14: 2,001 | U14: 179,493 | V14: =+SUM(D14,M14) -> 1,172,199 | W14: =+SUM(E14,N14) -> 333,719 | X14: =+SUM(F14,O14) -> 0 | Y14: =+SUM(G14,P14) -> 8,877 | Z14: =+SUM(H14,Q14) -> 0 | AA14: =+SUM(I14,R14) -> 307,088 | AB14: =IF(+SUM(J14,S14)=0,"-",+SUM(J14,S14)) -> - | AC14: =+SUM(K14,T14) -> 17,754 | AD14: =+SUM(L14,U14) -> 838,480 | AE14: =SUM(AF14,+AK14) -> 0 | AF14: =SUM(AG14:AJ14) -> 0 | AG14: 0 | AH14: 0 | AI14: 0 | AJ14: 0 | AK14: 0 | AL14: 0 | AM14: =SUM(AN14,AS14,AW14,AX14,BD14) -> 848,110 | AN14: =SUM(AO14:AR14) -> 105,889 | AO14: 90,551 | AP14: 2,682 | AQ14: 7,499 | AR14: 5,157 | AS14: =SUM(AT14:AV14) -> 195,975 | AT14: 0 | AU14: 170,811 | AV14: 25,164 | AW14: 0 | AX14: =SUM(AY14:BB14) -> 546,246 | AY14: 357,866 | AZ14: 126,674 | BA14: 61,706 | BB14: 0 | BC14: 0 | BD14: 0 | BE14: 54,151 | BF14: =SUM(AE14,+AM14,+BE14) -> 902,261 | BG14: =SUM(BH14,+BM14) -> 0 | BH14: =SUM(BI14:BL14) -> 0 | BI14: 0 | BJ14: 0 | BK14: 0 | BL14: 0 | BM14: 0 | BN14: 0 | BO14: =SUM(BP14,BU14,BY14,BZ14,CF14) -> 242,555 | BP14: =SUM(BQ14:BT14) -> 28,976 | BQ14: 28,976 | BR14: 0 | BS14: 0 | BT14: 0 | BU14: =SUM(BV14:BX14) -> 0 | BV14: 0 | BW14: 0 | BX14: 0 | BY14: 0 | BZ14: =SUM(CA14:CD14) -> 213,579 | CA14: 80,784 | CB14: 132,795 | CC14: 0 | CD14: 0 | CE14: 0 | CF14: 0 | CG14: 27,383 | CH14: =SUM(BG14,+BO14,+CG14) -> 269,938 | CI14: =SUM(AE14,+BG14) -> 0 | CJ14: =SUM(AF14,+BH14) -> 0 | CK14: =SUM(AG14,+BI14) -> 0 | CL14: =SUM(AH14,+BJ14) -> 0 | CM14: =SUM(AI14,+BK14) -> 0 | CN14: =SUM(AJ14,+BL14) -> 0 | CO14: =SUM(AK14,+BM14) -> 0 | CP14: =SUM(AL14,+BN14) -> 0 | CQ14: =SUM(AM14,+BO14) -> 1,090,665 | CR14: =SUM(AN14,+BP14) -> 134,865 | CS14: =SUM(AO14,+BQ14) -> 119,527 | CT14: =SUM(AP14,+BR14) -> 2,682 | CU14: =SUM(AQ14,+BS14) -> 7,499 | CV14: =SUM(AR14,+BT14) -> 5,157 | CW14: =SUM(AS14,+BU14) -> 195,975 | CX14: =SUM(AT14,+BV14) -> 0 | CY14: =SUM(AU14,+BW14) -> 170,811 | CZ14: =SUM(AV14,+BX14) -> 25,164 | DA14: =SUM(AW14,+BY14) -> 0 | DB14: =SUM(AX14,+BZ14) -> 759,825 | DC14: =SUM(AY14,+CA14) -> 438,650 | DD14: =SUM(AZ14,+CB14) -> 259,469 | DE14: =SUM(BA14,+CC14) -> 61,706 | DF14: =SUM(BB14,+CD14) -> 0 | DG14: =SUM(BC14,+CE14) -> 0 | DH14: =SUM(BD14,+CF14) -> 0 | DI14: =SUM(BE14,+CG14) -> 81,534 | DJ14: =SUM(BF14,+CH14) -> 1,172,199
A15: 京都府 | B15: 26207 | C15: 城陽市 | D15: =SUM(E15,+L15) -> 850,450 | E15: =SUM(F15:I15,K15) -> 2,267 | F15: 0 | G15: 0 | H15: 0 | I15: 2,267 | J15: - | K15: 0 | L15: 848,183 | M15: =SUM(N15,+U15) -> 151,389 | N15: =SUM(O15:R15,T15) -> 0 | O15: 0 | P15: 0 | Q15: 0 | R15: 0 | S15: - | T15: 0 | U15: 151,389 | V15: =+SUM(D15,M15) -> 1,001,839 | W15: =+SUM(E15,N15) -> 2,267 | X15: =+SUM(F15,O15) -> 0 | Y15: =+SUM(G15,P15) -> 0 | Z15: =+SUM(H15,Q15) -> 0 | AA15: =+SUM(I15,R15) -> 2,267 | AB15: =IF(+SUM(J15,S15)=0,"-",+SUM(J15,S15)) -> - | AC15: =+SUM(K15,T15) -> 0 | AD15: =+SUM(L15,U15) -> 999,572 | AE15: =SUM(AF15,+AK15) -> 0 | AF15: =SUM(AG15:AJ15) -> 0 | AG15: 0 | AH15: 0 | AI15: 0 | AJ15: 0 | AK15: 0 | AL15: 201,312 | AM15: =SUM(AN15,AS15,AW15,AX15,BD15) -> 326,193 | AN15: =SUM(AO15:AR15) -> 84,585 | AO15: 84,585 | AP15: 0 | AQ15: 0 | AR15: 0 | AS15: =SUM(AT15:AV15) -> 2,889 | AT15: 2,889 | AU15: 0 | AV15: 0 | AW15: 0 | AX15: =SUM(AY15:BB15) -> 238,719 | AY15: 238,356 | AZ15: 0 | BA15: 0 | BB15: 363 | BC15: 322,945 | BD15: 0 | BE15: 0 | BF15: =SUM(AE15,+AM15,+BE15) -> 326,193 | BG15: =SUM(BH15,+BM15) -> 0 | BH15: =SUM(BI15:BL15) -> 0 | BI15: 0 | BJ15: 0 | BK15: 0 | BL15: 0 | BM15: 0 | BN15: 21,936 | BO15: =SUM(BP15,BU15,BY15,BZ15,CF15) -> 0 | BP15: =SUM(BQ15:BT15) -> 0 | BQ15: 0 | BR15: 0 | BS15: 0 | BT15: 0 | BU15: =SUM(BV15:BX15) -> 0 | BV15: 0 | BW15: 0 | BX15: 0 | BY15: 0 | BZ15: =SUM(CA15:CD15) -> 0 | CA15: 0 | CB15: 0 | CC15: 0 | CD15: 0 | CE15: 129,453 | CF15: 0 | CG15: 0 | CH15: =SUM(BG15,+BO15,+CG15) -> 0 | CI15: =SUM(AE15,+BG15) -> 0 | CJ15: =SUM(AF15,+BH15) -> 0 | CK15: =SUM(AG15,+BI15) -> 0 | CL15: =SUM(AH15,+BJ15) -> 0 | CM15: =SUM(AI15,+BK15) -> 0 | CN15: =SUM(AJ15,+BL15) -> 0 | CO15: =SUM(AK15,+BM15) -> 0 | CP15: =SUM(AL15,+BN15) -> 223,248 | CQ15: =SUM(AM15,+BO15) -> 326,193 | CR15: =SUM(AN15,+BP15) -> 84,585 | CS15: =SUM(AO15,+BQ15) -> 84,585 | CT15: =SUM(AP15,+BR15) -> 0 | CU15: =SUM(AQ15,+BS15) -> 0 | CV15: =SUM(AR15,+BT15) -> 0 | CW15: =SUM(AS15,+BU15) -> 2,889 | CX15: =SUM(AT15,+BV15) -> 2,889 | CY15: =SUM(AU15,+BW15) -> 0 | CZ15: =SUM(AV15,+BX15) -> 0 | DA15: =SUM(AW15,+BY15) -> 0 | DB15: =SUM(AX15,+BZ15) -> 238,719 | DC15: =SUM(AY15,+CA15) -> 238,356 | DD15: =SUM(AZ15,+CB15) -> 0 | DE15: =SUM(BA15,+CC15) -> 0 | DF15: =SUM(BB15,+CD15) -> 363 | DG15: =SUM(BC15,+CE15) -> 452,398 | DH15: =SUM(BD15,+CF15) -> 0 | DI15: =SUM(BE15,+CG15) -> 0 | DJ15: =SUM(BF15,+CH15) -> 326,193
A16: 京都府 | B16: 26208 | C16: 向日市 | D16: =SUM(E16,+L16) -> 892,331 | E16: =SUM(F16:I16,K16) -> 6,564 | F16: 0 | G16: 0 | H16: 0 | I16: 6,564 | J16: - | K16: 0 | L16: 885,767 | M16: =SUM(N16,+U16) -> 32,595 | N16: =SUM(O16:R16,T16) -> 1,202 | O16: 0 | P16: 0 | Q16: 0 | R16: 1,202 | S16: - | T16: 0 | U16: 31,393 | V16: =+SUM(D16,M16) -> 924,926 | W16: =+SUM(E16,N16) -> 7,766 | X16: =+SUM(F16,O16) -> 0 | Y16: =+SUM(G16,P16) -> 0 | Z16: =+SUM(H16,Q16) -> 0 | AA16: =+SUM(I16,R16) -> 7,766 | AB16: =IF(+SUM(J16,S16)=0,"-",+SUM(J16,S16)) -> - | AC16: =+SUM(K16,T16) -> 0 | AD16: =+SUM(L16,U16) -> 917,160 | AE16: =SUM(AF16,+AK16) -> 0 | AF16: =SUM(AG16:AJ16) -> 0 | AG16: 0 | AH16: 0 | AI16: 0 | AJ16: 0 | AK16: 0 | AL16: 144,702 | AM16: =SUM(AN16,AS16,AW16,AX16,BD16) -> 474,161 | AN16: =SUM(AO16:AR16) -> 139,145 | AO16: 36,617 | AP16: 102,528 | AQ16: 0 | AR16: 0 | AS16: =SUM(AT16:AV16) -> 335,016 | AT16: 335,016 | AU16: 0 | AV16: 0 | AW16: 0 | AX16: =SUM(AY16:BB16) -> 0 | AY16: 0 | AZ16: 0 | BA16: 0 | BB16: 0 | BC16: 273,468 | BD16: 0 | BE16: 0 | BF16: =SUM(AE16,+AM16,+BE16) -> 474,161 | BG16: =SUM(BH16,+BM16) -> 0 | BH16: =SUM(BI16:BL16) -> 0 | BI16: 0 | BJ16: 0 | BK16: 0 | BL16: 0 | BM16: 0 | BN16: 0 | BO16: =SUM(BP16,BU16,BY16,BZ16,CF16) -> 32,595 | BP16: =SUM(BQ16:BT16) -> 7,323 | BQ16: 7,323 | BR16: 0 | BS16: 0 | BT16: 0 | BU16: =SUM(BV16:BX16) -> 25,272 | BV16: 25,272 | BW16: 0 | BX16: 0 | BY16: 0 | BZ16: =SUM(CA16:CD16) -> 0 | CA16: 0 | CB16: 0 | CC16: 0 | CD16: 0 | CE16: 0 | CF16: 0 | CG16: 0 | CH16: =SUM(BG16,+BO16,+CG16) -> 32,595 | CI16: =SUM(AE16,+BG16) -> 0 | CJ16: =SUM(AF16,+BH16) -> 0 | CK16: =SUM(AG16,+BI16) -> 0 | CL16: =SUM(AH16,+BJ16) -> 0 | CM16: =SUM(AI16,+BK16) -> 0 | CN16: =SUM(AJ16,+BL16) -> 0 | CO16: =SUM(AK16,+BM16) -> 0 | CP16: =SUM(AL16,+BN16) -> 144,702 | CQ16: =SUM(AM16,+BO16) -> 506,756 | CR16: =SUM(AN16,+BP16) -> 146,468 | CS16: =SUM(AO16,+BQ16) -> 43,940 | CT16: =SUM(AP16,+BR16) -> 102,528 | CU16: =SUM(AQ16,+BS16) -> 0 | CV16: =SUM(AR16,+BT16) -> 0 | CW16: =SUM(AS16,+BU16) -> 360,288 | CX16: =SUM(AT16,+BV16) -> 360,288 | CY16: =SUM(AU16,+BW16) -> 0 | CZ16: =SUM(AV16,+BX16) -> 0 | DA16: =SUM(AW16,+BY16) -> 0 | DB16: =SUM(AX16,+BZ16) -> 0 | DC16: =SUM(AY16,+CA16) -> 0 | DD16: =SUM(AZ16,+CB16) -> 0 | DE16: =SUM(BA16,+CC16) -> 0 | DF16: =SUM(BB16,+CD16) -> 0 | DG16: =SUM(BC16,+CE16) -> 273,468 | DH16: =SUM(BD16,+CF16) -> 0 | DI16: =SUM(BE16,+CG16) -> 0 | DJ16: =SUM(BF16,+CH16) -> 506,756
A17: 京都府 | B17: 26209 | C17: 長岡京市 | D17: =SUM(E17,+L17) -> 1,281,954 | E17: =SUM(F17:I17,K17) -> 6,768 | F17: 0 | G17: 0 | H17: 0 | I17: 6,768 | J17: - | K17: 0 | L17: 1,275,186 | M17: =SUM(N17,+U17) -> 0 | N17: =SUM(O17:R17,T17) -> 0 | O17: 0 | P17: 0 | Q17: 0 | R17: 0 | S17: - | T17: 0 | U17: 0 | V17: =+SUM(D17,M17) -> 1,281,954 | W17: =+SUM(E17,N17) -> 6,768 | X17: =+SUM(F17,O17) -> 0 | Y17: =+SUM(G17,P17) -> 0 | Z17: =+SUM(H17,Q17) -> 0 | AA17: =+SUM(I17,R17) -> 6,768 | AB17: =IF(+SUM(J17,S17)=0,"-",+SUM(J17,S17)) -> - | AC17: =+SUM(K17,T17) -> 0 | AD17: =+SUM(L17,U17) -> 1,275,186 | AE17: =SUM(AF17,+AK17) -> 0 | AF17: =SUM(AG17:AJ17) -> 0 | AG17: 0 | AH17: 0 | AI17: 0 | AJ17: 0 | AK17: 0 | AL17: 210,401 | AM17: =SUM(AN17,AS17,AW17,AX17,BD17) -> 673,923 | AN17: =SUM(AO17:AR17) -> 278,714 | AO17: 53,052 | AP17: 225,662 | AQ17: 0 | AR17: 0 | AS17: =SUM(AT17:AV17) -> 6,112 | AT17: 6,112 | AU17: 0 | AV17: 0 | AW17: 7,117 | AX17: =SUM(AY17:BB17) -> 381,980 | AY17: 381,980 | AZ17: 0 | BA17: 0 | BB17: 0 | BC17: 397,630 | BD17: 0 | BE17: 0 | BF17: =SUM(AE17,+AM17,+BE17) -> 673,923 | BG17: =SUM(BH17,+BM17) -> 0 | BH17: =SUM(BI17:BL17) -> 0 | BI17: 0 | BJ17: 0 | BK17: 0 | BL17: 0 | BM17: 0 | BN17: 0 | BO17: =SUM(BP17,BU17,BY17,BZ17,CF17) -> 0 | BP17: =SUM(BQ17:BT17) -> 0 | BQ17: 0 | BR17: 0 | BS17: 0 | BT17: 0 | BU17: =SUM(BV17:BX17) -> 0 | BV17: 0 | BW17: 0 | BX17: 0 | BY17: 0 | BZ17: =SUM(CA17:CD17) -> 0 | CA17: 0 | CB17: 0 | CC17: 0 | CD17: 0 | CE17: 0 | CF17: 0 | CG17: 0 | CH17: =SUM(BG17,+BO17,+CG17) -> 0 | CI17: =SUM(AE17,+BG17) -> 0 | CJ17: =SUM(AF17,+BH17) -> 0 | CK17: =SUM(AG17,+BI17) -> 0 | CL17: =SUM(AH17,+BJ17) -> 0 | CM17: =SUM(AI17,+BK17) -> 0 | CN17: =SUM(AJ17,+BL17) -> 0 | CO17: =SUM(AK17,+BM17) -> 0 | CP17: =SUM(AL17,+BN17) -> 210,401 | CQ17: =SUM(AM17,+BO17) -> 673,923 | CR17: =SUM(AN17,+BP17) -> 278,714 | CS17: =SUM(AO17,+BQ17) -> 53,052 | CT17: =SUM(AP17,+BR17) -> 225,662 | CU17: =SUM(AQ17,+BS17) -> 0 | CV17: =SUM(AR17,+BT17) -> 0 | CW17: =SUM(AS17,+BU17) -> 6,112 | CX17: =SUM(AT17,+BV17) -> 6,112 | CY17: =SUM(AU17,+BW17) -> 0 | CZ17: =SUM(AV17,+BX17) -> 0 | DA17: =SUM(AW17,+BY17) -> 7,117 | DB17: =SUM(AX17,+BZ17) -> 381,980 | DC17: =SUM(AY17,+CA17) -> 381,980 | DD17: =SUM(AZ17,+CB17) -> 0 | DE17: =SUM(BA17,+CC17) -> 0 | DF17: =SUM(BB17,+CD17) -> 0 | DG17: =SUM(BC17,+CE17) -> 397,630 | DH17: =SUM(BD17,+CF17) -> 0 | DI17: =SUM(BE17,+CG17) -> 0 | DJ17: =SUM(BF17,+CH17) -> 673,923
A18: 京都府 | B18: 26210 | C18: 八幡市 | D18: =SUM(E18,+L18) -> 953,315 | E18: =SUM(F18:I18,K18) -> 16,857 | F18: 0 | G18: 0 | H18: 10,500 | I18: 6,357 | J18: - | K18: 0 | L18: 936,458 | M18: =SUM(N18,+U18) -> 72,608 | N18: =SUM(O18:R18,T18) -> 0 | O18: 0 | P18: 0 | Q18: 0 | R18: 0 | S18: - | T18: 0 | U18: 72,608 | V18: =+SUM(D18,M18) -> 1,025,923 | W18: =+SUM(E18,N18) -> 16,857 | X18: =+SUM(F18,O18) -> 0 | Y18: =+SUM(G18,P18) -> 0 | Z18: =+SUM(H18,Q18) -> 10,500 | AA18: =+SUM(I18,R18) -> 6,357 | AB18: =IF(+SUM(J18,S18)=0,"-",+SUM(J18,S18)) -> - | AC18: =+SUM(K18,T18) -> 0 | AD18: =+SUM(L18,U18) -> 1,009,066 | AE18: =SUM(AF18,+AK18) -> 0 | AF18: =SUM(AG18:AJ18) -> 0 | AG18: 0 | AH18: 0 | AI18: 0 | AJ18: 0 | AK18: 0 | AL18: 182,126 | AM18: =SUM(AN18,AS18,AW18,AX18,BD18) -> 479,022 | AN18: =SUM(AO18:AR18) -> 354,435 | AO18: 45,063 | AP18: 309,372 | AQ18: 0 | AR18: 0 | AS18: =SUM(AT18:AV18) -> 10,168 | AT18: 10,168 | AU18: 0 | AV18: 0 | AW18: 15,371 | AX18: =SUM(AY18:BB18) -> 99,048 | AY18: 99,048 | AZ18: 0 | BA18: 0 | BB18: 0 | BC18: 292,167 | BD18: 0 | BE18: 0 | BF18: =SUM(AE18,+AM18,+BE18) -> 479,022 | BG18: =SUM(BH18,+BM18) -> 0 | BH18: =SUM(BI18:BL18) -> 0 | BI18: 0 | BJ18: 0 | BK18: 0 | BL18: 0 | BM18: 0 | BN18: 10,521 | BO18: =SUM(BP18,BU18,BY18,BZ18,CF18) -> 0 | BP18: =SUM(BQ18:BT18) -> 0 | BQ18: 0 | BR18: 0 | BS18: 0 | BT18: 0 | BU18: =SUM(BV18:BX18) -> 0 | BV18: 0 | BW18: 0 | BX18: 0 | BY18: 0 | BZ18: =SUM(CA18:CD18) -> 0 | CA18: 0 | CB18: 0 | CC18: 0 | CD18: 0 | CE18: 62,087 | CF18: 0 | CG18: 0 | CH18: =SUM(BG18,+BO18,+CG18) -> 0 | CI18: =SUM(AE18,+BG18) -> 0 | CJ18: =SUM(AF18,+BH18) -> 0 | CK18: =SUM(AG18,+BI18) -> 0 | CL18: =SUM(AH18,+BJ18) -> 0 | CM18: =SUM(AI18,+BK18) -> 0 | CN18: =SUM(AJ18,+BL18) -> 0 | CO18: =SUM(AK18,+BM18) -> 0 | CP18: =SUM(AL18,+BN18) -> 192,647 | CQ18: =SUM(AM18,+BO18) -> 479,022 | CR18: =SUM(AN18,+BP18) -> 354,435 | CS18: =SUM(AO18,+BQ18) -> 45,063 | CT18: =SUM(AP18,+BR18) -> 309,372 | CU18: =SUM(AQ18,+BS18) -> 0 | CV18: =SUM(AR18,+BT18) -> 0 | CW18: =SUM(AS18,+BU18) -> 10,168 | CX18: =SUM(AT18,+BV18) -> 10,168 | CY18: =SUM(AU18,+BW18) -> 0 | CZ18: =SUM(AV18,+BX18) -> 0 | DA18: =SUM(AW18,+BY18) -> 15,371 | DB18: =SUM(AX18,+BZ18) -> 99,048 | DC18: =SUM(AY18,+CA18) -> 99,048 | DD18: =SUM(AZ18,+CB18) -> 0 | DE18: =SUM(BA18,+CC18) -> 0 | DF18: =SUM(BB18,+CD18) -> 0 | DG18: =SUM(BC18,+CE18) -> 354,254 | DH18: =SUM(BD18,+CF18) -> 0 | DI18: =SUM(BE18,+CG18) -> 0 | DJ18: =SUM(BF18,+CH18) -> 479,022
A19: 京都府 | B19: 26211 | C19: 京田辺市 | D19: =SUM(E19,+L19) -> 954,699 | E19: =SUM(F19:I19,K19) -> 67,957 | F19: 0 | G19: 0 | H19: 0 | I19: 59,713 | J19: - | K19: 8,244 | L19: 886,742 | M19: =SUM(N19,+U19) -> 94,534 | N19: =SUM(O19:R19,T19) -> 9,328 | O19: 0 | P19: 0 | Q19: 0 | R19: 9,328 | S19: - | T19: 0 | U19: 85,206 | V19: =+SUM(D19,M19) -> 1,049,233 | W19: =+SUM(E19,N19) -> 77,285 | X19: =+SUM(F19,O19) -> 0 | Y19: =+SUM(G19,P19) -> 0 | Z19: =+SUM(H19,Q19) -> 0 | AA19: =+SUM(I19,R19) -> 69,041 | AB19: =IF(+SUM(J19,S19)=0,"-",+SUM(J19,S19)) -> - | AC19: =+SUM(K19,T19) -> 8,244 | AD19: =+SUM(L19,U19) -> 971,948 | AE19: =SUM(AF19,+AK19) -> 38,189 | AF19: =SUM(AG19:AJ19) -> 35,827 | AG19: 0 | AH19: 0 | AI19: 0 | AJ19: 35,827 | AK19: 2,362 | AL19: 0 | AM19: =SUM(AN19,AS19,AW19,AX19,BD19) -> 848,985 | AN19: =SUM(AO19:AR19) -> 366,120 | AO19: 29,098 | AP19: 188,375 | AQ19: 137,787 | AR19: 10,860 | AS19: =SUM(AT19:AV19) -> 263,941 | AT19: 17,191 | AU19: 238,888 | AV19: 7,862 | AW19: 7,106 | AX19: =SUM(AY19:BB19) -> 206,469 | AY19: 148,358 | AZ19: 34,147 | BA19: 23,964 | BB19: 0 | BC19: 0 | BD19: 5,349 | BE19: 67,525 | BF19: =SUM(AE19,+AM19,+BE19) -> 954,699 | BG19: =SUM(BH19,+BM19) -> 0 | BH19: =SUM(BI19:BL19) -> 0 | BI19: 0 | BJ19: 0 | BK19: 0 | BL19: 0 | BM19: 0 | BN19: 0 | BO19: =SUM(BP19,BU19,BY19,BZ19,CF19) -> 75,394 | BP19: =SUM(BQ19:BT19) -> 27,959 | BQ19: 8,513 | BR19: 0 | BS19: 19,446 | BT19: 0 | BU19: =SUM(BV19:BX19) -> 20,895 | BV19: 0 | BW19: 20,895 | BX19: 0 | BY19: 0 | BZ19: =SUM(CA19:CD19) -> 26,540 | CA19: 21,248 | CB19: 5,292 | CC19: 0 | CD19: 0 | CE19: 0 | CF19: 0 | CG19: 19,140 | CH19: =SUM(BG19,+BO19,+CG19) -> 94,534 | CI19: =SUM(AE19,+BG19) -> 38,189 | CJ19: =SUM(AF19,+BH19) -> 35,827 | CK19: =SUM(AG19,+BI19) -> 0 | CL19: =SUM(AH19,+BJ19) -> 0 | CM19: =SUM(AI19,+BK19) -> 0 | CN19: =SUM(AJ19,+BL19) -> 35,827 | CO19: =SUM(AK19,+BM19) -> 2,362 | CP19: =SUM(AL19,+BN19) -> 0 | CQ19: =SUM(AM19,+BO19) -> 924,379 | CR19: =SUM(AN19,+BP19) -> 394,079 | CS19: =SUM(AO19,+BQ19) -> 37,611 | CT19: =SUM(AP19,+BR19) -> 188,375 | CU19: =SUM(AQ19,+BS19) -> 157,233 | CV19: =SUM(AR19,+BT19) -> 10,860 | CW19: =SUM(AS19,+BU19) -> 284,836 | CX19: =SUM(AT19,+BV19) -> 17,191 | CY19: =SUM(AU19,+BW19) -> 259,783 | CZ19: =SUM(AV19,+BX19) -> 7,862 | DA19: =SUM(AW19,+BY19) -> 7,106 | DB19: =SUM(AX19,+BZ19) -> 233,009 | DC19: =SUM(AY19,+CA19) -> 169,606 | DD19: =SUM(AZ19,+CB19) -> 39,439 | DE19: =SUM(BA19,+CC19) -> 23,964 | DF19: =SUM(BB19,+CD19) -> 0 | DG19: =SUM(BC19,+CE19) -> 0 | DH19: =SUM(BD19,+CF19) -> 5,349 | DI19: =SUM(BE19,+CG19) -> 86,665 | DJ19: =SUM(BF19,+CH19) -> 1,049,233
A20: 京都府 | B20: 26212 | C20: 京丹後市 | D20: =SUM(E20,+L20) -> 950,936 | E20: =SUM(F20:I20,K20) -> 158,007 | F20: 38,475 | G20: 0 | H20: 0 | I20: 37,853 | J20: - | K20: 81,679 | L20: 792,929 | M20: =SUM(N20,+U20) -> 570,261 | N20: =SUM(O20:R20,T20) -> 298,281 | O20: 0 | P20: 0 | Q20: 0 | R20: 274,259 | S20: - | T20: 24,022 | U20: 271,980 | V20: =+SUM(D20,M20) -> 1,521,197 | W20: =+SUM(E20,N20) -> 456,288 | X20: =+SUM(F20,O20) -> 38,475 | Y20: =+SUM(G20,P20) -> 0 | Z20: =+SUM(H20,Q20) -> 0 | AA20: =+SUM(I20,R20) -> 312,112 | AB20: =IF(+SUM(J20,S20)=0,"-",+SUM(J20,S20)) -> - | AC20: =+SUM(K20,T20) -> 105,701 | AD20: =+SUM(L20,U20) -> 1,064,909 | AE20: =SUM(AF20,+AK20) -> 133,457 | AF20: =SUM(AG20:AJ20) -> 133,457 | AG20: 0 | AH20: 77,976 | AI20: 55,481 | AJ20: 0 | AK20: 0 | AL20: 0 | AM20: =SUM(AN20,AS20,AW20,AX20,BD20) -> 767,452 | AN20: =SUM(AO20:AR20) -> 39,442 | AO20: 39,442 | AP20: 0 | AQ20: 0 | AR20: 0 | AS20: =SUM(AT20:AV20) -> 148,756 | AT20: 0 | AU20: 99,841 | AV20: 48,915 | AW20: 0 | AX20: =SUM(AY20:BB20) -> 579,254 | AY20: 217,709 | AZ20: 274,672 | BA20: 84,095 | BB20: 2,778 | BC20: 0 | BD20: 0 | BE20: 50,027 | BF20: =SUM(AE20,+AM20,+BE20) -> 950,936 | BG20: =SUM(BH20,+BM20) -> 0 | BH20: =SUM(BI20:BL20) -> 0 | BI20: 0 | BJ20: 0 | BK20: 0 | BL20: 0 | BM20: 0 | BN20: 0 | BO20: =SUM(BP20,BU20,BY20,BZ20,CF20) -> 493,158 | BP20: =SUM(BQ20:BT20) -> 56,083 | BQ20: 56,083 | BR20: 0 | BS20: 0 | BT20: 0 | BU20: =SUM(BV20:BX20) -> 155,342 | BV20: 0 | BW20: 155,342 | BX20: 0 | BY20: 0 | BZ20: =SUM(CA20:CD20) -> 281,733 | CA20: 205,045 | CB20: 76,688 | CC20: 0 | CD20: 0 | CE20: 0 | CF20: 0 | CG20: 77,103 | CH20: =SUM(BG20,+BO20,+CG20) -> 570,261 | CI20: =SUM(AE20,+BG20) -> 133,457 | CJ20: =SUM(AF20,+BH20) -> 133,457 | CK20: =SUM(AG20,+BI20) -> 0 | CL20: =SUM(AH20,+BJ20) -> 77,976 | CM20: =SUM(AI20,+BK20) -> 55,481 | CN20: =SUM(AJ20,+BL20) -> 0 | CO20: =SUM(AK20,+BM20) -> 0 | CP20: =SUM(AL20,+BN20) -> 0 | CQ20: =SUM(AM20,+BO20) -> 1,260,610 | CR20: =SUM(AN20,+BP20) -> 95,525 | CS20: =SUM(AO20,+BQ20) -> 95,525 | CT20: =SUM(AP20,+BR20) -> 0 | CU20: =SUM(AQ20,+BS20) -> 0 | CV20: =SUM(AR20,+BT20) -> 0 | CW20: =SUM(AS20,+BU20) -> 304,098 | CX20: =SUM(AT20,+BV20) -> 0 | CY20: =SUM(AU20,+BW20) -> 255,183 | CZ20: =SUM(AV20,+BX20) -> 48,915 | DA20: =SUM(AW20,+BY20) -> 0 | DB20: =SUM(AX20,+BZ20) -> 860,987 | DC20: =SUM(AY20,+CA20) -> 422,754 | DD20: =SUM(AZ20,+CB20) -> 351,360 | DE20: =SUM(BA20,+CC20) -> 84,095 | DF20: =SUM(BB20,+CD20) -> 2,778 | DG20: =SUM(BC20,+CE20) -> 0 | DH20: =SUM(BD20,+CF20) -> 0 | DI20: =SUM(BE20,+CG20) -> 127,130 | DJ20: =SUM(BF20,+CH20) -> 1,521,197
A21: 京都府 | B21: 26213 | C21: 南丹市 | D21: =SUM(E21,+L21) -> 254,714 | E21: =SUM(F21:I21,K21) -> 0 | F21: 0 | G21: 0 | H21: 0 | I21: 0 | J21: - | K21: 0 | L21: 254,714 | M21: =SUM(N21,+U21) -> 320,228 | N21: =SUM(O21:R21,T21) -> 0 | O21: 0 | P21: 0 | Q21: 0 | R21: 0 | S21: - | T21: 0 | U21: 320,228 | V21: =+SUM(D21,M21) -> 574,942 | W21: =+SUM(E21,N21) -> 0 | X21: =+SUM(F21,O21) -> 0 | Y21: =+SUM(G21,P21) -> 0 | Z21: =+SUM(H21,Q21) -> 0 | AA21: =+SUM(I21,R21) -> 0 | AB21: =IF(+SUM(J21,S21)=0,"-",+SUM(J21,S21)) -> - | AC21: =+SUM(K21,T21) -> 0 | AD21: =+SUM(L21,U21) -> 574,942 | AE21: =SUM(AF21,+AK21) -> 0 | AF21: =SUM(AG21:AJ21) -> 0 | AG21: 0 | AH21: 0 | AI21: 0 | AJ21: 0 | AK21: 0 | AL21: 0 | AM21: =SUM(AN21,AS21,AW21,AX21,BD21) -> 0 | AN21: =SUM(AO21:AR21) -> 0 | AO21: 0 | AP21: 0 | AQ21: 0 | AR21: 0 | AS21: =SUM(AT21:AV21) -> 0 | AT21: 0 | AU21: 0 | AV21: 0 | AW21: 0 | AX21: =SUM(AY21:BB21) -> 0 | AY21: 0 | AZ21: 0 | BA21: 0 | BB21: 0 | BC21: 254,714 | BD21: 0 | BE21: 0 | BF21: =SUM(AE21,+AM21,+BE21) -> 0 | BG21: =SUM(BH21,+BM21) -> 0 | BH21: =SUM(BI21:BL21) -> 0 | BI21: 0 | BJ21: 0 | BK21: 0 | BL21: 0 | BM21: 0 | BN21: 0 | BO21: =SUM(BP21,BU21,BY21,BZ21,CF21) -> 0 | BP21: =SUM(BQ21:BT21) -> 0 | BQ21: 0 | BR21: 0 | BS21: 0 | BT21: 0 | BU21: =SUM(BV21:BX21) -> 0 | BV21: 0 | BW21: 0 | BX21: 0 | BY21: 0 | BZ21: =SUM(CA21:CD21) -> 0 | CA21: 0 | CB21: 0 | CC21: 0 | CD21: 0 | CE21: 320,228 | CF21: 0 | CG21: 0 | CH21: =SUM(BG21,+BO21,+CG21) -> 0 | CI21: =SUM(AE21,+BG21) -> 0 | CJ21: =SUM(AF21,+BH21) -> 0 | CK21: =SUM(AG21,+BI21) -> 0 | CL21: =SUM(AH21,+BJ21) -> 0 | CM21: =SUM(AI21,+BK21) -> 0 | CN21: =SUM(AJ21,+BL21) -> 0 | CO21: =SUM(AK21,+BM21) -> 0 | CP21: =SUM(AL21,+BN21) -> 0 | CQ21: =SUM(AM21,+BO21) -> 0 | CR21: =SUM(AN21,+BP21) -> 0 | CS21: =SUM(AO21,+BQ21) -> 0 | CT21: =SUM(AP21,+BR21) -> 0 | CU21: =SUM(AQ21,+BS21) -> 0 | CV21: =SUM(AR21,+BT21) -> 0 | CW21: =SUM(AS21,+BU21) -> 0 | CX21: =SUM(AT21,+BV21) -> 0 | CY21: =SUM(AU21,+BW21) -> 0 | CZ21: =SUM(AV21,+BX21) -> 0 | DA21: =SUM(AW21,+BY21) -> 0 | DB21: =SUM(AX21,+BZ21) -> 0 | DC21: =SUM(AY21,+CA21) -> 0 | DD21: =SUM(AZ21,+CB21) -> 0 | DE21: =SUM(BA21,+CC21) -> 0 | DF21: =SUM(BB21,+CD21) -> 0 | DG21: =SUM(BC21,+CE21) -> 574,942 | DH21: =SUM(BD21,+CF21) -> 0 | DI21: =SUM(BE21,+CG21) -> 0 | DJ21: =SUM(BF21,+CH21) -> 0
A22: 京都府 | B22: 26214 | C22: 木津川市 | D22: =SUM(E22,+L22) -> 4,109,346 | E22: =SUM(F22:I22,K22) -> 17,944 | F22: 0 | G22: 0 | H22: 0 | I22: 1,385 | J22: - | K22: 16,559 | L22: 4,091,402 | M22: =SUM(N22,+U22) -> 166,505 | N22: =SUM(O22:R22,T22) -> 40,174 | O22: 0 | P22: 0 | Q22: 0 | R22: 40,102 | S22: - | T22: 72 | U22: 126,331 | V22: =+SUM(D22,M22) -> 4,275,851 | W22: =+SUM(E22,N22) -> 58,118 | X22: =+SUM(F22,O22) -> 0 | Y22: =+SUM(G22,P22) -> 0 | Z22: =+SUM(H22,Q22) -> 0 | AA22: =+SUM(I22,R22) -> 41,487 | AB22: =IF(+SUM(J22,S22)=0,"-",+SUM(J22,S22)) -> - | AC22: =+SUM(K22,T22) -> 16,631 | AD22: =+SUM(L22,U22) -> 4,217,733 | AE22: =SUM(AF22,+AK22) -> 3,042,309 | AF22: =SUM(AG22:AJ22) -> 3,040,982 | AG22: 0 | AH22: 3,040,982 | AI22: 0 | AJ22: 0 | AK22: 1,327 | AL22: 15,917 | AM22: =SUM(AN22,AS22,AW22,AX22,BD22) -> 925,128 | AN22: =SUM(AO22:AR22) -> 20,250 | AO22: 20,250 | AP22: 0 | AQ22: 0 | AR22: 0 | AS22: =SUM(AT22:AV22) -> 3,316 | AT22: 0 | AU22: 0 | AV22: 3,316 | AW22: 0 | AX22: =SUM(AY22:BB22) -> 901,562 | AY22: 484,532 | AZ22: 412,003 | BA22: 2,694 | BB22: 2,333 | BC22: 112,809 | BD22: 0 | BE22: 13,183 | BF22: =SUM(AE22,+AM22,+BE22) -> 3,980,620 | BG22: =SUM(BH22,+BM22) -> 0 | BH22: =SUM(BI22:BL22) -> 0 | BI22: 0 | BJ22: 0 | BK22: 0 | BL22: 0 | BM22: 0 | BN22: 0 | BO22: =SUM(BP22,BU22,BY22,BZ22,CF22) -> 4,266 | BP22: =SUM(BQ22:BT22) -> 4,050 | BQ22: 4,050 | BR22: 0 | BS22: 0 | BT22: 0 | BU22: =SUM(BV22:BX22) -> 0 | BV22: 0 | BW22: 0 | BX22: 0 | BY22: 0 | BZ22: =SUM(CA22:CD22) -> 216 | CA22: 0 | CB22: 0 | CC22: 0 | CD22: 216 | CE22: 161,328 | CF22: 0 | CG22: 911 | CH22: =SUM(BG22,+BO22,+CG22) -> 5,177 | CI22: =SUM(AE22,+BG22) -> 3,042,309 | CJ22: =SUM(AF22,+BH22) -> 3,040,982 | CK22: =SUM(AG22,+BI22) -> 0 | CL22: =SUM(AH22,+BJ22) -> 3,040,982 | CM22: =SUM(AI22,+BK22) -> 0 | CN22: =SUM(AJ22,+BL22) -> 0 | CO22: =SUM(AK22,+BM22) -> 1,327 | CP22: =SUM(AL22,+BN22) -> 15,917 | CQ22: =SUM(AM22,+BO22) -> 929,394 | CR22: =SUM(AN22,+BP22) -> 24,300 | CS22: =SUM(AO22,+BQ22) -> 24,300 | CT22: =SUM(AP22,+BR22) -> 0 | CU22: =SUM(AQ22,+BS22) -> 0 | CV22: =SUM(AR22,+BT22) -> 0 | CW22: =SUM(AS22,+BU22) -> 3,316 | CX22: =SUM(AT22,+BV22) -> 0 | CY22: =SUM(AU22,+BW22) -> 0 | CZ22: =SUM(AV22,+BX22) -> 3,316 | DA22: =SUM(AW22,+BY22) -> 0 | DB22: =SUM(AX22,+BZ22) -> 901,778 | DC22: =SUM(AY22,+CA22) -> 484,532 | DD22: =SUM(AZ22,+CB22) -> 412,003 | DE22: =SUM(BA22,+CC22) -> 2,694 | DF22: =SUM(BB22,+CD22) -> 2,549 | DG22: =SUM(BC22,+CE22) -> 274,137 | DH22: =SUM(BD22,+CF22) -> 0 | DI22: =SUM(BE22,+CG22) -> 14,094 | DJ22: =SUM(BF22,+CH22) -> 3,985,797
A23: 京都府 | B23: 26303 | C23: 大山崎町 | D23: =SUM(E23,+L23) -> 238,543 | E23: =SUM(F23:I23,K23) -> 1,873 | F23: 0 | G23: 0 | H23: 0 | I23: 1,873 | J23: - | K23: 0 | L23: 236,670 | M23: =SUM(N23,+U23) -> 2,818 | N23: =SUM(O23:R23,T23) -> 1,962 | O23: 0 | P23: 0 | Q23: 0 | R23: 1,962 | S23: - | T23: 0 | U23: 856 | V23: =+SUM(D23,M23) -> 241,361 | W23: =+SUM(E23,N23) -> 3,835 | X23: =+SUM(F23,O23) -> 0 | Y23: =+SUM(G23,P23) -> 0 | Z23: =+SUM(H23,Q23) -> 0 | AA23: =+SUM(I23,R23) -> 3,835 | AB23: =IF(+SUM(J23,S23)=0,"-",+SUM(J23,S23)) -> - | AC23: =+SUM(K23,T23) -> 0 | AD23: =+SUM(L23,U23) -> 237,526 | AE23: =SUM(AF23,+AK23) -> 0 | AF23: =SUM(AG23:AJ23) -> 0 | AG23: 0 | AH23: 0 | AI23: 0 | AJ23: 0 | AK23: 0 | AL23: 40,908 | AM23: =SUM(AN23,AS23,AW23,AX23,BD23) -> 120,324 | AN23: =SUM(AO23:AR23) -> 43,628 | AO23: 0 | AP23: 43,628 | AQ23: 0 | AR23: 0 | AS23: =SUM(AT23:AV23) -> 4,471 | AT23: 4,471 | AU23: 0 | AV23: 0 | AW23: 0 | AX23: =SUM(AY23:BB23) -> 72,225 | AY23: 72,225 | AZ23: 0 | BA23: 0 | BB23: 0 | BC23: 77,311 | BD23: 0 | BE23: 0 | BF23: =SUM(AE23,+AM23,+BE23) -> 120,324 | BG23: =SUM(BH23,+BM23) -> 0 | BH23: =SUM(BI23:BL23) -> 0 | BI23: 0 | BJ23: 0 | BK23: 0 | BL23: 0 | BM23: 0 | BN23: 0 | BO23: =SUM(BP23,BU23,BY23,BZ23,CF23) -> 2,818 | BP23: =SUM(BQ23:BT23) -> 0 | BQ23: 0 | BR23: 0 | BS23: 0 | BT23: 0 | BU23: =SUM(BV23:BX23) -> 0 | BV23: 0 | BW23: 0 | BX23: 0 | BY23: 0 | BZ23: =SUM(CA23:CD23) -> 2,818 | CA23: 2,818 | CB23: 0 | CC23: 0 | CD23: 0 | CE23: 0 | CF23: 0 | CG23: 0 | CH23: =SUM(BG23,+BO23,+CG23) -> 2,818 | CI23: =SUM(AE23,+BG23) -> 0 | CJ23: =SUM(AF23,+BH23) -> 0 | CK23: =SUM(AG23,+BI23) -> 0 | CL23: =SUM(AH23,+BJ23) -> 0 | CM23: =SUM(AI23,+BK23) -> 0 | CN23: =SUM(AJ23,+BL23) -> 0 | CO23: =SUM(AK23,+BM23) -> 0 | CP23: =SUM(AL23,+BN23) -> 40,908 | CQ23: =SUM(AM23,+BO23) -> 123,142 | CR23: =SUM(AN23,+BP23) -> 43,628 | CS23: =SUM(AO23,+BQ23) -> 0 | CT23: =SUM(AP23,+BR23) -> 43,628 | CU23: =SUM(AQ23,+BS23) -> 0 | CV23: =SUM(AR23,+BT23) -> 0 | CW23: =SUM(AS23,+BU23) -> 4,471 | CX23: =SUM(AT23,+BV23) -> 4,471 | CY23: =SUM(AU23,+BW23) -> 0 | CZ23: =SUM(AV23,+BX23) -> 0 | DA23: =SUM(AW23,+BY23) -> 0 | DB23: =SUM(AX23,+BZ23) -> 75,043 | DC23: =SUM(AY23,+CA23) -> 75,043 | DD23: =SUM(AZ23,+CB23) -> 0 | DE23: =SUM(BA23,+CC23) -> 0 | DF23: =SUM(BB23,+CD23) -> 0 | DG23: =SUM(BC23,+CE23) -> 77,311 | DH23: =SUM(BD23,+CF23) -> 0 | DI23: =SUM(BE23,+CG23) -> 0 | DJ23: =SUM(BF23,+CH23) -> 123,142
A24: 京都府 | B24: 26322 | C24: 久御山町 | D24: =SUM(E24,+L24) -> 252,054 | E24: =SUM(F24:I24,K24) -> 762 | F24: 0 | G24: 0 | H24: 0 | I24: 762 | J24: - | K24: 0 | L24: 251,292 | M24: =SUM(N24,+U24) -> 36,438 | N24: =SUM(O24:R24,T24) -> 0 | O24: 0 | P24: 0 | Q24: 0 | R24: 0 | S24: - | T24: 0 | U24: 36,438 | V24: =+SUM(D24,M24) -> 288,492 | W24: =+SUM(E24,N24) -> 762 | X24: =+SUM(F24,O24) -> 0 | Y24: =+SUM(G24,P24) -> 0 | Z24: =+SUM(H24,Q24) -> 0 | AA24: =+SUM(I24,R24) -> 762 | AB24: =IF(+SUM(J24,S24)=0,"-",+SUM(J24,S24)) -> - | AC24: =+SUM(K24,T24) -> 0 | AD24: =+SUM(L24,U24) -> 287,730 | AE24: =SUM(AF24,+AK24) -> 0 | AF24: =SUM(AG24:AJ24) -> 0 | AG24: 0 | AH24: 0 | AI24: 0 | AJ24: 0 | AK24: 0 | AL24: 48,653 | AM24: =SUM(AN24,AS24,AW24,AX24,BD24) -> 125,352 | AN24: =SUM(AO24:AR24) -> 54,185 | AO24: 0 | AP24: 54,185 | AQ24: 0 | AR24: 0 | AS24: =SUM(AT24:AV24) -> 23,923 | AT24: 23,923 | AU24: 0 | AV24: 0 | AW24: 0 | AX24: =SUM(AY24:BB24) -> 47,244 | AY24: 46,960 | AZ24: 0 | BA24: 0 | BB24: 284 | BC24: 78,049 | BD24: 0 | BE24: 0 | BF24: =SUM(AE24,+AM24,+BE24) -> 125,352 | BG24: =SUM(BH24,+BM24) -> 0 | BH24: =SUM(BI24:BL24) -> 0 | BI24: 0 | BJ24: 0 | BK24: 0 | BL24: 0 | BM24: 0 | BN24: 5,280 | BO24: =SUM(BP24,BU24,BY24,BZ24,CF24) -> 0 | BP24: =SUM(BQ24:BT24) -> 0 | BQ24: 0 | BR24: 0 | BS24: 0 | BT24: 0 | BU24: =SUM(BV24:BX24) -> 0 | BV24: 0 | BW24: 0 | BX24: 0 | BY24: 0 | BZ24: =SUM(CA24:CD24) -> 0 | CA24: 0 | CB24: 0 | CC24: 0 | CD24: 0 | CE24: 31,158 | CF24: 0 | CG24: 0 | CH24: =SUM(BG24,+BO24,+CG24) -> 0 | CI24: =SUM(AE24,+BG24) -> 0 | CJ24: =SUM(AF24,+BH24) -> 0 | CK24: =SUM(AG24,+BI24) -> 0 | CL24: =SUM(AH24,+BJ24) -> 0 | CM24: =SUM(AI24,+BK24) -> 0 | CN24: =SUM(AJ24,+BL24) -> 0 | CO24: =SUM(AK24,+BM24) -> 0 | CP24: =SUM(AL24,+BN24) -> 53,933 | CQ24: =SUM(AM24,+BO24) -> 125,352 | CR24: =SUM(AN24,+BP24) -> 54,185 | CS24: =SUM(AO24,+BQ24) -> 0 | CT24: =SUM(AP24,+BR24) -> 54,185 | CU24: =SUM(AQ24,+BS24) -> 0 | CV24: =SUM(AR24,+BT24) -> 0 | CW24: =SUM(AS24,+BU24) -> 23,923 | CX24: =SUM(AT24,+BV24) -> 23,923 | CY24: =SUM(AU24,+BW24) -> 0 | CZ24: =SUM(AV24,+BX24) -> 0 | DA24: =SUM(AW24,+BY24) -> 0 | DB24: =SUM(AX24,+BZ24) -> 47,244 | DC24: =SUM(AY24,+CA24) -> 46,960 | DD24: =SUM(AZ24,+CB24) -> 0 | DE24: =SUM(BA24,+CC24) -> 0 | DF24: =SUM(BB24,+CD24) -> 284 | DG24: =SUM(BC24,+CE24) -> 109,207 | DH24: =SUM(BD24,+CF24) -> 0 | DI24: =SUM(BE24,+CG24) -> 0 | DJ24: =SUM(BF24,+CH24) -> 125,352
A25: 京都府 | B25: 26343 | C25: 井手町 | D25: =SUM(E25,+L25) -> 111,673 | E25: =SUM(F25:I25,K25) -> 383 | F25: 0 | G25: 0 | H25: 0 | I25: 283 | J25: - | K25: 100 | L25: 111,290 | M25: =SUM(N25,+U25) -> 24,896 | N25: =SUM(O25:R25,T25) -> 0 | O25: 0 | P25: 0 | Q25: 0 | R25: 0 | S25: - | T25: 0 | U25: 24,896 | V25: =+SUM(D25,M25) -> 136,569 | W25: =+SUM(E25,N25) -> 383 | X25: =+SUM(F25,O25) -> 0 | Y25: =+SUM(G25,P25) -> 0 | Z25: =+SUM(H25,Q25) -> 0 | AA25: =+SUM(I25,R25) -> 283 | AB25: =IF(+SUM(J25,S25)=0,"-",+SUM(J25,S25)) -> - | AC25: =+SUM(K25,T25) -> 100 | AD25: =+SUM(L25,U25) -> 136,186 | AE25: =SUM(AF25,+AK25) -> 3 | AF25: =SUM(AG25:AJ25) -> 0 | AG25: 0 | AH25: 0 | AI25: 0 | AJ25: 0 | AK25: 3 | AL25: 23,775 | AM25: =SUM(AN25,AS25,AW25,AX25,BD25) -> 47,823 | AN25: =SUM(AO25:AR25) -> 14,342 | AO25: 5 | AP25: 14,337 | AQ25: 0 | AR25: 0 | AS25: =SUM(AT25:AV25) -> 1,233 | AT25: 1,233 | AU25: 0 | AV25: 0 | AW25: 0 | AX25: =SUM(AY25:BB25) -> 32,248 | AY25: 32,248 | AZ25: 0 | BA25: 0 | BB25: 0 | BC25: 38,141 | BD25: 0 | BE25: 1,931 | BF25: =SUM(AE25,+AM25,+BE25) -> 49,757 | BG25: =SUM(BH25,+BM25) -> 0 | BH25: =SUM(BI25:BL25) -> 0 | BI25: 0 | BJ25: 0 | BK25: 0 | BL25: 0 | BM25: 0 | BN25: 3,607 | BO25: =SUM(BP25,BU25,BY25,BZ25,CF25) -> 0 | BP25: =SUM(BQ25:BT25) -> 0 | BQ25: 0 | BR25: 0 | BS25: 0 | BT25: 0 | BU25: =SUM(BV25:BX25) -> 0 | BV25: 0 | BW25: 0 | BX25: 0 | BY25: 0 | BZ25: =SUM(CA25:CD25) -> 0 | CA25: 0 | CB25: 0 | CC25: 0 | CD25: 0 | CE25: 21,289 | CF25: 0 | CG25: 0 | CH25: =SUM(BG25,+BO25,+CG25) -> 0 | CI25: =SUM(AE25,+BG25) -> 3 | CJ25: =SUM(AF25,+BH25) -> 0 | CK25: =SUM(AG25,+BI25) -> 0 | CL25: =SUM(AH25,+BJ25) -> 0 | CM25: =SUM(AI25,+BK25) -> 0 | CN25: =SUM(AJ25,+BL25) -> 0 | CO25: =SUM(AK25,+BM25) -> 3 | CP25: =SUM(AL25,+BN25) -> 27,382 | CQ25: =SUM(AM25,+BO25) -> 47,823 | CR25: =SUM(AN25,+BP25) -> 14,342 | CS25: =SUM(AO25,+BQ25) -> 5 | CT25: =SUM(AP25,+BR25) -> 14,337 | CU25: =SUM(AQ25,+BS25) -> 0 | CV25: =SUM(AR25,+BT25) -> 0 | CW25: =SUM(AS25,+BU25) -> 1,233 | CX25: =SUM(AT25,+BV25) -> 1,233 | CY25: =SUM(AU25,+BW25) -> 0 | CZ25: =SUM(AV25,+BX25) -> 0 | DA25: =SUM(AW25,+BY25) -> 0 | DB25: =SUM(AX25,+BZ25) -> 32,248 | DC25: =SUM(AY25,+CA25) -> 32,248 | DD25: =SUM(AZ25,+CB25) -> 0 | DE25: =SUM(BA25,+CC25) -> 0 | DF25: =SUM(BB25,+CD25) -> 0 | DG25: =SUM(BC25,+CE25) -> 59,430 | DH25: =SUM(BD25,+CF25) -> 0 | DI25: =SUM(BE25,+CG25) -> 1,931 | DJ25: =SUM(BF25,+CH25) -> 49,757
A26: 京都府 | B26: 26344 | C26: 宇治田原町 | D26: =SUM(E26,+L26) -> 154,891 | E26: =SUM(F26:I26,K26) -> 0 | F26: 0 | G26: 0 | H26: 0 | I26: 0 | J26: - | K26: 0 | L26: 154,891 | M26: =SUM(N26,+U26) -> 49,993 | N26: =SUM(O26:R26,T26) -> 0 | O26: 0 | P26: 0 | Q26: 0 | R26: 0 | S26: - | T26: 0 | U26: 49,993 | V26: =+SUM(D26,M26) -> 204,884 | W26: =+SUM(E26,N26) -> 0 | X26: =+SUM(F26,O26) -> 0 | Y26: =+SUM(G26,P26) -> 0 | Z26: =+SUM(H26,Q26) -> 0 | AA26: =+SUM(I26,R26) -> 0 | AB26: =IF(+SUM(J26,S26)=0,"-",+SUM(J26,S26)) -> - | AC26: =+SUM(K26,T26) -> 0 | AD26: =+SUM(L26,U26) -> 204,884 | AE26: =SUM(AF26,+AK26) -> 0 | AF26: =SUM(AG26:AJ26) -> 0 | AG26: 0 | AH26: 0 | AI26: 0 | AJ26: 0 | AK26: 0 | AL26: 27,815 | AM26: =SUM(AN26,AS26,AW26,AX26,BD26) -> 82,456 | AN26: =SUM(AO26:AR26) -> 42,974 | AO26: 0 | AP26: 42,974 | AQ26: 0 | AR26: 0 | AS26: =SUM(AT26:AV26) -> 2,016 | AT26: 2,016 | AU26: 0 | AV26: 0 | AW26: 13,166 | AX26: =SUM(AY26:BB26) -> 24,300 | AY26: 24,300 | AZ26: 0 | BA26: 0 | BB26: 0 | BC26: 44,620 | BD26: 0 | BE26: 0 | BF26: =SUM(AE26,+AM26,+BE26) -> 82,456 | BG26: =SUM(BH26,+BM26) -> 0 | BH26: =SUM(BI26:BL26) -> 0 | BI26: 0 | BJ26: 0 | BK26: 0 | BL26: 0 | BM26: 0 | BN26: 7,244 | BO26: =SUM(BP26,BU26,BY26,BZ26,CF26) -> 0 | BP26: =SUM(BQ26:BT26) -> 0 | BQ26: 0 | BR26: 0 | BS26: 0 | BT26: 0 | BU26: =SUM(BV26:BX26) -> 0 | BV26: 0 | BW26: 0 | BX26: 0 | BY26: 0 | BZ26: =SUM(CA26:CD26) -> 0 | CA26: 0 | CB26: 0 | CC26: 0 | CD26: 0 | CE26: 42,749 | CF26: 0 | CG26: 0 | CH26: =SUM(BG26,+BO26,+CG26) -> 0 | CI26: =SUM(AE26,+BG26) -> 0 | CJ26: =SUM(AF26,+BH26) -> 0 | CK26: =SUM(AG26,+BI26) -> 0 | CL26: =SUM(AH26,+BJ26) -> 0 | CM26: =SUM(AI26,+BK26) -> 0 | CN26: =SUM(AJ26,+BL26) -> 0 | CO26: =SUM(AK26,+BM26) -> 0 | CP26: =SUM(AL26,+BN26) -> 35,059 | CQ26: =SUM(AM26,+BO26) -> 82,456 | CR26: =SUM(AN26,+BP26) -> 42,974 | CS26: =SUM(AO26,+BQ26) -> 0 | CT26: =SUM(AP26,+BR26) -> 42,974 | CU26: =SUM(AQ26,+BS26) -> 0 | CV26: =SUM(AR26,+BT26) -> 0 | CW26: =SUM(AS26,+BU26) -> 2,016 | CX26: =SUM(AT26,+BV26) -> 2,016 | CY26: =SUM(AU26,+BW26) -> 0 | CZ26: =SUM(AV26,+BX26) -> 0 | DA26: =SUM(AW26,+BY26) -> 13,166 | DB26: =SUM(AX26,+BZ26) -> 24,300 | DC26: =SUM(AY26,+CA26) -> 24,300 | DD26: =SUM(AZ26,+CB26) -> 0 | DE26: =SUM(BA26,+CC26) -> 0 | DF26: =SUM(BB26,+CD26) -> 0 | DG26: =SUM(BC26,+CE26) -> 87,369 | DH26: =SUM(BD26,+CF26) -> 0 | DI26: =SUM(BE26,+CG26) -> 0 | DJ26: =SUM(BF26,+CH26) -> 82,456
A27: 京都府 | B27: 26364 | C27: 笠置町 | D27: =SUM(E27,+L27) -> 45,936 | E27: =SUM(F27:I27,K27) -> 1,423 | F27: 0 | G27: 0 | H27: 0 | I27: 1,405 | J27: - | K27: 18 | L27: 44,513 | M27: =SUM(N27,+U27) -> 27,804 | N27: =SUM(O27:R27,T27) -> 10,062 | O27: 359 | P27: 248 | Q27: 0 | R27: 9,455 | S27: - | T27: 0 | U27: 17,742 | V27: =+SUM(D27,M27) -> 73,740 | W27: =+SUM(E27,N27) -> 11,485 | X27: =+SUM(F27,O27) -> 359 | Y27: =+SUM(G27,P27) -> 248 | Z27: =+SUM(H27,Q27) -> 0 | AA27: =+SUM(I27,R27) -> 10,860 | AB27: =IF(+SUM(J27,S27)=0,"-",+SUM(J27,S27)) -> - | AC27: =+SUM(K27,T27) -> 18 | AD27: =+SUM(L27,U27) -> 62,255 | AE27: =SUM(AF27,+AK27) -> 0 | AF27: =SUM(AG27:AJ27) -> 0 | AG27: 0 | AH27: 0 | AI27: 0 | AJ27: 0 | AK27: 0 | AL27: 0 | AM27: =SUM(AN27,AS27,AW27,AX27,BD27) -> 259 | AN27: =SUM(AO27:AR27) -> 0 | AO27: 0 | AP27: 0 | AQ27: 0 | AR27: 0 | AS27: =SUM(AT27:AV27) -> 0 | AT27: 0 | AU27: 0 | AV27: 0 | AW27: 0 | AX27: =SUM(AY27:BB27) -> 259 | AY27: 0 | AZ27: 0 | BA27: 0 | BB27: 259 | BC27: 45,052 | BD27: 0 | BE27: 625 | BF27: =SUM(AE27,+AM27,+BE27) -> 884 | BG27: =SUM(BH27,+BM27) -> 0 | BH27: =SUM(BI27:BL27) -> 0 | BI27: 0 | BJ27: 0 | BK27: 0 | BL27: 0 | BM27: 0 | BN27: 0 | BO27: =SUM(BP27,BU27,BY27,BZ27,CF27) -> 0 | BP27: =SUM(BQ27:BT27) -> 0 | BQ27: 0 | BR27: 0 | BS27: 0 | BT27: 0 | BU27: =SUM(BV27:BX27) -> 0 | BV27: 0 | BW27: 0 | BX27: 0 | BY27: 0 | BZ27: =SUM(CA27:CD27) -> 0 | CA27: 0 | CB27: 0 | CC27: 0 | CD27: 0 | CE27: 26,822 | CF27: 0 | CG27: 982 | CH27: =SUM(BG27,+BO27,+CG27) -> 982 | CI27: =SUM(AE27,+BG27) -> 0 | CJ27: =SUM(AF27,+BH27) -> 0 | CK27: =SUM(AG27,+BI27) -> 0 | CL27: =SUM(AH27,+BJ27) -> 0 | CM27: =SUM(AI27,+BK27) -> 0 | CN27: =SUM(AJ27,+BL27) -> 0 | CO27: =SUM(AK27,+BM27) -> 0 | CP27: =SUM(AL27,+BN27) -> 0 | CQ27: =SUM(AM27,+BO27) -> 259 | CR27: =SUM(AN27,+BP27) -> 0 | CS27: =SUM(AO27,+BQ27) -> 0 | CT27: =SUM(AP27,+BR27) -> 0 | CU27: =SUM(AQ27,+BS27) -> 0 | CV27: =SUM(AR27,+BT27) -> 0 | CW27: =SUM(AS27,+BU27) -> 0 | CX27: =SUM(AT27,+BV27) -> 0 | CY27: =SUM(AU27,+BW27) -> 0 | CZ27: =SUM(AV27,+BX27) -> 0 | DA27: =SUM(AW27,+BY27) -> 0 | DB27: =SUM(AX27,+BZ27) -> 259 | DC27: =SUM(AY27,+CA27) -> 0 | DD27: =SUM(AZ27,+CB27) -> 0 | DE27: =SUM(BA27,+CC27) -> 0 | DF27: =SUM(BB27,+CD27) -> 259 | DG27: =SUM(BC27,+CE27) -> 71,874 | DH27: =SUM(BD27,+CF27) -> 0 | DI27: =SUM(BE27,+CG27) -> 1,607 | DJ27: =SUM(BF27,+CH27) -> 1,866
A28: 京都府 | B28: 26365 | C28: 和束町 | D28: =SUM(E28,+L28) -> 109,644 | E28: =SUM(F28:I28,K28) -> 0 | F28: 0 | G28: 0 | H28: 0 | I28: 0 | J28: - | K28: 0 | L28: 109,644 | M28: =SUM(N28,+U28) -> 36,746 | N28: =SUM(O28:R28,T28) -> 0 | O28: 0 | P28: 0 | Q28: 0 | R28: 0 | S28: - | T28: 0 | U28: 36,746 | V28: =+SUM(D28,M28) -> 146,390 | W28: =+SUM(E28,N28) -> 0 | X28: =+SUM(F28,O28) -> 0 | Y28: =+SUM(G28,P28) -> 0 | Z28: =+SUM(H28,Q28) -> 0 | AA28: =+SUM(I28,R28) -> 0 | AB28: =IF(+SUM(J28,S28)=0,"-",+SUM(J28,S28)) -> - | AC28: =+SUM(K28,T28) -> 0 | AD28: =+SUM(L28,U28) -> 146,390 | AE28: =SUM(AF28,+AK28) -> 0 | AF28: =SUM(AG28:AJ28) -> 0 | AG28: 0 | AH28: 0 | AI28: 0 | AJ28: 0 | AK28: 0 | AL28: 0 | AM28: =SUM(AN28,AS28,AW28,AX28,BD28) -> 0 | AN28: =SUM(AO28:AR28) -> 0 | AO28: 0 | AP28: 0 | AQ28: 0 | AR28: 0 | AS28: =SUM(AT28:AV28) -> 0 | AT28: 0 | AU28: 0 | AV28: 0 | AW28: 0 | AX28: =SUM(AY28:BB28) -> 0 | AY28: 0 | AZ28: 0 | BA28: 0 | BB28: 0 | BC28: 109,644 | BD28: 0 | BE28: 0 | BF28: =SUM(AE28,+AM28,+BE28) -> 0 | BG28: =SUM(BH28,+BM28) -> 0 | BH28: =SUM(BI28:BL28) -> 0 | BI28: 0 | BJ28: 0 | BK28: 0 | BL28: 0 | BM28: 0 | BN28: 0 | BO28: =SUM(BP28,BU28,BY28,BZ28,CF28) -> 0 | BP28: =SUM(BQ28:BT28) -> 0 | BQ28: 0 | BR28: 0 | BS28: 0 | BT28: 0 | BU28: =SUM(BV28:BX28) -> 0 | BV28: 0 | BW28: 0 | BX28: 0 | BY28: 0 | BZ28: =SUM(CA28:CD28) -> 0 | CA28: 0 | CB28: 0 | CC28: 0 | CD28: 0 | CE28: 36,746 | CF28: 0 | CG28: 0 | CH28: =SUM(BG28,+BO28,+CG28) -> 0 | CI28: =SUM(AE28,+BG28) -> 0 | CJ28: =SUM(AF28,+BH28) -> 0 | CK28: =SUM(AG28,+BI28) -> 0 | CL28: =SUM(AH28,+BJ28) -> 0 | CM28: =SUM(AI28,+BK28) -> 0 | CN28: =SUM(AJ28,+BL28) -> 0 | CO28: =SUM(AK28,+BM28) -> 0 | CP28: =SUM(AL28,+BN28) -> 0 | CQ28: =SUM(AM28,+BO28) -> 0 | CR28: =SUM(AN28,+BP28) -> 0 | CS28: =SUM(AO28,+BQ28) -> 0 | CT28: =SUM(AP28,+BR28) -> 0 | CU28: =SUM(AQ28,+BS28) -> 0 | CV28: =SUM(AR28,+BT28) -> 0 | CW28: =SUM(AS28,+BU28) -> 0 | CX28: =SUM(AT28,+BV28) -> 0 | CY28: =SUM(AU28,+BW28) -> 0 | CZ28: =SUM(AV28,+BX28) -> 0 | DA28: =SUM(AW28,+BY28) -> 0 | DB28: =SUM(AX28,+BZ28) -> 0 | DC28: =SUM(AY28,+CA28) -> 0 | DD28: =SUM(AZ28,+CB28) -> 0 | DE28: =SUM(BA28,+CC28) -> 0 | DF28: =SUM(BB28,+CD28) -> 0 | DG28: =SUM(BC28,+CE28) -> 146,390 | DH28: =SUM(BD28,+CF28) -> 0 | DI28: =SUM(BE28,+CG28) -> 0 | DJ28: =SUM(BF28,+CH28) -> 0
A29: 京都府 | B29: 26366 | C29: 精華町 | D29: =SUM(E29,+L29) -> 1,015,012 | E29: =SUM(F29:I29,K29) -> 4,160 | F29: 0 | G29: 0 | H29: 0 | I29: 1,050 | J29: - | K29: 3,110 | L29: 1,010,852 | M29: =SUM(N29,+U29) -> 51,515 | N29: =SUM(O29:R29,T29) -> 7,764 | O29: 0 | P29: 0 | Q29: 0 | R29: 7,764 | S29: - | T29: 0 | U29: 43,751 | V29: =+SUM(D29,M29) -> 1,066,527 | W29: =+SUM(E29,N29) -> 11,924 | X29: =+SUM(F29,O29) -> 0 | Y29: =+SUM(G29,P29) -> 0 | Z29: =+SUM(H29,Q29) -> 0 | AA29: =+SUM(I29,R29) -> 8,814 | AB29: =IF(+SUM(J29,S29)=0,"-",+SUM(J29,S29)) -> - | AC29: =+SUM(K29,T29) -> 3,110 | AD29: =+SUM(L29,U29) -> 1,054,603 | AE29: =SUM(AF29,+AK29) -> 713,470 | AF29: =SUM(AG29:AJ29) -> 0 | AG29: 0 | AH29: 0 | AI29: 0 | AJ29: 0 | AK29: 713,470 | AL29: 28,379 | AM29: =SUM(AN29,AS29,AW29,AX29,BD29) -> 203,520 | AN29: =SUM(AO29:AR29) -> 43,045 | AO29: 7,512 | AP29: 35,533 | AQ29: 0 | AR29: 0 | AS29: =SUM(AT29:AV29) -> 0 | AT29: 0 | AU29: 0 | AV29: 0 | AW29: 0 | AX29: =SUM(AY29:BB29) -> 160,475 | AY29: 91,799 | AZ29: 50,960 | BA29: 17,716 | BB29: 0 | BC29: 69,643 | BD29: 0 | BE29: 0 | BF29: =SUM(AE29,+AM29,+BE29) -> 916,990 | BG29: =SUM(BH29,+BM29) -> 0 | BH29: =SUM(BI29:BL29) -> 0 | BI29: 0 | BJ29: 0 | BK29: 0 | BL29: 0 | BM29: 0 | BN29: 0 | BO29: =SUM(BP29,BU29,BY29,BZ29,CF29) -> 9,070 | BP29: =SUM(BQ29:BT29) -> 1,836 | BQ29: 1,836 | BR29: 0 | BS29: 0 | BT29: 0 | BU29: =SUM(BV29:BX29) -> 0 | BV29: 0 | BW29: 0 | BX29: 0 | BY29: 0 | BZ29: =SUM(CA29:CD29) -> 7,234 | CA29: 0 | CB29: 7,234 | CC29: 0 | CD29: 0 | CE29: 42,445 | CF29: 0 | CG29: 0 | CH29: =SUM(BG29,+BO29,+CG29) -> 9,070 | CI29: =SUM(AE29,+BG29) -> 713,470 | CJ29: =SUM(AF29,+BH29) -> 0 | CK29: =SUM(AG29,+BI29) -> 0 | CL29: =SUM(AH29,+BJ29) -> 0 | CM29: =SUM(AI29,+BK29) -> 0 | CN29: =SUM(AJ29,+BL29) -> 0 | CO29: =SUM(AK29,+BM29) -> 713,470 | CP29: =SUM(AL29,+BN29) -> 28,379 | CQ29: =SUM(AM29,+BO29) -> 212,590 | CR29: =SUM(AN29,+BP29) -> 44,881 | CS29: =SUM(AO29,+BQ29) -> 9,348 | CT29: =SUM(AP29,+BR29) -> 35,533 | CU29: =SUM(AQ29,+BS29) -> 0 | CV29: =SUM(AR29,+BT29) -> 0 | CW29: =SUM(AS29,+BU29) -> 0 | CX29: =SUM(AT29,+BV29) -> 0 | CY29: =SUM(AU29,+BW29) -> 0 | CZ29: =SUM(AV29,+BX29) -> 0 | DA29: =SUM(AW29,+BY29) -> 0 | DB29: =SUM(AX29,+BZ29) -> 167,709 | DC29: =SUM(AY29,+CA29) -> 91,799 | DD29: =SUM(AZ29,+CB29) -> 58,194 | DE29: =SUM(BA29,+CC29) -> 17,716 | DF29: =SUM(BB29,+CD29) -> 0 | DG29: =SUM(BC29,+CE29) -> 112,088 | DH29: =SUM(BD29,+CF29) -> 0 | DI29: =SUM(BE29,+CG29) -> 0 | DJ29: =SUM(BF29,+CH29) -> 926,060
A30: 京都府 | B30: 26367 | C30: 南山城村 | D30: =SUM(E30,+L30) -> 69,157 | E30: =SUM(F30:I30,K30) -> 1,917 | F30: 0 | G30: 0 | H30: 0 | I30: 1,917 | J30: - | K30: 0 | L30: 67,240 | M30: =SUM(N30,+U30) -> 38,602 | N30: =SUM(O30:R30,T30) -> 10,962 | O30: 1,656 | P30: 1,306 | Q30: 0 | R30: 8,000 | S30: - | T30: 0 | U30: 27,640 | V30: =+SUM(D30,M30) -> 107,759 | W30: =+SUM(E30,N30) -> 12,879 | X30: =+SUM(F30,O30) -> 1,656 | Y30: =+SUM(G30,P30) -> 1,306 | Z30: =+SUM(H30,Q30) -> 0 | AA30: =+SUM(I30,R30) -> 9,917 | AB30: =IF(+SUM(J30,S30)=0,"-",+SUM(J30,S30)) -> - | AC30: =+SUM(K30,T30) -> 0 | AD30: =+SUM(L30,U30) -> 94,880 | AE30: =SUM(AF30,+AK30) -> 0 | AF30: =SUM(AG30:AJ30) -> 0 | AG30: 0 | AH30: 0 | AI30: 0 | AJ30: 0 | AK30: 0 | AL30: 0 | AM30: =SUM(AN30,AS30,AW30,AX30,BD30) -> 0 | AN30: =SUM(AO30:AR30) -> 0 | AO30: 0 | AP30: 0 | AQ30: 0 | AR30: 0 | AS30: =SUM(AT30:AV30) -> 0 | AT30: 0 | AU30: 0 | AV30: 0 | AW30: 0 | AX30: =SUM(AY30:BB30) -> 0 | AY30: 0 | AZ30: 0 | BA30: 0 | BB30: 0 | BC30: 69,157 | BD30: 0 | BE30: 0 | BF30: =SUM(AE30,+AM30,+BE30) -> 0 | BG30: =SUM(BH30,+BM30) -> 0 | BH30: =SUM(BI30:BL30) -> 0 | BI30: 0 | BJ30: 0 | BK30: 0 | BL30: 0 | BM30: 0 | BN30: 0 | BO30: =SUM(BP30,BU30,BY30,BZ30,CF30) -> 7,472 | BP30: =SUM(BQ30:BT30) -> 0 | BQ30: 0 | BR30: 0 | BS30: 0 | BT30: 0 | BU30: =SUM(BV30:BX30) -> 0 | BV30: 0 | BW30: 0 | BX30: 0 | BY30: 0 | BZ30: =SUM(CA30:CD30) -> 7,472 | CA30: 7,472 | CB30: 0 | CC30: 0 | CD30: 0 | CE30: 31,130 | CF30: 0 | CG30: 0 | CH30: =SUM(BG30,+BO30,+CG30) -> 7,472 | CI30: =SUM(AE30,+BG30) -> 0 | CJ30: =SUM(AF30,+BH30) -> 0 | CK30: =SUM(AG30,+BI30) -> 0 | CL30: =SUM(AH30,+BJ30) -> 0 | CM30: =SUM(AI30,+BK30) -> 0 | CN30: =SUM(AJ30,+BL30) -> 0 | CO30: =SUM(AK30,+BM30) -> 0 | CP30: =SUM(AL30,+BN30) -> 0 | CQ30: =SUM(AM30,+BO30) -> 7,472 | CR30: =SUM(AN30,+BP30) -> 0 | CS30: =SUM(AO30,+BQ30) -> 0 | CT30: =SUM(AP30,+BR30) -> 0 | CU30: =SUM(AQ30,+BS30) -> 0 | CV30: =SUM(AR30,+BT30) -> 0 | CW30: =SUM(AS30,+BU30) -> 0 | CX30: =SUM(AT30,+BV30) -> 0 | CY30: =SUM(AU30,+BW30) -> 0 | CZ30: =SUM(AV30,+BX30) -> 0 | DA30: =SUM(AW30,+BY30) -> 0 | DB30: =SUM(AX30,+BZ30) -> 7,472 | DC30: =SUM(AY30,+CA30) -> 7,472 | DD30: =SUM(AZ30,+CB30) -> 0 | DE30: =SUM(BA30,+CC30) -> 0 | DF30: =SUM(BB30,+CD30) -> 0 | DG30: =SUM(BC30,+CE30) -> 100,287 | DH30: =SUM(BD30,+CF30) -> 0 | DI30: =SUM(BE30,+CG30) -> 0 | DJ30: =SUM(BF30,+CH30) -> 7,472
A31: 京都府 | B31: 26407 | C31: 京丹波町 | D31: =SUM(E31,+L31) -> 112,625 | E31: =SUM(F31:I31,K31) -> 0 | F31: 0 | G31: 0 | H31: 0 | I31: 0 | J31: - | K31: 0 | L31: 112,625 | M31: =SUM(N31,+U31) -> 205,532 | N31: =SUM(O31:R31,T31) -> 0 | O31: 0 | P31: 0 | Q31: 0 | R31: 0 | S31: - | T31: 0 | U31: 205,532 | V31: =+SUM(D31,M31) -> 318,157 | W31: =+SUM(E31,N31) -> 0 | X31: =+SUM(F31,O31) -> 0 | Y31: =+SUM(G31,P31) -> 0 | Z31: =+SUM(H31,Q31) -> 0 | AA31: =+SUM(I31,R31) -> 0 | AB31: =IF(+SUM(J31,S31)=0,"-",+SUM(J31,S31)) -> - | AC31: =+SUM(K31,T31) -> 0 | AD31: =+SUM(L31,U31) -> 318,157 | AE31: =SUM(AF31,+AK31) -> 0 | AF31: =SUM(AG31:AJ31) -> 0 | AG31: 0 | AH31: 0 | AI31: 0 | AJ31: 0 | AK31: 0 | AL31: 0 | AM31: =SUM(AN31,AS31,AW31,AX31,BD31) -> 0 | AN31: =SUM(AO31:AR31) -> 0 | AO31: 0 | AP31: 0 | AQ31: 0 | AR31: 0 | AS31: =SUM(AT31:AV31) -> 0 | AT31: 0 | AU31: 0 | AV31: 0 | AW31: 0 | AX31: =SUM(AY31:BB31) -> 0 | AY31: 0 | AZ31: 0 | BA31: 0 | BB31: 0 | BC31: 112,625 | BD31: 0 | BE31: 0 | BF31: =SUM(AE31,+AM31,+BE31) -> 0 | BG31: =SUM(BH31,+BM31) -> 0 | BH31: =SUM(BI31:BL31) -> 0 | BI31: 0 | BJ31: 0 | BK31: 0 | BL31: 0 | BM31: 0 | BN31: 0 | BO31: =SUM(BP31,BU31,BY31,BZ31,CF31) -> 0 | BP31: =SUM(BQ31:BT31) -> 0 | BQ31: 0 | BR31: 0 | BS31: 0 | BT31: 0 | BU31: =SUM(BV31:BX31) -> 0 | BV31: 0 | BW31: 0 | BX31: 0 | BY31: 0 | BZ31: =SUM(CA31:CD31) -> 0 | CA31: 0 | CB31: 0 | CC31: 0 | CD31: 0 | CE31: 205,532 | CF31: 0 | CG31: 0 | CH31: =SUM(BG31,+BO31,+CG31) -> 0 | CI31: =SUM(AE31,+BG31) -> 0 | CJ31: =SUM(AF31,+BH31) -> 0 | CK31: =SUM(AG31,+BI31) -> 0 | CL31: =SUM(AH31,+BJ31) -> 0 | CM31: =SUM(AI31,+BK31) -> 0 | CN31: =SUM(AJ31,+BL31) -> 0 | CO31: =SUM(AK31,+BM31) -> 0 | CP31: =SUM(AL31,+BN31) -> 0 | CQ31: =SUM(AM31,+BO31) -> 0 | CR31: =SUM(AN31,+BP31) -> 0 | CS31: =SUM(AO31,+BQ31) -> 0 | CT31: =SUM(AP31,+BR31) -> 0 | CU31: =SUM(AQ31,+BS31) -> 0 | CV31: =SUM(AR31,+BT31) -> 0 | CW31: =SUM(AS31,+BU31) -> 0 | CX31: =SUM(AT31,+BV31) -> 0 | CY31: =SUM(AU31,+BW31) -> 0 | CZ31: =SUM(AV31,+BX31) -> 0 | DA31: =SUM(AW31,+BY31) -> 0 | DB31: =SUM(AX31,+BZ31) -> 0 | DC31: =SUM(AY31,+CA31) -> 0 | DD31: =SUM(AZ31,+CB31) -> 0 | DE31: =SUM(BA31,+CC31) -> 0 | DF31: =SUM(BB31,+CD31) -> 0 | DG31: =SUM(BC31,+CE31) -> 318,157 | DH31: =SUM(BD31,+CF31) -> 0 | DI31: =SUM(BE31,+CG31) -> 0 | DJ31: =SUM(BF31,+CH31) -> 0
A32: 京都府 | B32: 26463 | C32: 伊根町 | D32: =SUM(E32,+L32) -> 92,833 | E32: =SUM(F32:I32,K32) -> 430 | F32: 0 | G32: 360 | H32: 0 | I32: 70 | J32: - | K32: 0 | L32: 92,403 | M32: =SUM(N32,+U32) -> 22,268 | N32: =SUM(O32:R32,T32) -> 11,401 | O32: 0 | P32: 0 | Q32: 0 | R32: 8,813 | S32: - | T32: 2,588 | U32: 10,867 | V32: =+SUM(D32,M32) -> 115,101 | W32: =+SUM(E32,N32) -> 11,831 | X32: =+SUM(F32,O32) -> 0 | Y32: =+SUM(G32,P32) -> 360 | Z32: =+SUM(H32,Q32) -> 0 | AA32: =+SUM(I32,R32) -> 8,883 | AB32: =IF(+SUM(J32,S32)=0,"-",+SUM(J32,S32)) -> - | AC32: =+SUM(K32,T32) -> 2,588 | AD32: =+SUM(L32,U32) -> 103,270 | AE32: =SUM(AF32,+AK32) -> 0 | AF32: =SUM(AG32:AJ32) -> 0 | AG32: 0 | AH32: 0 | AI32: 0 | AJ32: 0 | AK32: 0 | AL32: 15,328 | AM32: =SUM(AN32,AS32,AW32,AX32,BD32) -> 76,138 | AN32: =SUM(AO32:AR32) -> 13,060 | AO32: 13,060 | AP32: 0 | AQ32: 0 | AR32: 0 | AS32: =SUM(AT32:AV32) -> 14,847 | AT32: 6,308 | AU32: 0 | AV32: 8,539 | AW32: 0 | AX32: =SUM(AY32:BB32) -> 48,231 | AY32: 20,327 | AZ32: 2,936 | BA32: 24,833 | BB32: 135 | BC32: 0 | BD32: 0 | BE32: 1,367 | BF32: =SUM(AE32,+AM32,+BE32) -> 77,505 | BG32: =SUM(BH32,+BM32) -> 0 | BH32: =SUM(BI32:BL32) -> 0 | BI32: 0 | BJ32: 0 | BK32: 0 | BL32: 0 | BM32: 0 | BN32: 0 | BO32: =SUM(BP32,BU32,BY32,BZ32,CF32) -> 22,268 | BP32: =SUM(BQ32:BT32) -> 0 | BQ32: 0 | BR32: 0 | BS32: 0 | BT32: 0 | BU32: =SUM(BV32:BX32) -> 1,422 | BV32: 1,422 | BW32: 0 | BX32: 0 | BY32: 0 | BZ32: =SUM(CA32:CD32) -> 20,846 | CA32: 10,479 | CB32: 0 | CC32: 10,367 | CD32: 0 | CE32: 0 | CF32: 0 | CG32: 0 | CH32: =SUM(BG32,+BO32,+CG32) -> 22,268 | CI32: =SUM(AE32,+BG32) -> 0 | CJ32: =SUM(AF32,+BH32) -> 0 | CK32: =SUM(AG32,+BI32) -> 0 | CL32: =SUM(AH32,+BJ32) -> 0 | CM32: =SUM(AI32,+BK32) -> 0 | CN32: =SUM(AJ32,+BL32) -> 0 | CO32: =SUM(AK32,+BM32) -> 0 | CP32: =SUM(AL32,+BN32) -> 15,328 | CQ32: =SUM(AM32,+BO32) -> 98,406 | CR32: =SUM(AN32,+BP32) -> 13,060 | CS32: =SUM(AO32,+BQ32) -> 13,060 | CT32: =SUM(AP32,+BR32) -> 0 | CU32: =SUM(AQ32,+BS32) -> 0 | CV32: =SUM(AR32,+BT32) -> 0 | CW32: =SUM(AS32,+BU32) -> 16,269 | CX32: =SUM(AT32,+BV32) -> 7,730 | CY32: =SUM(AU32,+BW32) -> 0 | CZ32: =SUM(AV32,+BX32) -> 8,539 | DA32: =SUM(AW32,+BY32) -> 0 | DB32: =SUM(AX32,+BZ32) -> 69,077 | DC32: =SUM(AY32,+CA32) -> 30,806 | DD32: =SUM(AZ32,+CB32) -> 2,936 | DE32: =SUM(BA32,+CC32) -> 35,200 | DF32: =SUM(BB32,+CD32) -> 135 | DG32: =SUM(BC32,+CE32) -> 0 | DH32: =SUM(BD32,+CF32) -> 0 | DI32: =SUM(BE32,+CG32) -> 1,367 | DJ32: =SUM(BF32,+CH32) -> 99,773
A33: 京都府 | B33: 26465 | C33: 与謝野町 | D33: =SUM(E33,+L33) -> 485,819 | E33: =SUM(F33:I33,K33) -> 143,855 | F33: 0 | G33: 1,497 | H33: 131,400 | I33: 8,231 | J33: - | K33: 2,727 | L33: 341,964 | M33: =SUM(N33,+U33) -> 92,071 | N33: =SUM(O33:R33,T33) -> 51,156 | O33: 646 | P33: 1,750 | Q33: 0 | R33: 48,564 | S33: - | T33: 196 | U33: 40,915 | V33: =+SUM(D33,M33) -> 577,890 | W33: =+SUM(E33,N33) -> 195,011 | X33: =+SUM(F33,O33) -> 646 | Y33: =+SUM(G33,P33) -> 3,247 | Z33: =+SUM(H33,Q33) -> 131,400 | AA33: =+SUM(I33,R33) -> 56,795 | AB33: =IF(+SUM(J33,S33)=0,"-",+SUM(J33,S33)) -> - | AC33: =+SUM(K33,T33) -> 2,923 | AD33: =+SUM(L33,U33) -> 382,879 | AE33: =SUM(AF33,+AK33) -> 0 | AF33: =SUM(AG33:AJ33) -> 0 | AG33: 0 | AH33: 0 | AI33: 0 | AJ33: 0 | AK33: 0 | AL33: 158,615 | AM33: =SUM(AN33,AS33,AW33,AX33,BD33) -> 324,773 | AN33: =SUM(AO33:AR33) -> 9,650 | AO33: 0 | AP33: 0 | AQ33: 0 | AR33: 9,650 | AS33: =SUM(AT33:AV33) -> 26,509 | AT33: 0 | AU33: 0 | AV33: 26,509 | AW33: 0 | AX33: =SUM(AY33:BB33) -> 288,614 | AY33: 142,906 | AZ33: 124,742 | BA33: 20,966 | BB33: 0 | BC33: 0 | BD33: 0 | BE33: 2,431 | BF33: =SUM(AE33,+AM33,+BE33) -> 327,204 | BG33: =SUM(BH33,+BM33) -> 0 | BH33: =SUM(BI33:BL33) -> 0 | BI33: 0 | BJ33: 0 | BK33: 0 | BL33: 0 | BM33: 0 | BN33: 0 | BO33: =SUM(BP33,BU33,BY33,BZ33,CF33) -> 92,071 | BP33: =SUM(BQ33:BT33) -> 63,841 | BQ33: 23,215 | BR33: 34,822 | BS33: 5,804 | BT33: 0 | BU33: =SUM(BV33:BX33) -> 25,971 | BV33: 2,362 | BW33: 23,609 | BX33: 0 | BY33: 0 | BZ33: =SUM(CA33:CD33) -> 2,259 | CA33: 0 | CB33: 1,439 | CC33: 820 | CD33: 0 | CE33: 0 | CF33: 0 | CG33: 0 | CH33: =SUM(BG33,+BO33,+CG33) -> 92,071 | CI33: =SUM(AE33,+BG33) -> 0 | CJ33: =SUM(AF33,+BH33) -> 0 | CK33: =SUM(AG33,+BI33) -> 0 | CL33: =SUM(AH33,+BJ33) -> 0 | CM33: =SUM(AI33,+BK33) -> 0 | CN33: =SUM(AJ33,+BL33) -> 0 | CO33: =SUM(AK33,+BM33) -> 0 | CP33: =SUM(AL33,+BN33) -> 158,615 | CQ33: =SUM(AM33,+BO33) -> 416,844 | CR33: =SUM(AN33,+BP33) -> 73,491 | CS33: =SUM(AO33,+BQ33) -> 23,215 | CT33: =SUM(AP33,+BR33) -> 34,822 | CU33: =SUM(AQ33,+BS33) -> 5,804 | CV33: =SUM(AR33,+BT33) -> 9,650 | CW33: =SUM(AS33,+BU33) -> 52,480 | CX33: =SUM(AT33,+BV33) -> 2,362 | CY33: =SUM(AU33,+BW33) -> 23,609 | CZ33: =SUM(AV33,+BX33) -> 26,509 | DA33: =SUM(AW33,+BY33) -> 0 | DB33: =SUM(AX33,+BZ33) -> 290,873 | DC33: =SUM(AY33,+CA33) -> 142,906 | DD33: =SUM(AZ33,+CB33) -> 126,181 | DE33: =SUM(BA33,+CC33) -> 21,786 | DF33: =SUM(BB33,+CD33) -> 0 | DG33: =SUM(BC33,+CE33) -> 0 | DH33: =SUM(BD33,+CF33) -> 0 | DI33: =SUM(BE33,+CG33) -> 2,431 | DJ33: =SUM(BF33,+CH33) -> 419,275

Sheet 廃棄物事業経費（組合）
A1: 廃棄物処理事業経費（一部事務組合・広域連合の合計）（平成28年度実績）
A2: 都道府県名 | B2: 地方公共団体コード | C2: 一部事務組合・広域連合名 | D2: ごみ | M2: し尿 | V2: 合計 | AE2: ごみ（建設改良費＋処理維持管理費＋その他）（組合分担金を除く） | BG2: し尿（建設改良費＋処理維持管理費＋その他）（組合分担金を除く） | CI2: 合計（建設改良費＋処理維持管理費＋その他）（組合分担金を除く）
D3: 合計 (特定財源(市区町村分担金を除く)+一般財源) | M3: 合計 (特定財源(市区町村分担金を除く)+一般財源) | V3: 合計 (特定財源(市区町村分担金を除く)+一般財源) | AE3: 建設改良費 (工事費+調査費)(組合分担金を除く) | AM3: 処理及び維持管理費 (人件費+処理費+車両購入費+委託費+調査研究費)(組合分担金を除く) | BE3: その他 | BF3: 合計 | BG3: 建設改良費 (工事費+調査費)(組合分担金を除く) | BO3: 処理及び維持管理費 (人件費+処理費+車両購入費+委託費+調査研究費)(組合分担金を除く) | CG3: その他 | CH3: 合計 | CI3: 建設改良費 (工事費+調査費)(組合分担金を除く) | CQ3: 処理及び維持管理費 (人件費+処理費+車両購入費+委託費+調査研究費)(組合分担金を除く) | DI3: その他 | DJ3: 合計
E4: 特定財源 (市区町村分担金を除く) | L4: 一般財源 | N4: 特定財源 (市区町村分担金を除く) | U4: 一般財源 | W4: 特定財源 (市区町村分担金を除く) | AD4: 一般財源 | AE4: 合計 | AF4: 工事費 (中間処理施設+最終処分場+その他) | AK4: 調査費 | AL4: （建設改良費組合分担金） | AM4: 合計 | AN4: 人件費（一般職＋収集運搬＋中間処理＋最終処分） | AS4: 処理費 (収集運搬費+中間処理費+最終処分費) | AW4: 車両等購入費 | AX4: 委託費 (収集運搬費+中間処理費+最終処分費+その他) | BC4: (組合分担金) | BD4: 調査研究費 | BG4: 合計 | BH4: 工事費 (中間処理施設+最終処分場+その他) | BM4: 調査費 | BN4: （建設改良費組合分担金） | BO4: 合計 | BP4: 人件費（一般職＋収集運搬＋中間処理＋最終処分） | BU4: 処理費 (収集運搬費+中間処理費+最終処分費) | BY4: 車両等購入費 | BZ4: 委託費 (収集運搬費+中間処理費+最終処分費+その他) | CE4: (組合分担金) | CF4: 調査研究費 | CI4: 合計 | CJ4: 工事費 (中間処理施設+最終処分場+その他) | CO4: 調査費 | CP4: （建設改良費組合分担金） | CQ4: 合計 | CR4: 人件費（一般職＋収集運搬＋中間処理＋最終処分） | CW4: 処理費 (収集運搬費+中間処理費+最終処分費) | DA4: 車両等購入費 | DB4: 委託費 (収集運搬費+中間処理費+最終処分費+その他) | DG4: (組合分担金) | DH4: 調査研究費
E5: 合計 | F5: 国庫支出金 | G5: 都道府県 支出金 | H5: 地方債 | I5: 使用料及び 手数料 | J5: （市区町村 分担金） | K5: その他 | N5: 合計 | O5: 国庫支出金 | P5: 都道府県 支出金 | Q5: 地方債 | R5: 使用料及び 手数料 | S5: （市区町村 分担金） | T5: その他 | W5: 合計 | X5: 国庫支出金 | Y5: 都道府県 支出金 | Z5: 地方債 | AA5: 使用料及び 手数料 | AB5: （市区町村 分担金） | AC5: その他 | AF5: 合計 | AG5: 収集運搬施設 | AH5: 中間処理施設 | AI5: 最終処分場 | AJ5: その他 | AN5: 合計 | AO5: 一般職 | AP5: 収集運搬 | AQ5: 中間処理 | AR5: 最終処分 | AS5: 合計 | AT5: 収集運搬費 | AU5: 中間処理費 | AV5: 最終処分費 | AX5: 合計 | AY5: 収集運搬費 | AZ5: 中間処理費 | BA5: 最終処分費 | BB5: その他 | BH5: 合計 | BI5: 収集運搬施設 | BJ5: 中間処理施設 | BK5: 最終処分場 | BL5: その他 | BP5: 合計 | BQ5: 一般職 | BR5: 収集運搬 | BS5: 中間処理 | BT5: 最終処分 | BU5: 合計 | BV5: 収集運搬費 | BW5: 中間処理費 | BX5: 最終処分費 | BZ5: 合計 | CA5: 収集運搬費 | CB5: 中間処理費 | CC5: 最終処分費 | CD5: その他 | CJ5: 合計 | CK5: 収集運搬施設 | CL5: 中間処理施設 | CM5: 最終処分場 | CN5: その他 | CR5: 合計 | CS5: 一般職 | CT5: 収集運搬 | CU5: 中間処理 | CV5: 最終処分 | CW5: 合計 | CX5: 収集運搬費 | CY5: 中間処理費 | CZ5: 最終処分費 | DB5: 合計 | DC5: 収集運搬費 | DD5: 中間処理費 | DE5: 最終処分費 | DF5: その他
D6: （千円） | E6: （千円） | F6: （千円） | G6: （千円） | H6: （千円） | I6: （千円） | J6: （千円） | K6: （千円） | L6: （千円） | M6: （千円） | N6: （千円） | O6: （千円） | P6: （千円） | Q6: （千円） | R6: （千円） | S6: （千円） | T6: （千円） | U6: （千円） | V6: （千円） | W6: （千円） | X6: （千円） | Y6: （千円） | Z6: （千円） | AA6: （千円） | AB6: （千円） | AC6: （千円） | AD6: （千円） | AE6: （千円） | AF6: （千円） | AG6: （千円） | AH6: （千円） | AI6: （千円） | AJ6: （千円） | AK6: （千円） | AL6: （千円） | AM6: （千円） | AN6: （千円） | AO6: （千円） | AP6: （千円） | AQ6: （千円） | AR6: （千円） | AS6: （千円） | AT6: （千円） | AU6: （千円） | AV6: （千円） | AW6: （千円） | AX6: （千円） | AY6: （千円） | AZ6: （千円） | BA6: （千円） | BB6: （千円） | BC6: （千円） | BD6: （千円） | BE6: （千円） | BF6: （千円） | BG6: （千円） | BH6: （千円） | BI6: （千円） | BJ6: （千円） | BK6: （千円） | BL6: （千円） | BM6: （千円） | BN6: （千円） | BO6: （千円） | BP6: （千円） | BQ6: （千円） | BR6: （千円） | BS6: （千円） | BT6: （千円） | BU6: （千円） | BV6: （千円） | BW6: （千円） | BX6: （千円） | BY6: （千円） | BZ6: （千円） | CA6: （千円） | CB6: （千円） | CC6: （千円） | CD6: （千円） | CE6: （千円） | CF6: （千円） | CG6: （千円） | CH6: （千円） | CI6: （千円） | CJ6: （千円） | CK6: （千円） | CL6: （千円） | CM6: （千円） | CN6: （千円） | CO6: （千円） | CP6: （千円） | CQ6: （千円） | CR6: （千円） | CS6: （千円） | CT6: （千円） | CU6: （千円） | CV6: （千円） | CW6: （千円） | CX6: （千円） | CY6: （千円） | CZ6: （千円） | DA6: （千円） | DB6: （千円） | DC6: （千円） | DD6: （千円） | DE6: （千円） | DF6: （千円） | DG6: （千円） | DH6: （千円） | DI6: （千円） | DJ6: （千円）
A7: ='廃棄物事業経費（市町村）'!A7 -> 京都府 | B7: ='廃棄物事業経費（市町村）'!B7 -> 26000 | C7: 合計 | D7: =SUM(E7,+L7) -> 7,685,997 | E7: =SUM(F7:I7)+K7 -> 7,262,083 | F7: =SUM(F$8:F$1000) -> 2,455,274 | G7: 4,338 | H7: 3,914,700 | I7: 881,310 | J7: 4,660,752 | K7: 6,461 | L7: 423,914 | M7: =SUM(N7,+U7) -> 419,223 | N7: =SUM(O7:R7,T7) -> 162,528 | O7: =SUM(O$8:O$1000) -> 0 | P7: 0 | Q7: 0 | R7: 162,528 | S7: 1,495,281 | T7: 0 | U7: 256,695 | V7: =+SUM(D7,M7) -> 8,105,220 | W7: 7,424,611 | X7: 2,455,274 | Y7: 4,338 | Z7: 3,914,700 | AA7: 1,043,838 | AB7: 6,156,033 | AC7: 6,461 | AD7: 680,609 | AE7: =SUM(AF7,+AK7) -> 7,695,365 | AF7: =SUM(AG7:AJ7) -> 7,695,365 | AG7: =SUM(AG$8:AG$1000) -> 0 | AH7: =SUM(AH$8:AH$1000) -> 7,613,640 | AI7: =SUM(AI$8:AI$1000) -> 81,725 | AJ7: =SUM(AJ$8:AJ$1000) -> 0 | AK7: =SUM(AK$8:AK$1000) -> 0 | AL7: - | AM7: =SUM(AN7,AS7,AW7,AX7,BD7) -> 4,041,503 | AN7: =SUM(AO7:AR7) -> 1,270,868 | AO7: =SUM(AO$8:AO$1000) -> 523,105 | AP7: =SUM(AP$8:AP$1000) -> 13,349 | AQ7: =SUM(AQ$8:AQ$1000) -> 691,406 | AR7: =SUM(AR$8:AR$1000) -> 43,008 | AS7: =SUM(AT7:AV7) -> 1,078,093 | AT7: =SUM(AT$8:AT$1000) -> 46,353 | AU7: =SUM(AU$8:AU$1000) -> 962,542 | AV7: =SUM(AV$8:AV$1000) -> 69,198 | AW7: =SUM(AW$8:AW$1000) -> 23,935 | AX7: =SUM(AY7:BB7) -> 1,660,834 | AY7: =SUM(AY$8:AY$1000) -> 165,791 | AZ7: 1,258,951 | BA7: 178,008 | BB7: 58,084 | BC7: - | BD7: 7,773 | BE7: 609,881 | BF7: =SUM(AE7,+AM7,+BE7) -> 12,346,749 | BG7: =SUM(BH7,+BM7) -> 97,234 | BH7: =SUM(BI7:BL7) -> 97,234 | BI7: =SUM(BI$8:BI$1000) -> 0 | BJ7: =SUM(BJ$8:BJ$1000) -> 97,234 | BK7: =SUM(BK$8:BK$1000) -> 0 | BL7: =SUM(BL$8:BL$1000) -> 0 | BM7: =SUM(BM$8:BM$1000) -> 0 | BN7: - | BO7: =SUM(BP7,BU7,BY7,BZ7,CF7) -> 1,694,887 | BP7: =SUM(BQ7:BT7) -> 332,131 | BQ7: =SUM(BQ$8:BQ$1000) -> 213,494 | BR7: =SUM(BR$8:BR$1000) -> 47,732 | BS7: =SUM(BS$8:BS$1000) -> 70,835 | BT7: =SUM(BT$8:BT$1000) -> 70 | BU7: =SUM(BV7:BX7) -> 159,449 | BV7: =SUM(BV$8:BV$1000) -> 3,124 | BW7: =SUM(BW$8:BW$1000) -> 156,325 | BX7: =SUM(BX$8:BX$1000) -> 0 | BY7: =SUM(BY$8:BY$1000) -> 0 | BZ7: =SUM(CA7:CD7) -> 1,203,307 | CA7: =SUM(CA$8:CA$1000) -> 395,389 | CB7: 364,334 | CC7: 2,025 | CD7: 441,559 | CE7: - | CF7: 0 | CG7: 122,383 | CH7: =SUM(BG7,+BO7,+CG7) -> 1,914,504 | CI7: =SUM(AE7,+BG7) -> 7,792,599 | CJ7: 7,792,599 | CK7: 0 | CL7: 7,710,874 | CM7: 81,725 | CN7: 0 | CO7: 0 | CP7: - | CQ7: =SUM(AM7,+BO7) -> 5,736,390 | CR7: 1,602,999 | CS7: 736,599 | CT7: 61,081 | CU7: 762,241 | CV7: 43,078 | CW7: 1,237,542 | CX7: 49,477 | CY7: 1,118,867 | CZ7: 69,198 | DA7: 23,935 | DB7: 2,864,141 | DC7: 561,180 | DD7: 1,623,285 | DE7: 180,033 | DF7: 499,643 | DG7: - | DH7: =SUM(BD7,+CF7) -> 7,773 | DI7: =SUM(BE7,+CG7) -> 732,264 | DJ7: =SUM(BF7,+CH7) -> 14,261,253
A8: 京都府 | B8: 26817 | C8: 船井郡衛生管理組合 | D8: =SUM(E8,+L8) -> 322,761 | E8: =SUM(F8:I8)+K8 -> 264,432 | F8: 0 | G8: 0 | H8: 0 | I8: 264,432 | J8: 367,339 | K8: 0 | L8: 58,329 | M8: =SUM(N8,+U8) -> 240,127 | N8: =SUM(O8:R8,T8) -> 44,937 | O8: 0 | P8: 0 | Q8: 0 | R8: 44,937 | S8: 525,760 | T8: 0 | U8: 195,190 | V8: =+SUM(D8,M8) -> 562,888 | W8: =+SUM(E8,N8) -> 309,369 | X8: =+SUM(F8,O8) -> 0 | Y8: =+SUM(G8,P8) -> 0 | Z8: =+SUM(H8,Q8) -> 0 | AA8: =+SUM(I8,R8) -> 309,369 | AB8: =+SUM(J8,S8) -> 893,099 | AC8: =+SUM(K8,T8) -> 0 | AD8: =+SUM(L8,U8) -> 253,519 | AE8: =SUM(AF8,+AK8) -> 0 | AF8: =SUM(AG8:AJ8) -> 0 | AG8: 0 | AH8: 0 | AI8: 0 | AJ8: 0 | AK8: 0 | AL8: - | AM8: =SUM(AN8,AS8,AW8,AX8,BD8) -> 690,100 | AN8: =SUM(AO8:AR8) -> 181,499 | AO8: 31,509 | AP8: 13,349 | AQ8: 135,891 | AR8: 750 | AS8: =SUM(AT8:AV8) -> 44,714 | AT8: 39,120 | AU8: 5,594 | AV8: 0 | AW8: 23,935 | AX8: =SUM(AY8:BB8) -> 439,952 | AY8: 4,198 | AZ8: 433,574 | BA8: 2,180 | BB8: 0 | BC8: - | BD8: 0 | BE8: 0 | BF8: =SUM(AE8,+AM8,+BE8) -> 690,100 | BG8: =SUM(BH8,+BM8) -> 0 | BH8: =SUM(BI8:BL8) -> 0 | BI8: 0 | BJ8: 0 | BK8: 0 | BL8: 0 | BM8: 0 | BN8: - | BO8: =SUM(BP8,BU8,BY8,BZ8,CF8) -> 765,887 | BP8: =SUM(BQ8:BT8) -> 84,539 | BQ8: 37,090 | BR8: 3,655 | BS8: 43,724 | BT8: 70 | BU8: =SUM(BV8:BX8) -> 67,057 | BV8: 1,622 | BW8: 65,435 | BX8: 0 | BY8: 0 | BZ8: =SUM(CA8:CD8) -> 614,291 | CA8: 76,370 | CB8: 130,235 | CC8: 1,579 | CD8: 406,107 | CE8: - | CF8: 0 | CG8: 0 | CH8: =SUM(BG8,+BO8,+CG8) -> 765,887 | CI8: =SUM(AE8,+BG8) -> 0 | CJ8: =SUM(AF8,+BH8) -> 0 | CK8: =SUM(AG8,+BI8) -> 0 | CL8: =SUM(AH8,+BJ8) -> 0 | CM8: =SUM(AI8,+BK8) -> 0 | CN8: =SUM(AJ8,+BL8) -> 0 | CO8: =SUM(AK8,+BM8) -> 0 | CP8: - | CQ8: =SUM(AM8,+BO8) -> 1,455,987 | CR8: =SUM(AN8,+BP8) -> 266,038 | CS8: =SUM(AO8,+BQ8) -> 68,599 | CT8: =SUM(AP8,+BR8) -> 17,004 | CU8: =SUM(AQ8,+BS8) -> 179,615 | CV8: =SUM(AR8,+BT8) -> 820 | CW8: =SUM(AS8,+BU8) -> 111,771 | CX8: =SUM(AT8,+BV8) -> 40,742 | CY8: =SUM(AU8,+BW8) -> 71,029 | CZ8: =SUM(AV8,+BX8) -> 0 | DA8: =SUM(AW8,+BY8) -> 23,935 | DB8: =SUM(AX8,+BZ8) -> 1,054,243 | DC8: =SUM(AY8,+CA8) -> 80,568 | DD8: =SUM(AZ8,+CB8) -> 563,809 | DE8: =SUM(BA8,+CC8) -> 3,759 | DF8: =SUM(BB8,+CD8) -> 406,107 | DG8: - | DH8: =SUM(BD8,+CF8) -> 0 | DI8: =SUM(BE8,+CG8) -> 0 | DJ8: =SUM(BF8,+CH8) -> 1,455,987
A9: 京都府 | B9: 26820 | C9: 城南衛生管理組合 | D9: =SUM(E9,+L9) -> 5,493,347 | E9: =SUM(F9:I9)+K9 -> 5,249,683 | F9: 2,073,386 | G9: 0 | H9: 2,801,000 | I9: 375,297 | J9: 2,390,592 | K9: 0 | L9: 243,664 | M9: =SUM(N9,+U9) -> 162,044 | N9: =SUM(O9:R9,T9) -> 100,539 | O9: 0 | P9: 0 | Q9: 0 | R9: 100,539 | S9: 671,050 | T9: 0 | U9: 61,505 | V9: =+SUM(D9,M9) -> 5,655,391 | W9: =+SUM(E9,N9) -> 5,350,222 | X9: =+SUM(F9,O9) -> 2,073,386 | Y9: =+SUM(G9,P9) -> 0 | Z9: =+SUM(H9,Q9) -> 2,801,000 | AA9: =+SUM(I9,R9) -> 475,836 | AB9: =+SUM(J9,S9) -> 3,061,642 | AC9: =+SUM(K9,T9) -> 0 | AD9: =+SUM(L9,U9) -> 305,169 | AE9: =SUM(AF9,+AK9) -> 5,792,360 | AF9: =SUM(AG9:AJ9) -> 5,792,360 | AG9: 0 | AH9: 5,779,870 | AI9: 12,490 | AJ9: 0 | AK9: 0 | AL9: - | AM9: =SUM(AN9,AS9,AW9,AX9,BD9) -> 1,980,874 | AN9: =SUM(AO9:AR9) -> 644,162 | AO9: 152,251 | AP9: 0 | AQ9: 449,653 | AR9: 42,258 | AS9: =SUM(AT9:AV9) -> 675,176 | AT9: 7,233 | AU9: 615,452 | AV9: 52,491 | AW9: 0 | AX9: =SUM(AY9:BB9) -> 661,536 | AY9: 93,106 | AZ9: 445,934 | BA9: 122,496 | BB9: 0 | BC9: - | BD9: 0 | BE9: 110,705 | BF9: =SUM(AE9,+AM9,+BE9) -> 7,883,939 | BG9: =SUM(BH9,+BM9) -> 97,234 | BH9: =SUM(BI9:BL9) -> 97,234 | BI9: 0 | BJ9: 97,234 | BK9: 0 | BL9: 0 | BM9: 0 | BN9: - | BO9: =SUM(BP9,BU9,BY9,BZ9,CF9) -> 613,477 | BP9: =SUM(BQ9:BT9) -> 247,592 | BQ9: 176,404 | BR9: 44,077 | BS9: 27,111 | BT9: 0 | BU9: =SUM(BV9:BX9) -> 92,392 | BV9: 1,502 | BW9: 90,890 | BX9: 0 | BY9: 0 | BZ9: =SUM(CA9:CD9) -> 273,493 | CA9: 244,535 | CB9: 28,512 | CC9: 446 | CD9: 0 | CE9: - | CF9: 0 | CG9: 122,383 | CH9: =SUM(BG9,+BO9,+CG9) -> 833,094 | CI9: =SUM(AE9,+BG9) -> 5,889,594 | CJ9: =SUM(AF9,+BH9) -> 5,889,594 | CK9: =SUM(AG9,+BI9) -> 0 | CL9: =SUM(AH9,+BJ9) -> 5,877,104 | CM9: =SUM(AI9,+BK9) -> 12,490 | CN9: =SUM(AJ9,+BL9) -> 0 | CO9: =SUM(AK9,+BM9) -> 0 | CP9: - | CQ9: =SUM(AM9,+BO9) -> 2,594,351 | CR9: =SUM(AN9,+BP9) -> 891,754 | CS9: =SUM(AO9,+BQ9) -> 328,655 | CT9: =SUM(AP9,+BR9) -> 44,077 | CU9: =SUM(AQ9,+BS9) -> 476,764 | CV9: =SUM(AR9,+BT9) -> 42,258 | CW9: =SUM(AS9,+BU9) -> 767,568 | CX9: =SUM(AT9,+BV9) -> 8,735 | CY9: =SUM(AU9,+BW9) -> 706,342 | CZ9: =SUM(AV9,+BX9) -> 52,491 | DA9: =SUM(AW9,+BY9) -> 0 | DB9: =SUM(AX9,+BZ9) -> 935,029 | DC9: =SUM(AY9,+CA9) -> 337,641 | DD9: =SUM(AZ9,+CB9) -> 474,446 | DE9: =SUM(BA9,+CC9) -> 122,942 | DF9: =SUM(BB9,+CD9) -> 0 | DG9: - | DH9: =SUM(BD9,+CF9) -> 0 | DI9: =SUM(BE9,+CG9) -> 233,088 | DJ9: =SUM(BF9,+CH9) -> 8,717,033
A10: 京都府 | B10: 26821 | C10: 相楽郡西部塵埃処理組合 | D10: =SUM(E10,+L10) -> 121,160 | E10: =SUM(F10:I10)+K10 -> 109,176 | F10: 0 | G10: 0 | H10: 0 | I10: 109,138 | J10: 226,748 | K10: 38 | L10: 11,984 | M10: =SUM(N10,+U10) -> 0 | N10: =SUM(O10:R10,T10) -> 0 | O10: 0 | P10: 0 | Q10: 0 | R10: 0 | S10: 0 | T10: 0 | U10: 0 | V10: =+SUM(D10,M10) -> 121,160 | W10: =+SUM(E10,N10) -> 109,176 | X10: =+SUM(F10,O10) -> 0 | Y10: =+SUM(G10,P10) -> 0 | Z10: =+SUM(H10,Q10) -> 0 | AA10: =+SUM(I10,R10) -> 109,138 | AB10: =+SUM(J10,S10) -> 226,748 | AC10: =+SUM(K10,T10) -> 38 | AD10: =+SUM(L10,U10) -> 11,984 | AE10: =SUM(AF10,+AK10) -> 0 | AF10: =SUM(AG10:AJ10) -> 0 | AG10: 0 | AH10: 0 | AI10: 0 | AJ10: 0 | AK10: 0 | AL10: - | AM10: =SUM(AN10,AS10,AW10,AX10,BD10) -> 291,398 | AN10: =SUM(AO10:AR10) -> 125,869 | AO10: 20,007 | AP10: 0 | AQ10: 105,862 | AR10: 0 | AS10: =SUM(AT10:AV10) -> 122,391 | AT10: 0 | AU10: 122,391 | AV10: 0 | AW10: 0 | AX10: =SUM(AY10:BB10) -> 40,656 | AY10: 0 | AZ10: 20,049 | BA10: 20,574 | BB10: 33 | BC10: - | BD10: 2,482 | BE10: 56,510 | BF10: =SUM(AE10,+AM10,+BE10) -> 347,908 | BG10: =SUM(BH10,+BM10) -> 0 | BH10: =SUM(BI10:BL10) -> 0 | BI10: 0 | BJ10: 0 | BK10: 0 | BL10: 0 | BM10: 0 | BN10: - | BO10: =SUM(BP10,BU10,BY10,BZ10,CF10) -> 0 | BP10: =SUM(BQ10:BT10) -> 0 | BQ10: 0 | BR10: 0 | BS10: 0 | BT10: 0 | BU10: =SUM(BV10:BX10) -> 0 | BV10: 0 | BW10: 0 | BX10: 0 | BY10: 0 | BZ10: =SUM(CA10:CD10) -> 0 | CA10: 0 | CB10: 0 | CC10: 0 | CD10: 0 | CE10: - | CF10: 0 | CG10: 0 | CH10: =SUM(BG10,+BO10,+CG10) -> 0 | CI10: =SUM(AE10,+BG10) -> 0 | CJ10: =SUM(AF10,+BH10) -> 0 | CK10: =SUM(AG10,+BI10) -> 0 | CL10: =SUM(AH10,+BJ10) -> 0 | CM10: =SUM(AI10,+BK10) -> 0 | CN10: =SUM(AJ10,+BL10) -> 0 | CO10: =SUM(AK10,+BM10) -> 0 | CP10: - | CQ10: =SUM(AM10,+BO10) -> 291,398 | CR10: =SUM(AN10,+BP10) -> 125,869 | CS10: =SUM(AO10,+BQ10) -> 20,007 | CT10: =SUM(AP10,+BR10) -> 0 | CU10: =SUM(AQ10,+BS10) -> 105,862 | CV10: =SUM(AR10,+BT10) -> 0 | CW10: =SUM(AS10,+BU10) -> 122,391 | CX10: =SUM(AT10,+BV10) -> 0 | CY10: =SUM(AU10,+BW10) -> 122,391 | CZ10: =SUM(AV10,+BX10) -> 0 | DA10: =SUM(AW10,+BY10) -> 0 | DB10: =SUM(AX10,+BZ10) -> 40,656 | DC10: =SUM(AY10,+CA10) -> 0 | DD10: =SUM(AZ10,+CB10) -> 20,049 | DE10: =SUM(BA10,+CC10) -> 20,574 | DF10: =SUM(BB10,+CD10) -> 33 | DG10: - | DH10: =SUM(BD10,+CF10) -> 2,482 | DI10: =SUM(BE10,+CG10) -> 56,510 | DJ10: =SUM(BF10,+CH10) -> 347,908
A11: 京都府 | B11: 26828 | C11: 乙訓環境衛生組合 | D11: =SUM(E11,+L11) -> 1,589,357 | E11: =SUM(F11:I11)+K11 -> 1,589,357 | F11: 381,888 | G11: 0 | H11: 1,087,100 | I11: 120,369 | J11: 1,144,420 | K11: 0 | L11: 0 | M11: =SUM(N11,+U11) -> 0 | N11: =SUM(O11:R11,T11) -> 0 | O11: 0 | P11: 0 | Q11: 0 | R11: 0 | S11: 0 | T11: 0 | U11: 0 | V11: =+SUM(D11,M11) -> 1,589,357 | W11: =+SUM(E11,N11) -> 1,589,357 | X11: =+SUM(F11,O11) -> 381,888 | Y11: =+SUM(G11,P11) -> 0 | Z11: =+SUM(H11,Q11) -> 1,087,100 | AA11: =+SUM(I11,R11) -> 120,369 | AB11: =+SUM(J11,S11) -> 1,144,420 | AC11: =+SUM(K11,T11) -> 0 | AD11: =+SUM(L11,U11) -> 0 | AE11: =SUM(AF11,+AK11) -> 1,864,999 | AF11: =SUM(AG11:AJ11) -> 1,864,999 | AG11: 0 | AH11: 1,795,764 | AI11: 69,235 | AJ11: 0 | AK11: 0 | AL11: - | AM11: =SUM(AN11,AS11,AW11,AX11,BD11) -> 868,778 | AN11: =SUM(AO11:AR11) -> 284,095 | AO11: 284,095 | AP11: 0 | AQ11: 0 | AR11: 0 | AS11: =SUM(AT11:AV11) -> 235,812 | AT11: 0 | AU11: 219,105 | AV11: 16,707 | AW11: 0 | AX11: =SUM(AY11:BB11) -> 348,871 | AY11: 0 | AZ11: 348,871 | BA11: 0 | BB11: 0 | BC11: - | BD11: 0 | BE11: 0 | BF11: =SUM(AE11,+AM11,+BE11) -> 2,733,777 | BG11: =SUM(BH11,+BM11) -> 0 | BH11: =SUM(BI11:BL11) -> 0 | BI11: 0 | BJ11: 0 | BK11: 0 | BL11: 0 | BM11: 0 | BN11: - | BO11: =SUM(BP11,BU11,BY11,BZ11,CF11) -> 0 | BP11: =SUM(BQ11:BT11) -> 0 | BQ11: 0 | BR11: 0 | BS11: 0 | BT11: 0 | BU11: =SUM(BV11:BX11) -> 0 | BV11: 0 | BW11: 0 | BX11: 0 | BY11: 0 | BZ11: =SUM(CA11:CD11) -> 0 | CA11: 0 | CB11: 0 | CC11: 0 | CD11: 0 | CE11: - | CF11: 0 | CG11: 0 | CH11: =SUM(BG11,+BO11,+CG11) -> 0 | CI11: =SUM(AE11,+BG11) -> 1,864,999 | CJ11: =SUM(AF11,+BH11) -> 1,864,999 | CK11: =SUM(AG11,+BI11) -> 0 | CL11: =SUM(AH11,+BJ11) -> 1,795,764 | CM11: =SUM(AI11,+BK11) -> 69,235 | CN11: =SUM(AJ11,+BL11) -> 0 | CO11: =SUM(AK11,+BM11) -> 0 | CP11: - | CQ11: =SUM(AM11,+BO11) -> 868,778 | CR11: =SUM(AN11,+BP11) -> 284,095 | CS11: =SUM(AO11,+BQ11) -> 284,095 | CT11: =SUM(AP11,+BR11) -> 0 | CU11: =SUM(AQ11,+BS11) -> 0 | CV11: =SUM(AR11,+BT11) -> 0 | CW11: =SUM(AS11,+BU11) -> 235,812 | CX11: =SUM(AT11,+BV11) -> 0 | CY11: =SUM(AU11,+BW11) -> 219,105 | CZ11: =SUM(AV11,+BX11) -> 16,707 | DA11: =SUM(AW11,+BY11) -> 0 | DB11: =SUM(AX11,+BZ11) -> 348,871 | DC11: =SUM(AY11,+CA11) -> 0 | DD11: =SUM(AZ11,+CB11) -> 348,871 | DE11: =SUM(BA11,+CC11) -> 0 | DF11: =SUM(BB11,+CD11) -> 0 | DG11: - | DH11: =SUM(BD11,+CF11) -> 0 | DI11: =SUM(BE11,+CG11) -> 0 | DJ11: =SUM(BF11,+CH11) -> 2,733,777
A12: 京都府 | B12: 26843 | C12: 相楽東部広域連合 | D12: =SUM(E12,+L12) -> 50,327 | E12: =SUM(F12:I12)+K12 -> 49,413 | F12: 0 | G12: 4,338 | H12: 26,600 | I12: 12,074 | J12: 223,853 | K12: 6,401 | L12: 914 | M12: =SUM(N12,+U12) -> 0 | N12: =SUM(O12:R12,T12) -> 0 | O12: 0 | P12: 0 | Q12: 0 | R12: 0 | S12: 0 | T12: 0 | U12: 0 | V12: =+SUM(D12,M12) -> 50,327 | W12: =+SUM(E12,N12) -> 49,413 | X12: =+SUM(F12,O12) -> 0 | Y12: =+SUM(G12,P12) -> 4,338 | Z12: =+SUM(H12,Q12) -> 26,600 | AA12: =+SUM(I12,R12) -> 12,074 | AB12: =+SUM(J12,S12) -> 223,853 | AC12: =+SUM(K12,T12) -> 6,401 | AD12: =+SUM(L12,U12) -> 914 | AE12: =SUM(AF12,+AK12) -> 38,006 | AF12: =SUM(AG12:AJ12) -> 38,006 | AG12: 0 | AH12: 38,006 | AI12: 0 | AJ12: 0 | AK12: 0 | AL12: - | AM12: =SUM(AN12,AS12,AW12,AX12,BD12) -> 181,042 | AN12: =SUM(AO12:AR12) -> 5,932 | AO12: 5,932 | AP12: 0 | AQ12: 0 | AR12: 0 | AS12: =SUM(AT12:AV12) -> 0 | AT12: 0 | AU12: 0 | AV12: 0 | AW12: 0 | AX12: =SUM(AY12:BB12) -> 169,819 | AY12: 68,487 | AZ12: 10,523 | BA12: 32,758 | BB12: 58,051 | BC12: - | BD12: 5,291 | BE12: 55,132 | BF12: =SUM(AE12,+AM12,+BE12) -> 274,180 | BG12: =SUM(BH12,+BM12) -> 0 | BH12: =SUM(BI12:BL12) -> 0 | BI12: 0 | BJ12: 0 | BK12: 0 | BL12: 0 | BM12: 0 | BN12: - | BO12: =SUM(BP12,BU12,BY12,BZ12,CF12) -> 0 | BP12: =SUM(BQ12:BT12) -> 0 | BQ12: 0 | BR12: 0 | BS12: 0 | BT12: 0 | BU12: =SUM(BV12:BX12) -> 0 | BV12: 0 | BW12: 0 | BX12: 0 | BY12: 0 | BZ12: =SUM(CA12:CD12) -> 0 | CA12: 0 | CB12: 0 | CC12: 0 | CD12: 0 | CE12: - | CF12: 0 | CG12: 0 | CH12: =SUM(BG12,+BO12,+CG12) -> 0 | CI12: =SUM(AE12,+BG12) -> 38,006 | CJ12: =SUM(AF12,+BH12) -> 38,006 | CK12: =SUM(AG12,+BI12) -> 0 | CL12: =SUM(AH12,+BJ12) -> 38,006 | CM12: =SUM(AI12,+BK12) -> 0 | CN12: =SUM(AJ12,+BL12) -> 0 | CO12: =SUM(AK12,+BM12) -> 0 | CP12: - | CQ12: =SUM(AM12,+BO12) -> 181,042 | CR12: =SUM(AN12,+BP12) -> 5,932 | CS12: =SUM(AO12,+BQ12) -> 5,932 | CT12: =SUM(AP12,+BR12) -> 0 | CU12: =SUM(AQ12,+BS12) -> 0 | CV12: =SUM(AR12,+BT12) -> 0 | CW12: =SUM(AS12,+BU12) -> 0 | CX12: =SUM(AT12,+BV12) -> 0 | CY12: =SUM(AU12,+BW12) -> 0 | CZ12: =SUM(AV12,+BX12) -> 0 | DA12: =SUM(AW12,+BY12) -> 0 | DB12: =SUM(AX12,+BZ12) -> 169,819 | DC12: =SUM(AY12,+CA12) -> 68,487 | DD12: =SUM(AZ12,+CB12) -> 10,523 | DE12: =SUM(BA12,+CC12) -> 32,758 | DF12: =SUM(BB12,+CD12) -> 58,051 | DG12: - | DH12: =SUM(BD12,+CF12) -> 5,291 | DI12: =SUM(BE12,+CG12) -> 55,132 | DJ12: =SUM(BF12,+CH12) -> 274,180
A13: 京都府 | B13: 26849 | C13: 相楽郡広域事務組合 | D13: =SUM(E13,+L13) -> 0 | E13: =SUM(F13:I13)+K13 -> 0 | F13: 0 | G13: 0 | H13: 0 | I13: 0 | J13: 0 | K13: 0 | L13: 0 | M13: =SUM(N13,+U13) -> 17,052 | N13: =SUM(O13:R13,T13) -> 17,052 | O13: 0 | P13: 0 | Q13: 0 | R13: 17,052 | S13: 298,471 | T13: 0 | U13: 0 | V13: =+SUM(D13,M13) -> 17,052 | W13: =+SUM(E13,N13) -> 17,052 | X13: =+SUM(F13,O13) -> 0 | Y13: =+SUM(G13,P13) -> 0 | Z13: =+SUM(H13,Q13) -> 0 | AA13: =+SUM(I13,R13) -> 17,052 | AB13: =+SUM(J13,S13) -> 298,471 | AC13: =+SUM(K13,T13) -> 0 | AD13: =+SUM(L13,U13) -> 0 | AE13: =SUM(AF13,+AK13) -> 0 | AF13: =SUM(AG13:AJ13) -> 0 | AG13: 0 | AH13: 0 | AI13: 0 | AJ13: 0 | AK13: 0 | AL13: - | AM13: =SUM(AN13,AS13,AW13,AX13,BD13) -> 0 | AN13: =SUM(AO13:AR13) -> 0 | AO13: 0 | AP13: 0 | AQ13: 0 | AR13: 0 | AS13: =SUM(AT13:AV13) -> 0 | AT13: 0 | AU13: 0 | AV13: 0 | AW13: 0 | AX13: =SUM(AY13:BB13) -> 0 | AY13: 0 | AZ13: 0 | BA13: 0 | BB13: 0 | BC13: - | BD13: 0 | BE13: 0 | BF13: =SUM(AE13,+AM13,+BE13) -> 0 | BG13: =SUM(BH13,+BM13) -> 0 | BH13: =SUM(BI13:BL13) -> 0 | BI13: 0 | BJ13: 0 | BK13: 0 | BL13: 0 | BM13: 0 | BN13: - | BO13: =SUM(BP13,BU13,BY13,BZ13,CF13) -> 315,523 | BP13: =SUM(BQ13:BT13) -> 0 | BQ13: 0 | BR13: 0 | BS13: 0 | BT13: 0 | BU13: =SUM(BV13:BX13) -> 0 | BV13: 0 | BW13: 0 | BX13: 0 | BY13: 0 | BZ13: =SUM(CA13:CD13) -> 315,523 | CA13: 74,484 | CB13: 205,587 | CC13: 0 | CD13: 35,452 | CE13: - | CF13: 0 | CG13: 0 | CH13: =SUM(BG13,+BO13,+CG13) -> 315,523 | CI13: =SUM(AE13,+BG13) -> 0 | CJ13: =SUM(AF13,+BH13) -> 0 | CK13: =SUM(AG13,+BI13) -> 0 | CL13: =SUM(AH13,+BJ13) -> 0 | CM13: =SUM(AI13,+BK13) -> 0 | CN13: =SUM(AJ13,+BL13) -> 0 | CO13: =SUM(AK13,+BM13) -> 0 | CP13: - | CQ13: =SUM(AM13,+BO13) -> 315,523 | CR13: =SUM(AN13,+BP13) -> 0 | CS13: =SUM(AO13,+BQ13) -> 0 | CT13: =SUM(AP13,+BR13) -> 0 | CU13: =SUM(AQ13,+BS13) -> 0 | CV13: =SUM(AR13,+BT13) -> 0 | CW13: =SUM(AS13,+BU13) -> 0 | CX13: =SUM(AT13,+BV13) -> 0 | CY13: =SUM(AU13,+BW13) -> 0 | CZ13: =SUM(AV13,+BX13) -> 0 | DA13: =SUM(AW13,+BY13) -> 0 | DB13: =SUM(AX13,+BZ13) -> 315,523 | DC13: =SUM(AY13,+CA13) -> 74,484 | DD13: =SUM(AZ13,+CB13) -> 205,587 | DE13: =SUM(BA13,+CC13) -> 0 | DF13: =SUM(BB13,+CD13) -> 35,452 | DG13: - | DH13: =SUM(BD13,+CF13) -> 0 | DI13: =SUM(BE13,+CG13) -> 0 | DJ13: =SUM(BF13,+CH13) -> 315,523
A14: 京都府 | B14: 26861 | C14: 宮津与謝環境組合 | D14: =SUM(E14,+L14) -> 109,045 | E14: =SUM(F14:I14)+K14 -> 22 | F14: 0 | G14: 0 | H14: 0 | I14: 0 | J14: 307,800 | K14: 22 | L14: 109,023 | M14: =SUM(N14,+U14) -> 0 | N14: =SUM(O14:R14,T14) -> 0 | O14: 0 | P14: 0 | Q14: 0 | R14: 0 | S14: 0 | T14: 0 | U14: 0 | V14: =+SUM(D14,M14) -> 109,045 | W14: =+SUM(E14,N14) -> 22 | X14: =+SUM(F14,O14) -> 0 | Y14: =+SUM(G14,P14) -> 0 | Z14: =+SUM(H14,Q14) -> 0 | AA14: =+SUM(I14,R14) -> 0 | AB14: =+SUM(J14,S14) -> 307,800 | AC14: =+SUM(K14,T14) -> 22 | AD14: =+SUM(L14,U14) -> 109,023 | AE14: =SUM(AF14,+AK14) -> 0 | AF14: =SUM(AG14:AJ14) -> 0 | AG14: 0 | AH14: 0 | AI14: 0 | AJ14: 0 | AK14: 0 | AL14: - | AM14: =SUM(AN14,AS14,AW14,AX14,BD14) -> 29,311 | AN14: =SUM(AO14:AR14) -> 29,311 | AO14: 29,311 | AP14: 0 | AQ14: 0 | AR14: 0 | AS14: =SUM(AT14:AV14) -> 0 | AT14: 0 | AU14: 0 | AV14: 0 | AW14: 0 | AX14: =SUM(AY14:BB14) -> 0 | AY14: 0 | AZ14: 0 | BA14: 0 | BB14: 0 | BC14: - | BD14: 0 | BE14: 387,534 | BF14: =SUM(AE14,+AM14,+BE14) -> 416,845 | BG14: =SUM(BH14,+BM14) -> 0 | BH14: =SUM(BI14:BL14) -> 0 | BI14: 0 | BJ14: 0 | BK14: 0 | BL14: 0 | BM14: 0 | BN14: - | BO14: =SUM(BP14,BU14,BY14,BZ14,CF14) -> 0 | BP14: =SUM(BQ14:BT14) -> 0 | BQ14: 0 | BR14: 0 | BS14: 0 | BT14: 0 | BU14: =SUM(BV14:BX14) -> 0 | BV14: 0 | BW14: 0 | BX14: 0 | BY14: 0 | BZ14: =SUM(CA14:CD14) -> 0 | CA14: 0 | CB14: 0 | CC14: 0 | CD14: 0 | CE14: - | CF14: 0 | CG14: 0 | CH14: =SUM(BG14,+BO14,+CG14) -> 0 | CI14: =SUM(AE14,+BG14) -> 0 | CJ14: =SUM(AF14,+BH14) -> 0 | CK14: =SUM(AG14,+BI14) -> 0 | CL14: =SUM(AH14,+BJ14) -> 0 | CM14: =SUM(AI14,+BK14) -> 0 | CN14: =SUM(AJ14,+BL14) -> 0 | CO14: =SUM(AK14,+BM14) -> 0 | CP14: - | CQ14: =SUM(AM14,+BO14) -> 29,311 | CR14: =SUM(AN14,+BP14) -> 29,311 | CS14: =SUM(AO14,+BQ14) -> 29,311 | CT14: =SUM(AP14,+BR14) -> 0 | CU14: =SUM(AQ14,+BS14) -> 0 | CV14: =SUM(AR14,+BT14) -> 0 | CW14: =SUM(AS14,+BU14) -> 0 | CX14: =SUM(AT14,+BV14) -> 0 | CY14: =SUM(AU14,+BW14) -> 0 | CZ14: =SUM(AV14,+BX14) -> 0 | DA14: =SUM(AW14,+BY14) -> 0 | DB14: =SUM(AX14,+BZ14) -> 0 | DC14: =SUM(AY14,+CA14) -> 0 | DD14: =SUM(AZ14,+CB14) -> 0 | DE14: =SUM(BA14,+CC14) -> 0 | DF14: =SUM(BB14,+CD14) -> 0 | DG14: - | DH14: =SUM(BD14,+CF14) -> 0 | DI14: =SUM(BE14,+CG14) -> 387,534 | DJ14: =SUM(BF14,+CH14) -> 416,845

Sheet 廃棄物事業経費（歳入）
A1: 廃棄物処理事業経費（市区町村及び一部事務組合・広域連合の合計）【歳入】（平成28年度実績）
A2: 都道府県名 | B2: 地方公共団体コード | C2: 市区町村・一部事務組合・広域連合名 | D2: ごみ | M2: し尿 | V2: 合計
D3: 合計 (特定財源(市区町村分担金を除く)+一般財源) | M3: 合計 (特定財源(市区町村分担金を除く)+一般財源) | V3: 合計 (特定財源(市区町村分担金を除く)+一般財源)
E4: 特定財源 (市区町村分担金を除く) | L4: 一般財源 | N4: 特定財源 (市区町村分担金を除く) | U4: 一般財源 | W4: 特定財源 (市区町村分担金を除く) | AD4: 一般財源
E5: 合計 | F5: 国庫支出金 | G5: 都道府県 支出金 | H5: 地方債 | I5: 使用料及び 手数料 | J5: （市区町村 分担金） | K5: その他 | N5: 合計 | O5: 国庫支出金 | P5: 都道府県 支出金 | Q5: 地方債 | R5: 使用料及び 手数料 | S5: （市区町村 分担金） | T5: その他 | W5: 合計 | X5: 国庫支出金 | Y5: 都道府県 支出金 | Z5: 地方債 | AA5: 使用料及び 手数料 | AB5: （市区町村 分担金） | AC5: その他
D6: （千円） | E6: （千円） | F6: （千円） | G6: （千円） | H6: （千円） | I6: （千円） | J6: （千円） | K6: （千円） | L6: （千円） | M6: （千円） | N6: （千円） | O6: （千円） | P6: （千円） | Q6: （千円） | R6: （千円） | S6: （千円） | T6: （千円） | U6: （千円） | V6: （千円） | W6: （千円） | X6: （千円） | Y6: （千円） | Z6: （千円） | AA6: （千円） | AB6: （千円） | AC6: （千円） | AD6: （千円）
A7: ='廃棄物事業経費（市町村）'!A7 -> 京都府 | B7: ='廃棄物事業経費（市町村）'!B7 -> 26000 | C7: 合計 | D7: =SUM(E7,+L7) -> 51,264,112 | E7: =+SUM(F7:I7,K7) -> 23,620,889 | F7: =SUM(F$8:F$1000) -> 5,587,375 | G7: 72,565 | H7: 7,566,700 | I7: 6,014,759 | J7: 4,660,752 | K7: 4,379,490 | L7: 27,643,223 | M7: =SUM(N7,+U7) -> 5,243,426 | N7: =+SUM(O7:R7,T7) -> 1,483,325 | O7: =SUM(O$8:O$1000) -> 224,384 | P7: 6,817 | Q7: 257,998 | R7: 963,119 | S7: 1,495,281 | T7: 31,007 | U7: 3,760,101 | V7: =+SUM(D7,M7) -> 56,507,538 | W7: 25,104,214 | X7: 5,811,759 | Y7: 79,382 | Z7: 7,824,698 | AA7: 6,977,878 | AB7: 6,156,033 | AC7: =+SUM(K7,T7) -> 4,410,497 | AD7: =+SUM(L7,U7) -> 31,403,324
A8: 京都府 | B8: 26100 | C8: 京都市 | D8: =SUM(E8,+L8) -> 22,994,933 | E8: =+SUM(F8:I8,K8) -> 13,928,596 | F8: 2,784,851 | G8: 0 | H8: 2,912,000 | I8: 4,049,530 | K8: 4,182,215 | L8: 9,066,337 | M8: =SUM(N8,+U8) -> 817,474 | N8: =+SUM(O8:R8,T8) -> 77,531 | O8: 0 | P8: 0 | Q8: 0 | R8: 75,454 | T8: 2,077 | U8: 739,943 | V8: =+SUM(D8,M8) -> 23,812,407 | W8: =+SUM(E8,N8) -> 14,006,127 | X8: =+SUM(F8,O8) -> 2,784,851 | Y8: =+SUM(G8,P8) -> 0 | Z8: =+SUM(H8,Q8) -> 2,912,000 | AA8: =+SUM(I8,R8) -> 4,124,984 | AB8: =+SUM(J8,S8) -> 0 | AC8: =+SUM(K8,T8) -> 4,184,292 | AD8: =+SUM(L8,U8) -> 9,806,280 | AE8: 261100
A9: 京都府 | B9: 26201 | C9: 福知山市 | D9: =SUM(E9,+L9) -> 1,709,669 | E9: =+SUM(F9:I9,K9) -> 1,009,598 | F9: 244,803 | G9: 13,896 | H9: 282,100 | I9: 440,367 | K9: 28,432 | L9: 700,071 | M9: =SUM(N9,+U9) -> 111,268 | N9: =+SUM(O9:R9,T9) -> 27,973 | O9: 0 | P9: 0 | Q9: 0 | R9: 27,973 | T9: 0 | U9: 83,295 | V9: =+SUM(D9,M9) -> 1,820,937 | W9: =+SUM(E9,N9) -> 1,037,571 | X9: =+SUM(F9,O9) -> 244,803 | Y9: =+SUM(G9,P9) -> 13,896 | Z9: =+SUM(H9,Q9) -> 282,100 | AA9: =+SUM(I9,R9) -> 468,340 | AB9: =+SUM(J9,S9) -> 0 | AC9: =+SUM(K9,T9) -> 28,432 | AD9: =+SUM(L9,U9) -> 783,366 | AE9: 261201
A10: 京都府 | B10: 26202 | C10: 舞鶴市 | D10: =SUM(E10,+L10) -> 1,391,348 | E10: =+SUM(F10:I10,K10) -> 377,311 | F10: 59,364 | G10: 40,000 | H10: 157,700 | I10: 111,443 | K10: 8,804 | L10: 1,014,037 | M10: =SUM(N10,+U10) -> 645,914 | N10: =+SUM(O10:R10,T10) -> 471,421 | O10: 221,723 | P10: 0 | Q10: 249,698 | R10: 0 | T10: 0 | U10: 174,493 | V10: =+SUM(D10,M10) -> 2,037,262 | W10: =+SUM(E10,N10) -> 848,732 | X10: =+SUM(F10,O10) -> 281,087 | Y10: =+SUM(G10,P10) -> 40,000 | Z10: =+SUM(H10,Q10) -> 407,398 | AA10: =+SUM(I10,R10) -> 111,443 | AB10: =+SUM(J10,S10) -> 0 | AC10: =+SUM(K10,T10) -> 8,804 | AD10: =+SUM(L10,U10) -> 1,188,530 | AE10: 261202
A11: 京都府 | B11: 26203 | C11: 綾部市 | D11: =SUM(E11,+L11) -> 725,996 | E11: =+SUM(F11:I11,K11) -> 132,500 | F11: 4,608 | G11: 0 | H11: 2,500 | I11: 102,198 | K11: 23,194 | L11: 593,496 | M11: =SUM(N11,+U11) -> 484,252 | N11: =+SUM(O11:R11,T11) -> 117,133 | O11: 0 | P11: 0 | Q11: 0 | R11: 117,082 | T11: 51 | U11: 367,119 | V11: =+SUM(D11,M11) -> 1,210,248 | W11: =+SUM(E11,N11) -> 249,633 | X11: =+SUM(F11,O11) -> 4,608 | Y11: =+SUM(G11,P11) -> 0 | Z11: =+SUM(H11,Q11) -> 2,500 | AA11: =+SUM(I11,R11) -> 219,280 | AB11: =+SUM(J11,S11) -> 0 | AC11: =+SUM(K11,T11) -> 23,245 | AD11: =+SUM(L11,U11) -> 960,615 | AE11: 261203
A12: 京都府 | B12: 26204 | C12: 宇治市 | D12: =SUM(E12,+L12) -> 2,314,732 | E12: =+SUM(F12:I12,K12) -> 20,271 | F12: 0 | G12: 0 | H12: 0 | I12: 18,195 | K12: 2,076 | L12: 2,294,461 | M12: =SUM(N12,+U12) -> 335,726 | N12: =+SUM(O12:R12,T12) -> 0 | O12: 0 | P12: 0 | Q12: 0 | R12: 0 | T12: 0 | U12: 335,726 | V12: =+SUM(D12,M12) -> 2,650,458 | W12: =+SUM(E12,N12) -> 20,271 | X12: =+SUM(F12,O12) -> 0 | Y12: =+SUM(G12,P12) -> 0 | Z12: =+SUM(H12,Q12) -> 0 | AA12: =+SUM(I12,R12) -> 18,195 | AB12: =+SUM(J12,S12) -> 0 | AC12: =+SUM(K12,T12) -> 2,076 | AD12: =+SUM(L12,U12) -> 2,630,187 | AE12: 261204
A13: 京都府 | B13: 26205 | C13: 宮津市 | D13: =SUM(E13,+L13) -> 603,244 | E13: =+SUM(F13:I13,K13) -> 216,089 | F13: 0 | G13: 3,597 | H13: 155,800 | I13: 56,574 | K13: 118 | L13: 387,155 | M13: =SUM(N13,+U13) -> 162,828 | N13: =+SUM(O13:R13,T13) -> 94,002 | O13: 0 | P13: 3,513 | Q13: 8,300 | R13: 82,189 | T13: 0 | U13: 68,826 | V13: =+SUM(D13,M13) -> 766,072 | W13: =+SUM(E13,N13) -> 310,091 | X13: =+SUM(F13,O13) -> 0 | Y13: =+SUM(G13,P13) -> 7,110 | Z13: =+SUM(H13,Q13) -> 164,100 | AA13: =+SUM(I13,R13) -> 138,763 | AB13: =+SUM(J13,S13) -> 0 | AC13: =+SUM(K13,T13) -> 118 | AD13: =+SUM(L13,U13) -> 455,981 | AE13: 261205
A14: 京都府 | B14: 26206 | C14: 亀岡市 | D14: =SUM(E14,+L14) -> 902,261 | E14: =+SUM(F14:I14,K14) -> 243,274 | F14: 0 | G14: 8,877 | H14: 0 | I14: 218,644 | K14: 15,753 | L14: 658,987 | M14: =SUM(N14,+U14) -> 269,938 | N14: =+SUM(O14:R14,T14) -> 90,445 | O14: 0 | P14: 0 | Q14: 0 | R14: 88,444 | T14: 2,001 | U14: 179,493 | V14: =+SUM(D14,M14) -> 1,172,199 | W14: =+SUM(E14,N14) -> 333,719 | X14: =+SUM(F14,O14) -> 0 | Y14: =+SUM(G14,P14) -> 8,877 | Z14: =+SUM(H14,Q14) -> 0 | AA14: =+SUM(I14,R14) -> 307,088 | AB14: =+SUM(J14,S14) -> 0 | AC14: =+SUM(K14,T14) -> 17,754 | AD14: =+SUM(L14,U14) -> 838,480 | AE14: 261206
A15: 京都府 | B15: 26207 | C15: 城陽市 | D15: =SUM(E15,+L15) -> 850,450 | E15: =+SUM(F15:I15,K15) -> 2,267 | F15: 0 | G15: 0 | H15: 0 | I15: 2,267 | K15: 0 | L15: 848,183 | M15: =SUM(N15,+U15) -> 151,389 | N15: =+SUM(O15:R15,T15) -> 0 | O15: 0 | P15: 0 | Q15: 0 | R15: 0 | T15: 0 | U15: 151,389 | V15: =+SUM(D15,M15) -> 1,001,839 | W15: =+SUM(E15,N15) -> 2,267 | X15: =+SUM(F15,O15) -> 0 | Y15: =+SUM(G15,P15) -> 0 | Z15: =+SUM(H15,Q15) -> 0 | AA15: =+SUM(I15,R15) -> 2,267 | AB15: =+SUM(J15,S15) -> 0 | AC15: =+SUM(K15,T15) -> 0 | AD15: =+SUM(L15,U15) -> 999,572 | AE15: 261207
A16: 京都府 | B16: 26208 | C16: 向日市 | D16: =SUM(E16,+L16) -> 892,331 | E16: =+SUM(F16:I16,K16) -> 6,564 | F16: 0 | G16: 0 | H16: 0 | I16: 6,564 | K16: 0 | L16: 885,767 | M16: =SUM(N16,+U16) -> 32,595 | N16: =+SUM(O16:R16,T16) -> 1,202 | O16: 0 | P16: 0 | Q16: 0 | R16: 1,202 | T16: 0 | U16: 31,393 | V16: =+SUM(D16,M16) -> 924,926 | W16: =+SUM(E16,N16) -> 7,766 | X16: =+SUM(F16,O16) -> 0 | Y16: =+SUM(G16,P16) -> 0 | Z16: =+SUM(H16,Q16) -> 0 | AA16: =+SUM(I16,R16) -> 7,766 | AB16: =+SUM(J16,S16) -> 0 | AC16: =+SUM(K16,T16) -> 0 | AD16: =+SUM(L16,U16) -> 917,160 | AE16: 261208
A17: 京都府 | B17: 26209 | C17: 長岡京市 | D17: =SUM(E17,+L17) -> 1,281,954 | E17: =+SUM(F17:I17,K17) -> 6,768 | F17: 0 | G17: 0 | H17: 0 | I17: 6,768 | K17: 0 | L17: 1,275,186 | M17: =SUM(N17,+U17) -> 0 | N17: =+SUM(O17:R17,T17) -> 0 | O17: 0 | P17: 0 | Q17: 0 | R17: 0 | T17: 0 | U17: 0 | V17: =+SUM(D17,M17) -> 1,281,954 | W17: =+SUM(E17,N17) -> 6,768 | X17: =+SUM(F17,O17) -> 0 | Y17: =+SUM(G17,P17) -> 0 | Z17: =+SUM(H17,Q17) -> 0 | AA17: =+SUM(I17,R17) -> 6,768 | AB17: =+SUM(J17,S17) -> 0 | AC17: =+SUM(K17,T17) -> 0 | AD17: =+SUM(L17,U17) -> 1,275,186 | AE17: 261209
A18: 京都府 | B18: 26210 | C18: 八幡市 | D18: =SUM(E18,+L18) -> 953,315 | E18: =+SUM(F18:I18,K18) -> 16,857 | F18: 0 | G18: 0 | H18: 10,500 | I18: 6,357 | K18: 0 | L18: 936,458 | M18: =SUM(N18,+U18) -> 72,608 | N18: =+SUM(O18:R18,T18) -> 0 | O18: 0 | P18: 0 | Q18: 0 | R18: 0 | T18: 0 | U18: 72,608 | V18: =+SUM(D18,M18) -> 1,025,923 | W18: =+SUM(E18,N18) -> 16,857 | X18: =+SUM(F18,O18) -> 0 | Y18: =+SUM(G18,P18) -> 0 | Z18: =+SUM(H18,Q18) -> 10,500 | AA18: =+SUM(I18,R18) -> 6,357 | AB18: =+SUM(J18,S18) -> 0 | AC18: =+SUM(K18,T18) -> 0 | AD18: =+SUM(L18,U18) -> 1,009,066 | AE18: 261210
A19: 京都府 | B19: 26211 | C19: 京田辺市 | D19: =SUM(E19,+L19) -> 954,699 | E19: =+SUM(F19:I19,K19) -> 67,957 | F19: 0 | G19: 0 | H19: 0 | I19: 59,713 | K19: 8,244 | L19: 886,742 | M19: =SUM(N19,+U19) -> 94,534 | N19: =+SUM(O19:R19,T19) -> 9,328 | O19: 0 | P19: 0 | Q19: 0 | R19: 9,328 | T19: 0 | U19: 85,206 | V19: =+SUM(D19,M19) -> 1,049,233 | W19: =+SUM(E19,N19) -> 77,285 | X19: =+SUM(F19,O19) -> 0 | Y19: =+SUM(G19,P19) -> 0 | Z19: =+SUM(H19,Q19) -> 0 | AA19: =+SUM(I19,R19) -> 69,041 | AB19: =+SUM(J19,S19) -> 0 | AC19: =+SUM(K19,T19) -> 8,244 | AD19: =+SUM(L19,U19) -> 971,948 | AE19: 261211
A20: 京都府 | B20: 26212 | C20: 京丹後市 | D20: =SUM(E20,+L20) -> 950,936 | E20: =+SUM(F20:I20,K20) -> 158,007 | F20: 38,475 | G20: 0 | H20: 0 | I20: 37,853 | K20: 81,679 | L20: 792,929 | M20: =SUM(N20,+U20) -> 570,261 | N20: =+SUM(O20:R20,T20) -> 298,281 | O20: 0 | P20: 0 | Q20: 0 | R20: 274,259 | T20: 24,022 | U20: 271,980 | V20: =+SUM(D20,M20) -> 1,521,197 | W20: =+SUM(E20,N20) -> 456,288 | X20: =+SUM(F20,O20) -> 38,475 | Y20: =+SUM(G20,P20) -> 0 | Z20: =+SUM(H20,Q20) -> 0 | AA20: =+SUM(I20,R20) -> 312,112 | AB20: =+SUM(J20,S20) -> 0 | AC20: =+SUM(K20,T20) -> 105,701 | AD20: =+SUM(L20,U20) -> 1,064,909 | AE20: 261212
A21: 京都府 | B21: 26213 | C21: 南丹市 | D21: =SUM(E21,+L21) -> 254,714 | E21: =+SUM(F21:I21,K21) -> 0 | F21: 0 | G21: 0 | H21: 0 | I21: 0 | K21: 0 | L21: 254,714 | M21: =SUM(N21,+U21) -> 320,228 | N21: =+SUM(O21:R21,T21) -> 0 | O21: 0 | P21: 0 | Q21: 0 | R21: 0 | T21: 0 | U21: 320,228 | V21: =+SUM(D21,M21) -> 574,942 | W21: =+SUM(E21,N21) -> 0 | X21: =+SUM(F21,O21) -> 0 | Y21: =+SUM(G21,P21) -> 0 | Z21: =+SUM(H21,Q21) -> 0 | AA21: =+SUM(I21,R21) -> 0 | AB21: =+SUM(J21,S21) -> 0 | AC21: =+SUM(K21,T21) -> 0 | AD21: =+SUM(L21,U21) -> 574,942 | AE21: 261213
A22: 京都府 | B22: 26214 | C22: 木津川市 | D22: =SUM(E22,+L22) -> 4,109,346 | E22: =+SUM(F22:I22,K22) -> 17,944 | F22: 0 | G22: 0 | H22: 0 | I22: 1,385 | K22: 16,559 | L22: 4,091,402 | M22: =SUM(N22,+U22) -> 166,505 | N22: =+SUM(O22:R22,T22) -> 40,174 | O22: 0 | P22: 0 | Q22: 0 | R22: 40,102 | T22: 72 | U22: 126,331 | V22: =+SUM(D22,M22) -> 4,275,851 | W22: =+SUM(E22,N22) -> 58,118 | X22: =+SUM(F22,O22) -> 0 | Y22: =+SUM(G22,P22) -> 0 | Z22: =+SUM(H22,Q22) -> 0 | AA22: =+SUM(I22,R22) -> 41,487 | AB22: =+SUM(J22,S22) -> 0 | AC22: =+SUM(K22,T22) -> 16,631 | AD22: =+SUM(L22,U22) -> 4,217,733 | AE22: 261214
A23: 京都府 | B23: 26303 | C23: 大山崎町 | D23: =SUM(E23,+L23) -> 238,543 | E23: =+SUM(F23:I23,K23) -> 1,873 | F23: 0 | G23: 0 | H23: 0 | I23: 1,873 | K23: 0 | L23: 236,670 | M23: =SUM(N23,+U23) -> 2,818 | N23: =+SUM(O23:R23,T23) -> 1,962 | O23: 0 | P23: 0 | Q23: 0 | R23: 1,962 | T23: 0 | U23: 856 | V23: =+SUM(D23,M23) -> 241,361 | W23: =+SUM(E23,N23) -> 3,835 | X23: =+SUM(F23,O23) -> 0 | Y23: =+SUM(G23,P23) -> 0 | Z23: =+SUM(H23,Q23) -> 0 | AA23: =+SUM(I23,R23) -> 3,835 | AB23: =+SUM(J23,S23) -> 0 | AC23: =+SUM(K23,T23) -> 0 | AD23: =+SUM(L23,U23) -> 237,526 | AE23: 261303
A24: 京都府 | B24: 26322 | C24: 久御山町 | D24: =SUM(E24,+L24) -> 252,054 | E24: =+SUM(F24:I24,K24) -> 762 | F24: 0 | G24: 0 | H24: 0 | I24: 762 | K24: 0 | L24: 251,292 | M24: =SUM(N24,+U24) -> 36,438 | N24: =+SUM(O24:R24,T24) -> 0 | O24: 0 | P24: 0 | Q24: 0 | R24: 0 | T24: 0 | U24: 36,438 | V24: =+SUM(D24,M24) -> 288,492 | W24: =+SUM(E24,N24) -> 762 | X24: =+SUM(F24,O24) -> 0 | Y24: =+SUM(G24,P24) -> 0 | Z24: =+SUM(H24,Q24) -> 0 | AA24: =+SUM(I24,R24) -> 762 | AB24: =+SUM(J24,S24) -> 0 | AC24: =+SUM(K24,T24) -> 0 | AD24: =+SUM(L24,U24) -> 287,730 | AE24: 261322
A25: 京都府 | B25: 26343 | C25: 井手町 | D25: =SUM(E25,+L25) -> 111,673 | E25: =+SUM(F25:I25,K25) -> 383 | F25: 0 | G25: 0 | H25: 0 | I25: 283 | K25: 100 | L25: 111,290 | M25: =SUM(N25,+U25) -> 24,896 | N25: =+SUM(O25:R25,T25) -> 0 | O25: 0 | P25: 0 | Q25: 0 | R25: 0 | T25: 0 | U25: 24,896 | V25: =+SUM(D25,M25) -> 136,569 | W25: =+SUM(E25,N25) -> 383 | X25: =+SUM(F25,O25) -> 0 | Y25: =+SUM(G25,P25) -> 0 | Z25: =+SUM(H25,Q25) -> 0 | AA25: =+SUM(I25,R25) -> 283 | AB25: =+SUM(J25,S25) -> 0 | AC25: =+SUM(K25,T25) -> 100 | AD25: =+SUM(L25,U25) -> 136,186 | AE25: 261343
A26: 京都府 | B26: 26344 | C26: 宇治田原町 | D26: =SUM(E26,+L26) -> 154,891 | E26: =+SUM(F26:I26,K26) -> 0 | F26: 0 | G26: 0 | H26: 0 | I26: 0 | K26: 0 | L26: 154,891 | M26: =SUM(N26,+U26) -> 49,993 | N26: =+SUM(O26:R26,T26) -> 0 | O26: 0 | P26: 0 | Q26: 0 | R26: 0 | T26: 0 | U26: 49,993 | V26: =+SUM(D26,M26) -> 204,884 | W26: =+SUM(E26,N26) -> 0 | X26: =+SUM(F26,O26) -> 0 | Y26: =+SUM(G26,P26) -> 0 | Z26: =+SUM(H26,Q26) -> 0 | AA26: =+SUM(I26,R26) -> 0 | AB26: =+SUM(J26,S26) -> 0 | AC26: =+SUM(K26,T26) -> 0 | AD26: =+SUM(L26,U26) -> 204,884 | AE26: 261344
A27: 京都府 | B27: 26364 | C27: 笠置町 | D27: =SUM(E27,+L27) -> 45,936 | E27: =+SUM(F27:I27,K27) -> 1,423 | F27: 0 | G27: 0 | H27: 0 | I27: 1,405 | K27: 18 | L27: 44,513 | M27: =SUM(N27,+U27) -> 27,804 | N27: =+SUM(O27:R27,T27) -> 10,062 | O27: 359 | P27: 248 | Q27: 0 | R27: 9,455 | T27: 0 | U27: 17,742 | V27: =+SUM(D27,M27) -> 73,740 | W27: =+SUM(E27,N27) -> 11,485 | X27: =+SUM(F27,O27) -> 359 | Y27: =+SUM(G27,P27) -> 248 | Z27: =+SUM(H27,Q27) -> 0 | AA27: =+SUM(I27,R27) -> 10,860 | AB27: =+SUM(J27,S27) -> 0 | AC27: =+SUM(K27,T27) -> 18 | AD27: =+SUM(L27,U27) -> 62,255 | AE27: 261364
A28: 京都府 | B28: 26365 | C28: 和束町 | D28: =SUM(E28,+L28) -> 109,644 | E28: =+SUM(F28:I28,K28) -> 0 | F28: 0 | G28: 0 | H28: 0 | I28: 0 | K28: 0 | L28: 109,644 | M28: =SUM(N28,+U28) -> 36,746 | N28: =+SUM(O28:R28,T28) -> 0 | O28: 0 | P28: 0 | Q28: 0 | R28: 0 | T28: 0 | U28: 36,746 | V28: =+SUM(D28,M28) -> 146,390 | W28: =+SUM(E28,N28) -> 0 | X28: =+SUM(F28,O28) -> 0 | Y28: =+SUM(G28,P28) -> 0 | Z28: =+SUM(H28,Q28) -> 0 | AA28: =+SUM(I28,R28) -> 0 | AB28: =+SUM(J28,S28) -> 0 | AC28: =+SUM(K28,T28) -> 0 | AD28: =+SUM(L28,U28) -> 146,390 | AE28: 261365
A29: 京都府 | B29: 26366 | C29: 精華町 | D29: =SUM(E29,+L29) -> 1,015,012 | E29: =+SUM(F29:I29,K29) -> 4,160 | F29: 0 | G29: 0 | H29: 0 | I29: 1,050 | K29: 3,110 | L29: 1,010,852 | M29: =SUM(N29,+U29) -> 51,515 | N29: =+SUM(O29:R29,T29) -> 7,764 | O29: 0 | P29: 0 | Q29: 0 | R29: 7,764 | T29: 0 | U29: 43,751 | V29: =+SUM(D29,M29) -> 1,066,527 | W29: =+SUM(E29,N29) -> 11,924 | X29: =+SUM(F29,O29) -> 0 | Y29: =+SUM(G29,P29) -> 0 | Z29: =+SUM(H29,Q29) -> 0 | AA29: =+SUM(I29,R29) -> 8,814 | AB29: =+SUM(J29,S29) -> 0 | AC29: =+SUM(K29,T29) -> 3,110 | AD29: =+SUM(L29,U29) -> 1,054,603 | AE29: 261366
A30: 京都府 | B30: 26367 | C30: 南山城村 | D30: =SUM(E30,+L30) -> 69,157 | E30: =+SUM(F30:I30,K30) -> 1,917 | F30: 0 | G30: 0 | H30: 0 | I30: 1,917 | K30: 0 | L30: 67,240 | M30: =SUM(N30,+U30) -> 38,602 | N30: =+SUM(O30:R30,T30) -> 10,962 | O30: 1,656 | P30: 1,306 | Q30: 0 | R30: 8,000 | T30: 0 | U30: 27,640 | V30: =+SUM(D30,M30) -> 107,759 | W30: =+SUM(E30,N30) -> 12,879 | X30: =+SUM(F30,O30) -> 1,656 | Y30: =+SUM(G30,P30) -> 1,306 | Z30: =+SUM(H30,Q30) -> 0 | AA30: =+SUM(I30,R30) -> 9,917 | AB30: =+SUM(J30,S30) -> 0 | AC30: =+SUM(K30,T30) -> 0 | AD30: =+SUM(L30,U30) -> 94,880 | AE30: 261367
A31: 京都府 | B31: 26407 | C31: 京丹波町 | D31: =SUM(E31,+L31) -> 112,625 | E31: =+SUM(F31:I31,K31) -> 0 | F31: 0 | G31: 0 | H31: 0 | I31: 0 | K31: 0 | L31: 112,625 | M31: =SUM(N31,+U31) -> 205,532 | N31: =+SUM(O31:R31,T31) -> 0 | O31: 0 | P31: 0 | Q31: 0 | R31: 0 | T31: 0 | U31: 205,532 | V31: =+SUM(D31,M31) -> 318,157 | W31: =+SUM(E31,N31) -> 0 | X31: =+SUM(F31,O31) -> 0 | Y31: =+SUM(G31,P31) -> 0 | Z31: =+SUM(H31,Q31) -> 0 | AA31: =+SUM(I31,R31) -> 0 | AB31: =+SUM(J31,S31) -> 0 | AC31: =+SUM(K31,T31) -> 0 | AD31: =+SUM(L31,U31) -> 318,157 | AE31: 261407
A32: 京都府 | B32: 26463 | C32: 伊根町 | D32: =SUM(E32,+L32) -> 92,833 | E32: =+SUM(F32:I32,K32) -> 430 | F32: 0 | G32: 360 | H32: 0 | I32: 70 | K32: 0 | L32: 92,403 | M32: =SUM(N32,+U32) -> 22,268 | N32: =+SUM(O32:R32,T32) -> 11,401 | O32: 0 | P32: 0 | Q32: 0 | R32: 8,813 | T32: 2,588 | U32: 10,867 | V32: =+SUM(D32,M32) -> 115,101 | W32: =+SUM(E32,N32) -> 11,831 | X32: =+SUM(F32,O32) -> 0 | Y32: =+SUM(G32,P32) -> 360 | Z32: =+SUM(H32,Q32) -> 0 | AA32: =+SUM(I32,R32) -> 8,883 | AB32: =+SUM(J32,S32) -> 0 | AC32: =+SUM(K32,T32) -> 2,588 | AD32: =+SUM(L32,U32) -> 103,270 | AE32: 261463
A33: 京都府 | B33: 26465 | C33: 与謝野町 | D33: =SUM(E33,+L33) -> 485,819 | E33: =+SUM(F33:I33,K33) -> 143,855 | F33: 0 | G33: 1,497 | H33: 131,400 | I33: 8,231 | K33: 2,727 | L33: 341,964 | M33: =SUM(N33,+U33) -> 92,071 | N33: =+SUM(O33:R33,T33) -> 51,156 | O33: 646 | P33: 1,750 | Q33: 0 | R33: 48,564 | T33: 196 | U33: 40,915 | V33: =+SUM(D33,M33) -> 577,890 | W33: =+SUM(E33,N33) -> 195,011 | X33: =+SUM(F33,O33) -> 646 | Y33: =+SUM(G33,P33) -> 3,247 | Z33: =+SUM(H33,Q33) -> 131,400 | AA33: =+SUM(I33,R33) -> 56,795 | AB33: =+SUM(J33,S33) -> 0 | AC33: =+SUM(K33,T33) -> 2,923 | AD33: =+SUM(L33,U33) -> 382,879 | AE33: 261465
A34: 京都府 | B34: 26817 | C34: 船井郡衛生管理組合 | D34: =SUM(E34,+L34) -> 322,761 | E34: =+SUM(F34:I34,K34) -> 264,432 | F34: 0 | G34: 0 | H34: 0 | I34: 264,432 | J34: 367,339 | K34: 0 | L34: 58,329 | M34: =SUM(N34,+U34) -> 240,127 | N34: =+SUM(O34:R34,T34) -> 44,937 | O34: 0 | P34: 0 | Q34: 0 | R34: 44,937 | S34: 525,760 | T34: 0 | U34: 195,190 | V34: =+SUM(D34,M34) -> 562,888 | W34: =+SUM(E34,N34) -> 309,369 | X34: =+SUM(F34,O34) -> 0 | Y34: =+SUM(G34,P34) -> 0 | Z34: =+SUM(H34,Q34) -> 0 | AA34: =+SUM(I34,R34) -> 309,369 | AB34: =+SUM(J34,S34) -> 893,099 | AC34: =+SUM(K34,T34) -> 0 | AD34: =+SUM(L34,U34) -> 253,519 | AE34: 262003
A35: 京都府 | B35: 26820 | C35: 城南衛生管理組合 | D35: =SUM(E35,+L35) -> 5,493,347 | E35: =+SUM(F35:I35,K35) -> 5,249,683 | F35: 2,073,386 | G35: 0 | H35: 2,801,000 | I35: 375,297 | J35: 2,390,592 | K35: 0 | L35: 243,664 | M35: =SUM(N35,+U35) -> 162,044 | N35: =+SUM(O35:R35,T35) -> 100,539 | O35: 0 | P35: 0 | Q35: 0 | R35: 100,539 | S35: 671,050 | T35: 0 | U35: 61,505 | V35: =+SUM(D35,M35) -> 5,655,391 | W35: =+SUM(E35,N35) -> 5,350,222 | X35: =+SUM(F35,O35) -> 2,073,386 | Y35: =+SUM(G35,P35) -> 0 | Z35: =+SUM(H35,Q35) -> 2,801,000 | AA35: =+SUM(I35,R35) -> 475,836 | AB35: =+SUM(J35,S35) -> 3,061,642 | AC35: =+SUM(K35,T35) -> 0 | AD35: =+SUM(L35,U35) -> 305,169 | AE35: 262002
A36: 京都府 | B36: 26821 | C36: 相楽郡西部塵埃処理組合 | D36: =SUM(E36,+L36) -> 121,160 | E36: =+SUM(F36:I36,K36) -> 109,176 | F36: 0 | G36: 0 | H36: 0 | I36: 109,138 | J36: 226,748 | K36: 38 | L36: 11,984 | M36: =SUM(N36,+U36) -> 0 | N36: =+SUM(O36:R36,T36) -> 0 | O36: 0 | P36: 0 | Q36: 0 | R36: 0 | S36: 0 | T36: 0 | U36: 0 | V36: =+SUM(D36,M36) -> 121,160 | W36: =+SUM(E36,N36) -> 109,176 | X36: =+SUM(F36,O36) -> 0 | Y36: =+SUM(G36,P36) -> 0 | Z36: =+SUM(H36,Q36) -> 0 | AA36: =+SUM(I36,R36) -> 109,138 | AB36: =+SUM(J36,S36) -> 226,748 | AC36: =+SUM(K36,T36) -> 38 | AD36: =+SUM(L36,U36) -> 11,984 | AE36: 262005
A37: 京都府 | B37: 26828 | C37: 乙訓環境衛生組合 | D37: =SUM(E37,+L37) -> 1,589,357 | E37: =+SUM(F37:I37,K37) -> 1,589,357 | F37: 381,888 | G37: 0 | H37: 1,087,100 | I37: 120,369 | J37: 1,144,420 | K37: 0 | L37: 0 | M37: =SUM(N37,+U37) -> 0 | N37: =+SUM(O37:R37,T37) -> 0 | O37: 0 | P37: 0 | Q37: 0 | R37: 0 | S37: 0 | T37: 0 | U37: 0 | V37: =+SUM(D37,M37) -> 1,589,357 | W37: =+SUM(E37,N37) -> 1,589,357 | X37: =+SUM(F37,O37) -> 381,888 | Y37: =+SUM(G37,P37) -> 0 | Z37: =+SUM(H37,Q37) -> 1,087,100 | AA37: =+SUM(I37,R37) -> 120,369 | AB37: =+SUM(J37,S37) -> 1,144,420 | AC37: =+SUM(K37,T37) -> 0 | AD37: =+SUM(L37,U37) -> 0 | AE37: 262001
A38: 京都府 | B38: 26843 | C38: 相楽東部広域連合 | D38: =SUM(E38,+L38) -> 50,327 | E38: =+SUM(F38:I38,K38) -> 49,413 | F38: 0 | G38: 4,338 | H38: 26,600 | I38: 12,074 | J38: 223,853 | K38: 6,401 | L38: 914 | M38: =SUM(N38,+U38) -> 0 | N38: =+SUM(O38:R38,T38) -> 0 | O38: 0 | P38: 0 | Q38: 0 | R38: 0 | S38: 0 | T38: 0 | U38: 0 | V38: =+SUM(D38,M38) -> 50,327 | W38: =+SUM(E38,N38) -> 49,413 | X38: =+SUM(F38,O38) -> 0 | Y38: =+SUM(G38,P38) -> 4,338 | Z38: =+SUM(H38,Q38) -> 26,600 | AA38: =+SUM(I38,R38) -> 12,074 | AB38: =+SUM(J38,S38) -> 223,853 | AC38: =+SUM(K38,T38) -> 6,401 | AD38: =+SUM(L38,U38) -> 914 | AE38: 262006
A39: 京都府 | B39: 26849 | C39: 相楽郡広域事務組合 | D39: =SUM(E39,+L39) -> 0 | E39: =+SUM(F39:I39,K39) -> 0 | F39: 0 | G39: 0 | H39: 0 | I39: 0 | J39: 0 | K39: 0 | L39: 0 | M39: =SUM(N39,+U39) -> 17,052 | N39: =+SUM(O39:R39,T39) -> 17,052 | O39: 0 | P39: 0 | Q39: 0 | R39: 17,052 | S39: 298,471 | T39: 0 | U39: 0 | V39: =+SUM(D39,M39) -> 17,052 | W39: =+SUM(E39,N39) -> 17,052 | X39: =+SUM(F39,O39) -> 0 | Y39: =+SUM(G39,P39) -> 0 | Z39: =+SUM(H39,Q39) -> 0 | AA39: =+SUM(I39,R39) -> 17,052 | AB39: =+SUM(J39,S39) -> 298,471 | AC39: =+SUM(K39,T39) -> 0 | AD39: =+SUM(L39,U39) -> 0 | AE39: 262004
A40: 京都府 | B40: 26861 | C40: 宮津与謝環境組合 | D40: =SUM(E40,+L40) -> 109,045 | E40: =+SUM(F40:I40,K40) -> 22 | F40: 0 | G40: 0 | H40: 0 | I40: 0 | J40: 307,800 | K40: 22 | L40: 109,023 | M40: =SUM(N40,+U40) -> 0 | N40: =+SUM(O40:R40,T40) -> 0 | O40: 0 | P40: 0 | Q40: 0 | R40: 0 | S40: 0 | T40: 0 | U40: 0 | V40: =+SUM(D40,M40) -> 109,045 | W40: =+SUM(E40,N40) -> 22 | X40: =+SUM(F40,O40) -> 0 | Y40: =+SUM(G40,P40) -> 0 | Z40: =+SUM(H40,Q40) -> 0 | AA40: =+SUM(I40,R40) -> 0 | AB40: =+SUM(J40,S40) -> 307,800 | AC40: =+SUM(K40,T40) -> 22 | AD40: =+SUM(L40,U40) -> 109,023 | AE40: 262007

Sheet 廃棄物事業経費（歳出）
A1: 廃棄物処理事業経費（市区町村及び一部事務組合・広域連合の合計）【歳出】（平成28年度実績）
A2: 都道府県名 | B2: 地方公共団体コード | C2: 市区町村・一部事務組合・広域連合名 | D2: ごみ（建設改良費＋処理維持管理費＋その他）（組合分担金を除く） | AF2: し尿（建設改良費＋処理維持管理費＋その他）（組合分担金を除く） | BH2: 合計（建設改良費＋処理維持管理費＋その他）（組合分担金を除く）
D3: 建設改良費 (工事費+調査費)(組合分担金を除く) | L3: 処理及び維持管理費 (人件費+処理費+車両購入費+委託費+調査研究費)(組合分担金を除く) | AD3: その他 | AE3: 合計 | AF3: 建設改良費 (工事費+調査費)(組合分担金を除く) | AN3: 処理及び維持管理費 (人件費+処理費+車両購入費+委託費+調査研究費)(組合分担金を除く) | BF3: その他 | BG3: 合計 | BH3: 建設改良費 (工事費+調査費)(組合分担金を除く) | BP3: 処理及び維持管理費 (人件費+処理費+車両購入費+委託費+調査研究費)(組合分担金を除く) | CH3: その他 | CI3: 合計
D4: 合計 | E4: 工事費 (中間処理施設+最終処分場+その他) | J4: 調査費 | K4: （建設改良費組合分担金） | L4: 合計 | M4: 人件費（一般職＋収集運搬＋中間処理＋最終処分） | R4: 処理費 (収集運搬費+中間処理費+最終処分費) | V4: 車両等購入費 | W4: 委託費 (収集運搬費+中間処理費+最終処分費+その他) | AB4: (組合分担金) | AC4: 調査研究費 | AF4: 合計 | AG4: 工事費 (中間処理施設+最終処分場+その他) | AL4: 調査費 | AM4: （建設改良費組合分担金） | AN4: 合計 | AO4: 人件費（一般職＋収集運搬＋中間処理＋最終処分） | AT4: 処理費 (収集運搬費+中間処理費+最終処分費) | AX4: 車両等購入費 | AY4: 委託費 (収集運搬費+中間処理費+最終処分費+その他) | BD4: (組合分担金) | BE4: 調査研究費 | BH4: 合計 | BI4: 工事費 (中間処理施設+最終処分場+その他) | BN4: 調査費 | BO4: （建設改良費組合分担金） | BP4: 合計 | BQ4: 人件費（一般職＋収集運搬＋中間処理＋最終処分） | BV4: 処理費 (収集運搬費+中間処理費+最終処分費) | BZ4: 車両等購入費 | CA4: 委託費 (収集運搬費+中間処理費+最終処分費+その他) | CF4: (組合分担金) | CG4: 調査研究費
E5: 合計 | F5: 収集運搬施設 | G5: 中間処理施設 | H5: 最終処分場 | I5: その他 | M5: 合計 | N5: 一般職 | O5: 収集運搬 | P5: 中間処理 | Q5: 最終処分 | R5: 合計 | S5: 収集運搬費 | T5: 中間処理費 | U5: 最終処分費 | W5: 合計 | X5: 収集運搬費 | Y5: 中間処理費 | Z5: 最終処分費 | AA5: その他 | AG5: 合計 | AH5: 収集運搬施設 | AI5: 中間処理施設 | AJ5: 最終処分場 | AK5: その他 | AO5: 合計 | AP5: 一般職 | AQ5: 収集運搬 | AR5: 中間処理 | AS5: 最終処分 | AT5: 合計 | AU5: 収集運搬費 | AV5: 中間処理費 | AW5: 最終処分費 | AY5: 合計 | AZ5: 収集運搬費 | BA5: 中間処理費 | BB5: 最終処分費 | BC5: その他 | BI5: 合計 | BJ5: 収集運搬施設 | BK5: 中間処理施設 | BL5: 最終処分場 | BM5: その他 | BQ5: 合計 | BR5: 一般職 | BS5: 収集運搬 | BT5: 中間処理 | BU5: 最終処分 | BV5: 合計 | BW5: 収集運搬費 | BX5: 中間処理費 | BY5: 最終処分費 | CA5: 合計 | CB5: 収集運搬費 | CC5: 中間処理費 | CD5: 最終処分費 | CE5: その他
D6: （千円） | E6: （千円） | F6: （千円） | G6: （千円） | H6: （千円） | I6: （千円） | J6: （千円） | K6: （千円） | L6: （千円） | M6: （千円） | N6: （千円） | O6: （千円） | P6: （千円） | Q6: （千円） | R6: （千円） | S6: （千円） | T6: （千円） | U6: （千円） | V6: （千円） | W6: （千円） | X6: （千円） | Y6: （千円） | Z6: （千円） | AA6: （千円） | AB6: （千円） | AC6: （千円） | AD6: （千円） | AE6: （千円） | AF6: （千円） | AG6: （千円） | AH6: （千円） | AI6: （千円） | AJ6: （千円） | AK6: （千円） | AL6: （千円） | AM6: （千円） | AN6: （千円） | AO6: （千円） | AP6: （千円） | AQ6: （千円） | AR6: （千円） | AS6: （千円） | AT6: （千円） | AU6: （千円） | AV6: （千円） | AW6: （千円） | AX6: （千円） | AY6: （千円） | AZ6: （千円） | BA6: （千円） | BB6: （千円） | BC6: （千円） | BD6: （千円） | BE6: （千円） | BF6: （千円） | BG6: （千円） | BH6: （千円） | BI6: （千円） | BJ6: （千円） | BK6: （千円） | BL6: （千円） | BM6: （千円） | BN6: （千円） | BO6: （千円） | BP6: （千円） | BQ6: （千円） | BR6: （千円） | BS6: （千円） | BT6: （千円） | BU6: （千円） | BV6: （千円） | BW6: （千円） | BX6: （千円） | BY6: （千円） | BZ6: （千円） | CA6: （千円） | CB6: （千円） | CC6: （千円） | CD6: （千円） | CE6: （千円） | CF6: （千円） | CG6: （千円） | CH6: （千円） | CI6: （千円）
A7: ='廃棄物事業経費（市町村）'!A7 -> 京都府 | B7: ='廃棄物事業経費（市町村）'!B7 -> 26000 | C7: 合計 | D7: =+SUM(E7,J7) -> 18,358,089 | E7: =+SUM(F7:I7) -> 17,585,670 | F7: =SUM(F$8:F$1000) -> 0 | G7: 17,023,414 | H7: 255,242 | I7: 307,014 | J7: 772,419 | K7: 1,666,081 | L7: =+SUM(M7,R7,V7,W7,AC7) -> 30,275,012 | M7: =+SUM(N7:Q7) -> 11,881,291 | N7: =SUM(N$8:N$1000) -> 2,576,282 | O7: =SUM(O$8:O$1000) -> 6,098,113 | P7: =SUM(P$8:P$1000) -> 2,963,236 | Q7: =SUM(Q$8:Q$1000) -> 243,660 | R7: =+SUM(S7:U7) -> 7,875,267 | S7: =SUM(S$8:S$1000) -> 1,394,600 | T7: =SUM(T$8:T$1000) -> 5,486,202 | U7: =SUM(U$8:U$1000) -> 994,465 | V7: =SUM(V$8:V$1000) -> 176,666 | W7: =+SUM(X7:AA7) -> 10,309,373 | X7: =SUM(X$8:X$1000) -> 5,808,662 | Y7: 3,792,941 | Z7: 505,279 | AA7: 202,491 | AB7: 2,994,671 | AC7: 32,415 | AD7: 2,631,011 | AE7: =+SUM(D7,L7,AD7) -> 51,264,112 | AF7: =+SUM(AG7,AL7) -> 932,853 | AG7: =+SUM(AH7:AK7) -> 932,853 | AH7: =SUM(AH$8:AH$1000) -> 0 | AI7: 800,275 | AJ7: 11,200 | AK7: 121,378 | AL7: 0 | AM7: 97,234 | AN7: =+SUM(AO7,AT7,AX7,AY7,BE7) -> 4,057,072 | AO7: =+SUM(AP7:AS7) -> 737,858 | AP7: =SUM(AP$8:AP$1000) -> 445,197 | AQ7: =SUM(AQ$8:AQ$1000) -> 196,506 | AR7: =SUM(AR$8:AR$1000) -> 96,085 | AS7: =SUM(AS$8:AS$1000) -> 70 | AT7: =+SUM(AU7:AW7) -> 508,065 | AU7: =SUM(AU$8:AU$1000) -> 94,156 | AV7: =SUM(AV$8:AV$1000) -> 413,909 | AW7: =SUM(AW$8:AW$1000) -> 0 | AX7: =SUM(AX$8:AX$1000) -> 9,666 | AY7: =+SUM(AZ7:BC7) -> 2,801,483 | AZ7: =SUM(AZ$8:AZ$1000) -> 1,438,778 | BA7: 725,775 | BB7: 14,631 | BC7: 622,299 | BD7: 1,398,047 | BE7: 0 | BF7: 253,501 | BG7: =+SUM(BF7,AN7,AF7) -> 5,243,426 | BH7: =SUM(D7,AF7) -> 19,290,942 | BI7: 18,518,523 | BJ7: 0 | BK7: 17,823,689 | BL7: 266,442 | BM7: 428,392 | BN7: 772,419 | BO7: 1,763,315 | BP7: 34,332,084 | BQ7: 12,619,149 | BR7: 3,021,479 | BS7: 6,294,619 | BT7: 3,059,321 | BU7: 243,730 | BV7: 8,383,332 | BW7: 1,488,756 | BX7: 5,900,111 | BY7: 994,465 | BZ7: 186,332 | CA7: 13,110,856 | CB7: 7,247,440 | CC7: 4,518,716 | CD7: 519,910 | CE7: 824,790 | CF7: 4,392,718 | CG7: 32,415 | CH7: 2,884,512 | CI7: 56,507,538
A8: 京都府 | B8: 26100 | C8: 京都市 | D8: =+SUM(E8,J8) -> 5,854,069 | E8: =+SUM(F8:I8) -> 5,832,452 | F8: 0 | G8: 5,714,416 | H8: 118,036 | I8: 0 | J8: 21,617 | K8: 0 | L8: =+SUM(M8,R8,V8,W8,AC8) -> 15,402,063 | M8: =+SUM(N8:Q8) -> 7,891,731 | N8: 1,066,193 | O8: 4,548,696 | P8: 2,105,968 | Q8: 170,874 | R8: =+SUM(S8:U8) -> 5,025,181 | S8: 895,564 | T8: 3,411,058 | U8: 718,559 | V8: 77,627 | W8: =+SUM(X8:AA8) -> 2,392,519 | X8: 1,783,200 | Y8: 602,367 | Z8: 6,952 | AA8: 0 | AB8: 0 | AC8: 15,005 | AD8: 1,738,801 | AE8: =+SUM(D8,L8,AD8) -> 22,994,933 | AF8: =+SUM(AG8,AL8) -> 179,606 | AG8: =+SUM(AH8:AK8) -> 179,606 | AH8: 0 | AI8: 58,228 | AJ8: 0 | AK8: 121,378 | AL8: 0 | AM8: 0 | AN8: =+SUM(AO8,AT8,AX8,AY8,BE8) -> 632,876 | AO8: =+SUM(AP8:AS8) -> 154,034 | AP8: 40,082 | AQ8: 113,952 | AR8: 0 | AS8: 0 | AT8: =+SUM(AU8:AW8) -> 73,443 | AU8: 52,046 | AV8: 21,397 | AW8: 0 | AX8: 9,666 | AY8: =+SUM(AZ8:BC8) -> 395,733 | AZ8: 365,506 | BA8: 30,227 | BB8: 0 | BC8: 0 | BD8: 0 | BE8: 0 | BF8: 4,992 | BG8: =+SUM(BF8,AN8,AF8) -> 817,474 | BH8: =SUM(D8,AF8) -> 6,033,675 | BI8: =SUM(E8,AG8) -> 6,012,058 | BJ8: =SUM(F8,AH8) -> 0 | BK8: =SUM(G8,AI8) -> 5,772,644 | BL8: =SUM(H8,AJ8) -> 118,036 | BM8: =SUM(I8,AK8) -> 121,378 | BN8: =SUM(J8,AL8) -> 21,617 | BO8: =SUM(K8,AM8) -> 0 | BP8: =SUM(L8,AN8) -> 16,034,939 | BQ8: =SUM(M8,AO8) -> 8,045,765 | BR8: =SUM(N8,AP8) -> 1,106,275 | BS8: =SUM(O8,AQ8) -> 4,662,648 | BT8: =SUM(P8,AR8) -> 2,105,968 | BU8: =SUM(Q8,AS8) -> 170,874 | BV8: =SUM(R8,AT8) -> 5,098,624 | BW8: =SUM(S8,AU8) -> 947,610 | BX8: =SUM(T8,AV8) -> 3,432,455 | BY8: =SUM(U8,AW8) -> 718,559 | BZ8: =SUM(V8,AX8) -> 87,293 | CA8: =SUM(W8,AY8) -> 2,788,252 | CB8: =SUM(X8,AZ8) -> 2,148,706 | CC8: =SUM(Y8,BA8) -> 632,594 | CD8: =SUM(Z8,BB8) -> 6,952 | CE8: =SUM(AA8,BC8) -> 0 | CF8: =SUM(AB8,BD8) -> 0 | CG8: =SUM(AC8,BE8) -> 15,005 | CH8: =SUM(AD8,BF8) -> 1,743,793 | CI8: =SUM(AE8,BG8) -> 23,812,407
A9: 京都府 | B9: 26201 | C9: 福知山市 | D9: =+SUM(E9,J9) -> 515,319 | E9: =+SUM(F9:I9) -> 504,634 | F9: 0 | G9: 500,044 | H9: 0 | I9: 4,590 | J9: 10,685 | K9: 0 | L9: =+SUM(M9,R9,V9,W9,AC9) -> 1,121,224 | M9: =+SUM(N9:Q9) -> 133,098 | N9: 133,098 | O9: 0 | P9: 0 | Q9: 0 | R9: =+SUM(S9:U9) -> 230,565 | S9: 0 | T9: 215,817 | U9: 14,748 | V9: 0 | W9: =+SUM(X9:AA9) -> 753,273 | X9: 445,854 | Y9: 286,422 | Z9: 13,519 | AA9: 7,478 | AB9: 0 | AC9: 4,288 | AD9: 73,126 | AE9: =+SUM(D9,L9,AD9) -> 1,709,669 | AF9: =+SUM(AG9,AL9) -> 0 | AG9: =+SUM(AH9:AK9) -> 0 | AH9: 0 | AI9: 0 | AJ9: 0 | AK9: 0 | AL9: 0 | AM9: 0 | AN9: =+SUM(AO9,AT9,AX9,AY9,BE9) -> 111,268 | AO9: =+SUM(AP9:AS9) -> 1,287 | AP9: 1,287 | AQ9: 0 | AR9: 0 | AS9: 0 | AT9: =+SUM(AU9:AW9) -> 9,930 | AU9: 9,930 | AV9: 0 | AW9: 0 | AX9: 0 | AY9: =+SUM(AZ9:BC9) -> 100,051 | AZ9: 98,928 | BA9: 0 | BB9: 0 | BC9: 1,123 | BD9: 0 | BE9: 0 | BF9: 0 | BG9: =+SUM(BF9,AN9,AF9) -> 111,268 | BH9: =SUM(D9,AF9) -> 515,319 | BI9: =SUM(E9,AG9) -> 504,634 | BJ9: =SUM(F9,AH9) -> 0 | BK9: =SUM(G9,AI9) -> 500,044 | BL9: =SUM(H9,AJ9) -> 0 | BM9: =SUM(I9,AK9) -> 4,590 | BN9: =SUM(J9,AL9) -> 10,685 | BO9: =SUM(K9,AM9) -> 0 | BP9: =SUM(L9,AN9) -> 1,232,492 | BQ9: =SUM(M9,AO9) -> 134,385 | BR9: =SUM(N9,AP9) -> 134,385 | BS9: =SUM(O9,AQ9) -> 0 | BT9: =SUM(P9,AR9) -> 0 | BU9: =SUM(Q9,AS9) -> 0 | BV9: =SUM(R9,AT9) -> 240,495 | BW9: =SUM(S9,AU9) -> 9,930 | BX9: =SUM(T9,AV9) -> 215,817 | BY9: =SUM(U9,AW9) -> 14,748 | BZ9: =SUM(V9,AX9) -> 0 | CA9: =SUM(W9,AY9) -> 853,324 | CB9: =SUM(X9,AZ9) -> 544,782 | CC9: =SUM(Y9,BA9) -> 286,422 | CD9: =SUM(Z9,BB9) -> 13,519 | CE9: =SUM(AA9,BC9) -> 8,601 | CF9: =SUM(AB9,BD9) -> 0 | CG9: =SUM(AC9,BE9) -> 4,288 | CH9: =SUM(AD9,BF9) -> 73,126 | CI9: =SUM(AE9,BG9) -> 1,820,937
A10: 京都府 | B10: 26202 | C10: 舞鶴市 | D10: =+SUM(E10,J10) -> 296,543 | E10: =+SUM(F10:I10) -> 273,588 | F10: 0 | G10: 7,571 | H10: 0 | I10: 266,017 | J10: 22,955 | K10: 0 | L10: =+SUM(M10,R10,V10,W10,AC10) -> 1,076,842 | M10: =+SUM(N10:Q10) -> 151,521 | N10: 126,834 | O10: 0 | P10: 20,576 | Q10: 4,111 | R10: =+SUM(S10:U10) -> 230,316 | S10: 5,188 | T10: 212,764 | U10: 12,364 | V10: 0 | W10: =+SUM(X10:AA10) -> 695,005 | X10: 382,731 | Y10: 192,521 | Z10: 41,653 | AA10: 78,100 | AB10: 0 | AC10: 0 | AD10: 17,963 | AE10: =+SUM(D10,L10,AD10) -> 1,391,348 | AF10: =+SUM(AG10,AL10) -> 502,253 | AG10: =+SUM(AH10:AK10) -> 502,253 | AH10: 0 | AI10: 502,253 | AJ10: 0 | AK10: 0 | AL10: 0 | AM10: 0 | AN10: =+SUM(AO10,AT10,AX10,AY10,BE10) -> 143,054 | AO10: =+SUM(AP10:AS10) -> 16,564 | AP10: 16,564 | AQ10: 0 | AR10: 0 | AS10: 0 | AT10: =+SUM(AU10:AW10) -> 19,282 | AU10: 0 | AV10: 19,282 | AW10: 0 | AX10: 0 | AY10: =+SUM(AZ10:BC10) -> 107,208 | AZ10: 25,191 | BA10: 82,017 | BB10: 0 | BC10: 0 | BD10: 0 | BE10: 0 | BF10: 607 | BG10: =+SUM(BF10,AN10,AF10) -> 645,914 | BH10: =SUM(D10,AF10) -> 798,796 | BI10: =SUM(E10,AG10) -> 775,841 | BJ10: =SUM(F10,AH10) -> 0 | BK10: =SUM(G10,AI10) -> 509,824 | BL10: =SUM(H10,AJ10) -> 0 | BM10: =SUM(I10,AK10) -> 266,017 | BN10: =SUM(J10,AL10) -> 22,955 | BO10: =SUM(K10,AM10) -> 0 | BP10: =SUM(L10,AN10) -> 1,219,896 | BQ10: =SUM(M10,AO10) -> 168,085 | BR10: =SUM(N10,AP10) -> 143,398 | BS10: =SUM(O10,AQ10) -> 0 | BT10: =SUM(P10,AR10) -> 20,576 | BU10: =SUM(Q10,AS10) -> 4,111 | BV10: =SUM(R10,AT10) -> 249,598 | BW10: =SUM(S10,AU10) -> 5,188 | BX10: =SUM(T10,AV10) -> 232,046 | BY10: =SUM(U10,AW10) -> 12,364 | BZ10: =SUM(V10,AX10) -> 0 | CA10: =SUM(W10,AY10) -> 802,213 | CB10: =SUM(X10,AZ10) -> 407,922 | CC10: =SUM(Y10,BA10) -> 274,538 | CD10: =SUM(Z10,BB10) -> 41,653 | CE10: =SUM(AA10,BC10) -> 78,100 | CF10: =SUM(AB10,BD10) -> 0 | CG10: =SUM(AC10,BE10) -> 0 | CH10: =SUM(AD10,BF10) -> 18,570 | CI10: =SUM(AE10,BG10) -> 2,037,262
A11: 京都府 | B11: 26203 | C11: 綾部市 | D11: =+SUM(E11,J11) -> 580 | E11: =+SUM(F11:I11) -> 580 | F11: 0 | G11: 0 | H11: 0 | I11: 580 | J11: 0 | K11: 0 | L11: =+SUM(M11,R11,V11,W11,AC11) -> 725,416 | M11: =+SUM(N11:Q11) -> 72,038 | N11: 72,038 | O11: 0 | P11: 0 | Q11: 0 | R11: =+SUM(S11:U11) -> 119,541 | S11: 0 | T11: 112,725 | U11: 6,816 | V11: 0 | W11: =+SUM(X11:AA11) -> 533,837 | X11: 205,390 | Y11: 266,932 | Z11: 8,838 | AA11: 52,677 | AB11: 0 | AC11: 0 | AD11: 0 | AE11: =+SUM(D11,L11,AD11) -> 725,996 | AF11: =+SUM(AG11,AL11) -> 142,560 | AG11: =+SUM(AH11:AK11) -> 142,560 | AH11: 0 | AI11: 142,560 | AJ11: 0 | AK11: 0 | AL11: 0 | AM11: 0 | AN11: =+SUM(AO11,AT11,AX11,AY11,BE11) -> 341,692 | AO11: =+SUM(AP11:AS11) -> 19,608 | AP11: 19,608 | AQ11: 0 | AR11: 0 | AS11: 0 | AT11: =+SUM(AU11:AW11) -> 0 | AU11: 0 | AV11: 0 | AW11: 0 | AX11: 0 | AY11: =+SUM(AZ11:BC11) -> 322,084 | AZ11: 142,683 | BA11: 0 | BB11: 0 | BC11: 179,401 | BD11: 0 | BE11: 0 | BF11: 0 | BG11: =+SUM(BF11,AN11,AF11) -> 484,252 | BH11: =SUM(D11,AF11) -> 143,140 | BI11: =SUM(E11,AG11) -> 143,140 | BJ11: =SUM(F11,AH11) -> 0 | BK11: =SUM(G11,AI11) -> 142,560 | BL11: =SUM(H11,AJ11) -> 0 | BM11: =SUM(I11,AK11) -> 580 | BN11: =SUM(J11,AL11) -> 0 | BO11: =SUM(K11,AM11) -> 0 | BP11: =SUM(L11,AN11) -> 1,067,108 | BQ11: =SUM(M11,AO11) -> 91,646 | BR11: =SUM(N11,AP11) -> 91,646 | BS11: =SUM(O11,AQ11) -> 0 | BT11: =SUM(P11,AR11) -> 0 | BU11: =SUM(Q11,AS11) -> 0 | BV11: =SUM(R11,AT11) -> 119,541 | BW11: =SUM(S11,AU11) -> 0 | BX11: =SUM(T11,AV11) -> 112,725 | BY11: =SUM(U11,AW11) -> 6,816 | BZ11: =SUM(V11,AX11) -> 0 | CA11: =SUM(W11,AY11) -> 855,921 | CB11: =SUM(X11,AZ11) -> 348,073 | CC11: =SUM(Y11,BA11) -> 266,932 | CD11: =SUM(Z11,BB11) -> 8,838 | CE11: =SUM(AA11,BC11) -> 232,078 | CF11: =SUM(AB11,BD11) -> 0 | CG11: =SUM(AC11,BE11) -> 0 | CH11: =SUM(AD11,BF11) -> 0 | CI11: =SUM(AE11,BG11) -> 1,210,248
A12: 京都府 | B12: 26204 | C12: 宇治市 | D12: =+SUM(E12,J12) -> 0 | E12: =+SUM(F12:I12) -> 0 | F12: 0 | G12: 0 | H12: 0 | I12: 0 | J12: 0 | K12: 434,293 | L12: =+SUM(M12,R12,V12,W12,AC12) -> 1,183,743 | M12: =+SUM(N12:Q12) -> 720,349 | N12: 203,557 | O12: 516,792 | P12: 0 | Q12: 0 | R12: =+SUM(S12:U12) -> 90,509 | S12: 38,168 | T12: 0 | U12: 52,341 | V12: 32,344 | W12: =+SUM(X12:AA12) -> 340,541 | X12: 333,996 | Y12: 0 | Z12: 6,545 | AA12: 0 | AB12: 696,696 | AC12: 0 | AD12: 0 | AE12: =+SUM(D12,L12,AD12) -> 1,183,743 | AF12: =+SUM(AG12,AL12) -> 0 | AG12: =+SUM(AH12:AK12) -> 0 | AH12: 0 | AI12: 0 | AJ12: 0 | AK12: 0 | AL12: 0 | AM12: 48,646 | AN12: =+SUM(AO12,AT12,AX12,AY12,BE12) -> 0 | AO12: =+SUM(AP12:AS12) -> 0 | AP12: 0 | AQ12: 0 | AR12: 0 | AS12: 0 | AT12: =+SUM(AU12:AW12) -> 0 | AU12: 0 | AV12: 0 | AW12: 0 | AX12: 0 | AY12: =+SUM(AZ12:BC12) -> 0 | AZ12: 0 | BA12: 0 | BB12: 0 | BC12: 0 | BD12: 287,080 | BE12: 0 | BF12: 0 | BG12: =+SUM(BF12,AN12,AF12) -> 0 | BH12: =SUM(D12,AF12) -> 0 | BI12: =SUM(E12,AG12) -> 0 | BJ12: =SUM(F12,AH12) -> 0 | BK12: =SUM(G12,AI12) -> 0 | BL12: =SUM(H12,AJ12) -> 0 | BM12: =SUM(I12,AK12) -> 0 | BN12: =SUM(J12,AL12) -> 0 | BO12: =SUM(K12,AM12) -> 482,939 | BP12: =SUM(L12,AN12) -> 1,183,743 | BQ12: =SUM(M12,AO12) -> 720,349 | BR12: =SUM(N12,AP12) -> 203,557 | BS12: =SUM(O12,AQ12) -> 516,792 | BT12: =SUM(P12,AR12) -> 0 | BU12: =SUM(Q12,AS12) -> 0 | BV12: =SUM(R12,AT12) -> 90,509 | BW12: =SUM(S12,AU12) -> 38,168 | BX12: =SUM(T12,AV12) -> 0 | BY12: =SUM(U12,AW12) -> 52,341 | BZ12: =SUM(V12,AX12) -> 32,344 | CA12: =SUM(W12,AY12) -> 340,541 | CB12: =SUM(X12,AZ12) -> 333,996 | CC12: =SUM(Y12,BA12) -> 0 | CD12: =SUM(Z12,BB12) -> 6,545 | CE12: =SUM(AA12,BC12) -> 0 | CF12: =SUM(AB12,BD12) -> 983,776 | CG12: =SUM(AC12,BE12) -> 0 | CH12: =SUM(AD12,BF12) -> 0 | CI12: =SUM(AE12,BG12) -> 1,183,743
A13: 京都府 | B13: 26205 | C13: 宮津市 | D13: =+SUM(E13,J13) -> 68,785 | E13: =+SUM(F13:I13) -> 68,785 | F13: 0 | G13: 68,785 | H13: 0 | I13: 0 | J13: 0 | K13: 133,857 | L13: =+SUM(M13,R13,V13,W13,AC13) -> 400,602 | M13: =+SUM(N13:Q13) -> 32,222 | N13: 32,222 | O13: 0 | P13: 0 | Q13: 0 | R13: =+SUM(S13:U13) -> 61,890 | S13: 0 | T13: 61,756 | U13: 134 | V13: 0 | W13: =+SUM(X13:AA13) -> 306,490 | X13: 133,086 | Y13: 159,614 | Z13: 13,790 | AA13: 0 | AB13: 0 | AC13: 0 | AD13: 0 | AE13: =+SUM(D13,L13,AD13) -> 469,387 | AF13: =+SUM(AG13,AL13) -> 11,200 | AG13: =+SUM(AH13:AK13) -> 11,200 | AH13: 0 | AI13: 0 | AJ13: 11,200 | AK13: 0 | AL13: 0 | AM13: 0 | AN13: =+SUM(AO13,AT13,AX13,AY13,BE13) -> 151,628 | AO13: =+SUM(AP13:AS13) -> 24,166 | AP13: 24,166 | AQ13: 0 | AR13: 0 | AS13: 0 | AT13: =+SUM(AU13:AW13) -> 17,059 | AU13: 0 | AV13: 17,059 | AW13: 0 | AX13: 0 | AY13: =+SUM(AZ13:BC13) -> 110,403 | AZ13: 83,235 | BA13: 25,749 | BB13: 1,419 | BC13: 0 | BD13: 0 | BE13: 0 | BF13: 0 | BG13: =+SUM(BF13,AN13,AF13) -> 162,828 | BH13: =SUM(D13,AF13) -> 79,985 | BI13: =SUM(E13,AG13) -> 79,985 | BJ13: =SUM(F13,AH13) -> 0 | BK13: =SUM(G13,AI13) -> 68,785 | BL13: =SUM(H13,AJ13) -> 11,200 | BM13: =SUM(I13,AK13) -> 0 | BN13: =SUM(J13,AL13) -> 0 | BO13: =SUM(K13,AM13) -> 133,857 | BP13: =SUM(L13,AN13) -> 552,230 | BQ13: =SUM(M13,AO13) -> 56,388 | BR13: =SUM(N13,AP13) -> 56,388 | BS13: =SUM(O13,AQ13) -> 0 | BT13: =SUM(P13,AR13) -> 0 | BU13: =SUM(Q13,AS13) -> 0 | BV13: =SUM(R13,AT13) -> 78,949 | BW13: =SUM(S13,AU13) -> 0 | BX13: =SUM(T13,AV13) -> 78,815 | BY13: =SUM(U13,AW13) -> 134 | BZ13: =SUM(V13,AX13) -> 0 | CA13: =SUM(W13,AY13) -> 416,893 | CB13: =SUM(X13,AZ13) -> 216,321 | CC13: =SUM(Y13,BA13) -> 185,363 | CD13: =SUM(Z13,BB13) -> 15,209 | CE13: =SUM(AA13,BC13) -> 0 | CF13: =SUM(AB13,BD13) -> 0 | CG13: =SUM(AC13,BE13) -> 0 | CH13: =SUM(AD13,BF13) -> 0 | CI13: =SUM(AE13,BG13) -> 632,215
A14: 京都府 | B14: 26206 | C14: 亀岡市 | D14: =+SUM(E14,J14) -> 0 | E14: =+SUM(F14:I14) -> 0 | F14: 0 | G14: 0 | H14: 0 | I14: 0 | J14: 0 | K14: 0 | L14: =+SUM(M14,R14,V14,W14,AC14) -> 848,110 | M14: =+SUM(N14:Q14) -> 105,889 | N14: 90,551 | O14: 2,682 | P14: 7,499 | Q14: 5,157 | R14: =+SUM(S14:U14) -> 195,975 | S14: 0 | T14: 170,811 | U14: 25,164 | V14: 0 | W14: =+SUM(X14:AA14) -> 546,246 | X14: 357,866 | Y14: 126,674 | Z14: 61,706 | AA14: 0 | AB14: 0 | AC14: 0 | AD14: 54,151 | AE14: =+SUM(D14,L14,AD14) -> 902,261 | AF14: =+SUM(AG14,AL14) -> 0 | AG14: =+SUM(AH14:AK14) -> 0 | AH14: 0 | AI14: 0 | AJ14: 0 | AK14: 0 | AL14: 0 | AM14: 0 | AN14: =+SUM(AO14,AT14,AX14,AY14,BE14) -> 242,555 | AO14: =+SUM(AP14:AS14) -> 28,976 | AP14: 28,976 | AQ14: 0 | AR14: 0 | AS14: 0 | AT14: =+SUM(AU14:AW14) -> 0 | AU14: 0 | AV14: 0 | AW14: 0 | AX14: 0 | AY14: =+SUM(AZ14:BC14) -> 213,579 | AZ14: 80,784 | BA14: 132,795 | BB14: 0 | BC14: 0 | BD14: 0 | BE14: 0 | BF14: 27,383 | BG14: =+SUM(BF14,AN14,AF14) -> 269,938 | BH14: =SUM(D14,AF14) -> 0 | BI14: =SUM(E14,AG14) -> 0 | BJ14: =SUM(F14,AH14) -> 0 | BK14: =SUM(G14,AI14) -> 0 | BL14: =SUM(H14,AJ14) -> 0 | BM14: =SUM(I14,AK14) -> 0 | BN14: =SUM(J14,AL14) -> 0 | BO14: =SUM(K14,AM14) -> 0 | BP14: =SUM(L14,AN14) -> 1,090,665 | BQ14: =SUM(M14,AO14) -> 134,865 | BR14: =SUM(N14,AP14) -> 119,527 | BS14: =SUM(O14,AQ14) -> 2,682 | BT14: =SUM(P14,AR14) -> 7,499 | BU14: =SUM(Q14,AS14) -> 5,157 | BV14: =SUM(R14,AT14) -> 195,975 | BW14: =SUM(S14,AU14) -> 0 | BX14: =SUM(T14,AV14) -> 170,811 | BY14: =SUM(U14,AW14) -> 25,164 | BZ14: =SUM(V14,AX14) -> 0 | CA14: =SUM(W14,AY14) -> 759,825 | CB14: =SUM(X14,AZ14) -> 438,650 | CC14: =SUM(Y14,BA14) -> 259,469 | CD14: =SUM(Z14,BB14) -> 61,706 | CE14: =SUM(AA14,BC14) -> 0 | CF14: =SUM(AB14,BD14) -> 0 | CG14: =SUM(AC14,BE14) -> 0 | CH14: =SUM(AD14,BF14) -> 81,534 | CI14: =SUM(AE14,BG14) -> 1,172,199
A15: 京都府 | B15: 26207 | C15: 城陽市 | D15: =+SUM(E15,J15) -> 0 | E15: =+SUM(F15:I15) -> 0 | F15: 0 | G15: 0 | H15: 0 | I15: 0 | J15: 0 | K15: 201,312 | L15: =+SUM(M15,R15,V15,W15,AC15) -> 326,193 | M15: =+SUM(N15:Q15) -> 84,585 | N15: 84,585 | O15: 0 | P15: 0 | Q15: 0 | R15: =+SUM(S15:U15) -> 2,889 | S15: 2,889 | T15: 0 | U15: 0 | V15: 0 | W15: =+SUM(X15:AA15) -> 238,719 | X15: 238,356 | Y15: 0 | Z15: 0 | AA15: 363 | AB15: 322,945 | AC15: 0 | AD15: 0 | AE15: =+SUM(D15,L15,AD15) -> 326,193 | AF15: =+SUM(AG15,AL15) -> 0 | AG15: =+SUM(AH15:AK15) -> 0 | AH15: 0 | AI15: 0 | AJ15: 0 | AK15: 0 | AL15: 0 | AM15: 21,936 | AN15: =+SUM(AO15,AT15,AX15,AY15,BE15) -> 0 | AO15: =+SUM(AP15:AS15) -> 0 | AP15: 0 | AQ15: 0 | AR15: 0 | AS15: 0 | AT15: =+SUM(AU15:AW15) -> 0 | AU15: 0 | AV15: 0 | AW15: 0 | AX15: 0 | AY15: =+SUM(AZ15:BC15) -> 0 | AZ15: 0 | BA15: 0 | BB15: 0 | BC15: 0 | BD15: 129,453 | BE15: 0 | BF15: 0 | BG15: =+SUM(BF15,AN15,AF15) -> 0 | BH15: =SUM(D15,AF15) -> 0 | BI15: =SUM(E15,AG15) -> 0 | BJ15: =SUM(F15,AH15) -> 0 | BK15: =SUM(G15,AI15) -> 0 | BL15: =SUM(H15,AJ15) -> 0 | BM15: =SUM(I15,AK15) -> 0 | BN15: =SUM(J15,AL15) -> 0 | BO15: =SUM(K15,AM15) -> 223,248 | BP15: =SUM(L15,AN15) -> 326,193 | BQ15: =SUM(M15,AO15) -> 84,585 | BR15: =SUM(N15,AP15) -> 84,585 | BS15: =SUM(O15,AQ15) -> 0 | BT15: =SUM(P15,AR15) -> 0 | BU15: =SUM(Q15,AS15) -> 0 | BV15: =SUM(R15,AT15) -> 2,889 | BW15: =SUM(S15,AU15) -> 2,889 | BX15: =SUM(T15,AV15) -> 0 | BY15: =SUM(U15,AW15) -> 0 | BZ15: =SUM(V15,AX15) -> 0 | CA15: =SUM(W15,AY15) -> 238,719 | CB15: =SUM(X15,AZ15) -> 238,356 | CC15: =SUM(Y15,BA15) -> 0 | CD15: =SUM(Z15,BB15) -> 0 | CE15: =SUM(AA15,BC15) -> 363 | CF15: =SUM(AB15,BD15) -> 452,398 | CG15: =SUM(AC15,BE15) -> 0 | CH15: =SUM(AD15,BF15) -> 0 | CI15: =SUM(AE15,BG15) -> 326,193
A16: 京都府 | B16: 26208 | C16: 向日市 | D16: =+SUM(E16,J16) -> 0 | E16: =+SUM(F16:I16) -> 0 | F16: 0 | G16: 0 | H16: 0 | I16: 0 | J16: 0 | K16: 144,702 | L16: =+SUM(M16,R16,V16,W16,AC16) -> 474,161 | M16: =+SUM(N16:Q16) -> 139,145 | N16: 36,617 | O16: 102,528 | P16: 0 | Q16: 0 | R16: =+SUM(S16:U16) -> 335,016 | S16: 335,016 | T16: 0 | U16: 0 | V16: 0 | W16: =+SUM(X16:AA16) -> 0 | X16: 0 | Y16: 0 | Z16: 0 | AA16: 0 | AB16: 273,468 | AC16: 0 | AD16: 0 | AE16: =+SUM(D16,L16,AD16) -> 474,161 | AF16: =+SUM(AG16,AL16) -> 0 | AG16: =+SUM(AH16:AK16) -> 0 | AH16: 0 | AI16: 0 | AJ16: 0 | AK16: 0 | AL16: 0 | AM16: 0 | AN16: =+SUM(AO16,AT16,AX16,AY16,BE16) -> 32,595 | AO16: =+SUM(AP16:AS16) -> 7,323 | AP16: 7,323 | AQ16: 0 | AR16: 0 | AS16: 0 | AT16: =+SUM(AU16:AW16) -> 25,272 | AU16: 25,272 | AV16: 0 | AW16: 0 | AX16: 0 | AY16: =+SUM(AZ16:BC16) -> 0 | AZ16: 0 | BA16: 0 | BB16: 0 | BC16: 0 | BD16: 0 | BE16: 0 | BF16: 0 | BG16: =+SUM(BF16,AN16,AF16) -> 32,595 | BH16: =SUM(D16,AF16) -> 0 | BI16: =SUM(E16,AG16) -> 0 | BJ16: =SUM(F16,AH16) -> 0 | BK16: =SUM(G16,AI16) -> 0 | BL16: =SUM(H16,AJ16) -> 0 | BM16: =SUM(I16,AK16) -> 0 | BN16: =SUM(J16,AL16) -> 0 | BO16: =SUM(K16,AM16) -> 144,702 | BP16: =SUM(L16,AN16) -> 506,756 | BQ16: =SUM(M16,AO16) -> 146,468 | BR16: =SUM(N16,AP16) -> 43,940 | BS16: =SUM(O16,AQ16) -> 102,528 | BT16: =SUM(P16,AR16) -> 0 | BU16: =SUM(Q16,AS16) -> 0 | BV16: =SUM(R16,AT16) -> 360,288 | BW16: =SUM(S16,AU16) -> 360,288 | BX16: =SUM(T16,AV16) -> 0 | BY16: =SUM(U16,AW16) -> 0 | BZ16: =SUM(V16,AX16) -> 0 | CA16: =SUM(W16,AY16) -> 0 | CB16: =SUM(X16,AZ16) -> 0 | CC16: =SUM(Y16,BA16) -> 0 | CD16: =SUM(Z16,BB16) -> 0 | CE16: =SUM(AA16,BC16) -> 0 | CF16: =SUM(AB16,BD16) -> 273,468 | CG16: =SUM(AC16,BE16) -> 0 | CH16: =SUM(AD16,BF16) -> 0 | CI16: =SUM(AE16,BG16) -> 506,756
A17: 京都府 | B17: 26209 | C17: 長岡京市 | D17: =+SUM(E17,J17) -> 0 | E17: =+SUM(F17:I17) -> 0 | F17: 0 | G17: 0 | H17: 0 | I17: 0 | J17: 0 | K17: 210,401 | L17: =+SUM(M17,R17,V17,W17,AC17) -> 673,923 | M17: =+SUM(N17:Q17) -> 278,714 | N17: 53,052 | O17: 225,662 | P17: 0 | Q17: 0 | R17: =+SUM(S17:U17) -> 6,112 | S17: 6,112 | T17: 0 | U17: 0 | V17: 7,117 | W17: =+SUM(X17:AA17) -> 381,980 | X17: 381,980 | Y17: 0 | Z17: 0 | AA17: 0 | AB17: 397,630 | AC17: 0 | AD17: 0 | AE17: =+SUM(D17,L17,AD17) -> 673,923 | AF17: =+SUM(AG17,AL17) -> 0 | AG17: =+SUM(AH17:AK17) -> 0 | AH17: 0 | AI17: 0 | AJ17: 0 | AK17: 0 | AL17: 0 | AM17: 0 | AN17: =+SUM(AO17,AT17,AX17,AY17,BE17) -> 0 | AO17: =+SUM(AP17:AS17) -> 0 | AP17: 0 | AQ17: 0 | AR17: 0 | AS17: 0 | AT17: =+SUM(AU17:AW17) -> 0 | AU17: 0 | AV17: 0 | AW17: 0 | AX17: 0 | AY17: =+SUM(AZ17:BC17) -> 0 | AZ17: 0 | BA17: 0 | BB17: 0 | BC17: 0 | BD17: 0 | BE17: 0 | BF17: 0 | BG17: =+SUM(BF17,AN17,AF17) -> 0 | BH17: =SUM(D17,AF17) -> 0 | BI17: =SUM(E17,AG17) -> 0 | BJ17: =SUM(F17,AH17) -> 0 | BK17: =SUM(G17,AI17) -> 0 | BL17: =SUM(H17,AJ17) -> 0 | BM17: =SUM(I17,AK17) -> 0 | BN17: =SUM(J17,AL17) -> 0 | BO17: =SUM(K17,AM17) -> 210,401 | BP17: =SUM(L17,AN17) -> 673,923 | BQ17: =SUM(M17,AO17) -> 278,714 | BR17: =SUM(N17,AP17) -> 53,052 | BS17: =SUM(O17,AQ17) -> 225,662 | BT17: =SUM(P17,AR17) -> 0 | BU17: =SUM(Q17,AS17) -> 0 | BV17: =SUM(R17,AT17) -> 6,112 | BW17: =SUM(S17,AU17) -> 6,112 | BX17: =SUM(T17,AV17) -> 0 | BY17: =SUM(U17,AW17) -> 0 | BZ17: =SUM(V17,AX17) -> 7,117 | CA17: =SUM(W17,AY17) -> 381,980 | CB17: =SUM(X17,AZ17) -> 381,980 | CC17: =SUM(Y17,BA17) -> 0 | CD17: =SUM(Z17,BB17) -> 0 | CE17: =SUM(AA17,BC17) -> 0 | CF17: =SUM(AB17,BD17) -> 397,630 | CG17: =SUM(AC17,BE17) -> 0 | CH17: =SUM(AD17,BF17) -> 0 | CI17: =SUM(AE17,BG17) -> 673,923
A18: 京都府 | B18: 26210 | C18: 八幡市 | D18: =+SUM(E18,J18) -> 0 | E18: =+SUM(F18:I18) -> 0 | F18: 0 | G18: 0 | H18: 0 | I18: 0 | J18: 0 | K18: 182,126 | L18: =+SUM(M18,R18,V18,W18,AC18) -> 479,022 | M18: =+SUM(N18:Q18) -> 354,435 | N18: 45,063 | O18: 309,372 | P18: 0 | Q18: 0 | R18: =+SUM(S18:U18) -> 10,168 | S18: 10,168 | T18: 0 | U18: 0 | V18: 15,371 | W18: =+SUM(X18:AA18) -> 99,048 | X18: 99,048 | Y18: 0 | Z18: 0 | AA18: 0 | AB18: 292,167 | AC18: 0 | AD18: 0 | AE18: =+SUM(D18,L18,AD18) -> 479,022 | AF18: =+SUM(AG18,AL18) -> 0 | AG18: =+SUM(AH18:AK18) -> 0 | AH18: 0 | AI18: 0 | AJ18: 0 | AK18: 0 | AL18: 0 | AM18: 10,521 | AN18: =+SUM(AO18,AT18,AX18,AY18,BE18) -> 0 | AO18: =+SUM(AP18:AS18) -> 0 | AP18: 0 | AQ18: 0 | AR18: 0 | AS18: 0 | AT18: =+SUM(AU18:AW18) -> 0 | AU18: 0 | AV18: 0 | AW18: 0 | AX18: 0 | AY18: =+SUM(AZ18:BC18) -> 0 | AZ18: 0 | BA18: 0 | BB18: 0 | BC18: 0 | BD18: 62,087 | BE18: 0 | BF18: 0 | BG18: =+SUM(BF18,AN18,AF18) -> 0 | BH18: =SUM(D18,AF18) -> 0 | BI18: =SUM(E18,AG18) -> 0 | BJ18: =SUM(F18,AH18) -> 0 | BK18: =SUM(G18,AI18) -> 0 | BL18: =SUM(H18,AJ18) -> 0 | BM18: =SUM(I18,AK18) -> 0 | BN18: =SUM(J18,AL18) -> 0 | BO18: =SUM(K18,AM18) -> 192,647 | BP18: =SUM(L18,AN18) -> 479,022 | BQ18: =SUM(M18,AO18) -> 354,435 | BR18: =SUM(N18,AP18) -> 45,063 | BS18: =SUM(O18,AQ18) -> 309,372 | BT18: =SUM(P18,AR18) -> 0 | BU18: =SUM(Q18,AS18) -> 0 | BV18: =SUM(R18,AT18) -> 10,168 | BW18: =SUM(S18,AU18) -> 10,168 | BX18: =SUM(T18,AV18) -> 0 | BY18: =SUM(U18,AW18) -> 0 | BZ18: =SUM(V18,AX18) -> 15,371 | CA18: =SUM(W18,AY18) -> 99,048 | CB18: =SUM(X18,AZ18) -> 99,048 | CC18: =SUM(Y18,BA18) -> 0 | CD18: =SUM(Z18,BB18) -> 0 | CE18: =SUM(AA18,BC18) -> 0 | CF18: =SUM(AB18,BD18) -> 354,254 | CG18: =SUM(AC18,BE18) -> 0 | CH18: =SUM(AD18,BF18) -> 0 | CI18: =SUM(AE18,BG18) -> 479,022
A19: 京都府 | B19: 26211 | C19: 京田辺市 | D19: =+SUM(E19,J19) -> 38,189 | E19: =+SUM(F19:I19) -> 35,827 | F19: 0 | G19: 0 | H19: 0 | I19: 35,827 | J19: 2,362 | K19: 0 | L19: =+SUM(M19,R19,V19,W19,AC19) -> 848,985 | M19: =+SUM(N19:Q19) -> 366,120 | N19: 29,098 | O19: 188,375 | P19: 137,787 | Q19: 10,860 | R19: =+SUM(S19:U19) -> 263,941 | S19: 17,191 | T19: 238,888 | U19: 7,862 | V19: 7,106 | W19: =+SUM(X19:AA19) -> 206,469 | X19: 148,358 | Y19: 34,147 | Z19: 23,964 | AA19: 0 | AB19: 0 | AC19: 5,349 | AD19: 67,525 | AE19: =+SUM(D19,L19,AD19) -> 954,699 | AF19: =+SUM(AG19,AL19) -> 0 | AG19: =+SUM(AH19:AK19) -> 0 | AH19: 0 | AI19: 0 | AJ19: 0 | AK19: 0 | AL19: 0 | AM19: 0 | AN19: =+SUM(AO19,AT19,AX19,AY19,BE19) -> 75,394 | AO19: =+SUM(AP19:AS19) -> 27,959 | AP19: 8,513 | AQ19: 0 | AR19: 19,446 | AS19: 0 | AT19: =+SUM(AU19:AW19) -> 20,895 | AU19: 0 | AV19: 20,895 | AW19: 0 | AX19: 0 | AY19: =+SUM(AZ19:BC19) -> 26,540 | AZ19: 21,248 | BA19: 5,292 | BB19: 0 | BC19: 0 | BD19: 0 | BE19: 0 | BF19: 19,140 | BG19: =+SUM(BF19,AN19,AF19) -> 94,534 | BH19: =SUM(D19,AF19) -> 38,189 | BI19: =SUM(E19,AG19) -> 35,827 | BJ19: =SUM(F19,AH19) -> 0 | BK19: =SUM(G19,AI19) -> 0 | BL19: =SUM(H19,AJ19) -> 0 | BM19: =SUM(I19,AK19) -> 35,827 | BN19: =SUM(J19,AL19) -> 2,362 | BO19: =SUM(K19,AM19) -> 0 | BP19: =SUM(L19,AN19) -> 924,379 | BQ19: =SUM(M19,AO19) -> 394,079 | BR19: =SUM(N19,AP19) -> 37,611 | BS19: =SUM(O19,AQ19) -> 188,375 | BT19: =SUM(P19,AR19) -> 157,233 | BU19: =SUM(Q19,AS19) -> 10,860 | BV19: =SUM(R19,AT19) -> 284,836 | BW19: =SUM(S19,AU19) -> 17,191 | BX19: =SUM(T19,AV19) -> 259,783 | BY19: =SUM(U19,AW19) -> 7,862 | BZ19: =SUM(V19,AX19) -> 7,106 | CA19: =SUM(W19,AY19) -> 233,009 | CB19: =SUM(X19,AZ19) -> 169,606 | CC19: =SUM(Y19,BA19) -> 39,439 | CD19: =SUM(Z19,BB19) -> 23,964 | CE19: =SUM(AA19,BC19) -> 0 | CF19: =SUM(AB19,BD19) -> 0 | CG19: =SUM(AC19,BE19) -> 5,349 | CH19: =SUM(AD19,BF19) -> 86,665 | CI19: =SUM(AE19,BG19) -> 1,049,233
A20: 京都府 | B20: 26212 | C20: 京丹後市 | D20: =+SUM(E20,J20) -> 133,457 | E20: =+SUM(F20:I20) -> 133,457 | F20: 0 | G20: 77,976 | H20: 55,481 | I20: 0 | J20: 0 | K20: 0 | L20: =+SUM(M20,R20,V20,W20,AC20) -> 767,452 | M20: =+SUM(N20:Q20) -> 39,442 | N20: 39,442 | O20: 0 | P20: 0 | Q20: 0 | R20: =+SUM(S20:U20) -> 148,756 | S20: 0 | T20: 99,841 | U20: 48,915 | V20: 0 | W20: =+SUM(X20:AA20) -> 579,254 | X20: 217,709 | Y20: 274,672 | Z20: 84,095 | AA20: 2,778 | AB20: 0 | AC20: 0 | AD20: 50,027 | AE20: =+SUM(D20,L20,AD20) -> 950,936 | AF20: =+SUM(AG20,AL20) -> 0 | AG20: =+SUM(AH20:AK20) -> 0 | AH20: 0 | AI20: 0 | AJ20: 0 | AK20: 0 | AL20: 0 | AM20: 0 | AN20: =+SUM(AO20,AT20,AX20,AY20,BE20) -> 493,158 | AO20: =+SUM(AP20:AS20) -> 56,083 | AP20: 56,083 | AQ20: 0 | AR20: 0 | AS20: 0 | AT20: =+SUM(AU20:AW20) -> 155,342 | AU20: 0 | AV20: 155,342 | AW20: 0 | AX20: 0 | AY20: =+SUM(AZ20:BC20) -> 281,733 | AZ20: 205,045 | BA20: 76,688 | BB20: 0 | BC20: 0 | BD20: 0 | BE20: 0 | BF20: 77,103 | BG20: =+SUM(BF20,AN20,AF20) -> 570,261 | BH20: =SUM(D20,AF20) -> 133,457 | BI20: =SUM(E20,AG20) -> 133,457 | BJ20: =SUM(F20,AH20) -> 0 | BK20: =SUM(G20,AI20) -> 77,976 | BL20: =SUM(H20,AJ20) -> 55,481 | BM20: =SUM(I20,AK20) -> 0 | BN20: =SUM(J20,AL20) -> 0 | BO20: =SUM(K20,AM20) -> 0 | BP20: =SUM(L20,AN20) -> 1,260,610 | BQ20: =SUM(M20,AO20) -> 95,525 | BR20: =SUM(N20,AP20) -> 95,525 | BS20: =SUM(O20,AQ20) -> 0 | BT20: =SUM(P20,AR20) -> 0 | BU20: =SUM(Q20,AS20) -> 0 | BV20: =SUM(R20,AT20) -> 304,098 | BW20: =SUM(S20,AU20) -> 0 | BX20: =SUM(T20,AV20) -> 255,183 | BY20: =SUM(U20,AW20) -> 48,915 | BZ20: =SUM(V20,AX20) -> 0 | CA20: =SUM(W20,AY20) -> 860,987 | CB20: =SUM(X20,AZ20) -> 422,754 | CC20: =SUM(Y20,BA20) -> 351,360 | CD20: =SUM(Z20,BB20) -> 84,095 | CE20: =SUM(AA20,BC20) -> 2,778 | CF20: =SUM(AB20,BD20) -> 0 | CG20: =SUM(AC20,BE20) -> 0 | CH20: =SUM(AD20,BF20) -> 127,130 | CI20: =SUM(AE20,BG20) -> 1,521,197
A21: 京都府 | B21: 26213 | C21: 南丹市 | D21: =+SUM(E21,J21) -> 0 | E21: =+SUM(F21:I21) -> 0 | F21: 0 | G21: 0 | H21: 0 | I21: 0 | J21: 0 | K21: 0 | L21: =+SUM(M21,R21,V21,W21,AC21) -> 0 | M21: =+SUM(N21:Q21) -> 0 | N21: 0 | O21: 0 | P21: 0 | Q21: 0 | R21: =+SUM(S21:U21) -> 0 | S21: 0 | T21: 0 | U21: 0 | V21: 0 | W21: =+SUM(X21:AA21) -> 0 | X21: 0 | Y21: 0 | Z21: 0 | AA21: 0 | AB21: 254,714 | AC21: 0 | AD21: 0 | AE21: =+SUM(D21,L21,AD21) -> 0 | AF21: =+SUM(AG21,AL21) -> 0 | AG21: =+SUM(AH21:AK21) -> 0 | AH21: 0 | AI21: 0 | AJ21: 0 | AK21: 0 | AL21: 0 | AM21: 0 | AN21: =+SUM(AO21,AT21,AX21,AY21,BE21) -> 0 | AO21: =+SUM(AP21:AS21) -> 0 | AP21: 0 | AQ21: 0 | AR21: 0 | AS21: 0 | AT21: =+SUM(AU21:AW21) -> 0 | AU21: 0 | AV21: 0 | AW21: 0 | AX21: 0 | AY21: =+SUM(AZ21:BC21) -> 0 | AZ21: 0 | BA21: 0 | BB21: 0 | BC21: 0 | BD21: 320,228 | BE21: 0 | BF21: 0 | BG21: =+SUM(BF21,AN21,AF21) -> 0 | BH21: =SUM(D21,AF21) -> 0 | BI21: =SUM(E21,AG21) -> 0 | BJ21: =SUM(F21,AH21) -> 0 | BK21: =SUM(G21,AI21) -> 0 | BL21: =SUM(H21,AJ21) -> 0 | BM21: =SUM(I21,AK21) -> 0 | BN21: =SUM(J21,AL21) -> 0 | BO21: =SUM(K21,AM21) -> 0 | BP21: =SUM(L21,AN21) -> 0 | BQ21: =SUM(M21,AO21) -> 0 | BR21: =SUM(N21,AP21) -> 0 | BS21: =SUM(O21,AQ21) -> 0 | BT21: =SUM(P21,AR21) -> 0 | BU21: =SUM(Q21,AS21) -> 0 | BV21: =SUM(R21,AT21) -> 0 | BW21: =SUM(S21,AU21) -> 0 | BX21: =SUM(T21,AV21) -> 0 | BY21: =SUM(U21,AW21) -> 0 | BZ21: =SUM(V21,AX21) -> 0 | CA21: =SUM(W21,AY21) -> 0 | CB21: =SUM(X21,AZ21) -> 0 | CC21: =SUM(Y21,BA21) -> 0 | CD21: =SUM(Z21,BB21) -> 0 | CE21: =SUM(AA21,BC21) -> 0 | CF21: =SUM(AB21,BD21) -> 574,942 | CG21: =SUM(AC21,BE21) -> 0 | CH21: =SUM(AD21,BF21) -> 0 | CI21: =SUM(AE21,BG21) -> 0
A22: 京都府 | B22: 26214 | C22: 木津川市 | D22: =+SUM(E22,J22) -> 3,042,309 | E22: =+SUM(F22:I22) -> 3,040,982 | F22: 0 | G22: 3,040,982 | H22: 0 | I22: 0 | J22: 1,327 | K22: 15,917 | L22: =+SUM(M22,R22,V22,W22,AC22) -> 925,128 | M22: =+SUM(N22:Q22) -> 20,250 | N22: 20,250 | O22: 0 | P22: 0 | Q22: 0 | R22: =+SUM(S22:U22) -> 3,316 | S22: 0 | T22: 0 | U22: 3,316 | V22: 0 | W22: =+SUM(X22:AA22) -> 901,562 | X22: 484,532 | Y22: 412,003 | Z22: 2,694 | AA22: 2,333 | AB22: 112,809 | AC22: 0 | AD22: 13,183 | AE22: =+SUM(D22,L22,AD22) -> 3,980,620 | AF22: =+SUM(AG22,AL22) -> 0 | AG22: =+SUM(AH22:AK22) -> 0 | AH22: 0 | AI22: 0 | AJ22: 0 | AK22: 0 | AL22: 0 | AM22: 0 | AN22: =+SUM(AO22,AT22,AX22,AY22,BE22) -> 4,266 | AO22: =+SUM(AP22:AS22) -> 4,050 | AP22: 4,050 | AQ22: 0 | AR22: 0 | AS22: 0 | AT22: =+SUM(AU22:AW22) -> 0 | AU22: 0 | AV22: 0 | AW22: 0 | AX22: 0 | AY22: =+SUM(AZ22:BC22) -> 216 | AZ22: 0 | BA22: 0 | BB22: 0 | BC22: 216 | BD22: 161,328 | BE22: 0 | BF22: 911 | BG22: =+SUM(BF22,AN22,AF22) -> 5,177 | BH22: =SUM(D22,AF22) -> 3,042,309 | BI22: =SUM(E22,AG22) -> 3,040,982 | BJ22: =SUM(F22,AH22) -> 0 | BK22: =SUM(G22,AI22) -> 3,040,982 | BL22: =SUM(H22,AJ22) -> 0 | BM22: =SUM(I22,AK22) -> 0 | BN22: =SUM(J22,AL22) -> 1,327 | BO22: =SUM(K22,AM22) -> 15,917 | BP22: =SUM(L22,AN22) -> 929,394 | BQ22: =SUM(M22,AO22) -> 24,300 | BR22: =SUM(N22,AP22) -> 24,300 | BS22: =SUM(O22,AQ22) -> 0 | BT22: =SUM(P22,AR22) -> 0 | BU22: =SUM(Q22,AS22) -> 0 | BV22: =SUM(R22,AT22) -> 3,316 | BW22: =SUM(S22,AU22) -> 0 | BX22: =SUM(T22,AV22) -> 0 | BY22: =SUM(U22,AW22) -> 3,316 | BZ22: =SUM(V22,AX22) -> 0 | CA22: =SUM(W22,AY22) -> 901,778 | CB22: =SUM(X22,AZ22) -> 484,532 | CC22: =SUM(Y22,BA22) -> 412,003 | CD22: =SUM(Z22,BB22) -> 2,694 | CE22: =SUM(AA22,BC22) -> 2,549 | CF22: =SUM(AB22,BD22) -> 274,137 | CG22: =SUM(AC22,BE22) -> 0 | CH22: =SUM(AD22,BF22) -> 14,094 | CI22: =SUM(AE22,BG22) -> 3,985,797
A23: 京都府 | B23: 26303 | C23: 大山崎町 | D23: =+SUM(E23,J23) -> 0 | E23: =+SUM(F23:I23) -> 0 | F23: 0 | G23: 0 | H23: 0 | I23: 0 | J23: 0 | K23: 40,908 | L23: =+SUM(M23,R23,V23,W23,AC23) -> 120,324 | M23: =+SUM(N23:Q23) -> 43,628 | N23: 0 | O23: 43,628 | P23: 0 | Q23: 0 | R23: =+SUM(S23:U23) -> 4,471 | S23: 4,471 | T23: 0 | U23: 0 | V23: 0 | W23: =+SUM(X23:AA23) -> 72,225 | X23: 72,225 | Y23: 0 | Z23: 0 | AA23: 0 | AB23: 77,311 | AC23: 0 | AD23: 0 | AE23: =+SUM(D23,L23,AD23) -> 120,324 | AF23: =+SUM(AG23,AL23) -> 0 | AG23: =+SUM(AH23:AK23) -> 0 | AH23: 0 | AI23: 0 | AJ23: 0 | AK23: 0 | AL23: 0 | AM23: 0 | AN23: =+SUM(AO23,AT23,AX23,AY23,BE23) -> 2,818 | AO23: =+SUM(AP23:AS23) -> 0 | AP23: 0 | AQ23: 0 | AR23: 0 | AS23: 0 | AT23: =+SUM(AU23:AW23) -> 0 | AU23: 0 | AV23: 0 | AW23: 0 | AX23: 0 | AY23: =+SUM(AZ23:BC23) -> 2,818 | AZ23: 2,818 | BA23: 0 | BB23: 0 | BC23: 0 | BD23: 0 | BE23: 0 | BF23: 0 | BG23: =+SUM(BF23,AN23,AF23) -> 2,818 | BH23: =SUM(D23,AF23) -> 0 | BI23: =SUM(E23,AG23) -> 0 | BJ23: =SUM(F23,AH23) -> 0 | BK23: =SUM(G23,AI23) -> 0 | BL23: =SUM(H23,AJ23) -> 0 | BM23: =SUM(I23,AK23) -> 0 | BN23: =SUM(J23,AL23) -> 0 | BO23: =SUM(K23,AM23) -> 40,908 | BP23: =SUM(L23,AN23) -> 123,142 | BQ23: =SUM(M23,AO23) -> 43,628 | BR23: =SUM(N23,AP23) -> 0 | BS23: =SUM(O23,AQ23) -> 43,628 | BT23: =SUM(P23,AR23) -> 0 | BU23: =SUM(Q23,AS23) -> 0 | BV23: =SUM(R23,AT23) -> 4,471 | BW23: =SUM(S23,AU23) -> 4,471 | BX23: =SUM(T23,AV23) -> 0 | BY23: =SUM(U23,AW23) -> 0 | BZ23: =SUM(V23,AX23) -> 0 | CA23: =SUM(W23,AY23) -> 75,043 | CB23: =SUM(X23,AZ23) -> 75,043 | CC23: =SUM(Y23,BA23) -> 0 | CD23: =SUM(Z23,BB23) -> 0 | CE23: =SUM(AA23,BC23) -> 0 | CF23: =SUM(AB23,BD23) -> 77,311 | CG23: =SUM(AC23,BE23) -> 0 | CH23: =SUM(AD23,BF23) -> 0 | CI23: =SUM(AE23,BG23) -> 123,142
A24: 京都府 | B24: 26322 | C24: 久御山町 | D24: =+SUM(E24,J24) -> 0 | E24: =+SUM(F24:I24) -> 0 | F24: 0 | G24: 0 | H24: 0 | I24: 0 | J24: 0 | K24: 48,653 | L24: =+SUM(M24,R24,V24,W24,AC24) -> 125,352 | M24: =+SUM(N24:Q24) -> 54,185 | N24: 0 | O24: 54,185 | P24: 0 | Q24: 0 | R24: =+SUM(S24:U24) -> 23,923 | S24: 23,923 | T24: 0 | U24: 0 | V24: 0 | W24: =+SUM(X24:AA24) -> 47,244 | X24: 46,960 | Y24: 0 | Z24: 0 | AA24: 284 | AB24: 78,049 | AC24: 0 | AD24: 0 | AE24: =+SUM(D24,L24,AD24) -> 125,352 | AF24: =+SUM(AG24,AL24) -> 0 | AG24: =+SUM(AH24:AK24) -> 0 | AH24: 0 | AI24: 0 | AJ24: 0 | AK24: 0 | AL24: 0 | AM24: 5,280 | AN24: =+SUM(AO24,AT24,AX24,AY24,BE24) -> 0 | AO24: =+SUM(AP24:AS24) -> 0 | AP24: 0 | AQ24: 0 | AR24: 0 | AS24: 0 | AT24: =+SUM(AU24:AW24) -> 0 | AU24: 0 | AV24: 0 | AW24: 0 | AX24: 0 | AY24: =+SUM(AZ24:BC24) -> 0 | AZ24: 0 | BA24: 0 | BB24: 0 | BC24: 0 | BD24: 31,158 | BE24: 0 | BF24: 0 | BG24: =+SUM(BF24,AN24,AF24) -> 0 | BH24: =SUM(D24,AF24) -> 0 | BI24: =SUM(E24,AG24) -> 0 | BJ24: =SUM(F24,AH24) -> 0 | BK24: =SUM(G24,AI24) -> 0 | BL24: =SUM(H24,AJ24) -> 0 | BM24: =SUM(I24,AK24) -> 0 | BN24: =SUM(J24,AL24) -> 0 | BO24: =SUM(K24,AM24) -> 53,933 | BP24: =SUM(L24,AN24) -> 125,352 | BQ24: =SUM(M24,AO24) -> 54,185 | BR24: =SUM(N24,AP24) -> 0 | BS24: =SUM(O24,AQ24) -> 54,185 | BT24: =SUM(P24,AR24) -> 0 | BU24: =SUM(Q24,AS24) -> 0 | BV24: =SUM(R24,AT24) -> 23,923 | BW24: =SUM(S24,AU24) -> 23,923 | BX24: =SUM(T24,AV24) -> 0 | BY24: =SUM(U24,AW24) -> 0 | BZ24: =SUM(V24,AX24) -> 0 | CA24: =SUM(W24,AY24) -> 47,244 | CB24: =SUM(X24,AZ24) -> 46,960 | CC24: =SUM(Y24,BA24) -> 0 | CD24: =SUM(Z24,BB24) -> 0 | CE24: =SUM(AA24,BC24) -> 284 | CF24: =SUM(AB24,BD24) -> 109,207 | CG24: =SUM(AC24,BE24) -> 0 | CH24: =SUM(AD24,BF24) -> 0 | CI24: =SUM(AE24,BG24) -> 125,352
A25: 京都府 | B25: 26343 | C25: 井手町 | D25: =+SUM(E25,J25) -> 3 | E25: =+SUM(F25:I25) -> 0 | F25: 0 | G25: 0 | H25: 0 | I25: 0 | J25: 3 | K25: 23,775 | L25: =+SUM(M25,R25,V25,W25,AC25) -> 47,823 | M25: =+SUM(N25:Q25) -> 14,342 | N25: 5 | O25: 14,337 | P25: 0 | Q25: 0 | R25: =+SUM(S25:U25) -> 1,233 | S25: 1,233 | T25: 0 | U25: 0 | V25: 0 | W25: =+SUM(X25:AA25) -> 32,248 | X25: 32,248 | Y25: 0 | Z25: 0 | AA25: 0 | AB25: 38,141 | AC25: 0 | AD25: 1,931 | AE25: =+SUM(D25,L25,AD25) -> 49,757 | AF25: =+SUM(AG25,AL25) -> 0 | AG25: =+SUM(AH25:AK25) -> 0 | AH25: 0 | AI25: 0 | AJ25: 0 | AK25: 0 | AL25: 0 | AM25: 3,607 | AN25: =+SUM(AO25,AT25,AX25,AY25,BE25) -> 0 | AO25: =+SUM(AP25:AS25) -> 0 | AP25: 0 | AQ25: 0 | AR25: 0 | AS25: 0 | AT25: =+SUM(AU25:AW25) -> 0 | AU25: 0 | AV25: 0 | AW25: 0 | AX25: 0 | AY25: =+SUM(AZ25:BC25) -> 0 | AZ25: 0 | BA25: 0 | BB25: 0 | BC25: 0 | BD25: 21,289 | BE25: 0 | BF25: 0 | BG25: =+SUM(BF25,AN25,AF25) -> 0 | BH25: =SUM(D25,AF25) -> 3 | BI25: =SUM(E25,AG25) -> 0 | BJ25: =SUM(F25,AH25) -> 0 | BK25: =SUM(G25,AI25) -> 0 | BL25: =SUM(H25,AJ25) -> 0 | BM25: =SUM(I25,AK25) -> 0 | BN25: =SUM(J25,AL25) -> 3 | BO25: =SUM(K25,AM25) -> 27,382 | BP25: =SUM(L25,AN25) -> 47,823 | BQ25: =SUM(M25,AO25) -> 14,342 | BR25: =SUM(N25,AP25) -> 5 | BS25: =SUM(O25,AQ25) -> 14,337 | BT25: =SUM(P25,AR25) -> 0 | BU25: =SUM(Q25,AS25) -> 0 | BV25: =SUM(R25,AT25) -> 1,233 | BW25: =SUM(S25,AU25) -> 1,233 | BX25: =SUM(T25,AV25) -> 0 | BY25: =SUM(U25,AW25) -> 0 | BZ25: =SUM(V25,AX25) -> 0 | CA25: =SUM(W25,AY25) -> 32,248 | CB25: =SUM(X25,AZ25) -> 32,248 | CC25: =SUM(Y25,BA25) -> 0 | CD25: =SUM(Z25,BB25) -> 0 | CE25: =SUM(AA25,BC25) -> 0 | CF25: =SUM(AB25,BD25) -> 59,430 | CG25: =SUM(AC25,BE25) -> 0 | CH25: =SUM(AD25,BF25) -> 1,931 | CI25: =SUM(AE25,BG25) -> 49,757
A26: 京都府 | B26: 26344 | C26: 宇治田原町 | D26: =+SUM(E26,J26) -> 0 | E26: =+SUM(F26:I26) -> 0 | F26: 0 | G26: 0 | H26: 0 | I26: 0 | J26: 0 | K26: 27,815 | L26: =+SUM(M26,R26,V26,W26,AC26) -> 82,456 | M26: =+SUM(N26:Q26) -> 42,974 | N26: 0 | O26: 42,974 | P26: 0 | Q26: 0 | R26: =+SUM(S26:U26) -> 2,016 | S26: 2,016 | T26: 0 | U26: 0 | V26: 13,166 | W26: =+SUM(X26:AA26) -> 24,300 | X26: 24,300 | Y26: 0 | Z26: 0 | AA26: 0 | AB26: 44,620 | AC26: 0 | AD26: 0 | AE26: =+SUM(D26,L26,AD26) -> 82,456 | AF26: =+SUM(AG26,AL26) -> 0 | AG26: =+SUM(AH26:AK26) -> 0 | AH26: 0 | AI26: 0 | AJ26: 0 | AK26: 0 | AL26: 0 | AM26: 7,244 | AN26: =+SUM(AO26,AT26,AX26,AY26,BE26) -> 0 | AO26: =+SUM(AP26:AS26) -> 0 | AP26: 0 | AQ26: 0 | AR26: 0 | AS26: 0 | AT26: =+SUM(AU26:AW26) -> 0 | AU26: 0 | AV26: 0 | AW26: 0 | AX26: 0 | AY26: =+SUM(AZ26:BC26) -> 0 | AZ26: 0 | BA26: 0 | BB26: 0 | BC26: 0 | BD26: 42,749 | BE26: 0 | BF26: 0 | BG26: =+SUM(BF26,AN26,AF26) -> 0 | BH26: =SUM(D26,AF26) -> 0 | BI26: =SUM(E26,AG26) -> 0 | BJ26: =SUM(F26,AH26) -> 0 | BK26: =SUM(G26,AI26) -> 0 | BL26: =SUM(H26,AJ26) -> 0 | BM26: =SUM(I26,AK26) -> 0 | BN26: =SUM(J26,AL26) -> 0 | BO26: =SUM(K26,AM26) -> 35,059 | BP26: =SUM(L26,AN26) -> 82,456 | BQ26: =SUM(M26,AO26) -> 42,974 | BR26: =SUM(N26,AP26) -> 0 | BS26: =SUM(O26,AQ26) -> 42,974 | BT26: =SUM(P26,AR26) -> 0 | BU26: =SUM(Q26,AS26) -> 0 | BV26: =SUM(R26,AT26) -> 2,016 | BW26: =SUM(S26,AU26) -> 2,016 | BX26: =SUM(T26,AV26) -> 0 | BY26: =SUM(U26,AW26) -> 0 | BZ26: =SUM(V26,AX26) -> 13,166 | CA26: =SUM(W26,AY26) -> 24,300 | CB26: =SUM(X26,AZ26) -> 24,300 | CC26: =SUM(Y26,BA26) -> 0 | CD26: =SUM(Z26,BB26) -> 0 | CE26: =SUM(AA26,BC26) -> 0 | CF26: =SUM(AB26,BD26) -> 87,369 | CG26: =SUM(AC26,BE26) -> 0 | CH26: =SUM(AD26,BF26) -> 0 | CI26: =SUM(AE26,BG26) -> 82,456
A27: 京都府 | B27: 26364 | C27: 笠置町 | D27: =+SUM(E27,J27) -> 0 | E27: =+SUM(F27:I27) -> 0 | F27: 0 | G27: 0 | H27: 0 | I27: 0 | J27: 0 | K27: 0 | L27: =+SUM(M27,R27,V27,W27,AC27) -> 259 | M27: =+SUM(N27:Q27) -> 0 | N27: 0 | O27: 0 | P27: 0 | Q27: 0 | R27: =+SUM(S27:U27) -> 0 | S27: 0 | T27: 0 | U27: 0 | V27: 0 | W27: =+SUM(X27:AA27) -> 259 | X27: 0 | Y27: 0 | Z27: 0 | AA27: 259 | AB27: 45,052 | AC27: 0 | AD27: 625 | AE27: =+SUM(D27,L27,AD27) -> 884 | AF27: =+SUM(AG27,AL27) -> 0 | AG27: =+SUM(AH27:AK27) -> 0 | AH27: 0 | AI27: 0 | AJ27: 0 | AK27: 0 | AL27: 0 | AM27: 0 | AN27: =+SUM(AO27,AT27,AX27,AY27,BE27) -> 0 | AO27: =+SUM(AP27:AS27) -> 0 | AP27: 0 | AQ27: 0 | AR27: 0 | AS27: 0 | AT27: =+SUM(AU27:AW27) -> 0 | AU27: 0 | AV27: 0 | AW27: 0 | AX27: 0 | AY27: =+SUM(AZ27:BC27) -> 0 | AZ27: 0 | BA27: 0 | BB27: 0 | BC27: 0 | BD27: 26,822 | BE27: 0 | BF27: 982 | BG27: =+SUM(BF27,AN27,AF27) -> 982 | BH27: =SUM(D27,AF27) -> 0 | BI27: =SUM(E27,AG27) -> 0 | BJ27: =SUM(F27,AH27) -> 0 | BK27: =SUM(G27,AI27) -> 0 | BL27: =SUM(H27,AJ27) -> 0 | BM27: =SUM(I27,AK27) -> 0 | BN27: =SUM(J27,AL27) -> 0 | BO27: =SUM(K27,AM27) -> 0 | BP27: =SUM(L27,AN27) -> 259 | BQ27: =SUM(M27,AO27) -> 0 | BR27: =SUM(N27,AP27) -> 0 | BS27: =SUM(O27,AQ27) -> 0 | BT27: =SUM(P27,AR27) -> 0 | BU27: =SUM(Q27,AS27) -> 0 | BV27: =SUM(R27,AT27) -> 0 | BW27: =SUM(S27,AU27) -> 0 | BX27: =SUM(T27,AV27) -> 0 | BY27: =SUM(U27,AW27) -> 0 | BZ27: =SUM(V27,AX27) -> 0 | CA27: =SUM(W27,AY27) -> 259 | CB27: =SUM(X27,AZ27) -> 0 | CC27: =SUM(Y27,BA27) -> 0 | CD27: =SUM(Z27,BB27) -> 0 | CE27: =SUM(AA27,BC27) -> 259 | CF27: =SUM(AB27,BD27) -> 71,874 | CG27: =SUM(AC27,BE27) -> 0 | CH27: =SUM(AD27,BF27) -> 1,607 | CI27: =SUM(AE27,BG27) -> 1,866
A28: 京都府 | B28: 26365 | C28: 和束町 | D28: =+SUM(E28,J28) -> 0 | E28: =+SUM(F28:I28) -> 0 | F28: 0 | G28: 0 | H28: 0 | I28: 0 | J28: 0 | K28: 0 | L28: =+SUM(M28,R28,V28,W28,AC28) -> 0 | M28: =+SUM(N28:Q28) -> 0 | N28: 0 | O28: 0 | P28: 0 | Q28: 0 | R28: =+SUM(S28:U28) -> 0 | S28: 0 | T28: 0 | U28: 0 | V28: 0 | W28: =+SUM(X28:AA28) -> 0 | X28: 0 | Y28: 0 | Z28: 0 | AA28: 0 | AB28: 109,644 | AC28: 0 | AD28: 0 | AE28: =+SUM(D28,L28,AD28) -> 0 | AF28: =+SUM(AG28,AL28) -> 0 | AG28: =+SUM(AH28:AK28) -> 0 | AH28: 0 | AI28: 0 | AJ28: 0 | AK28: 0 | AL28: 0 | AM28: 0 | AN28: =+SUM(AO28,AT28,AX28,AY28,BE28) -> 0 | AO28: =+SUM(AP28:AS28) -> 0 | AP28: 0 | AQ28: 0 | AR28: 0 | AS28: 0 | AT28: =+SUM(AU28:AW28) -> 0 | AU28: 0 | AV28: 0 | AW28: 0 | AX28: 0 | AY28: =+SUM(AZ28:BC28) -> 0 | AZ28: 0 | BA28: 0 | BB28: 0 | BC28: 0 | BD28: 36,746 | BE28: 0 | BF28: 0 | BG28: =+SUM(BF28,AN28,AF28) -> 0 | BH28: =SUM(D28,AF28) -> 0 | BI28: =SUM(E28,AG28) -> 0 | BJ28: =SUM(F28,AH28) -> 0 | BK28: =SUM(G28,AI28) -> 0 | BL28: =SUM(H28,AJ28) -> 0 | BM28: =SUM(I28,AK28) -> 0 | BN28: =SUM(J28,AL28) -> 0 | BO28: =SUM(K28,AM28) -> 0 | BP28: =SUM(L28,AN28) -> 0 | BQ28: =SUM(M28,AO28) -> 0 | BR28: =SUM(N28,AP28) -> 0 | BS28: =SUM(O28,AQ28) -> 0 | BT28: =SUM(P28,AR28) -> 0 | BU28: =SUM(Q28,AS28) -> 0 | BV28: =SUM(R28,AT28) -> 0 | BW28: =SUM(S28,AU28) -> 0 | BX28: =SUM(T28,AV28) -> 0 | BY28: =SUM(U28,AW28) -> 0 | BZ28: =SUM(V28,AX28) -> 0 | CA28: =SUM(W28,AY28) -> 0 | CB28: =SUM(X28,AZ28) -> 0 | CC28: =SUM(Y28,BA28) -> 0 | CD28: =SUM(Z28,BB28) -> 0 | CE28: =SUM(AA28,BC28) -> 0 | CF28: =SUM(AB28,BD28) -> 146,390 | CG28: =SUM(AC28,BE28) -> 0 | CH28: =SUM(AD28,BF28) -> 0 | CI28: =SUM(AE28,BG28) -> 0
A29: 京都府 | B29: 26366 | C29: 精華町 | D29: =+SUM(E29,J29) -> 713,470 | E29: =+SUM(F29:I29) -> 0 | F29: 0 | G29: 0 | H29: 0 | I29: 0 | J29: 713,470 | K29: 28,379 | L29: =+SUM(M29,R29,V29,W29,AC29) -> 203,520 | M29: =+SUM(N29:Q29) -> 43,045 | N29: 7,512 | O29: 35,533 | P29: 0 | Q29: 0 | R29: =+SUM(S29:U29) -> 0 | S29: 0 | T29: 0 | U29: 0 | V29: 0 | W29: =+SUM(X29:AA29) -> 160,475 | X29: 91,799 | Y29: 50,960 | Z29: 17,716 | AA29: 0 | AB29: 69,643 | AC29: 0 | AD29: 0 | AE29: =+SUM(D29,L29,AD29) -> 916,990 | AF29: =+SUM(AG29,AL29) -> 0 | AG29: =+SUM(AH29:AK29) -> 0 | AH29: 0 | AI29: 0 | AJ29: 0 | AK29: 0 | AL29: 0 | AM29: 0 | AN29: =+SUM(AO29,AT29,AX29,AY29,BE29) -> 9,070 | AO29: =+SUM(AP29:AS29) -> 1,836 | AP29: 1,836 | AQ29: 0 | AR29: 0 | AS29: 0 | AT29: =+SUM(AU29:AW29) -> 0 | AU29: 0 | AV29: 0 | AW29: 0 | AX29: 0 | AY29: =+SUM(AZ29:BC29) -> 7,234 | AZ29: 0 | BA29: 7,234 | BB29: 0 | BC29: 0 | BD29: 42,445 | BE29: 0 | BF29: 0 | BG29: =+SUM(BF29,AN29,AF29) -> 9,070 | BH29: =SUM(D29,AF29) -> 713,470 | BI29: =SUM(E29,AG29) -> 0 | BJ29: =SUM(F29,AH29) -> 0 | BK29: =SUM(G29,AI29) -> 0 | BL29: =SUM(H29,AJ29) -> 0 | BM29: =SUM(I29,AK29) -> 0 | BN29: =SUM(J29,AL29) -> 713,470 | BO29: =SUM(K29,AM29) -> 28,379 | BP29: =SUM(L29,AN29) -> 212,590 | BQ29: =SUM(M29,AO29) -> 44,881 | BR29: =SUM(N29,AP29) -> 9,348 | BS29: =SUM(O29,AQ29) -> 35,533 | BT29: =SUM(P29,AR29) -> 0 | BU29: =SUM(Q29,AS29) -> 0 | BV29: =SUM(R29,AT29) -> 0 | BW29: =SUM(S29,AU29) -> 0 | BX29: =SUM(T29,AV29) -> 0 | BY29: =SUM(U29,AW29) -> 0 | BZ29: =SUM(V29,AX29) -> 0 | CA29: =SUM(W29,AY29) -> 167,709 | CB29: =SUM(X29,AZ29) -> 91,799 | CC29: =SUM(Y29,BA29) -> 58,194 | CD29: =SUM(Z29,BB29) -> 17,716 | CE29: =SUM(AA29,BC29) -> 0 | CF29: =SUM(AB29,BD29) -> 112,088 | CG29: =SUM(AC29,BE29) -> 0 | CH29: =SUM(AD29,BF29) -> 0 | CI29: =SUM(AE29,BG29) -> 926,060
A30: 京都府 | B30: 26367 | C30: 南山城村 | D30: =+SUM(E30,J30) -> 0 | E30: =+SUM(F30:I30) -> 0 | F30: 0 | G30: 0 | H30: 0 | I30: 0 | J30: 0 | K30: 0 | L30: =+SUM(M30,R30,V30,W30,AC30) -> 0 | M30: =+SUM(N30:Q30) -> 0 | N30: 0 | O30: 0 | P30: 0 | Q30: 0 | R30: =+SUM(S30:U30) -> 0 | S30: 0 | T30: 0 | U30: 0 | V30: 0 | W30: =+SUM(X30:AA30) -> 0 | X30: 0 | Y30: 0 | Z30: 0 | AA30: 0 | AB30: 69,157 | AC30: 0 | AD30: 0 | AE30: =+SUM(D30,L30,AD30) -> 0 | AF30: =+SUM(AG30,AL30) -> 0 | AG30: =+SUM(AH30:AK30) -> 0 | AH30: 0 | AI30: 0 | AJ30: 0 | AK30: 0 | AL30: 0 | AM30: 0 | AN30: =+SUM(AO30,AT30,AX30,AY30,BE30) -> 7,472 | AO30: =+SUM(AP30:AS30) -> 0 | AP30: 0 | AQ30: 0 | AR30: 0 | AS30: 0 | AT30: =+SUM(AU30:AW30) -> 0 | AU30: 0 | AV30: 0 | AW30: 0 | AX30: 0 | AY30: =+SUM(AZ30:BC30) -> 7,472 | AZ30: 7,472 | BA30: 0 | BB30: 0 | BC30: 0 | BD30: 31,130 | BE30: 0 | BF30: 0 | BG30: =+SUM(BF30,AN30,AF30) -> 7,472 | BH30: =SUM(D30,AF30) -> 0 | BI30: =SUM(E30,AG30) -> 0 | BJ30: =SUM(F30,AH30) -> 0 | BK30: =SUM(G30,AI30) -> 0 | BL30: =SUM(H30,AJ30) -> 0 | BM30: =SUM(I30,AK30) -> 0 | BN30: =SUM(J30,AL30) -> 0 | BO30: =SUM(K30,AM30) -> 0 | BP30: =SUM(L30,AN30) -> 7,472 | BQ30: =SUM(M30,AO30) -> 0 | BR30: =SUM(N30,AP30) -> 0 | BS30: =SUM(O30,AQ30) -> 0 | BT30: =SUM(P30,AR30) -> 0 | BU30: =SUM(Q30,AS30) -> 0 | BV30: =SUM(R30,AT30) -> 0 | BW30: =SUM(S30,AU30) -> 0 | BX30: =SUM(T30,AV30) -> 0 | BY30: =SUM(U30,AW30) -> 0 | BZ30: =SUM(V30,AX30) -> 0 | CA30: =SUM(W30,AY30) -> 7,472 | CB30: =SUM(X30,AZ30) -> 7,472 | CC30: =SUM(Y30,BA30) -> 0 | CD30: =SUM(Z30,BB30) -> 0 | CE30: =SUM(AA30,BC30) -> 0 | CF30: =SUM(AB30,BD30) -> 100,287 | CG30: =SUM(AC30,BE30) -> 0 | CH30: =SUM(AD30,BF30) -> 0 | CI30: =SUM(AE30,BG30) -> 7,472
A31: 京都府 | B31: 26407 | C31: 京丹波町 | D31: =+SUM(E31,J31) -> 0 | E31: =+SUM(F31:I31) -> 0 | F31: 0 | G31: 0 | H31: 0 | I31: 0 | J31: 0 | K31: 0 | L31: =+SUM(M31,R31,V31,W31,AC31) -> 0 | M31: =+SUM(N31:Q31) -> 0 | N31: 0 | O31: 0 | P31: 0 | Q31: 0 | R31: =+SUM(S31:U31) -> 0 | S31: 0 | T31: 0 | U31: 0 | V31: 0 | W31: =+SUM(X31:AA31) -> 0 | X31: 0 | Y31: 0 | Z31: 0 | AA31: 0 | AB31: 112,625 | AC31: 0 | AD31: 0 | AE31: =+SUM(D31,L31,AD31) -> 0 | AF31: =+SUM(AG31,AL31) -> 0 | AG31: =+SUM(AH31:AK31) -> 0 | AH31: 0 | AI31: 0 | AJ31: 0 | AK31: 0 | AL31: 0 | AM31: 0 | AN31: =+SUM(AO31,AT31,AX31,AY31,BE31) -> 0 | AO31: =+SUM(AP31:AS31) -> 0 | AP31: 0 | AQ31: 0 | AR31: 0 | AS31: 0 | AT31: =+SUM(AU31:AW31) -> 0 | AU31: 0 | AV31: 0 | AW31: 0 | AX31: 0 | AY31: =+SUM(AZ31:BC31) -> 0 | AZ31: 0 | BA31: 0 | BB31: 0 | BC31: 0 | BD31: 205,532 | BE31: 0 | BF31: 0 | BG31: =+SUM(BF31,AN31,AF31) -> 0 | BH31: =SUM(D31,AF31) -> 0 | BI31: =SUM(E31,AG31) -> 0 | BJ31: =SUM(F31,AH31) -> 0 | BK31: =SUM(G31,AI31) -> 0 | BL31: =SUM(H31,AJ31) -> 0 | BM31: =SUM(I31,AK31) -> 0 | BN31: =SUM(J31,AL31) -> 0 | BO31: =SUM(K31,AM31) -> 0 | BP31: =SUM(L31,AN31) -> 0 | BQ31: =SUM(M31,AO31) -> 0 | BR31: =SUM(N31,AP31) -> 0 | BS31: =SUM(O31,AQ31) -> 0 | BT31: =SUM(P31,AR31) -> 0 | BU31: =SUM(Q31,AS31) -> 0 | BV31: =SUM(R31,AT31) -> 0 | BW31: =SUM(S31,AU31) -> 0 | BX31: =SUM(T31,AV31) -> 0 | BY31: =SUM(U31,AW31) -> 0 | BZ31: =SUM(V31,AX31) -> 0 | CA31: =SUM(W31,AY31) -> 0 | CB31: =SUM(X31,AZ31) -> 0 | CC31: =SUM(Y31,BA31) -> 0 | CD31: =SUM(Z31,BB31) -> 0 | CE31: =SUM(AA31,BC31) -> 0 | CF31: =SUM(AB31,BD31) -> 318,157 | CG31: =SUM(AC31,BE31) -> 0 | CH31: =SUM(AD31,BF31) -> 0 | CI31: =SUM(AE31,BG31) -> 0
A32: 京都府 | B32: 26463 | C32: 伊根町 | D32: =+SUM(E32,J32) -> 0 | E32: =+SUM(F32:I32) -> 0 | F32: 0 | G32: 0 | H32: 0 | I32: 0 | J32: 0 | K32: 15,328 | L32: =+SUM(M32,R32,V32,W32,AC32) -> 76,138 | M32: =+SUM(N32:Q32) -> 13,060 | N32: 13,060 | O32: 0 | P32: 0 | Q32: 0 | R32: =+SUM(S32:U32) -> 14,847 | S32: 6,308 | T32: 0 | U32: 8,539 | V32: 0 | W32: =+SUM(X32:AA32) -> 48,231 | X32: 20,327 | Y32: 2,936 | Z32: 24,833 | AA32: 135 | AB32: 0 | AC32: 0 | AD32: 1,367 | AE32: =+SUM(D32,L32,AD32) -> 77,505 | AF32: =+SUM(AG32,AL32) -> 0 | AG32: =+SUM(AH32:AK32) -> 0 | AH32: 0 | AI32: 0 | AJ32: 0 | AK32: 0 | AL32: 0 | AM32: 0 | AN32: =+SUM(AO32,AT32,AX32,AY32,BE32) -> 22,268 | AO32: =+SUM(AP32:AS32) -> 0 | AP32: 0 | AQ32: 0 | AR32: 0 | AS32: 0 | AT32: =+SUM(AU32:AW32) -> 1,422 | AU32: 1,422 | AV32: 0 | AW32: 0 | AX32: 0 | AY32: =+SUM(AZ32:BC32) -> 20,846 | AZ32: 10,479 | BA32: 0 | BB32: 10,367 | BC32: 0 | BD32: 0 | BE32: 0 | BF32: 0 | BG32: =+SUM(BF32,AN32,AF32) -> 22,268 | BH32: =SUM(D32,AF32) -> 0 | BI32: =SUM(E32,AG32) -> 0 | BJ32: =SUM(F32,AH32) -> 0 | BK32: =SUM(G32,AI32) -> 0 | BL32: =SUM(H32,AJ32) -> 0 | BM32: =SUM(I32,AK32) -> 0 | BN32: =SUM(J32,AL32) -> 0 | BO32: =SUM(K32,AM32) -> 15,328 | BP32: =SUM(L32,AN32) -> 98,406 | BQ32: =SUM(M32,AO32) -> 13,060 | BR32: =SUM(N32,AP32) -> 13,060 | BS32: =SUM(O32,AQ32) -> 0 | BT32: =SUM(P32,AR32) -> 0 | BU32: =SUM(Q32,AS32) -> 0 | BV32: =SUM(R32,AT32) -> 16,269 | BW32: =SUM(S32,AU32) -> 7,730 | BX32: =SUM(T32,AV32) -> 0 | BY32: =SUM(U32,AW32) -> 8,539 | BZ32: =SUM(V32,AX32) -> 0 | CA32: =SUM(W32,AY32) -> 69,077 | CB32: =SUM(X32,AZ32) -> 30,806 | CC32: =SUM(Y32,BA32) -> 2,936 | CD32: =SUM(Z32,BB32) -> 35,200 | CE32: =SUM(AA32,BC32) -> 135 | CF32: =SUM(AB32,BD32) -> 0 | CG32: =SUM(AC32,BE32) -> 0 | CH32: =SUM(AD32,BF32) -> 1,367 | CI32: =SUM(AE32,BG32) -> 99,773
A33: 京都府 | B33: 26465 | C33: 与謝野町 | D33: =+SUM(E33,J33) -> 0 | E33: =+SUM(F33:I33) -> 0 | F33: 0 | G33: 0 | H33: 0 | I33: 0 | J33: 0 | K33: 158,615 | L33: =+SUM(M33,R33,V33,W33,AC33) -> 324,773 | M33: =+SUM(N33:Q33) -> 9,650 | N33: 0 | O33: 0 | P33: 0 | Q33: 9,650 | R33: =+SUM(S33:U33) -> 26,509 | S33: 0 | T33: 0 | U33: 26,509 | V33: 0 | W33: =+SUM(X33:AA33) -> 288,614 | X33: 142,906 | Y33: 124,742 | Z33: 20,966 | AA33: 0 | AB33: 0 | AC33: 0 | AD33: 2,431 | AE33: =+SUM(D33,L33,AD33) -> 327,204 | AF33: =+SUM(AG33,AL33) -> 0 | AG33: =+SUM(AH33:AK33) -> 0 | AH33: 0 | AI33: 0 | AJ33: 0 | AK33: 0 | AL33: 0 | AM33: 0 | AN33: =+SUM(AO33,AT33,AX33,AY33,BE33) -> 92,071 | AO33: =+SUM(AP33:AS33) -> 63,841 | AP33: 23,215 | AQ33: 34,822 | AR33: 5,804 | AS33: 0 | AT33: =+SUM(AU33:AW33) -> 25,971 | AU33: 2,362 | AV33: 23,609 | AW33: 0 | AX33: 0 | AY33: =+SUM(AZ33:BC33) -> 2,259 | AZ33: 0 | BA33: 1,439 | BB33: 820 | BC33: 0 | BD33: 0 | BE33: 0 | BF33: 0 | BG33: =+SUM(BF33,AN33,AF33) -> 92,071 | BH33: =SUM(D33,AF33) -> 0 | BI33: =SUM(E33,AG33) -> 0 | BJ33: =SUM(F33,AH33) -> 0 | BK33: =SUM(G33,AI33) -> 0 | BL33: =SUM(H33,AJ33) -> 0 | BM33: =SUM(I33,AK33) -> 0 | BN33: =SUM(J33,AL33) -> 0 | BO33: =SUM(K33,AM33) -> 158,615 | BP33: =SUM(L33,AN33) -> 416,844 | BQ33: =SUM(M33,AO33) -> 73,491 | BR33: =SUM(N33,AP33) -> 23,215 | BS33: =SUM(O33,AQ33) -> 34,822 | BT33: =SUM(P33,AR33) -> 5,804 | BU33: =SUM(Q33,AS33) -> 9,650 | BV33: =SUM(R33,AT33) -> 52,480 | BW33: =SUM(S33,AU33) -> 2,362 | BX33: =SUM(T33,AV33) -> 23,609 | BY33: =SUM(U33,AW33) -> 26,509 | BZ33: =SUM(V33,AX33) -> 0 | CA33: =SUM(W33,AY33) -> 290,873 | CB33: =SUM(X33,AZ33) -> 142,906 | CC33: =SUM(Y33,BA33) -> 126,181 | CD33: =SUM(Z33,BB33) -> 21,786 | CE33: =SUM(AA33,BC33) -> 0 | CF33: =SUM(AB33,BD33) -> 0 | CG33: =SUM(AC33,BE33) -> 0 | CH33: =SUM(AD33,BF33) -> 2,431 | CI33: =SUM(AE33,BG33) -> 419,275
A34: 京都府 | B34: 26817 | C34: 船井郡衛生管理組合 | D34: =+SUM(E34,J34) -> 0 | E34: =+SUM(F34:I34) -> 0 | F34: 0 | G34: 0 | H34: 0 | I34: 0 | J34: 0 | K34: 0 | L34: =+SUM(M34,R34,V34,W34,AC34) -> 690,100 | M34: =+SUM(N34:Q34) -> 181,499 | N34: 31,509 | O34: 13,349 | P34: 135,891 | Q34: 750 | R34: =+SUM(S34:U34) -> 44,714 | S34: 39,120 | T34: 5,594 | U34: 0 | V34: 23,935 | W34: =+SUM(X34:AA34) -> 439,952 | X34: 4,198 | Y34: 433,574 | Z34: 2,180 | AA34: 0 | AB34: 0 | AC34: 0 | AD34: 0 | AE34: =+SUM(D34,L34,AD34) -> 690,100 | AF34: =+SUM(AG34,AL34) -> 0 | AG34: =+SUM(AH34:AK34) -> 0 | AH34: 0 | AI34: 0 | AJ34: 0 | AK34: 0 | AL34: 0 | AM34: 0 | AN34: =+SUM(AO34,AT34,AX34,AY34,BE34) -> 765,887 | AO34: =+SUM(AP34:AS34) -> 84,539 | AP34: 37,090 | AQ34: 3,655 | AR34: 43,724 | AS34: 70 | AT34: =+SUM(AU34:AW34) -> 67,057 | AU34: 1,622 | AV34: 65,435 | AW34: 0 | AX34: 0 | AY34: =+SUM(AZ34:BC34) -> 614,291 | AZ34: 76,370 | BA34: 130,235 | BB34: 1,579 | BC34: 406,107 | BD34: 0 | BE34: 0 | BF34: 0 | BG34: =+SUM(BF34,AN34,AF34) -> 765,887 | BH34: =SUM(D34,AF34) -> 0 | BI34: =SUM(E34,AG34) -> 0 | BJ34: =SUM(F34,AH34) -> 0 | BK34: =SUM(G34,AI34) -> 0 | BL34: =SUM(H34,AJ34) -> 0 | BM34: =SUM(I34,AK34) -> 0 | BN34: =SUM(J34,AL34) -> 0 | BO34: =SUM(K34,AM34) -> 0 | BP34: =SUM(L34,AN34) -> 1,455,987 | BQ34: =SUM(M34,AO34) -> 266,038 | BR34: =SUM(N34,AP34) -> 68,599 | BS34: =SUM(O34,AQ34) -> 17,004 | BT34: =SUM(P34,AR34) -> 179,615 | BU34: =SUM(Q34,AS34) -> 820 | BV34: =SUM(R34,AT34) -> 111,771 | BW34: =SUM(S34,AU34) -> 40,742 | BX34: =SUM(T34,AV34) -> 71,029 | BY34: =SUM(U34,AW34) -> 0 | BZ34: =SUM(V34,AX34) -> 23,935 | CA34: =SUM(W34,AY34) -> 1,054,243 | CB34: =SUM(X34,AZ34) -> 80,568 | CC34: =SUM(Y34,BA34) -> 563,809 | CD34: =SUM(Z34,BB34) -> 3,759 | CE34: =SUM(AA34,BC34) -> 406,107 | CF34: =SUM(AB34,BD34) -> 0 | CG34: =SUM(AC34,BE34) -> 0 | CH34: =SUM(AD34,BF34) -> 0 | CI34: =SUM(AE34,BG34) -> 1,455,987
A35: 京都府 | B35: 26820 | C35: 城南衛生管理組合 | D35: =+SUM(E35,J35) -> 5,792,360 | E35: =+SUM(F35:I35) -> 5,792,360 | F35: 0 | G35: 5,779,870 | H35: 12,490 | I35: 0 | J35: 0 | K35: 0 | L35: =+SUM(M35,R35,V35,W35,AC35) -> 1,980,874 | M35: =+SUM(N35:Q35) -> 644,162 | N35: 152,251 | O35: 0 | P35: 449,653 | Q35: 42,258 | R35: =+SUM(S35:U35) -> 675,176 | S35: 7,233 | T35: 615,452 | U35: 52,491 | V35: 0 | W35: =+SUM(X35:AA35) -> 661,536 | X35: 93,106 | Y35: 445,934 | Z35: 122,496 | AA35: 0 | AB35: 0 | AC35: 0 | AD35: 110,705 | AE35: =+SUM(D35,L35,AD35) -> 7,883,939 | AF35: =+SUM(AG35,AL35) -> 97,234 | AG35: =+SUM(AH35:AK35) -> 97,234 | AH35: 0 | AI35: 97,234 | AJ35: 0 | AK35: 0 | AL35: 0 | AM35: 0 | AN35: =+SUM(AO35,AT35,AX35,AY35,BE35) -> 613,477 | AO35: =+SUM(AP35:AS35) -> 247,592 | AP35: 176,404 | AQ35: 44,077 | AR35: 27,111 | AS35: 0 | AT35: =+SUM(AU35:AW35) -> 92,392 | AU35: 1,502 | AV35: 90,890 | AW35: 0 | AX35: 0 | AY35: =+SUM(AZ35:BC35) -> 273,493 | AZ35: 244,535 | BA35: 28,512 | BB35: 446 | BC35: 0 | BD35: 0 | BE35: 0 | BF35: 122,383 | BG35: =+SUM(BF35,AN35,AF35) -> 833,094 | BH35: =SUM(D35,AF35) -> 5,889,594 | BI35: =SUM(E35,AG35) -> 5,889,594 | BJ35: =SUM(F35,AH35) -> 0 | BK35: =SUM(G35,AI35) -> 5,877,104 | BL35: =SUM(H35,AJ35) -> 12,490 | BM35: =SUM(I35,AK35) -> 0 | BN35: =SUM(J35,AL35) -> 0 | BO35: =SUM(K35,AM35) -> 0 | BP35: =SUM(L35,AN35) -> 2,594,351 | BQ35: =SUM(M35,AO35) -> 891,754 | BR35: =SUM(N35,AP35) -> 328,655 | BS35: =SUM(O35,AQ35) -> 44,077 | BT35: =SUM(P35,AR35) -> 476,764 | BU35: =SUM(Q35,AS35) -> 42,258 | BV35: =SUM(R35,AT35) -> 767,568 | BW35: =SUM(S35,AU35) -> 8,735 | BX35: =SUM(T35,AV35) -> 706,342 | BY35: =SUM(U35,AW35) -> 52,491 | BZ35: =SUM(V35,AX35) -> 0 | CA35: =SUM(W35,AY35) -> 935,029 | CB35: =SUM(X35,AZ35) -> 337,641 | CC35: =SUM(Y35,BA35) -> 474,446 | CD35: =SUM(Z35,BB35) -> 122,942 | CE35: =SUM(AA35,BC35) -> 0 | CF35: =SUM(AB35,BD35) -> 0 | CG35: =SUM(AC35,BE35) -> 0 | CH35: =SUM(AD35,BF35) -> 233,088 | CI35: =SUM(AE35,BG35) -> 8,717,033
A36: 京都府 | B36: 26821 | C36: 相楽郡西部塵埃処理組合 | D36: =+SUM(E36,J36) -> 0 | E36: =+SUM(F36:I36) -> 0 | F36: 0 | G36: 0 | H36: 0 | I36: 0 | J36: 0 | K36: 0 | L36: =+SUM(M36,R36,V36,W36,AC36) -> 291,398 | M36: =+SUM(N36:Q36) -> 125,869 | N36: 20,007 | O36: 0 | P36: 105,862 | Q36: 0 | R36: =+SUM(S36:U36) -> 122,391 | S36: 0 | T36: 122,391 | U36: 0 | V36: 0 | W36: =+SUM(X36:AA36) -> 40,656 | X36: 0 | Y36: 20,049 | Z36: 20,574 | AA36: 33 | AB36: 0 | AC36: 2,482 | AD36: 56,510 | AE36: =+SUM(D36,L36,AD36) -> 347,908 | AF36: =+SUM(AG36,AL36) -> 0 | AG36: =+SUM(AH36:AK36) -> 0 | AH36: 0 | AI36: 0 | AJ36: 0 | AK36: 0 | AL36: 0 | AM36: 0 | AN36: =+SUM(AO36,AT36,AX36,AY36,BE36) -> 0 | AO36: =+SUM(AP36:AS36) -> 0 | AP36: 0 | AQ36: 0 | AR36: 0 | AS36: 0 | AT36: =+SUM(AU36:AW36) -> 0 | AU36: 0 | AV36: 0 | AW36: 0 | AX36: 0 | AY36: =+SUM(AZ36:BC36) -> 0 | AZ36: 0 | BA36: 0 | BB36: 0 | BC36: 0 | BD36: 0 | BE36: 0 | BF36: 0 | BG36: =+SUM(BF36,AN36,AF36) -> 0 | BH36: =SUM(D36,AF36) -> 0 | BI36: =SUM(E36,AG36) -> 0 | BJ36: =SUM(F36,AH36) -> 0 | BK36: =SUM(G36,AI36) -> 0 | BL36: =SUM(H36,AJ36) -> 0 | BM36: =SUM(I36,AK36) -> 0 | BN36: =SUM(J36,AL36) -> 0 | BO36: =SUM(K36,AM36) -> 0 | BP36: =SUM(L36,AN36) -> 291,398 | BQ36: =SUM(M36,AO36) -> 125,869 | BR36: =SUM(N36,AP36) -> 20,007 | BS36: =SUM(O36,AQ36) -> 0 | BT36: =SUM(P36,AR36) -> 105,862 | BU36: =SUM(Q36,AS36) -> 0 | BV36: =SUM(R36,AT36) -> 122,391 | BW36: =SUM(S36,AU36) -> 0 | BX36: =SUM(T36,AV36) -> 122,391 | BY36: =SUM(U36,AW36) -> 0 | BZ36: =SUM(V36,AX36) -> 0 | CA36: =SUM(W36,AY36) -> 40,656 | CB36: =SUM(X36,AZ36) -> 0 | CC36: =SUM(Y36,BA36) -> 20,049 | CD36: =SUM(Z36,BB36) -> 20,574 | CE36: =SUM(AA36,BC36) -> 33 | CF36: =SUM(AB36,BD36) -> 0 | CG36: =SUM(AC36,BE36) -> 2,482 | CH36: =SUM(AD36,BF36) -> 56,510 | CI36: =SUM(AE36,BG36) -> 347,908
A37: 京都府 | B37: 26828 | C37: 乙訓環境衛生組合 | D37: =+SUM(E37,J37) -> 1,864,999 | E37: =+SUM(F37:I37) -> 1,864,999 | F37: 0 | G37: 1,795,764 | H37: 69,235 | I37: 0 | J37: 0 | K37: 0 | L37: =+SUM(M37,R37,V37,W37,AC37) -> 868,778 | M37: =+SUM(N37:Q37) -> 284,095 | N37: 284,095 | O37: 0 | P37: 0 | Q37: 0 | R37: =+SUM(S37:U37) -> 235,812 | S37: 0 | T37: 219,105 | U37: 16,707 | V37: 0 | W37: =+SUM(X37:AA37) -> 348,871 | X37: 0 | Y37: 348,871 | Z37: 0 | AA37: 0 | AB37: 0 | AC37: 0 | AD37: 0 | AE37: =+SUM(D37,L37,AD37) -> 2,733,777 | AF37: =+SUM(AG37,AL37) -> 0 | AG37: =+SUM(AH37:AK37) -> 0 | AH37: 0 | AI37: 0 | AJ37: 0 | AK37: 0 | AL37: 0 | AM37: 0 | AN37: =+SUM(AO37,AT37,AX37,AY37,BE37) -> 0 | AO37: =+SUM(AP37:AS37) -> 0 | AP37: 0 | AQ37: 0 | AR37: 0 | AS37: 0 | AT37: =+SUM(AU37:AW37) -> 0 | AU37: 0 | AV37: 0 | AW37: 0 | AX37: 0 | AY37: =+SUM(AZ37:BC37) -> 0 | AZ37: 0 | BA37: 0 | BB37: 0 | BC37: 0 | BD37: 0 | BE37: 0 | BF37: 0 | BG37: =+SUM(BF37,AN37,AF37) -> 0 | BH37: =SUM(D37,AF37) -> 1,864,999 | BI37: =SUM(E37,AG37) -> 1,864,999 | BJ37: =SUM(F37,AH37) -> 0 | BK37: =SUM(G37,AI37) -> 1,795,764 | BL37: =SUM(H37,AJ37) -> 69,235 | BM37: =SUM(I37,AK37) -> 0 | BN37: =SUM(J37,AL37) -> 0 | BO37: =SUM(K37,AM37) -> 0 | BP37: =SUM(L37,AN37) -> 868,778 | BQ37: =SUM(M37,AO37) -> 284,095 | BR37: =SUM(N37,AP37) -> 284,095 | BS37: =SUM(O37,AQ37) -> 0 | BT37: =SUM(P37,AR37) -> 0 | BU37: =SUM(Q37,AS37) -> 0 | BV37: =SUM(R37,AT37) -> 235,812 | BW37: =SUM(S37,AU37) -> 0 | BX37: =SUM(T37,AV37) -> 219,105 | BY37: =SUM(U37,AW37) -> 16,707 | BZ37: =SUM(V37,AX37) -> 0 | CA37: =SUM(W37,AY37) -> 348,871 | CB37: =SUM(X37,AZ37) -> 0 | CC37: =SUM(Y37,BA37) -> 348,871 | CD37: =SUM(Z37,BB37) -> 0 | CE37: =SUM(AA37,BC37) -> 0 | CF37: =SUM(AB37,BD37) -> 0 | CG37: =SUM(AC37,BE37) -> 0 | CH37: =SUM(AD37,BF37) -> 0 | CI37: =SUM(AE37,BG37) -> 2,733,777
A38: 京都府 | B38: 26843 | C38: 相楽東部広域連合 | D38: =+SUM(E38,J38) -> 38,006 | E38: =+SUM(F38:I38) -> 38,006 | F38: 0 | G38: 38,006 | H38: 0 | I38: 0 | J38: 0 | K38: 0 | L38: =+SUM(M38,R38,V38,W38,AC38) -> 181,042 | M38: =+SUM(N38:Q38) -> 5,932 | N38: 5,932 | O38: 0 | P38: 0 | Q38: 0 | R38: =+SUM(S38:U38) -> 0 | S38: 0 | T38: 0 | U38: 0 | V38: 0 | W38: =+SUM(X38:AA38) -> 169,819 | X38: 68,487 | Y38: 10,523 | Z38: 32,758 | AA38: 58,051 | AB38: 0 | AC38: 5,291 | AD38: 55,132 | AE38: =+SUM(D38,L38,AD38) -> 274,180 | AF38: =+SUM(AG38,AL38) -> 0 | AG38: =+SUM(AH38:AK38) -> 0 | AH38: 0 | AI38: 0 | AJ38: 0 | AK38: 0 | AL38: 0 | AM38: 0 | AN38: =+SUM(AO38,AT38,AX38,AY38,BE38) -> 0 | AO38: =+SUM(AP38:AS38) -> 0 | AP38: 0 | AQ38: 0 | AR38: 0 | AS38: 0 | AT38: =+SUM(AU38:AW38) -> 0 | AU38: 0 | AV38: 0 | AW38: 0 | AX38: 0 | AY38: =+SUM(AZ38:BC38) -> 0 | AZ38: 0 | BA38: 0 | BB38: 0 | BC38: 0 | BD38: 0 | BE38: 0 | BF38: 0 | BG38: =+SUM(BF38,AN38,AF38) -> 0 | BH38: =SUM(D38,AF38) -> 38,006 | BI38: =SUM(E38,AG38) -> 38,006 | BJ38: =SUM(F38,AH38) -> 0 | BK38: =SUM(G38,AI38) -> 38,006 | BL38: =SUM(H38,AJ38) -> 0 | BM38: =SUM(I38,AK38) -> 0 | BN38: =SUM(J38,AL38) -> 0 | BO38: =SUM(K38,AM38) -> 0 | BP38: =SUM(L38,AN38) -> 181,042 | BQ38: =SUM(M38,AO38) -> 5,932 | BR38: =SUM(N38,AP38) -> 5,932 | BS38: =SUM(O38,AQ38) -> 0 | BT38: =SUM(P38,AR38) -> 0 | BU38: =SUM(Q38,AS38) -> 0 | BV38: =SUM(R38,AT38) -> 0 | BW38: =SUM(S38,AU38) -> 0 | BX38: =SUM(T38,AV38) -> 0 | BY38: =SUM(U38,AW38) -> 0 | BZ38: =SUM(V38,AX38) -> 0 | CA38: =SUM(W38,AY38) -> 169,819 | CB38: =SUM(X38,AZ38) -> 68,487 | CC38: =SUM(Y38,BA38) -> 10,523 | CD38: =SUM(Z38,BB38) -> 32,758 | CE38: =SUM(AA38,BC38) -> 58,051 | CF38: =SUM(AB38,BD38) -> 0 | CG38: =SUM(AC38,BE38) -> 5,291 | CH38: =SUM(AD38,BF38) -> 55,132 | CI38: =SUM(AE38,BG38) -> 274,180
A39: 京都府 | B39: 26849 | C39: 相楽郡広域事務組合 | D39: =+SUM(E39,J39) -> 0 | E39: =+SUM(F39:I39) -> 0 | F39: 0 | G39: 0 | H39: 0 | I39: 0 | J39: 0 | K39: 0 | L39: =+SUM(M39,R39,V39,W39,AC39) -> 0 | M39: =+SUM(N39:Q39) -> 0 | N39: 0 | O39: 0 | P39: 0 | Q39: 0 | R39: =+SUM(S39:U39) -> 0 | S39: 0 | T39: 0 | U39: 0 | V39: 0 | W39: =+SUM(X39:AA39) -> 0 | X39: 0 | Y39: 0 | Z39: 0 | AA39: 0 | AB39: 0 | AC39: 0 | AD39: 0 | AE39: =+SUM(D39,L39,AD39) -> 0 | AF39: =+SUM(AG39,AL39) -> 0 | AG39: =+SUM(AH39:AK39) -> 0 | AH39: 0 | AI39: 0 | AJ39: 0 | AK39: 0 | AL39: 0 | AM39: 0 | AN39: =+SUM(AO39,AT39,AX39,AY39,BE39) -> 315,523 | AO39: =+SUM(AP39:AS39) -> 0 | AP39: 0 | AQ39: 0 | AR39: 0 | AS39: 0 | AT39: =+SUM(AU39:AW39) -> 0 | AU39: 0 | AV39: 0 | AW39: 0 | AX39: 0 | AY39: =+SUM(AZ39:BC39) -> 315,523 | AZ39: 74,484 | BA39: 205,587 | BB39: 0 | BC39: 35,452 | BD39: 0 | BE39: 0 | BF39: 0 | BG39: =+SUM(BF39,AN39,AF39) -> 315,523 | BH39: =SUM(D39,AF39) -> 0 | BI39: =SUM(E39,AG39) -> 0 | BJ39: =SUM(F39,AH39) -> 0 | BK39: =SUM(G39,AI39) -> 0 | BL39: =SUM(H39,AJ39) -> 0 | BM39: =SUM(I39,AK39) -> 0 | BN39: =SUM(J39,AL39) -> 0 | BO39: =SUM(K39,AM39) -> 0 | BP39: =SUM(L39,AN39) -> 315,523 | BQ39: =SUM(M39,AO39) -> 0 | BR39: =SUM(N39,AP39) -> 0 | BS39: =SUM(O39,AQ39) -> 0 | BT39: =SUM(P39,AR39) -> 0 | BU39: =SUM(Q39,AS39) -> 0 | BV39: =SUM(R39,AT39) -> 0 | BW39: =SUM(S39,AU39) -> 0 | BX39: =SUM(T39,AV39) -> 0 | BY39: =SUM(U39,AW39) -> 0 | BZ39: =SUM(V39,AX39) -> 0 | CA39: =SUM(W39,AY39) -> 315,523 | CB39: =SUM(X39,AZ39) -> 74,484 | CC39: =SUM(Y39,BA39) -> 205,587 | CD39: =SUM(Z39,BB39) -> 0 | CE39: =SUM(AA39,BC39) -> 35,452 | CF39: =SUM(AB39,BD39) -> 0 | CG39: =SUM(AC39,BE39) -> 0 | CH39: =SUM(AD39,BF39) -> 0 | CI39: =SUM(AE39,BG39) -> 315,523
A40: 京都府 | B40: 26861 | C40: 宮津与謝環境組合 | D40: =+SUM(E40,J40) -> 0 | E40: =+SUM(F40:I40) -> 0 | F40: 0 | G40: 0 | H40: 0 | I40: 0 | J40: 0 | K40: 0 | L40: =+SUM(M40,R40,V40,W40,AC40) -> 29,311 | M40: =+SUM(N40:Q40) -> 29,311 | N40: 29,311 | O40: 0 | P40: 0 | Q40: 0 | R40: =+SUM(S40:U40) -> 0 | S40: 0 | T40: 0 | U40: 0 | V40: 0 | W40: =+SUM(X40:AA40) -> 0 | X40: 0 | Y40: 0 | Z40: 0 | AA40: 0 | AB40: 0 | AC40: 0 | AD40: 387,534 | AE40: =+SUM(D40,L40,AD40) -> 416,845 | AF40: =+SUM(AG40,AL40) -> 0 | AG40: =+SUM(AH40:AK40) -> 0 | AH40: 0 | AI40: 0 | AJ40: 0 | AK40: 0 | AL40: 0 | AM40: 0 | AN40: =+SUM(AO40,AT40,AX40,AY40,BE40) -> 0 | AO40: =+SUM(AP40:AS40) -> 0 | AP40: 0 | AQ40: 0 | AR40: 0 | AS40: 0 | AT40: =+SUM(AU40:AW40) -> 0 | AU40: 0 | AV40: 0 | AW40: 0 | AX40: 0 | AY40: =+SUM(AZ40:BC40) -> 0 | AZ40: 0 | BA40: 0 | BB40: 0 | BC40: 0 | BD40: 0 | BE40: 0 | BF40: 0 | BG40: =+SUM(BF40,AN40,AF40) -> 0 | BH40: =SUM(D40,AF40) -> 0 | BI40: =SUM(E40,AG40) -> 0 | BJ40: =SUM(F40,AH40) -> 0 | BK40: =SUM(G40,AI40) -> 0 | BL40: =SUM(H40,AJ40) -> 0 | BM40: =SUM(I40,AK40) -> 0 | BN40: =SUM(J40,AL40) -> 0 | BO40: =SUM(K40,AM40) -> 0 | BP40: =SUM(L40,AN40) -> 29,311 | BQ40: =SUM(M40,AO40) -> 29,311 | BR40: =SUM(N40,AP40) -> 29,311 | BS40: =SUM(O40,AQ40) -> 0 | BT40: =SUM(P40,AR40) -> 0 | BU40: =SUM(Q40,AS40) -> 0 | BV40: =SUM(R40,AT40) -> 0 | BW40: =SUM(S40,AU40) -> 0 | BX40: =SUM(T40,AV40) -> 0 | BY40: =SUM(U40,AW40) -> 0 | BZ40: =SUM(V40,AX40) -> 0 | CA40: =SUM(W40,AY40) -> 0 | CB40: =SUM(X40,AZ40) -> 0 | CC40: =SUM(Y40,BA40) -> 0 | CD40: =SUM(Z40,BB40) -> 0 | CE40: =SUM(AA40,BC40) -> 0 | CF40: =SUM(AB40,BD40) -> 0 | CG40: =SUM(AC40,BE40) -> 0 | CH40: =SUM(AD40,BF40) -> 387,534 | CI40: =SUM(AE40,BG40) -> 416,845

Sheet 組合分担金内訳
A1: 廃棄物処理事業経費【分担金の合計】（平成28年度実績）
A2: 都道府県名 | B2: 地方公共団体コード | C2: 市区町村名 | D2: 合計（広域団体１+広域団体２+広域団体３+広域団体４+広域団体５+広域団体６） | J2: 広域団体１ | R2: 広域団体２ | Z2: 広域団体３ | AH2: 広域団体４ | AP2: 広域団体５ | AX2: 広域団体６
D4: ごみ | G4: し尿 | J4: 広域団体コード | K4: 一部事務組合・広域連合名 | L4: ごみ | O4: し尿 | R4: 広域団体コード | S4: 一部事務組合・広域連合名 | T4: ごみ | W4: し尿 | Z4: 広域団体コード | AA4: 一部事務組合・広域連合名 | AB4: ごみ | AE4: し尿 | AH4: 広域団体コード | AI4: 一部事務組合・広域連合名 | AJ4: ごみ | AM4: し尿 | AP4: 広域団体コード | AQ4: 一部事務組合・広域連合名 | AR4: ごみ | AU4: し尿 | AX4: 広域団体コード | AY4: 一部事務組合・広域連合名 | AZ4: ごみ | BC4: し尿
D5: 建設・改良費 | E5: 処理及び 維持管理費 | F5: 合計 | G5: 建設・改良費 | H5: 処理及び 維持管理費 | I5: 合計 | L5: 建設・改良費 | M5: 処理及び 維持管理費 | N5: 小計 | O5: 建設・改良費 | P5: 処理及び 維持管理費 | Q5: 小計 | T5: 建設・改良費 | U5: 処理及び 維持管理費 | V5: 小計 | W5: 建設・改良費 | X5: 処理及び 維持管理費 | Y5: 小計 | AB5: 建設・改良費 | AC5: 処理及び 維持管理費 | AD5: 小計 | AE5: 建設・改良費 | AF5: 処理及び 維持管理費 | AG5: 小計 | AJ5: 建設・改良費 | AK5: 処理及び 維持管理費 | AL5: 小計 | AM5: 建設・改良費 | AN5: 処理及び 維持管理費 | AO5: 小計 | AR5: 建設・改良費 | AS5: 処理及び 維持管理費 | AT5: 小計 | AU5: 建設・改良費 | AV5: 処理及び 維持管理費 | AW5: 小計 | AZ5: 建設・改良費 | BA5: 処理及び 維持管理費 | BB5: 小計 | BC5: 建設・改良費 | BD5: 処理及び 維持管理費 | BE5: 小計
D6: （千円） | E6: （千円） | F6: （千円） | G6: （千円） | H6: （千円） | I6: （千円） | L6: （千円） | M6: （千円） | N6: （千円） | O6: （千円） | P6: （千円） | Q6: （千円） | T6: （千円） | U6: （千円） | V6: （千円） | W6: （千円） | X6: （千円） | Y6: （千円） | AB6: （千円） | AC6: （千円） | AD6: （千円） | AE6: （千円） | AF6: （千円） | AG6: （千円） | AJ6: （千円） | AK6: （千円） | AL6: （千円） | AM6: （千円） | AN6: （千円） | AO6: （千円） | AR6: （千円） | AS6: （千円） | AT6: （千円） | AU6: （千円） | AV6: （千円） | AW6: （千円） | AZ6: （千円） | BA6: （千円） | BB6: （千円） | BC6: （千円） | BD6: （千円） | BE6: （千円）
A7: ='廃棄物事業経費（市町村）'!A7 -> 京都府 | B7: ='廃棄物事業経費（市町村）'!B7 -> 26000 | C7: 合計 | D7: =SUM(L7,T7,AB7,AJ7,AR7,AZ7) -> 1,666,081 | E7: =SUM(M7,U7,AC7,AK7,AS7,BA7) -> 2,994,671 | F7: =SUM(D7:E7) -> 4,660,752 | G7: =SUM(O7,W7,AE7,AM7,AU7,BC7) -> 97,234 | H7: =SUM(P7,X7,AF7,AN7,AV7,BD7) -> 1,398,047 | I7: =SUM(G7:H7) -> 1,495,281 | J7: =COUNTIF(J$8:J$1000,"<>") -> 19 | K7: =COUNTIF(K$8:K$1000,"<>") -> 19 | L7: =SUM(L$8:L$1000) -> 1,666,081 | M7: =SUM(M$8:M$1000) -> 2,994,671 | N7: =IF(AND(L7<>"",M7<>""),SUM(L7:M7),"") -> 4,660,752 | O7: =SUM(O$8:O$1000) -> 97,234 | P7: =SUM(P$8:P$1000) -> 1,099,576 | Q7: =IF(AND(O7<>"",P7<>""),SUM(O7:P7),"") -> 1,196,810 | R7: =COUNTIF(R$8:R$1000,"<>") -> 5 | S7: =COUNTIF(S$8:S$1000,"<>") -> 5 | T7: =SUM(T$8:T$1000) -> 0 | U7: =SUM(U$8:U$1000) -> 0 | V7: =IF(AND(T7<>"",U7<>""),SUM(T7:U7),"") -> 0 | W7: =SUM(W$8:W$1000) -> 0 | X7: =SUM(X$8:X$1000) -> 298,471 | Y7: =IF(AND(W7<>"",X7<>""),SUM(W7:X7),"") -> 298,471 | Z7: =COUNTIF(Z$8:Z$1000,"<>") -> 0 | AA7: =COUNTIF(AA$8:AA$1000,"<>") -> 0 | AB7: =SUM(AB$8:AB$1000) -> 0 | AC7: =SUM(AC$8:AC$1000) -> 0 | AD7: =IF(AND(AB7<>"",AC7<>""),SUM(AB7:AC7),"") -> 0 | AE7: =SUM(AE$8:AE$1000) -> 0 | AF7: =SUM(AF$8:AF$1000) -> 0 | AG7: =IF(AND(AE7<>"",AF7<>""),SUM(AE7:AF7),"") -> 0 | AH7: =COUNTIF(AH$8:AH$1000,"<>") -> 0 | AI7: =COUNTIF(AI$8:AI$1000,"<>") -> 0 | AJ7: =SUM(AJ$8:AJ$1000) -> 0 | AK7: =SUM(AK$8:AK$1000) -> 0 | AL7: =IF(AND(AJ7<>"",AK7<>""),SUM(AJ7:AK7),"") -> 0 | AM7: =SUM(AM$8:AM$1000) -> 0 | AN7: =SUM(AN$8:AN$1000) -> 0 | AO7: =IF(AND(AM7<>"",AN7<>""),SUM(AM7:AN7),"") -> 0 | AP7: =COUNTIF(AP$8:AP$1000,"<>") -> 0 | AQ7: =COUNTIF(AQ$8:AQ$1000,"<>") -> 0 | AR7: =SUM(AR$8:AR$1000) -> 0 | AS7: =SUM(AS$8:AS$1000) -> 0 | AT7: =IF(AND(AR7<>"",AS7<>""),SUM(AR7:AS7),"") -> 0 | AU7: =SUM(AU$8:AU$1000) -> 0 | AV7: =SUM(AV$8:AV$1000) -> 0 | AW7: =IF(AND(AU7<>"",AV7<>""),SUM(AU7:AV7),"") -> 0 | AX7: =COUNTIF(AX$8:AX$1000,"<>") -> 0 | AY7: =COUNTIF(AY$8:AY$1000,"<>") -> 0 | AZ7: =SUM(AZ$8:AZ$1000) -> 0 | BA7: =SUM(BA$8:BA$1000) -> 0 | BB7: =IF(AND(AZ7<>"",BA7<>""),SUM(AZ7:BA7),"") -> 0 | BC7: =SUM(BC$8:BC$1000) -> 0 | BD7: =SUM(BD$8:BD$1000) -> 0 | BE7: =IF(AND(BC7<>"",BD7<>""),SUM(BC7:BD7),"") -> 0
A8: 京都府 | B8: 26100 | C8: 京都市 | D8: =SUM(L8,T8,AB8,AJ8,AR8,AZ8) -> 0 | E8: =SUM(M8,U8,AC8,AK8,AS8,BA8) -> 0 | F8: =SUM(D8:E8) -> 0 | G8: =SUM(O8,W8,AE8,AM8,AU8,BC8) -> 0 | H8: =SUM(P8,X8,AF8,AN8,AV8,BD8) -> 0 | I8: =SUM(G8:H8) -> 0 | N8: =IF(AND(L8<>"",M8<>""),SUM(L8:M8),"") ->  | Q8: =IF(AND(O8<>"",P8<>""),SUM(O8:P8),"") ->  | V8: =IF(AND(T8<>"",U8<>""),SUM(T8:U8),"") ->  | Y8: =IF(AND(W8<>"",X8<>""),SUM(W8:X8),"") ->  | AD8: =IF(AND(AB8<>"",AC8<>""),SUM(AB8:AC8),"") ->  | AG8: =IF(AND(AE8<>"",AF8<>""),SUM(AE8:AF8),"") ->  | AL8: =IF(AND(AJ8<>"",AK8<>""),SUM(AJ8:AK8),"") ->  | AO8: =IF(AND(AM8<>"",AN8<>""),SUM(AM8:AN8),"") ->  | AT8: =IF(AND(AR8<>"",AS8<>""),SUM(AR8:AS8),"") ->  | AW8: =IF(AND(AU8<>"",AV8<>""),SUM(AU8:AV8),"") ->  | BB8: =IF(AND(AZ8<>"",BA8<>""),SUM(AZ8:BA8),"") ->  | BE8: =IF(AND(BC8<>"",BD8<>""),SUM(BC8:BD8),"") -> 
A9: 京都府 | B9: 26201 | C9: 福知山市 | D9: =SUM(L9,T9,AB9,AJ9,AR9,AZ9) -> 0 | E9: =SUM(M9,U9,AC9,AK9,AS9,BA9) -> 0 | F9: =SUM(D9:E9) -> 0 | G9: =SUM(O9,W9,AE9,AM9,AU9,BC9) -> 0 | H9: =SUM(P9,X9,AF9,AN9,AV9,BD9) -> 0 | I9: =SUM(G9:H9) -> 0 | N9: =IF(AND(L9<>"",M9<>""),SUM(L9:M9),"") ->  | Q9: =IF(AND(O9<>"",P9<>""),SUM(O9:P9),"") ->  | V9: =IF(AND(T9<>"",U9<>""),SUM(T9:U9),"") ->  | Y9: =IF(AND(W9<>"",X9<>""),SUM(W9:X9),"") ->  | AD9: =IF(AND(AB9<>"",AC9<>""),SUM(AB9:AC9),"") ->  | AG9: =IF(AND(AE9<>"",AF9<>""),SUM(AE9:AF9),"") ->  | AL9: =IF(AND(AJ9<>"",AK9<>""),SUM(AJ9:AK9),"") ->  | AO9: =IF(AND(AM9<>"",AN9<>""),SUM(AM9:AN9),"") ->  | AT9: =IF(AND(AR9<>"",AS9<>""),SUM(AR9:AS9),"") ->  | AW9: =IF(AND(AU9<>"",AV9<>""),SUM(AU9:AV9),"") ->  | BB9: =IF(AND(AZ9<>"",BA9<>""),SUM(AZ9:BA9),"") ->  | BE9: =IF(AND(BC9<>"",BD9<>""),SUM(BC9:BD9),"") -> 
A10: 京都府 | B10: 26202 | C10: 舞鶴市 | D10: =SUM(L10,T10,AB10,AJ10,AR10,AZ10) -> 0 | E10: =SUM(M10,U10,AC10,AK10,AS10,BA10) -> 0 | F10: =SUM(D10:E10) -> 0 | G10: =SUM(O10,W10,AE10,AM10,AU10,BC10) -> 0 | H10: =SUM(P10,X10,AF10,AN10,AV10,BD10) -> 0 | I10: =SUM(G10:H10) -> 0 | N10: =IF(AND(L10<>"",M10<>""),SUM(L10:M10),"") ->  | Q10: =IF(AND(O10<>"",P10<>""),SUM(O10:P10),"") ->  | V10: =IF(AND(T10<>"",U10<>""),SUM(T10:U10),"") ->  | Y10: =IF(AND(W10<>"",X10<>""),SUM(W10:X10),"") ->  | AD10: =IF(AND(AB10<>"",AC10<>""),SUM(AB10:AC10),"") ->  | AG10: =IF(AND(AE10<>"",AF10<>""),SUM(AE10:AF10),"") ->  | AL10: =IF(AND(AJ10<>"",AK10<>""),SUM(AJ10:AK10),"") ->  | AO10: =IF(AND(AM10<>"",AN10<>""),SUM(AM10:AN10),"") ->  | AT10: =IF(AND(AR10<>"",AS10<>""),SUM(AR10:AS10),"") ->  | AW10: =IF(AND(AU10<>"",AV10<>""),SUM(AU10:AV10),"") ->  | BB10: =IF(AND(AZ10<>"",BA10<>""),SUM(AZ10:BA10),"") ->  | BE10: =IF(AND(BC10<>"",BD10<>""),SUM(BC10:BD10),"") -> 
A11: 京都府 | B11: 26203 | C11: 綾部市 | D11: =SUM(L11,T11,AB11,AJ11,AR11,AZ11) -> 0 | E11: =SUM(M11,U11,AC11,AK11,AS11,BA11) -> 0 | F11: =SUM(D11:E11) -> 0 | G11: =SUM(O11,W11,AE11,AM11,AU11,BC11) -> 0 | H11: =SUM(P11,X11,AF11,AN11,AV11,BD11) -> 0 | I11: =SUM(G11:H11) -> 0 | N11: =IF(AND(L11<>"",M11<>""),SUM(L11:M11),"") ->  | Q11: =IF(AND(O11<>"",P11<>""),SUM(O11:P11),"") ->  | V11: =IF(AND(T11<>"",U11<>""),SUM(T11:U11),"") ->  | Y11: =IF(AND(W11<>"",X11<>""),SUM(W11:X11),"") ->  | AD11: =IF(AND(AB11<>"",AC11<>""),SUM(AB11:AC11),"") ->  | AG11: =IF(AND(AE11<>"",AF11<>""),SUM(AE11:AF11),"") ->  | AL11: =IF(AND(AJ11<>"",AK11<>""),SUM(AJ11:AK11),"") ->  | AO11: =IF(AND(AM11<>"",AN11<>""),SUM(AM11:AN11),"") ->  | AT11: =IF(AND(AR11<>"",AS11<>""),SUM(AR11:AS11),"") ->  | AW11: =IF(AND(AU11<>"",AV11<>""),SUM(AU11:AV11),"") ->  | BB11: =IF(AND(AZ11<>"",BA11<>""),SUM(AZ11:BA11),"") ->  | BE11: =IF(AND(BC11<>"",BD11<>""),SUM(BC11:BD11),"") -> 
A12: 京都府 | B12: 26204 | C12: 宇治市 | D12: =SUM(L12,T12,AB12,AJ12,AR12,AZ12) -> 434,293 | E12: =SUM(M12,U12,AC12,AK12,AS12,BA12) -> 696,696 | F12: =SUM(D12:E12) -> 1,130,989 | G12: =SUM(O12,W12,AE12,AM12,AU12,BC12) -> 48,646 | H12: =SUM(P12,X12,AF12,AN12,AV12,BD12) -> 287,080 | I12: =SUM(G12:H12) -> 335,726 | J12: 26820 | K12: 城南衛生管理組合 | L12: 434,293 | M12: 696,696 | N12: =IF(AND(L12<>"",M12<>""),SUM(L12:M12),"") -> 1,130,989 | O12: 48,646 | P12: 287,080 | Q12: =IF(AND(O12<>"",P12<>""),SUM(O12:P12),"") -> 335,726 | V12: =IF(AND(T12<>"",U12<>""),SUM(T12:U12),"") ->  | Y12: =IF(AND(W12<>"",X12<>""),SUM(W12:X12),"") ->  | AD12: =IF(AND(AB12<>"",AC12<>""),SUM(AB12:AC12),"") ->  | AG12: =IF(AND(AE12<>"",AF12<>""),SUM(AE12:AF12),"") ->  | AL12: =IF(AND(AJ12<>"",AK12<>""),SUM(AJ12:AK12),"") ->  | AO12: =IF(AND(AM12<>"",AN12<>""),SUM(AM12:AN12),"") ->  | AT12: =IF(AND(AR12<>"",AS12<>""),SUM(AR12:AS12),"") ->  | AW12: =IF(AND(AU12<>"",AV12<>""),SUM(AU12:AV12),"") ->  | BB12: =IF(AND(AZ12<>"",BA12<>""),SUM(AZ12:BA12),"") ->  | BE12: =IF(AND(BC12<>"",BD12<>""),SUM(BC12:BD12),"") -> 
A13: 京都府 | B13: 26205 | C13: 宮津市 | D13: =SUM(L13,T13,AB13,AJ13,AR13,AZ13) -> 133,857 | E13: =SUM(M13,U13,AC13,AK13,AS13,BA13) -> 0 | F13: =SUM(D13:E13) -> 133,857 | G13: =SUM(O13,W13,AE13,AM13,AU13,BC13) -> 0 | H13: =SUM(P13,X13,AF13,AN13,AV13,BD13) -> 0 | I13: =SUM(G13:H13) -> 0 | J13: 26861 | K13: 宮津与謝環境組合 | L13: 133,857 | M13: 0 | N13: =IF(AND(L13<>"",M13<>""),SUM(L13:M13),"") -> 133,857 | O13: 0 | P13: 0 | Q13: =IF(AND(O13<>"",P13<>""),SUM(O13:P13),"") -> 0 | V13: =IF(AND(T13<>"",U13<>""),SUM(T13:U13),"") ->  | Y13: =IF(AND(W13<>"",X13<>""),SUM(W13:X13),"") ->  | AD13: =IF(AND(AB13<>"",AC13<>""),SUM(AB13:AC13),"") ->  | AG13: =IF(AND(AE13<>"",AF13<>""),SUM(AE13:AF13),"") ->  | AL13: =IF(AND(AJ13<>"",AK13<>""),SUM(AJ13:AK13),"") ->  | AO13: =IF(AND(AM13<>"",AN13<>""),SUM(AM13:AN13),"") ->  | AT13: =IF(AND(AR13<>"",AS13<>""),SUM(AR13:AS13),"") ->  | AW13: =IF(AND(AU13<>"",AV13<>""),SUM(AU13:AV13),"") ->  | BB13: =IF(AND(AZ13<>"",BA13<>""),SUM(AZ13:BA13),"") ->  | BE13: =IF(AND(BC13<>"",BD13<>""),SUM(BC13:BD13),"") -> 
A14: 京都府 | B14: 26206 | C14: 亀岡市 | D14: =SUM(L14,T14,AB14,AJ14,AR14,AZ14) -> 0 | E14: =SUM(M14,U14,AC14,AK14,AS14,BA14) -> 0 | F14: =SUM(D14:E14) -> 0 | G14: =SUM(O14,W14,AE14,AM14,AU14,BC14) -> 0 | H14: =SUM(P14,X14,AF14,AN14,AV14,BD14) -> 0 | I14: =SUM(G14:H14) -> 0 | N14: =IF(AND(L14<>"",M14<>""),SUM(L14:M14),"") ->  | Q14: =IF(AND(O14<>"",P14<>""),SUM(O14:P14),"") ->  | V14: =IF(AND(T14<>"",U14<>""),SUM(T14:U14),"") ->  | Y14: =IF(AND(W14<>"",X14<>""),SUM(W14:X14),"") ->  | AD14: =IF(AND(AB14<>"",AC14<>""),SUM(AB14:AC14),"") ->  | AG14: =IF(AND(AE14<>"",AF14<>""),SUM(AE14:AF14),"") ->  | AL14: =IF(AND(AJ14<>"",AK14<>""),SUM(AJ14:AK14),"") ->  | AO14: =IF(AND(AM14<>"",AN14<>""),SUM(AM14:AN14),"") ->  | AT14: =IF(AND(AR14<>"",AS14<>""),SUM(AR14:AS14),"") ->  | AW14: =IF(AND(AU14<>"",AV14<>""),SUM(AU14:AV14),"") ->  | BB14: =IF(AND(AZ14<>"",BA14<>""),SUM(AZ14:BA14),"") ->  | BE14: =IF(AND(BC14<>"",BD14<>""),SUM(BC14:BD14),"") -> 
A15: 京都府 | B15: 26207 | C15: 城陽市 | D15: =SUM(L15,T15,AB15,AJ15,AR15,AZ15) -> 201,312 | E15: =SUM(M15,U15,AC15,AK15,AS15,BA15) -> 322,945 | F15: =SUM(D15:E15) -> 524,257 | G15: =SUM(O15,W15,AE15,AM15,AU15,BC15) -> 21,936 | H15: =SUM(P15,X15,AF15,AN15,AV15,BD15) -> 129,453 | I15: =SUM(G15:H15) -> 151,389 | J15: 26820 | K15: 城南衛生管理組合 | L15: 201,312 | M15: 322,945 | N15: =IF(AND(L15<>"",M15<>""),SUM(L15:M15),"") -> 524,257 | O15: 21,936 | P15: 129,453 | Q15: =IF(AND(O15<>"",P15<>""),SUM(O15:P15),"") -> 151,389 | V15: =IF(AND(T15<>"",U15<>""),SUM(T15:U15),"") ->  | Y15: =IF(AND(W15<>"",X15<>""),SUM(W15:X15),"") ->  | AD15: =IF(AND(AB15<>"",AC15<>""),SUM(AB15:AC15),"") ->  | AG15: =IF(AND(AE15<>"",AF15<>""),SUM(AE15:AF15),"") ->  | AL15: =IF(AND(AJ15<>"",AK15<>""),SUM(AJ15:AK15),"") ->  | AO15: =IF(AND(AM15<>"",AN15<>""),SUM(AM15:AN15),"") ->  | AT15: =IF(AND(AR15<>"",AS15<>""),SUM(AR15:AS15),"") ->  | AW15: =IF(AND(AU15<>"",AV15<>""),SUM(AU15:AV15),"") ->  | BB15: =IF(AND(AZ15<>"",BA15<>""),SUM(AZ15:BA15),"") ->  | BE15: =IF(AND(BC15<>"",BD15<>""),SUM(BC15:BD15),"") -> 
A16: 京都府 | B16: 26208 | C16: 向日市 | D16: =SUM(L16,T16,AB16,AJ16,AR16,AZ16) -> 144,702 | E16: =SUM(M16,U16,AC16,AK16,AS16,BA16) -> 273,468 | F16: =SUM(D16:E16) -> 418,170 | G16: =SUM(O16,W16,AE16,AM16,AU16,BC16) -> 0 | H16: =SUM(P16,X16,AF16,AN16,AV16,BD16) -> 0 | I16: =SUM(G16:H16) -> 0 | J16: 26828 | K16: 乙訓環境衛生組合 | L16: 144,702 | M16: 273,468 | N16: =IF(AND(L16<>"",M16<>""),SUM(L16:M16),"") -> 418,170 | O16: 0 | P16: 0 | Q16: =IF(AND(O16<>"",P16<>""),SUM(O16:P16),"") -> 0 | V16: =IF(AND(T16<>"",U16<>""),SUM(T16:U16),"") ->  | Y16: =IF(AND(W16<>"",X16<>""),SUM(W16:X16),"") ->  | AD16: =IF(AND(AB16<>"",AC16<>""),SUM(AB16:AC16),"") ->  | AG16: =IF(AND(AE16<>"",AF16<>""),SUM(AE16:AF16),"") ->  | AL16: =IF(AND(AJ16<>"",AK16<>""),SUM(AJ16:AK16),"") ->  | AO16: =IF(AND(AM16<>"",AN16<>""),SUM(AM16:AN16),"") ->  | AT16: =IF(AND(AR16<>"",AS16<>""),SUM(AR16:AS16),"") ->  | AW16: =IF(AND(AU16<>"",AV16<>""),SUM(AU16:AV16),"") ->  | BB16: =IF(AND(AZ16<>"",BA16<>""),SUM(AZ16:BA16),"") ->  | BE16: =IF(AND(BC16<>"",BD16<>""),SUM(BC16:BD16),"") -> 
A17: 京都府 | B17: 26209 | C17: 長岡京市 | D17: =SUM(L17,T17,AB17,AJ17,AR17,AZ17) -> 210,401 | E17: =SUM(M17,U17,AC17,AK17,AS17,BA17) -> 397,630 | F17: =SUM(D17:E17) -> 608,031 | G17: =SUM(O17,W17,AE17,AM17,AU17,BC17) -> 0 | H17: =SUM(P17,X17,AF17,AN17,AV17,BD17) -> 0 | I17: =SUM(G17:H17) -> 0 | J17: 26828 | K17: 乙訓環境衛生組合 | L17: 210,401 | M17: 397,630 | N17: =IF(AND(L17<>"",M17<>""),SUM(L17:M17),"") -> 608,031 | O17: 0 | P17: 0 | Q17: =IF(AND(O17<>"",P17<>""),SUM(O17:P17),"") -> 0 | V17: =IF(AND(T17<>"",U17<>""),SUM(T17:U17),"") ->  | Y17: =IF(AND(W17<>"",X17<>""),SUM(W17:X17),"") ->  | AD17: =IF(AND(AB17<>"",AC17<>""),SUM(AB17:AC17),"") ->  | AG17: =IF(AND(AE17<>"",AF17<>""),SUM(AE17:AF17),"") ->  | AL17: =IF(AND(AJ17<>"",AK17<>""),SUM(AJ17:AK17),"") ->  | AO17: =IF(AND(AM17<>"",AN17<>""),SUM(AM17:AN17),"") ->  | AT17: =IF(AND(AR17<>"",AS17<>""),SUM(AR17:AS17),"") ->  | AW17: =IF(AND(AU17<>"",AV17<>""),SUM(AU17:AV17),"") ->  | BB17: =IF(AND(AZ17<>"",BA17<>""),SUM(AZ17:BA17),"") ->  | BE17: =IF(AND(BC17<>"",BD17<>""),SUM(BC17:BD17),"") -> 
A18: 京都府 | B18: 26210 | C18: 八幡市 | D18: =SUM(L18,T18,AB18,AJ18,AR18,AZ18) -> 182,126 | E18: =SUM(M18,U18,AC18,AK18,AS18,BA18) -> 292,167 | F18: =SUM(D18:E18) -> 474,293 | G18: =SUM(O18,W18,AE18,AM18,AU18,BC18) -> 10,521 | H18: =SUM(P18,X18,AF18,AN18,AV18,BD18) -> 62,087 | I18: =SUM(G18:H18) -> 72,608 | J18: 26820 | K18: 城南衛生管理組合 | L18: 182,126 | M18: 292,167 | N18: =IF(AND(L18<>"",M18<>""),SUM(L18:M18),"") -> 474,293 | O18: 10,521 | P18: 62,087 | Q18: =IF(AND(O18<>"",P18<>""),SUM(O18:P18),"") -> 72,608 | V18: =IF(AND(T18<>"",U18<>""),SUM(T18:U18),"") ->  | Y18: =IF(AND(W18<>"",X18<>""),SUM(W18:X18),"") ->  | AD18: =IF(AND(AB18<>"",AC18<>""),SUM(AB18:AC18),"") ->  | AG18: =IF(AND(AE18<>"",AF18<>""),SUM(AE18:AF18),"") ->  | AL18: =IF(AND(AJ18<>"",AK18<>""),SUM(AJ18:AK18),"") ->  | AO18: =IF(AND(AM18<>"",AN18<>""),SUM(AM18:AN18),"") ->  | AT18: =IF(AND(AR18<>"",AS18<>""),SUM(AR18:AS18),"") ->  | AW18: =IF(AND(AU18<>"",AV18<>""),SUM(AU18:AV18),"") ->  | BB18: =IF(AND(AZ18<>"",BA18<>""),SUM(AZ18:BA18),"") ->  | BE18: =IF(AND(BC18<>"",BD18<>""),SUM(BC18:BD18),"") -> 
A19: 京都府 | B19: 26211 | C19: 京田辺市 | D19: =SUM(L19,T19,AB19,AJ19,AR19,AZ19) -> 0 | E19: =SUM(M19,U19,AC19,AK19,AS19,BA19) -> 0 | F19: =SUM(D19:E19) -> 0 | G19: =SUM(O19,W19,AE19,AM19,AU19,BC19) -> 0 | H19: =SUM(P19,X19,AF19,AN19,AV19,BD19) -> 0 | I19: =SUM(G19:H19) -> 0 | N19: =IF(AND(L19<>"",M19<>""),SUM(L19:M19),"") ->  | Q19: =IF(AND(O19<>"",P19<>""),SUM(O19:P19),"") ->  | V19: =IF(AND(T19<>"",U19<>""),SUM(T19:U19),"") ->  | Y19: =IF(AND(W19<>"",X19<>""),SUM(W19:X19),"") ->  | AD19: =IF(AND(AB19<>"",AC19<>""),SUM(AB19:AC19),"") ->  | AG19: =IF(AND(AE19<>"",AF19<>""),SUM(AE19:AF19),"") ->  | AL19: =IF(AND(AJ19<>"",AK19<>""),SUM(AJ19:AK19),"") ->  | AO19: =IF(AND(AM19<>"",AN19<>""),SUM(AM19:AN19),"") ->  | AT19: =IF(AND(AR19<>"",AS19<>""),SUM(AR19:AS19),"") ->  | AW19: =IF(AND(AU19<>"",AV19<>""),SUM(AU19:AV19),"") ->  | BB19: =IF(AND(AZ19<>"",BA19<>""),SUM(AZ19:BA19),"") ->  | BE19: =IF(AND(BC19<>"",BD19<>""),SUM(BC19:BD19),"") -> 
A20: 京都府 | B20: 26212 | C20: 京丹後市 | D20: =SUM(L20,T20,AB20,AJ20,AR20,AZ20) -> 0 | E20: =SUM(M20,U20,AC20,AK20,AS20,BA20) -> 0 | F20: =SUM(D20:E20) -> 0 | G20: =SUM(O20,W20,AE20,AM20,AU20,BC20) -> 0 | H20: =SUM(P20,X20,AF20,AN20,AV20,BD20) -> 0 | I20: =SUM(G20:H20) -> 0 | N20: =IF(AND(L20<>"",M20<>""),SUM(L20:M20),"") ->  | Q20: =IF(AND(O20<>"",P20<>""),SUM(O20:P20),"") ->  | V20: =IF(AND(T20<>"",U20<>""),SUM(T20:U20),"") ->  | Y20: =IF(AND(W20<>"",X20<>""),SUM(W20:X20),"") ->  | AD20: =IF(AND(AB20<>"",AC20<>""),SUM(AB20:AC20),"") ->  | AG20: =IF(AND(AE20<>"",AF20<>""),SUM(AE20:AF20),"") ->  | AL20: =IF(AND(AJ20<>"",AK20<>""),SUM(AJ20:AK20),"") ->  | AO20: =IF(AND(AM20<>"",AN20<>""),SUM(AM20:AN20),"") ->  | AT20: =IF(AND(AR20<>"",AS20<>""),SUM(AR20:AS20),"") ->  | AW20: =IF(AND(AU20<>"",AV20<>""),SUM(AU20:AV20),"") ->  | BB20: =IF(AND(AZ20<>"",BA20<>""),SUM(AZ20:BA20),"") ->  | BE20: =IF(AND(BC20<>"",BD20<>""),SUM(BC20:BD20),"") -> 
A21: 京都府 | B21: 26213 | C21: 南丹市 | D21: =SUM(L21,T21,AB21,AJ21,AR21,AZ21) -> 0 | E21: =SUM(M21,U21,AC21,AK21,AS21,BA21) -> 254,714 | F21: =SUM(D21:E21) -> 254,714 | G21: =SUM(O21,W21,AE21,AM21,AU21,BC21) -> 0 | H21: =SUM(P21,X21,AF21,AN21,AV21,BD21) -> 320,228 | I21: =SUM(G21:H21) -> 320,228 | J21: 26817 | K21: 船井郡衛生管理組合 | L21: 0 | M21: 254,714 | N21: =IF(AND(L21<>"",M21<>""),SUM(L21:M21),"") -> 254,714 | O21: 0 | P21: 320,228 | Q21: =IF(AND(O21<>"",P21<>""),SUM(O21:P21),"") -> 320,228 | V21: =IF(AND(T21<>"",U21<>""),SUM(T21:U21),"") ->  | Y21: =IF(AND(W21<>"",X21<>""),SUM(W21:X21),"") ->  | AD21: =IF(AND(AB21<>"",AC21<>""),SUM(AB21:AC21),"") ->  | AG21: =IF(AND(AE21<>"",AF21<>""),SUM(AE21:AF21),"") ->  | AL21: =IF(AND(AJ21<>"",AK21<>""),SUM(AJ21:AK21),"") ->  | AO21: =IF(AND(AM21<>"",AN21<>""),SUM(AM21:AN21),"") ->  | AT21: =IF(AND(AR21<>"",AS21<>""),SUM(AR21:AS21),"") ->  | AW21: =IF(AND(AU21<>"",AV21<>""),SUM(AU21:AV21),"") ->  | BB21: =IF(AND(AZ21<>"",BA21<>""),SUM(AZ21:BA21),"") ->  | BE21: =IF(AND(BC21<>"",BD21<>""),SUM(BC21:BD21),"") -> 
A22: 京都府 | B22: 26214 | C22: 木津川市 | D22: =SUM(L22,T22,AB22,AJ22,AR22,AZ22) -> 15,917 | E22: =SUM(M22,U22,AC22,AK22,AS22,BA22) -> 112,809 | F22: =SUM(D22:E22) -> 128,726 | G22: =SUM(O22,W22,AE22,AM22,AU22,BC22) -> 0 | H22: =SUM(P22,X22,AF22,AN22,AV22,BD22) -> 161,328 | I22: =SUM(G22:H22) -> 161,328 | J22: 26821 | K22: 相楽郡西部塵埃処理組合 | L22: 15,917 | M22: 112,809 | N22: =IF(AND(L22<>"",M22<>""),SUM(L22:M22),"") -> 128,726 | O22: 0 | P22: 0 | Q22: =IF(AND(O22<>"",P22<>""),SUM(O22:P22),"") -> 0 | R22: 26849 | S22: 相楽郡広域事務組合 | T22: 0 | U22: 0 | V22: =IF(AND(T22<>"",U22<>""),SUM(T22:U22),"") -> 0 | W22: 0 | X22: 161,328 | Y22: =IF(AND(W22<>"",X22<>""),SUM(W22:X22),"") -> 161,328 | AD22: =IF(AND(AB22<>"",AC22<>""),SUM(AB22:AC22),"") ->  | AG22: =IF(AND(AE22<>"",AF22<>""),SUM(AE22:AF22),"") ->  | AL22: =IF(AND(AJ22<>"",AK22<>""),SUM(AJ22:AK22),"") ->  | AO22: =IF(AND(AM22<>"",AN22<>""),SUM(AM22:AN22),"") ->  | AT22: =IF(AND(AR22<>"",AS22<>""),SUM(AR22:AS22),"") ->  | AW22: =IF(AND(AU22<>"",AV22<>""),SUM(AU22:AV22),"") ->  | BB22: =IF(AND(AZ22<>"",BA22<>""),SUM(AZ22:BA22),"") ->  | BE22: =IF(AND(BC22<>"",BD22<>""),SUM(BC22:BD22),"") -> 
A23: 京都府 | B23: 26303 | C23: 大山崎町 | D23: =SUM(L23,T23,AB23,AJ23,AR23,AZ23) -> 40,908 | E23: =SUM(M23,U23,AC23,AK23,AS23,BA23) -> 77,311 | F23: =SUM(D23:E23) -> 118,219 | G23: =SUM(O23,W23,AE23,AM23,AU23,BC23) -> 0 | H23: =SUM(P23,X23,AF23,AN23,AV23,BD23) -> 0 | I23: =SUM(G23:H23) -> 0 | J23: 26828 | K23: 乙訓環境衛生組合 | L23: 40,908 | M23: 77,311 | N23: =IF(AND(L23<>"",M23<>""),SUM(L23:M23),"") -> 118,219 | O23: 0 | P23: 0 | Q23: =IF(AND(O23<>"",P23<>""),SUM(O23:P23),"") -> 0 | V23: =IF(AND(T23<>"",U23<>""),SUM(T23:U23),"") ->  | Y23: =IF(AND(W23<>"",X23<>""),SUM(W23:X23),"") ->  | AD23: =IF(AND(AB23<>"",AC23<>""),SUM(AB23:AC23),"") ->  | AG23: =IF(AND(AE23<>"",AF23<>""),SUM(AE23:AF23),"") ->  | AL23: =IF(AND(AJ23<>"",AK23<>""),SUM(AJ23:AK23),"") ->  | AO23: =IF(AND(AM23<>"",AN23<>""),SUM(AM23:AN23),"") ->  | AT23: =IF(AND(AR23<>"",AS23<>""),SUM(AR23:AS23),"") ->  | AW23: =IF(AND(AU23<>"",AV23<>""),SUM(AU23:AV23),"") ->  | BB23: =IF(AND(AZ23<>"",BA23<>""),SUM(AZ23:BA23),"") ->  | BE23: =IF(AND(BC23<>"",BD23<>""),SUM(BC23:BD23),"") -> 
A24: 京都府 | B24: 26322 | C24: 久御山町 | D24: =SUM(L24,T24,AB24,AJ24,AR24,AZ24) -> 48,653 | E24: =SUM(M24,U24,AC24,AK24,AS24,BA24) -> 78,049 | F24: =SUM(D24:E24) -> 126,702 | G24: =SUM(O24,W24,AE24,AM24,AU24,BC24) -> 5,280 | H24: =SUM(P24,X24,AF24,AN24,AV24,BD24) -> 31,158 | I24: =SUM(G24:H24) -> 36,438 | J24: 26820 | K24: 城南衛生管理組合 | L24: 48,653 | M24: 78,049 | N24: =IF(AND(L24<>"",M24<>""),SUM(L24:M24),"") -> 126,702 | O24: 5,280 | P24: 31,158 | Q24: =IF(AND(O24<>"",P24<>""),SUM(O24:P24),"") -> 36,438 | V24: =IF(AND(T24<>"",U24<>""),SUM(T24:U24),"") ->  | Y24: =IF(AND(W24<>"",X24<>""),SUM(W24:X24),"") ->  | AD24: =IF(AND(AB24<>"",AC24<>""),SUM(AB24:AC24),"") ->  | AG24: =IF(AND(AE24<>"",AF24<>""),SUM(AE24:AF24),"") ->  | AL24: =IF(AND(AJ24<>"",AK24<>""),SUM(AJ24:AK24),"") ->  | AO24: =IF(AND(AM24<>"",AN24<>""),SUM(AM24:AN24),"") ->  | AT24: =IF(AND(AR24<>"",AS24<>""),SUM(AR24:AS24),"") ->  | AW24: =IF(AND(AU24<>"",AV24<>""),SUM(AU24:AV24),"") ->  | BB24: =IF(AND(AZ24<>"",BA24<>""),SUM(AZ24:BA24),"") ->  | BE24: =IF(AND(BC24<>"",BD24<>""),SUM(BC24:BD24),"") -> 
A25: 京都府 | B25: 26343 | C25: 井手町 | D25: =SUM(L25,T25,AB25,AJ25,AR25,AZ25) -> 23,775 | E25: =SUM(M25,U25,AC25,AK25,AS25,BA25) -> 38,141 | F25: =SUM(D25:E25) -> 61,916 | G25: =SUM(O25,W25,AE25,AM25,AU25,BC25) -> 3,607 | H25: =SUM(P25,X25,AF25,AN25,AV25,BD25) -> 21,289 | I25: =SUM(G25:H25) -> 24,896 | J25: 26820 | K25: 城南衛生管理組合 | L25: 23,775 | M25: 38,141 | N25: =IF(AND(L25<>"",M25<>""),SUM(L25:M25),"") -> 61,916 | O25: 3,607 | P25: 21,289 | Q25: =IF(AND(O25<>"",P25<>""),SUM(O25:P25),"") -> 24,896 | V25: =IF(AND(T25<>"",U25<>""),SUM(T25:U25),"") ->  | Y25: =IF(AND(W25<>"",X25<>""),SUM(W25:X25),"") ->  | AD25: =IF(AND(AB25<>"",AC25<>""),SUM(AB25:AC25),"") ->  | AG25: =IF(AND(AE25<>"",AF25<>""),SUM(AE25:AF25),"") ->  | AL25: =IF(AND(AJ25<>"",AK25<>""),SUM(AJ25:AK25),"") ->  | AO25: =IF(AND(AM25<>"",AN25<>""),SUM(AM25:AN25),"") ->  | AT25: =IF(AND(AR25<>"",AS25<>""),SUM(AR25:AS25),"") ->  | AW25: =IF(AND(AU25<>"",AV25<>""),SUM(AU25:AV25),"") ->  | BB25: =IF(AND(AZ25<>"",BA25<>""),SUM(AZ25:BA25),"") ->  | BE25: =IF(AND(BC25<>"",BD25<>""),SUM(BC25:BD25),"") -> 
A26: 京都府 | B26: 26344 | C26: 宇治田原町 | D26: =SUM(L26,T26,AB26,AJ26,AR26,AZ26) -> 27,815 | E26: =SUM(M26,U26,AC26,AK26,AS26,BA26) -> 44,620 | F26: =SUM(D26:E26) -> 72,435 | G26: =SUM(O26,W26,AE26,AM26,AU26,BC26) -> 7,244 | H26: =SUM(P26,X26,AF26,AN26,AV26,BD26) -> 42,749 | I26: =SUM(G26:H26) -> 49,993 | J26: 26820 | K26: 城南衛生管理組合 | L26: 27,815 | M26: 44,620 | N26: =IF(AND(L26<>"",M26<>""),SUM(L26:M26),"") -> 72,435 | O26: 7,244 | P26: 42,749 | Q26: =IF(AND(O26<>"",P26<>""),SUM(O26:P26),"") -> 49,993 | V26: =IF(AND(T26<>"",U26<>""),SUM(T26:U26),"") ->  | Y26: =IF(AND(W26<>"",X26<>""),SUM(W26:X26),"") ->  | AD26: =IF(AND(AB26<>"",AC26<>""),SUM(AB26:AC26),"") ->  | AG26: =IF(AND(AE26<>"",AF26<>""),SUM(AE26:AF26),"") ->  | AL26: =IF(AND(AJ26<>"",AK26<>""),SUM(AJ26:AK26),"") ->  | AO26: =IF(AND(AM26<>"",AN26<>""),SUM(AM26:AN26),"") ->  | AT26: =IF(AND(AR26<>"",AS26<>""),SUM(AR26:AS26),"") ->  | AW26: =IF(AND(AU26<>"",AV26<>""),SUM(AU26:AV26),"") ->  | BB26: =IF(AND(AZ26<>"",BA26<>""),SUM(AZ26:BA26),"") ->  | BE26: =IF(AND(BC26<>"",BD26<>""),SUM(BC26:BD26),"") -> 
A27: 京都府 | B27: 26364 | C27: 笠置町 | D27: =SUM(L27,T27,AB27,AJ27,AR27,AZ27) -> 0 | E27: =SUM(M27,U27,AC27,AK27,AS27,BA27) -> 45,052 | F27: =SUM(D27:E27) -> 45,052 | G27: =SUM(O27,W27,AE27,AM27,AU27,BC27) -> 0 | H27: =SUM(P27,X27,AF27,AN27,AV27,BD27) -> 26,822 | I27: =SUM(G27:H27) -> 26,822 | J27: 26843 | K27: 相楽東部広域連合 | L27: 0 | M27: 45,052 | N27: =IF(AND(L27<>"",M27<>""),SUM(L27:M27),"") -> 45,052 | O27: 0 | P27: 0 | Q27: =IF(AND(O27<>"",P27<>""),SUM(O27:P27),"") -> 0 | R27: 26849 | S27: 相楽郡広域事務組合 | T27: 0 | U27: 0 | V27: =IF(AND(T27<>"",U27<>""),SUM(T27:U27),"") -> 0 | W27: 0 | X27: 26,822 | Y27: =IF(AND(W27<>"",X27<>""),SUM(W27:X27),"") -> 26,822 | AD27: =IF(AND(AB27<>"",AC27<>""),SUM(AB27:AC27),"") ->  | AG27: =IF(AND(AE27<>"",AF27<>""),SUM(AE27:AF27),"") ->  | AL27: =IF(AND(AJ27<>"",AK27<>""),SUM(AJ27:AK27),"") ->  | AO27: =IF(AND(AM27<>"",AN27<>""),SUM(AM27:AN27),"") ->  | AT27: =IF(AND(AR27<>"",AS27<>""),SUM(AR27:AS27),"") ->  | AW27: =IF(AND(AU27<>"",AV27<>""),SUM(AU27:AV27),"") ->  | BB27: =IF(AND(AZ27<>"",BA27<>""),SUM(AZ27:BA27),"") ->  | BE27: =IF(AND(BC27<>"",BD27<>""),SUM(BC27:BD27),"") -> 
A28: 京都府 | B28: 26365 | C28: 和束町 | D28: =SUM(L28,T28,AB28,AJ28,AR28,AZ28) -> 0 | E28: =SUM(M28,U28,AC28,AK28,AS28,BA28) -> 109,644 | F28: =SUM(D28:E28) -> 109,644 | G28: =SUM(O28,W28,AE28,AM28,AU28,BC28) -> 0 | H28: =SUM(P28,X28,AF28,AN28,AV28,BD28) -> 36,746 | I28: =SUM(G28:H28) -> 36,746 | J28: 26843 | K28: 相楽郡東部広域連合 | L28: 0 | M28: 109,644 | N28: =IF(AND(L28<>"",M28<>""),SUM(L28:M28),"") -> 109,644 | O28: 0 | P28: 0 | Q28: =IF(AND(O28<>"",P28<>""),SUM(O28:P28),"") -> 0 | R28: 26849 | S28: 相楽郡広域事務組合 | T28: 0 | U28: 0 | V28: =IF(AND(T28<>"",U28<>""),SUM(T28:U28),"") -> 0 | W28: 0 | X28: 36,746 | Y28: =IF(AND(W28<>"",X28<>""),SUM(W28:X28),"") -> 36,746 | AD28: =IF(AND(AB28<>"",AC28<>""),SUM(AB28:AC28),"") ->  | AG28: =IF(AND(AE28<>"",AF28<>""),SUM(AE28:AF28),"") ->  | AL28: =IF(AND(AJ28<>"",AK28<>""),SUM(AJ28:AK28),"") ->  | AO28: =IF(AND(AM28<>"",AN28<>""),SUM(AM28:AN28),"") ->  | AT28: =IF(AND(AR28<>"",AS28<>""),SUM(AR28:AS28),"") ->  | AW28: =IF(AND(AU28<>"",AV28<>""),SUM(AU28:AV28),"") ->  | BB28: =IF(AND(AZ28<>"",BA28<>""),SUM(AZ28:BA28),"") ->  | BE28: =IF(AND(BC28<>"",BD28<>""),SUM(BC28:BD28),"") -> 
A29: 京都府 | B29: 26366 | C29: 精華町 | D29: =SUM(L29,T29,AB29,AJ29,AR29,AZ29) -> 28,379 | E29: =SUM(M29,U29,AC29,AK29,AS29,BA29) -> 69,643 | F29: =SUM(D29:E29) -> 98,022 | G29: =SUM(O29,W29,AE29,AM29,AU29,BC29) -> 0 | H29: =SUM(P29,X29,AF29,AN29,AV29,BD29) -> 42,445 | I29: =SUM(G29:H29) -> 42,445 | J29: 26821 | K29: 相楽郡西部塵埃処理組合 | L29: 28,379 | M29: 69,643 | N29: =IF(AND(L29<>"",M29<>""),SUM(L29:M29),"") -> 98,022 | O29: 0 | P29: 0 | Q29: =IF(AND(O29<>"",P29<>""),SUM(O29:P29),"") -> 0 | R29: 26849 | S29: 相楽郡広域事務組合 | T29: 0 | U29: 0 | V29: =IF(AND(T29<>"",U29<>""),SUM(T29:U29),"") -> 0 | W29: 0 | X29: 42,445 | Y29: =IF(AND(W29<>"",X29<>""),SUM(W29:X29),"") -> 42,445 | AD29: =IF(AND(AB29<>"",AC29<>""),SUM(AB29:AC29),"") ->  | AG29: =IF(AND(AE29<>"",AF29<>""),SUM(AE29:AF29),"") ->  | AL29: =IF(AND(AJ29<>"",AK29<>""),SUM(AJ29:AK29),"") ->  | AO29: =IF(AND(AM29<>"",AN29<>""),SUM(AM29:AN29),"") ->  | AT29: =IF(AND(AR29<>"",AS29<>""),SUM(AR29:AS29),"") ->  | AW29: =IF(AND(AU29<>"",AV29<>""),SUM(AU29:AV29),"") ->  | BB29: =IF(AND(AZ29<>"",BA29<>""),SUM(AZ29:BA29),"") ->  | BE29: =IF(AND(BC29<>"",BD29<>""),SUM(BC29:BD29),"") -> 
A30: 京都府 | B30: 26367 | C30: 南山城村 | D30: =SUM(L30,T30,AB30,AJ30,AR30,AZ30) -> 0 | E30: =SUM(M30,U30,AC30,AK30,AS30,BA30) -> 69,157 | F30: =SUM(D30:E30) -> 69,157 | G30: =SUM(O30,W30,AE30,AM30,AU30,BC30) -> 0 | H30: =SUM(P30,X30,AF30,AN30,AV30,BD30) -> 31,130 | I30: =SUM(G30:H30) -> 31,130 | J30: 26843 | K30: 相楽東部広域連合 | L30: 0 | M30: 69,157 | N30: =IF(AND(L30<>"",M30<>""),SUM(L30:M30),"") -> 69,157 | O30: 0 | P30: 0 | Q30: =IF(AND(O30<>"",P30<>""),SUM(O30:P30),"") -> 0 | R30: 26849 | S30: 相楽郡広域事務組合 | T30: 0 | U30: 0 | V30: =IF(AND(T30<>"",U30<>""),SUM(T30:U30),"") -> 0 | W30: 0 | X30: 31,130 | Y30: =IF(AND(W30<>"",X30<>""),SUM(W30:X30),"") -> 31,130 | AD30: =IF(AND(AB30<>"",AC30<>""),SUM(AB30:AC30),"") ->  | AG30: =IF(AND(AE30<>"",AF30<>""),SUM(AE30:AF30),"") ->  | AL30: =IF(AND(AJ30<>"",AK30<>""),SUM(AJ30:AK30),"") ->  | AO30: =IF(AND(AM30<>"",AN30<>""),SUM(AM30:AN30),"") ->  | AT30: =IF(AND(AR30<>"",AS30<>""),SUM(AR30:AS30),"") ->  | AW30: =IF(AND(AU30<>"",AV30<>""),SUM(AU30:AV30),"") ->  | BB30: =IF(AND(AZ30<>"",BA30<>""),SUM(AZ30:BA30),"") ->  | BE30: =IF(AND(BC30<>"",BD30<>""),SUM(BC30:BD30),"") -> 
A31: 京都府 | B31: 26407 | C31: 京丹波町 | D31: =SUM(L31,T31,AB31,AJ31,AR31,AZ31) -> 0 | E31: =SUM(M31,U31,AC31,AK31,AS31,BA31) -> 112,625 | F31: =SUM(D31:E31) -> 112,625 | G31: =SUM(O31,W31,AE31,AM31,AU31,BC31) -> 0 | H31: =SUM(P31,X31,AF31,AN31,AV31,BD31) -> 205,532 | I31: =SUM(G31:H31) -> 205,532 | J31: 26817 | K31: 船井郡衛生管理組合 | L31: 0 | M31: 112,625 | N31: =IF(AND(L31<>"",M31<>""),SUM(L31:M31),"") -> 112,625 | O31: 0 | P31: 205,532 | Q31: =IF(AND(O31<>"",P31<>""),SUM(O31:P31),"") -> 205,532 | V31: =IF(AND(T31<>"",U31<>""),SUM(T31:U31),"") ->  | Y31: =IF(AND(W31<>"",X31<>""),SUM(W31:X31),"") ->  | AD31: =IF(AND(AB31<>"",AC31<>""),SUM(AB31:AC31),"") ->  | AG31: =IF(AND(AE31<>"",AF31<>""),SUM(AE31:AF31),"") ->  | AL31: =IF(AND(AJ31<>"",AK31<>""),SUM(AJ31:AK31),"") ->  | AO31: =IF(AND(AM31<>"",AN31<>""),SUM(AM31:AN31),"") ->  | AT31: =IF(AND(AR31<>"",AS31<>""),SUM(AR31:AS31),"") ->  | AW31: =IF(AND(AU31<>"",AV31<>""),SUM(AU31:AV31),"") ->  | BB31: =IF(AND(AZ31<>"",BA31<>""),SUM(AZ31:BA31),"") ->  | BE31: =IF(AND(BC31<>"",BD31<>""),SUM(BC31:BD31),"") -> 
A32: 京都府 | B32: 26463 | C32: 伊根町 | D32: =SUM(L32,T32,AB32,AJ32,AR32,AZ32) -> 15,328 | E32: =SUM(M32,U32,AC32,AK32,AS32,BA32) -> 0 | F32: =SUM(D32:E32) -> 15,328 | G32: =SUM(O32,W32,AE32,AM32,AU32,BC32) -> 0 | H32: =SUM(P32,X32,AF32,AN32,AV32,BD32) -> 0 | I32: =SUM(G32:H32) -> 0 | J32: 26861 | K32: 宮津与謝環境組合 | L32: 15,328 | M32: 0 | N32: =IF(AND(L32<>"",M32<>""),SUM(L32:M32),"") -> 15,328 | O32: 0 | P32: 0 | Q32: =IF(AND(O32<>"",P32<>""),SUM(O32:P32),"") -> 0 | V32: =IF(AND(T32<>"",U32<>""),SUM(T32:U32),"") ->  | Y32: =IF(AND(W32<>"",X32<>""),SUM(W32:X32),"") ->  | AD32: =IF(AND(AB32<>"",AC32<>""),SUM(AB32:AC32),"") ->  | AG32: =IF(AND(AE32<>"",AF32<>""),SUM(AE32:AF32),"") ->  | AL32: =IF(AND(AJ32<>"",AK32<>""),SUM(AJ32:AK32),"") ->  | AO32: =IF(AND(AM32<>"",AN32<>""),SUM(AM32:AN32),"") ->  | AT32: =IF(AND(AR32<>"",AS32<>""),SUM(AR32:AS32),"") ->  | AW32: =IF(AND(AU32<>"",AV32<>""),SUM(AU32:AV32),"") ->  | BB32: =IF(AND(AZ32<>"",BA32<>""),SUM(AZ32:BA32),"") ->  | BE32: =IF(AND(BC32<>"",BD32<>""),SUM(BC32:BD32),"") -> 
A33: 京都府 | B33: 26465 | C33: 与謝野町 | D33: =SUM(L33,T33,AB33,AJ33,AR33,AZ33) -> 158,615 | E33: =SUM(M33,U33,AC33,AK33,AS33,BA33) -> 0 | F33: =SUM(D33:E33) -> 158,615 | G33: =SUM(O33,W33,AE33,AM33,AU33,BC33) -> 0 | H33: =SUM(P33,X33,AF33,AN33,AV33,BD33) -> 0 | I33: =SUM(G33:H33) -> 0 | J33: 26861 | K33: 宮津与謝環境組合 | L33: 158,615 | M33: 0 | N33: =IF(AND(L33<>"",M33<>""),SUM(L33:M33),"") -> 158,615 | O33: 0 | P33: 0 | Q33: =IF(AND(O33<>"",P33<>""),SUM(O33:P33),"") -> 0 | V33: =IF(AND(T33<>"",U33<>""),SUM(T33:U33),"") ->  | Y33: =IF(AND(W33<>"",X33<>""),SUM(W33:X33),"") ->  | AD33: =IF(AND(AB33<>"",AC33<>""),SUM(AB33:AC33),"") ->  | AG33: =IF(AND(AE33<>"",AF33<>""),SUM(AE33:AF33),"") ->  | AL33: =IF(AND(AJ33<>"",AK33<>""),SUM(AJ33:AK33),"") ->  | AO33: =IF(AND(AM33<>"",AN33<>""),SUM(AM33:AN33),"") ->  | AT33: =IF(AND(AR33<>"",AS33<>""),SUM(AR33:AS33),"") ->  | AW33: =IF(AND(AU33<>"",AV33<>""),SUM(AU33:AV33),"") ->  | BB33: =IF(AND(AZ33<>"",BA33<>""),SUM(AZ33:BA33),"") ->  | BE33: =IF(AND(BC33<>"",BD33<>""),SUM(BC33:BD33),"") -> 

Sheet 市町村分担金内訳
A1: 廃棄物処理事業経費【市区町村分担金の合計（平成28年度実績）
A2: 都道府県名 | B2: 地方公共団体コード | C2: 一部事務組合・広域連合名 | D2: 合計（構成市区町村1+～+構成市区町村30） | F2: 構成市区町村1 | J2: 構成市区町村2 | N2: 構成市区町村3 | R2: 構成市区町村4 | V2: 構成市区町村5 | Z2: 構成市区町村6 | AD2: 構成市区町村7 | AH2: 構成市区町村8 | AL2: 構成市区町村9 | AP2: 構成市区町村10 | AT2: 構成市区町村11 | AX2: 構成市区町村12 | BB2: 構成市区町村13 | BF2: 構成市区町村14 | BJ2: 構成市区町村15 | BN2: 構成市区町村16 | BR2: 構成市区町村17 | BV2: 構成市区町村18 | BZ2: 構成市区町村19 | CD2: 構成市区町村20 | CH2: 構成市区町村21 | CL2: 構成市区町村22 | CP2: 構成市区町村23 | CT2: 構成市区町村24 | CX2: 構成市区町村25 | DB2: 構成市区町村26 | DF2: 構成市区町村27 | DJ2: 構成市区町村28 | DN2: 構成市区町村29 | DR2: 構成市区町村30
D4: ごみ | E4: し尿 | F4: 市区町村 コード | G4: 市区町村名 | H4: ごみ | I4: し尿 | J4: 市区町村 コード | K4: 市区町村名 | L4: ごみ | M4: し尿 | N4: 市区町村 コード | O4: 市区町村名 | P4: ごみ | Q4: し尿 | R4: 市区町村 コード | S4: 市区町村名 | T4: ごみ | U4: し尿 | V4: 市区町村 コード | W4: 市区町村名 | X4: ごみ | Y4: し尿 | Z4: 市区町村 コード | AA4: 市区町村名 | AB4: ごみ | AC4: し尿 | AD4: 市区町村 コード | AE4: 市区町村名 | AF4: ごみ | AG4: し尿 | AH4: 市区町村 コード | AI4: 市区町村名 | AJ4: ごみ | AK4: し尿 | AL4: 市区町村 コード | AM4: 市区町村名 | AN4: ごみ | AO4: し尿 | AP4: 市区町村 コード | AQ4: 市区町村名 | AR4: ごみ | AS4: し尿 | AT4: 市区町村 コード | AU4: 市区町村名 | AV4: ごみ | AW4: し尿 | AX4: 市区町村 コード | AY4: 市区町村名 | AZ4: ごみ | BA4: し尿 | BB4: 市区町村 コード | BC4: 市区町村名 | BD4: ごみ | BE4: し尿 | BF4: 市区町村 コード | BG4: 市区町村名 | BH4: ごみ | BI4: し尿 | BJ4: 市区町村 コード | BK4: 市区町村名 | BL4: ごみ | BM4: し尿 | BN4: 市区町村 コード | BO4: 市区町村名 | BP4: ごみ | BQ4: し尿 | BR4: 市区町村 コード | BS4: 市区町村名 | BT4: ごみ | BU4: し尿 | BV4: 市区町村 コード | BW4: 市区町村名 | BX4: ごみ | BY4: し尿 | BZ4: 市区町村 コード | CA4: 市区町村名 | CB4: ごみ | CC4: し尿 | CD4: 市区町村 コード | CE4: 市区町村名 | CF4: ごみ | CG4: し尿 | CH4: 市区町村 コード | CI4: 市区町村名 | CJ4: ごみ | CK4: し尿 | CL4: 市区町村 コード | CM4: 市区町村名 | CN4: ごみ | CO4: し尿 | CP4: 市区町村 コード | CQ4: 市区町村名 | CR4: ごみ | CS4: し尿 | CT4: 市区町村 コード | CU4: 市区町村名 | CV4: ごみ | CW4: し尿 | CX4: 市区町村 コード | CY4: 市区町村名 | CZ4: ごみ | DA4: し尿 | DB4: 市区町村 コード | DC4: 市区町村名 | DD4: ごみ | DE4: し尿 | DF4: 市区町村 コード | DG4: 市区町村名 | DH4: ごみ | DI4: し尿 | DJ4: 市区町村 コード | DK4: 市区町村名 | DL4: ごみ | DM4: し尿 | DN4: 市区町村 コード | DO4: 市区町村名 | DP4: ごみ | DQ4: し尿 | DR4: 市区町村 コード | DS4: 市区町村名 | DT4: ごみ | DU4: し尿
D6: （千円） | E6: （千円） | H6: （千円） | I6: （千円） | L6: （千円） | M6: （千円） | P6: （千円） | Q6: （千円） | T6: （千円） | U6: （千円） | X6: （千円） | Y6: （千円） | AB6: （千円） | AC6: （千円） | AF6: （千円） | AG6: （千円） | AJ6: （千円） | AK6: （千円） | AN6: （千円） | AO6: （千円） | AR6: （千円） | AS6: （千円） | AV6: （千円） | AW6: （千円） | AZ6: （千円） | BA6: （千円） | BD6: （千円） | BE6: （千円） | BH6: （千円） | BI6: （千円） | BL6: （千円） | BM6: （千円） | BP6: （千円） | BQ6: （千円） | BT6: （千円） | BU6: （千円） | BX6: （千円） | BY6: （千円） | CB6: （千円） | CC6: （千円） | CF6: （千円） | CG6: （千円） | CJ6: （千円） | CK6: （千円） | CN6: （千円） | CO6: （千円） | CR6: （千円） | CS6: （千円） | CV6: （千円） | CW6: （千円） | CZ6: （千円） | DA6: （千円） | DD6: （千円） | DE6: （千円） | DH6: （千円） | DI6: （千円） | DL6: （千円） | DM6: （千円） | DP6: （千円） | DQ6: （千円） | DT6: （千円） | DU6: （千円）
A7: ='廃棄物事業経費（市町村）'!A7 -> 京都府 | B7: ='廃棄物事業経費（市町村）'!B7 -> 26000 | C7: 合計 | D7: =SUM(H7,L7,P7,T7,X7,AB7,AF7,AJ7,AN7,AR7,AV7,AZ7,BD7,BH7,BL7,BP7,BT7,BX7,CB7,CF7,CJ7,CN7,CR7,CV7,CZ7,DD7,DH7,DL7,DP7,DT7) -> 4,660,752 | E7: =SUM(I7,M7,Q7,U7,Y7,AC7,AG7,AK7,AO7,AS7,AW7,BA7,BE7,BI7,BM7,BQ7,BU7,BY7,CC7,CG7,CK7,CO7,CS7,CW7,DA7,DE7,DI7,DM7,DQ7,DU7) -> 1,495,281 | F7: =COUNTIF(F$8:F$1000,"<>") -> 7 | G7: =COUNTIF(G$8:G$1000,"<>") -> 7 | H7: =SUM(H$8:H$1000) -> 2,111,508 | I7: =SUM(I$8:I$1000) -> 817,282 | J7: =COUNTIF(J$8:J$1000,"<>") -> 7 | K7: =COUNTIF(K$8:K$1000,"<>") -> 7 | L7: =SUM(L$8:L$1000) -> 1,467,907 | M7: =SUM(M$8:M$1000) -> 383,743 | N7: =COUNTIF(N$8:N$1000,"<>") -> 5 | O7: =COUNTIF(O$8:O$1000,"<>") -> 5 | P7: =SUM(P$8:P$1000) -> 820,284 | Q7: =SUM(Q$8:Q$1000) -> 109,354 | R7: =COUNTIF(R$8:R$1000,"<>") -> 2 | S7: =COUNTIF(S$8:S$1000,"<>") -> 2 | T7: =SUM(T$8:T$1000) -> 126,702 | U7: =SUM(U$8:U$1000) -> 78,883 | V7: =COUNTIF(V$8:V$1000,"<>") -> 2 | W7: =COUNTIF(W$8:W$1000,"<>") -> 2 | X7: =SUM(X$8:X$1000) -> 72,435 | Y7: =SUM(Y$8:Y$1000) -> 81,123 | Z7: =COUNTIF(Z$8:Z$1000,"<>") -> 1 | AA7: =COUNTIF(AA$8:AA$1000,"<>") -> 1 | AB7: =SUM(AB$8:AB$1000) -> 61,916 | AC7: =SUM(AC$8:AC$1000) -> 24,896 | AD7: =COUNTIF(AD$8:AD$1000,"<>") -> 0 | AE7: =COUNTIF(AE$8:AE$1000,"<>") -> 0 | AF7: =SUM(AF$8:AF$1000) -> 0 | AG7: =SUM(AG$8:AG$1000) -> 0 | AH7: =COUNTIF(AH$8:AH$1000,"<>") -> 0 | AI7: =COUNTIF(AI$8:AI$1000,"<>") -> 0 | AJ7: =SUM(AJ$8:AJ$1000) -> 0 | AK7: =SUM(AK$8:AK$1000) -> 0 | AL7: =COUNTIF(AL$8:AL$1000,"<>") -> 0 | AM7: =COUNTIF(AM$8:AM$1000,"<>") -> 0 | AN7: =SUM(AN$8:AN$1000) -> 0 | AO7: =SUM(AO$8:AO$1000) -> 0 | AP7: =COUNTIF(AP$8:AP$1000,"<>") -> 0 | AQ7: =COUNTIF(AQ$8:AQ$1000,"<>") -> 0 | AR7: =SUM(AR$8:AR$1000) -> 0 | AS7: =SUM(AS$8:AS$1000) -> 0 | AT7: =COUNTIF(AT$8:AT$1000,"<>") -> 0 | AU7: =COUNTIF(AU$8:AU$1000,"<>") -> 0 | AV7: =SUM(AV$8:AV$1000) -> 0 | AW7: =SUM(AW$8:AW$1000) -> 0 | AX7: =COUNTIF(AX$8:AX$1000,"<>") -> 0 | AY7: =COUNTIF(AY$8:AY$1000,"<>") -> 0 | AZ7: =SUM(AZ$8:AZ$1000) -> 0 | BA7: =SUM(BA$8:BA$1000) -> 0 | BB7: =COUNTIF(BB$8:BB$1000,"<>") -> 0 | BC7: =COUNTIF(BC$8:BC$1000,"<>") -> 0 | BD7: =SUM(BD$8:BD$1000) -> 0 | BE7: =SUM(BE$8:BE$1000) -> 0 | BF7: =COUNTIF(BF$8:BF$1000,"<>") -> 0 | BG7: =COUNTIF(BG$8:BG$1000,"<>") -> 0 | BH7: =SUM(BH$8:BH$1000) -> 0 | BI7: =SUM(BI$8:BI$1000) -> 0 | BJ7: =COUNTIF(BJ$8:BJ$1000,"<>") -> 0 | BK7: =COUNTIF(BK$8:BK$1000,"<>") -> 0 | BL7: =SUM(BL$8:BL$1000) -> 0 | BM7: =SUM(BM$8:BM$1000) -> 0 | BN7: =COUNTIF(BN$8:BN$1000,"<>") -> 0 | BO7: =COUNTIF(BO$8:BO$1000,"<>") -> 0 | BP7: =SUM(BP$8:BP$1000) -> 0 | BQ7: =SUM(BQ$8:BQ$1000) -> 0 | BR7: =COUNTIF(BR$8:BR$1000,"<>") -> 0 | BS7: =COUNTIF(BS$8:BS$1000,"<>") -> 0 | BT7: =SUM(BT$8:BT$1000) -> 0 | BU7: =SUM(BU$8:BU$1000) -> 0 | BV7: =COUNTIF(BV$8:BV$1000,"<>") -> 0 | BW7: =COUNTIF(BW$8:BW$1000,"<>") -> 0 | BX7: =SUM(BX$8:BX$1000) -> 0 | BY7: =SUM(BY$8:BY$1000) -> 0 | BZ7: =COUNTIF(BZ$8:BZ$1000,"<>") -> 0 | CA7: =COUNTIF(CA$8:CA$1000,"<>") -> 0 | CB7: =SUM(CB$8:CB$1000) -> 0 | CC7: =SUM(CC$8:CC$1000) -> 0 | CD7: =COUNTIF(CD$8:CD$1000,"<>") -> 0 | CE7: =COUNTIF(CE$8:CE$1000,"<>") -> 0 | CF7: =SUM(CF$8:CF$1000) -> 0 | CG7: =SUM(CG$8:CG$1000) -> 0 | CH7: =COUNTIF(CH$8:CH$1000,"<>") -> 0 | CI7: =COUNTIF(CI$8:CI$1000,"<>") -> 0 | CJ7: =SUM(CJ$8:CJ$1000) -> 0 | CK7: =SUM(CK$8:CK$1000) -> 0 | CL7: =COUNTIF(CL$8:CL$1000,"<>") -> 0 | CM7: =COUNTIF(CM$8:CM$1000,"<>") -> 0 | CN7: =SUM(CN$8:CN$1000) -> 0 | CO7: =SUM(CO$8:CO$1000) -> 0 | CP7: =COUNTIF(CP$8:CP$1000,"<>") -> 0 | CQ7: =COUNTIF(CQ$8:CQ$1000,"<>") -> 0 | CR7: =SUM(CR$8:CR$1000) -> 0 | CS7: =SUM(CS$8:CS$1000) -> 0 | CT7: =COUNTIF(CT$8:CT$1000,"<>") -> 0 | CU7: =COUNTIF(CU$8:CU$1000,"<>") -> 0 | CV7: =SUM(CV$8:CV$1000) -> 0 | CW7: =SUM(CW$8:CW$1000) -> 0 | CX7: =COUNTIF(CX$8:CX$1000,"<>") -> 0 | CY7: =COUNTIF(CY$8:CY$1000,"<>") -> 0 | CZ7: =SUM(CZ$8:CZ$1000) -> 0 | DA7: =SUM(DA$8:DA$1000) -> 0 | DB7: =COUNTIF(DB$8:DB$1000,"<>") -> 0 | DC7: =COUNTIF(DC$8:DC$1000,"<>") -> 0 | DD7: =SUM(DD$8:DD$1000) -> 0 | DE7: =SUM(DE$8:DE$1000) -> 0 | DF7: =COUNTIF(DF$8:DF$1000,"<>") -> 0 | DG7: =COUNTIF(DG$8:DG$1000,"<>") -> 0 | DH7: =SUM(DH$8:DH$1000) -> 0 | DI7: =SUM(DI$8:DI$1000) -> 0 | DJ7: =COUNTIF(DJ$8:DJ$1000,"<>") -> 0 | DK7: =COUNTIF(DK$8:DK$1000,"<>") -> 0 | DL7: =SUM(DL$8:DL$1000) -> 0 | DM7: =SUM(DM$8:DM$1000) -> 0 | DN7: =COUNTIF(DN$8:DN$1000,"<>") -> 0 | DO7: =COUNTIF(DO$8:DO$1000,"<>") -> 0 | DP7: =SUM(DP$8:DP$1000) -> 0 | DQ7: =SUM(DQ$8:DQ$1000) -> 0 | DR7: =COUNTIF(DR$8:DR$1000,"<>") -> 0 | DS7: =COUNTIF(DS$8:DS$1000,"<>") -> 0 | DT7: =SUM(DT$8:DT$1000) -> 0 | DU7: =SUM(DU$8:DU$1000) -> 0
A8: 京都府 | B8: 26817 | C8: 船井郡衛生管理組合 | D8: =SUM(H8,L8,P8,T8,X8,AB8,AF8,AJ8,AN8,AR8,AV8,AZ8,BD8,BH8,BL8,BP8,BT8,BX8,CB8,CF8,CJ8,CN8,CR8,CV8,CZ8,DD8,DH8,DL8,DP8,DT8) -> 367,339 | E8: =SUM(I8,M8,Q8,U8,Y8,AC8,AG8,AK8,AO8,AS8,AW8,BA8,BE8,BI8,BM8,BQ8,BU8,BY8,CC8,CG8,CK8,CO8,CS8,CW8,DA8,DE8,DI8,DM8,DQ8,DU8) -> 525,760 | F8: 26213 | G8: 南丹市 | H8: 254,714 | I8: 320,228 | J8: 26407 | K8: 京丹波町 | L8: 112,625 | M8: 205,532
A9: 京都府 | B9: 26820 | C9: 城南衛生管理組合 | D9: =SUM(H9,L9,P9,T9,X9,AB9,AF9,AJ9,AN9,AR9,AV9,AZ9,BD9,BH9,BL9,BP9,BT9,BX9,CB9,CF9,CJ9,CN9,CR9,CV9,CZ9,DD9,DH9,DL9,DP9,DT9) -> 2,390,592 | E9: =SUM(I9,M9,Q9,U9,Y9,AC9,AG9,AK9,AO9,AS9,AW9,BA9,BE9,BI9,BM9,BQ9,BU9,BY9,CC9,CG9,CK9,CO9,CS9,CW9,DA9,DE9,DI9,DM9,DQ9,DU9) -> 671,050 | F9: 26204 | G9: 宇治市 | H9: 1,130,989 | I9: 335,726 | J9: 26207 | K9: 城陽市 | L9: 524,257 | M9: 151,389 | N9: 26210 | O9: 八幡市 | P9: 474,293 | Q9: 72,608 | R9: 26322 | S9: 久御山町 | T9: 126,702 | U9: 36,438 | V9: 26344 | W9: 宇治田原町 | X9: 72,435 | Y9: 49,993 | Z9: 26343 | AA9: 井手町 | AB9: 61,916 | AC9: 24,896
A10: 京都府 | B10: 26821 | C10: 相楽郡西部塵埃処理組合 | D10: =SUM(H10,L10,P10,T10,X10,AB10,AF10,AJ10,AN10,AR10,AV10,AZ10,BD10,BH10,BL10,BP10,BT10,BX10,CB10,CF10,CJ10,CN10,CR10,CV10,CZ10,DD10,DH10,DL10,DP10,DT10) -> 226,748 | E10: =SUM(I10,M10,Q10,U10,Y10,AC10,AG10,AK10,AO10,AS10,AW10,BA10,BE10,BI10,BM10,BQ10,BU10,BY10,CC10,CG10,CK10,CO10,CS10,CW10,DA10,DE10,DI10,DM10,DQ10,DU10) -> 0 | F10: 26214 | G10: 木津川市 | H10: 128,726 | I10: 0 | J10: 26366 | K10: 精華町 | L10: 98,022 | M10: 0
A11: 京都府 | B11: 26828 | C11: 乙訓環境衛生組合 | D11: =SUM(H11,L11,P11,T11,X11,AB11,AF11,AJ11,AN11,AR11,AV11,AZ11,BD11,BH11,BL11,BP11,BT11,BX11,CB11,CF11,CJ11,CN11,CR11,CV11,CZ11,DD11,DH11,DL11,DP11,DT11) -> 1,144,420 | E11: =SUM(I11,M11,Q11,U11,Y11,AC11,AG11,AK11,AO11,AS11,AW11,BA11,BE11,BI11,BM11,BQ11,BU11,BY11,CC11,CG11,CK11,CO11,CS11,CW11,DA11,DE11,DI11,DM11,DQ11,DU11) -> 0 | F11: 26208 | G11: 向日市 | H11: 418,170 | I11: 0 | J11: 26209 | K11: 長岡京市 | L11: 608,031 | M11: 0 | N11: 26303 | O11: 大山崎町 | P11: 118,219 | Q11: 0
A12: 京都府 | B12: 26843 | C12: 相楽東部広域連合 | D12: =SUM(H12,L12,P12,T12,X12,AB12,AF12,AJ12,AN12,AR12,AV12,AZ12,BD12,BH12,BL12,BP12,BT12,BX12,CB12,CF12,CJ12,CN12,CR12,CV12,CZ12,DD12,DH12,DL12,DP12,DT12) -> 223,853 | E12: =SUM(I12,M12,Q12,U12,Y12,AC12,AG12,AK12,AO12,AS12,AW12,BA12,BE12,BI12,BM12,BQ12,BU12,BY12,CC12,CG12,CK12,CO12,CS12,CW12,DA12,DE12,DI12,DM12,DQ12,DU12) -> 0 | F12: 26364 | G12: 笠置町 | H12: 45,052 | I12: 0 | J12: 26365 | K12: 和束町 | L12: 109,644 | M12: 0 | N12: 26367 | O12: 南山城村 | P12: 69,157 | Q12: 0
A13: 京都府 | B13: 26849 | C13: 相楽郡広域事務組合 | D13: =SUM(H13,L13,P13,T13,X13,AB13,AF13,AJ13,AN13,AR13,AV13,AZ13,BD13,BH13,BL13,BP13,BT13,BX13,CB13,CF13,CJ13,CN13,CR13,CV13,CZ13,DD13,DH13,DL13,DP13,DT13) -> 0 | E13: =SUM(I13,M13,Q13,U13,Y13,AC13,AG13,AK13,AO13,AS13,AW13,BA13,BE13,BI13,BM13,BQ13,BU13,BY13,CC13,CG13,CK13,CO13,CS13,CW13,DA13,DE13,DI13,DM13,DQ13,DU13) -> 298,471 | F13: 26214 | G13: 木津川市 | H13: 0 | I13: 161,328 | J13: 26364 | K13: 笠置町 | L13: 0 | M13: 26,822 | N13: 26365 | O13: 和束町 | P13: 0 | Q13: 36,746 | R13: 26366 | S13: 精華町 | T13: 0 | U13: 42,445 | V13: 26367 | W13: 南山城村 | X13: 0 | Y13: 31,130
A14: 京都府 | B14: 26861 | C14: 宮津与謝環境組合 | D14: =SUM(H14,L14,P14,T14,X14,AB14,AF14,AJ14,AN14,AR14,AV14,AZ14,BD14,BH14,BL14,BP14,BT14,BX14,CB14,CF14,CJ14,CN14,CR14,CV14,CZ14,DD14,DH14,DL14,DP14,DT14) -> 307,800 | E14: =SUM(I14,M14,Q14,U14,Y14,AC14,AG14,AK14,AO14,AS14,AW14,BA14,BE14,BI14,BM14,BQ14,BU14,BY14,CC14,CG14,CK14,CO14,CS14,CW14,DA14,DE14,DI14,DM14,DQ14,DU14) -> 0 | F14: 26205 | G14: 宮津市 | H14: 133,857 | I14: 0 | J14: 26463 | K14: 伊根町 | L14: 15,328 | M14: 0 | N14: 26465 | O14: 与謝野町 | P14: 158,615 | Q14: 0

Sheet 経費集計
B1: =COUNTA(A:A) - 3 -> -3 | C1: =SUBTOTAL(3,A:A ) - 2 -> -2
C2: 入力→ | E2: :市区町村コード(都道府県計は、01000～47000の何れか） | L2: =LEFT(D2,2) ->  | M2: =IF(L2<>"",VLOOKUP(L2,$AK$6:$AL$52,2,FALSE),"-") -> - | AC2: =IF(VALUE(D2)=0,0,1) -> 0 | AD2: =IF(AC2=0,"",VLOOKUP(D2,'廃棄物事業経費（歳入）'!B7:C250,2,FALSE)) ->  | AF2: =IF(AC2=0,1,IF(ISERROR(AD2),1,0)) -> 1 | AH2: =COUNTA('廃棄物事業経費（歳入）'!B7:B250)+6 | AI2: =IF(AC2=0,0,VLOOKUP(D2,AH5:AI250,2,FALSE)) -> 0
M5: （千円） | AH5: =+'廃棄物事業経費（歳入）'!B5 -> 0 | AI5: 5
B6: 歳入 | E6: ごみ | F6: し尿 | H6: 歳出 | L6: ごみ | M6: し尿 | AH6: =+'廃棄物事業経費（歳入）'!B6 -> 0 | AI6: 6 | AK6: 01 | AL6: 北海道
B7: 国庫支出金 | E7: =AF7 -> 0 | F7: =AF14 -> 0 | H7: 建設・改良費 | I7: 工事費 | J7: 収集運搬施設 | L7: =AF21 -> 0 | M7: =AF42 -> 0 | AC7: 国庫支出金 | AD7: 廃棄物事業経費（歳入） | AE7: F | AF7: =IF(AF$2=0,INDIRECT("'"&AD7&"'!"&AE7&$AI$2),0) -> 0 | AH7: =+'廃棄物事業経費（歳入）'!B7 -> 26000 | AI7: 7 | AK7: 02 | AL7: 青森県
B8: 都道府県支出金 | E8: 0 | F8: 0 | J8: 中間処理施設 | L8: 0 | M8: 0 | AC8: 都道府県支出金 | AD8: 廃棄物事業経費（歳入） | AE8: G | AF8: 0 | AH8: =+'廃棄物事業経費（歳入）'!B8 -> 26100 | AI8: 8 | AK8: 03 | AL8: 岩手県
B9: 地方債 | E9: 0 | F9: 0 | J9: 最終処分場 | L9: 0 | M9: 0 | AC9: 地方債 | AD9: 廃棄物事業経費（歳入） | AE9: H | AF9: 0 | AH9: =+'廃棄物事業経費（歳入）'!B9 -> 26201 | AI9: 9 | AK9: 04 | AL9: 宮城県
B10: 使用料・手数料 | E10: 0 | F10: 0 | J10: その他 | L10: 0 | M10: 0 | AC10: 使用料・手数料 | AD10: 廃棄物事業経費（歳入） | AE10: I | AF10: 0 | AH10: =+'廃棄物事業経費（歳入）'!B10 -> 26202 | AI10: 10 | AK10: 05 | AL10: 秋田県
B11: （市区町村分担金） | E11: 0 | F11: 0 | I11: 調査費 | L11: 0 | M11: 0 | AC11: （市区町村分担金） | AD11: 廃棄物事業経費（歳入） | AE11: J | AF11: 0 | AH11: =+'廃棄物事業経費（歳入）'!B11 -> 26203 | AI11: 11 | AK11: 06 | AL11: 山形県
B12: その他 | E12: 0 | F12: 0 | I12: （組合分担金） | L12: 0 | M12: 0 | AC12: その他 | AD12: 廃棄物事業経費（歳入） | AE12: K | AF12: 0 | AH12: =+'廃棄物事業経費（歳入）'!B12 -> 26204 | AI12: 12 | AK12: 07 | AL12: 福島県
B13: 小計（分担金含む） | E13: =SUM(E7:E12) -> 0 | F13: =SUM(F7:F12) -> 0 | I13: 小計 | L13: =SUM(L7:L12) -> 0 | M13: =SUM(M7:M12) -> 0 | AC13: 一般財源 | AD13: 廃棄物事業経費（歳入） | AE13: L | AF13: 0 | AH13: =+'廃棄物事業経費（歳入）'!B13 -> 26205 | AI13: 13 | AK13: 08 | AL13: 茨城県
C14: 分担金除く | E14: =E13-E11 -> 0 | F14: =F13-F11 -> 0 | K14: 分担金除く | L14: =L13-L12 -> 0 | M14: =M13-M12 -> 0 | AC14: 国庫支出金 | AD14: 廃棄物事業経費（歳入） | AE14: O | AF14: 0 | AH14: =+'廃棄物事業経費（歳入）'!B14 -> 26206 | AI14: 14 | AK14: 09 | AL14: 栃木県
B15: 一般財源 | E15: =AF13 -> 0 | F15: =AF20 -> 0 | H15: 処理及び維持管理費 | I15: 人件費 | J15: 一般職 | L15: =AF27 -> 0 | M15: =AF48 -> 0 | AC15: 都道府県支出金 | AD15: 廃棄物事業経費（歳入） | AE15: P | AF15: 0 | AH15: =+'廃棄物事業経費（歳入）'!B15 -> 26207 | AI15: 15 | AK15: 10 | AL15: 群馬県
B16: 合計 | E16: =SUM(E13,E15) -> 0 | F16: =SUM(F13,F15) -> 0 | J16: 技能職 | K16: 収集運搬 | L16: 0 | M16: 0 | AC16: 地方債 | AD16: 廃棄物事業経費（歳入） | AE16: Q | AF16: 0 | AH16: =+'廃棄物事業経費（歳入）'!B16 -> 26208 | AI16: 16 | AK16: 11 | AL16: 埼玉県
C17: 分担金除く | E17: =SUM(E14:E15) -> 0 | F17: =SUM(F14:F15) -> 0 | K17: 中間処理 | L17: 0 | M17: 0 | AC17: 使用料・手数料 | AD17: 廃棄物事業経費（歳入） | AE17: R | AF17: 0 | AH17: =+'廃棄物事業経費（歳入）'!B17 -> 26209 | AI17: 17 | AK17: 12 | AL17: 千葉県
K18: 最終処分 | L18: 0 | M18: 0 | AC18: （市区町村分担金） | AD18: 廃棄物事業経費（歳入） | AE18: S | AF18: 0 | AH18: =+'廃棄物事業経費（歳入）'!B18 -> 26210 | AI18: 18 | AK18: 13 | AL18: 東京都
I19: 処理費 | J19: 収集運搬費 | L19: 0 | M19: 0 | AC19: その他 | AD19: 廃棄物事業経費（歳入） | AE19: T | AF19: 0 | AH19: =+'廃棄物事業経費（歳入）'!B19 -> 26211 | AI19: 19 | AK19: 14 | AL19: 神奈川県
B20: 歳入の市区町村分担金 | E20: =E11 -> 0 | F20: =F11 -> 0 | J20: 中間処理費 | L20: 0 | M20: 0 | AC20: 一般財源 | AD20: 廃棄物事業経費（歳入） | AE20: U | AF20: 0 | AH20: =+'廃棄物事業経費（歳入）'!B20 -> 26212 | AI20: 20 | AK20: 15 | AL20: 新潟県
B21: 歳出の組合分担金 | E21: =L12+L27 -> 0 | F21: =M12+M27 -> 0 | J21: 最終処分費 | L21: 0 | M21: 0 | AB21: ごみ | AC21: 工事費（収集） | AD21: 廃棄物事業経費（歳出） | AE21: F | AF21: 0 | AH21: =+'廃棄物事業経費（歳入）'!B21 -> 26213 | AI21: 21 | AK21: 16 | AL21: 富山県
I22: 車両等購入費 | L22: 0 | M22: 0 | AB22: ごみ | AC22: 工事費（中間） | AD22: 廃棄物事業経費（歳出） | AE22: G | AF22: 0 | AH22: =+'廃棄物事業経費（歳入）'!B22 -> 26214 | AI22: 22 | AK22: 17 | AL22: 石川県
I23: 委託費 | J23: 収集運搬費 | L23: 0 | M23: 0 | AB23: ごみ | AC23: 工事費（処分） | AD23: 廃棄物事業経費（歳出） | AE23: H | AF23: 0 | AH23: =+'廃棄物事業経費（歳入）'!B23 -> 26303 | AI23: 23 | AK23: 18 | AL23: 福井県
J24: 中間処理費 | L24: 0 | M24: 0 | AB24: ごみ | AC24: その他 | AD24: 廃棄物事業経費（歳出） | AE24: I | AF24: 0 | AH24: =+'廃棄物事業経費（歳入）'!B24 -> 26322 | AI24: 24 | AK24: 19 | AL24: 山梨県
J25: 最終処分費 | L25: 0 | M25: 0 | AB25: ごみ | AC25: 調査費 | AD25: 廃棄物事業経費（歳出） | AE25: J | AF25: 0 | AH25: =+'廃棄物事業経費（歳入）'!B25 -> 26343 | AI25: 25 | AK25: 20 | AL25: 長野県
J26: その他 | L26: 0 | M26: 0 | AB26: ごみ | AC26: （組合分担金） | AD26: 廃棄物事業経費（歳出） | AE26: K | AF26: 0 | AH26: =+'廃棄物事業経費（歳入）'!B26 -> 26344 | AI26: 26 | AK26: 21 | AL26: 岐阜県
I27: （組合分担金） | L27: 0 | M27: 0 | AB27: ごみ | AC27: 人件費（一般職） | AD27: 廃棄物事業経費（歳出） | AE27: N | AF27: 0 | AH27: =+'廃棄物事業経費（歳入）'!B27 -> 26364 | AI27: 27 | AK27: 22 | AL27: 静岡県
I28: 調査研究費 | L28: 0 | M28: 0 | AB28: ごみ | AC28: 人件費（収集） | AD28: 廃棄物事業経費（歳出） | AE28: O | AF28: 0 | AH28: =+'廃棄物事業経費（歳入）'!B28 -> 26365 | AI28: 28 | AK28: 23 | AL28: 愛知県
I29: 小計 | L29: =SUM(L15:L28) -> 0 | M29: =SUM(M15:M28) -> 0 | AB29: ごみ | AC29: 人件費（中間） | AD29: 廃棄物事業経費（歳出） | AE29: P | AF29: 0 | AH29: =+'廃棄物事業経費（歳入）'!B29 -> 26366 | AI29: 29 | AK29: 24 | AL29: 三重県
K30: 分担金除く | L30: =L29-L27 -> 0 | M30: =M29-M27 -> 0 | AB30: ごみ | AC30: 人件費（処分） | AD30: 廃棄物事業経費（歳出） | AE30: Q | AF30: 0 | AH30: =+'廃棄物事業経費（歳入）'!B30 -> 26367 | AI30: 30 | AK30: 25 | AL30: 滋賀県
H31: その他 | L31: =AF41 -> 0 | M31: =AF62 -> 0 | AB31: ごみ | AC31: 処理費（収集） | AD31: 廃棄物事業経費（歳出） | AE31: S | AF31: 0 | AH31: =+'廃棄物事業経費（歳入）'!B31 -> 26407 | AI31: 31 | AK31: 26 | AL31: 京都府
H32: 合計 | L32: =SUM(L13,L29,L31) -> 0 | M32: =SUM(M13,M29,M31) -> 0 | AB32: ごみ | AC32: 処理費（中間） | AD32: 廃棄物事業経費（歳出） | AE32: T | AF32: 0 | AH32: =+'廃棄物事業経費（歳入）'!B32 -> 26463 | AI32: 32 | AK32: 27 | AL32: 大阪府
K33: 分担金除く | L33: =SUM(L14,L30,L31) -> 0 | M33: =SUM(M14,M30,M31) -> 0 | AB33: ごみ | AC33: 処理費（処分） | AD33: 廃棄物事業経費（歳出） | AE33: U | AF33: 0 | AH33: =+'廃棄物事業経費（歳入）'!B33 -> 26465 | AI33: 33 | AK33: 28 | AL33: 兵庫県
AB34: ごみ | AC34: 車両等購入費 | AD34: 廃棄物事業経費（歳出） | AE34: V | AF34: 0 | AH34: =+'廃棄物事業経費（歳入）'!B34 -> 26817 | AI34: 34 | AK34: 29 | AL34: 奈良県
AB35: ごみ | AC35: 委託費（収集） | AD35: 廃棄物事業経費（歳出） | AE35: X | AF35: 0 | AH35: =+'廃棄物事業経費（歳入）'!B35 -> 26820 | AI35: 35 | AK35: 30 | AL35: 和歌山県
AB36: ごみ | AC36: 委託費（中間） | AD36: 廃棄物事業経費（歳出） | AE36: Y | AF36: 0 | AH36: =+'廃棄物事業経費（歳入）'!B36 -> 26821 | AI36: 36 | AK36: 31 | AL36: 鳥取県
AB37: ごみ | AC37: 委託費（処分） | AD37: 廃棄物事業経費（歳出） | AE37: Z | AF37: 0 | AH37: =+'廃棄物事業経費（歳入）'!B37 -> 26828 | AI37: 37 | AK37: 32 | AL37: 島根県
AB38: ごみ | AC38: その他 | AD38: 廃棄物事業経費（歳出） | AE38: AA | AF38: 0 | AH38: =+'廃棄物事業経費（歳入）'!B38 -> 26843 | AI38: 38 | AK38: 33 | AL38: 岡山県
AB39: ごみ | AC39: （組合分担金） | AD39: 廃棄物事業経費（歳出） | AE39: AB | AF39: =IF(AF$2=0,INDIRECT("'"&AD39&"'!"&AE39&$AI$2),0) -> 0 | AH39: =+'廃棄物事業経費（歳入）'!B39 -> 26849 | AI39: 39 | AK39: 34 | AL39: 広島県
AB40: ごみ | AC40: 調査研究費 | AD40: 廃棄物事業経費（歳出） | AE40: AC | AF40: 0 | AH40: =+'廃棄物事業経費（歳入）'!B40 -> 26861 | AI40: 40 | AK40: 35 | AL40: 山口県
AB41: ごみ | AC41: その他 | AD41: 廃棄物事業経費（歳出） | AE41: AD | AF41: 0 | AH41: =+'廃棄物事業経費（歳入）'!B41 -> 0 | AI41: 41 | AK41: 36 | AL41: 徳島県
AB42: し尿 | AC42: 工事費（収集） | AD42: 廃棄物事業経費（歳出） | AE42: AH | AF42: 0 | AH42: =+'廃棄物事業経費（歳入）'!B42 -> 0 | AI42: 42 | AK42: 37 | AL42: 香川県
AB43: し尿 | AC43: 工事費（中間） | AD43: 廃棄物事業経費（歳出） | AE43: AI | AF43: 0 | AH43: =+'廃棄物事業経費（歳入）'!B43 -> 0 | AI43: 43 | AK43: 38 | AL43: 愛媛県
AB44: し尿 | AC44: 工事費（処分） | AD44: 廃棄物事業経費（歳出） | AE44: AJ | AF44: 0 | AH44: =+'廃棄物事業経費（歳入）'!B44 -> 0 | AI44: 44 | AK44: 39 | AL44: 高知県
AB45: し尿 | AC45: その他 | AD45: 廃棄物事業経費（歳出） | AE45: AK | AF45: 0 | AH45: =+'廃棄物事業経費（歳入）'!B45 -> 0 | AI45: 45 | AK45: 40 | AL45: 福岡県
AB46: し尿 | AC46: 調査費 | AD46: 廃棄物事業経費（歳出） | AE46: AL | AF46: 0 | AH46: =+'廃棄物事業経費（歳入）'!B46 -> 0 | AI46: 46 | AK46: 41 | AL46: 佐賀県
AB47: し尿 | AC47: （組合分担金） | AD47: 廃棄物事業経費（歳出） | AE47: AM | AF47: 0 | AH47: =+'廃棄物事業経費（歳入）'!B47 -> 0 | AI47: 47 | AK47: 42 | AL47: 長崎県
AB48: し尿 | AC48: 人件費（一般職） | AD48: 廃棄物事業経費（歳出） | AE48: AP | AF48: 0 | AH48: =+'廃棄物事業経費（歳入）'!B48 -> 0 | AI48: 48 | AK48: 43 | AL48: 熊本県
AB49: し尿 | AC49: 人件費（収集） | AD49: 廃棄物事業経費（歳出） | AE49: AQ | AF49: 0 | AH49: =+'廃棄物事業経費（歳入）'!B49 -> 0 | AI49: 49 | AK49: 44 | AL49: 大分県
AB50: し尿 | AC50: 人件費（中間） | AD50: 廃棄物事業経費（歳出） | AE50: AR | AF50: 0 | AH50: =+'廃棄物事業経費（歳入）'!B50 -> 0 | AI50: 50 | AK50: 45 | AL50: 宮崎県
AB51: し尿 | AC51: 人件費（処分） | AD51: 廃棄物事業経費（歳出） | AE51: AS | AF51: 0 | AH51: =+'廃棄物事業経費（歳入）'!B51 -> 0 | AI51: 51 | AK51: 46 | AL51: 鹿児島県
AB52: し尿 | AC52: 処理費（収集） | AD52: 廃棄物事業経費（歳出） | AE52: AU | AF52: 0 | AH52: =+'廃棄物事業経費（歳入）'!B52 -> 0 | AI52: 52 | AK52: 47 | AL52: 沖縄県
AB53: し尿 | AC53: 処理費（中間） | AD53: 廃棄物事業経費（歳出） | AE53: AV | AF53: 0 | AH53: =+'廃棄物事業経費（歳入）'!B53 -> 0 | AI53: 53
AB54: し尿 | AC54: 処理費（処分） | AD54: 廃棄物事業経費（歳出） | AE54: AW | AF54: 0 | AH54: =+'廃棄物事業経費（歳入）'!B54 -> 0 | AI54: 54
AB55: し尿 | AC55: 車両等購入費 | AD55: 廃棄物事業経費（歳出） | AE55: AX | AF55: 0 | AH55: =+'廃棄物事業経費（歳入）'!B55 -> 0 | AI55: 55
AB56: し尿 | AC56: 委託費（収集） | AD56: 廃棄物事業経費（歳出） | AE56: AZ | AF56: 0 | AH56: =+'廃棄物事業経費（歳入）'!B56 -> 0 | AI56: 56
AB57: し尿 | AC57: 委託費（中間） | AD57: 廃棄物事業経費（歳出） | AE57: BA | AF57: 0 | AH57: =+'廃棄物事業経費（歳入）'!B57 -> 0 | AI57: 57
AB58: し尿 | AC58: 委託費（処分） | AD58: 廃棄物事業経費（歳出） | AE58: BB | AF58: 0 | AH58: =+'廃棄物事業経費（歳入）'!B58 -> 0 | AI58: 58
AB59: し尿 | AC59: その他 | AD59: 廃棄物事業経費（歳出） | AE59: BC | AF59: 0 | AH59: =+'廃棄物事業経費（歳入）'!B59 -> 0 | AI59: 59
AB60: し尿 | AC60: （組合分担金） | AD60: 廃棄物事業経費（歳出） | AE60: BD | AF60: 0 | AH60: =+'廃棄物事業経費（歳入）'!B60 -> 0 | AI60: 60
AB61: し尿 | AC61: 調査研究費 | AD61: 廃棄物事業経費（歳出） | AE61: BE | AF61: 0 | AH61: =+'廃棄物事業経費（歳入）'!B61 -> 0 | AI61: 61
AB62: し尿 | AC62: その他 | AD62: 廃棄物事業経費（歳出） | AE62: BF | AF62: 0 | AH62: =+'廃棄物事業経費（歳入）'!B62 -> 0 | AI62: 62
AH63: =+'廃棄物事業経費（歳入）'!B63 -> 0 | AI63: 63
AH64: =+'廃棄物事業経費（歳入）'!B64 -> 0 | AI64: 64
AH65: =+'廃棄物事業経費（歳入）'!B65 -> 0 | AI65: 65
AH66: =+'廃棄物事業経費（歳入）'!B66 -> 0 | AI66: 66
AH67: =+'廃棄物事業経費（歳入）'!B67 -> 0 | AI67: 67
AH68: =+'廃棄物事業経費（歳入）'!B68 -> 0 | AI68: 68
AH69: =+'廃棄物事業経費（歳入）'!B69 -> 0 | AI69: 69
AH70: =+'廃棄物事業経費（歳入）'!B70 -> 0 | AI70: 70
AH71: =+'廃棄物事業経費（歳入）'!B71 -> 0 | AI71: 71
AH72: =+'廃棄物事業経費（歳入）'!B72 -> 0 | AI72: 72
AH73: =+'廃棄物事業経費（歳入）'!B73 -> 0 | AI73: 73
AH74: =+'廃棄物事業経費（歳入）'!B74 -> 0 | AI74: 74
AH75: =+'廃棄物事業経費（歳入）'!B75 -> 0 | AI75: 75
AH76: =+'廃棄物事業経費（歳入）'!B76 -> 0 | AI76: 76
AH77: =+'廃棄物事業経費（歳入）'!B77 -> 0 | AI77: 77
AH78: =+'廃棄物事業経費（歳入）'!B78 -> 0 | AI78: 78
AH79: =+'廃棄物事業経費（歳入）'!B79 -> 0 | AI79: 79
AH80: =+'廃棄物事業経費（歳入）'!B80 -> 0 | AI80: 80
AH81: =+'廃棄物事業経費（歳入）'!B81 -> 0 | AI81: 81
AH82: =+'廃棄物事業経費（歳入）'!B82 -> 0 | AI82: 82
AH83: =+'廃棄物事業経費（歳入）'!B83 -> 0 | AI83: 83
AH84: =+'廃棄物事業経費（歳入）'!B84 -> 0 | AI84: 84
AH85: =+'廃棄物事業経費（歳入）'!B85 -> 0 | AI85: 85
AH86: =+'廃棄物事業経費（歳入）'!B86 -> 0 | AI86: 86
AH87: =+'廃棄物事業経費（歳入）'!B87 -> 0 | AI87: 87
AH88: =+'廃棄物事業経費（歳入）'!B88 -> 0 | AI88: 88
AH89: =+'廃棄物事業経費（歳入）'!B89 -> 0 | AI89: 89
AH90: =+'廃棄物事業経費（歳入）'!B90 -> 0 | AI90: 90
AH91: =+'廃棄物事業経費（歳入）'!B91 -> 0 | AI91: 91
AH92: =+'廃棄物事業経費（歳入）'!B92 -> 0 | AI92: 92
AH93: =+'廃棄物事業経費（歳入）'!B93 -> 0 | AI93: 93
AH94: =+'廃棄物事業経費（歳入）'!B94 -> 0 | AI94: 94
AH95: =+'廃棄物事業経費（歳入）'!B95 -> 0 | AI95: 95
AH96: =+'廃棄物事業経費（歳入）'!B96 -> 0 | AI96: 96
AH97: =+'廃棄物事業経費（歳入）'!B97 -> 0 | AI97: 97
AH98: =+'廃棄物事業経費（歳入）'!B98 -> 0 | AI98: 98
AH99: =+'廃棄物事業経費（歳入）'!B99 -> 0 | AI99: 99
AH100: =+'廃棄物事業経費（歳入）'!B100 -> 0 | AI100: 100
AH101: =+'廃棄物事業経費（歳入）'!B101 -> 0 | AI101: 101
AH102: =+'廃棄物事業経費（歳入）'!B102 -> 0 | AI102: 102
AH103: =+'廃棄物事業経費（歳入）'!B103 -> 0 | AI103: 103
AH104: =+'廃棄物事業経費（歳入）'!B104 -> 0 | AI104: 104
AH105: =+'廃棄物事業経費（歳入）'!B105 -> 0 | AI105: 105
AH106: =+'廃棄物事業経費（歳入）'!B106 -> 0 | AI106: 106
AH107: =+'廃棄物事業経費（歳入）'!B107 -> 0 | AI107: 107
AH108: =+'廃棄物事業経費（歳入）'!B108 -> 0 | AI108: 108
AH109: =+'廃棄物事業経費（歳入）'!B109 -> 0 | AI109: 109
AH110: =+'廃棄物事業経費（歳入）'!B110 -> 0 | AI110: 110
AH111: =+'廃棄物事業経費（歳入）'!B111 -> 0 | AI111: 111
AH112: =+'廃棄物事業経費（歳入）'!B112 -> 0 | AI112: 112
AH113: =+'廃棄物事業経費（歳入）'!B113 -> 0 | AI113: 113
AH114: =+'廃棄物事業経費（歳入）'!B114 -> 0 | AI114: 114
AH115: =+'廃棄物事業経費（歳入）'!B115 -> 0 | AI115: 115
AH116: =+'廃棄物事業経費（歳入）'!B116 -> 0 | AI116: 116
AH117: =+'廃棄物事業経費（歳入）'!B117 -> 0 | AI117: 117
AH118: =+'廃棄物事業経費（歳入）'!B118 -> 0 | AI118: 118
AH119: =+'廃棄物事業経費（歳入）'!B119 -> 0 | AI119: 119
AH120: =+'廃棄物事業経費（歳入）'!B120 -> 0 | AI120: 120
AH121: =+'廃棄物事業経費（歳入）'!B121 -> 0 | AI121: 121
AH122: =+'廃棄物事業経費（歳入）'!B122 -> 0 | AI122: 122
AH123: =+'廃棄物事業経費（歳入）'!B123 -> 0 | AI123: 123
AH124: =+'廃棄物事業経費（歳入）'!B124 -> 0 | AI124: 124
AH125: =+'廃棄物事業経費（歳入）'!B125 -> 0 | AI125: 125
AH126: =+'廃棄物事業経費（歳入）'!B126 -> 0 | AI126: 126
AH127: =+'廃棄物事業経費（歳入）'!B127 -> 0 | AI127: 127
AH128: =+'廃棄物事業経費（歳入）'!B128 -> 0 | AI128: 128
AH129: =+'廃棄物事業経費（歳入）'!B129 -> 0 | AI129: 129
AH130: =+'廃棄物事業経費（歳入）'!B130 -> 0 | AI130: 130
AH131: =+'廃棄物事業経費（歳入）'!B131 -> 0 | AI131: 131
AH132: =+'廃棄物事業経費（歳入）'!B132 -> 0 | AI132: 132
AH133: =+'廃棄物事業経費（歳入）'!B133 -> 0 | AI133: 133
AH134: =+'廃棄物事業経費（歳入）'!B134 -> 0 | AI134: 134
AH135: =+'廃棄物事業経費（歳入）'!B135 -> 0 | AI135: 135
AH136: =+'廃棄物事業経費（歳入）'!B136 -> 0 | AI136: 136
AH137: =+'廃棄物事業経費（歳入）'!B137 -> 0 | AI137: 137
AH138: =+'廃棄物事業経費（歳入）'!B138 -> 0 | AI138: 138
AH139: =+'廃棄物事業経費（歳入）'!B139 -> 0 | AI139: 139
AH140: =+'廃棄物事業経費（歳入）'!B140 -> 0 | AI140: 140
AH141: =+'廃棄物事業経費（歳入）'!B141 -> 0 | AI141: 141
AH142: =+'廃棄物事業経費（歳入）'!B142 -> 0 | AI142: 142
AH143: =+'廃棄物事業経費（歳入）'!B143 -> 0 | AI143: 143
AH144: =+'廃棄物事業経費（歳入）'!B144 -> 0 | AI144: 144
AH145: =+'廃棄物事業経費（歳入）'!B145 -> 0 | AI145: 145
AH146: =+'廃棄物事業経費（歳入）'!B146 -> 0 | AI146: 146
AH147: =+'廃棄物事業経費（歳入）'!B147 -> 0 | AI147: 147
AH148: =+'廃棄物事業経費（歳入）'!B148 -> 0 | AI148: 148
AH149: =+'廃棄物事業経費（歳入）'!B149 -> 0 | AI149: 149
AH150: =+'廃棄物事業経費（歳入）'!B150 -> 0 | AI150: 150
AH151: =+'廃棄物事業経費（歳入）'!B151 -> 0 | AI151: 151
AH152: =+'廃棄物事業経費（歳入）'!B152 -> 0 | AI152: 152
AH153: =+'廃棄物事業経費（歳入）'!B153 -> 0 | AI153: 153
AH154: =+'廃棄物事業経費（歳入）'!B154 -> 0 | AI154: 154
AH155: =+'廃棄物事業経費（歳入）'!B155 -> 0 | AI155: 155
AH156: =+'廃棄物事業経費（歳入）'!B156 -> 0 | AI156: 156
AH157: =+'廃棄物事業経費（歳入）'!B157 -> 0 | AI157: 157
AH158: =+'廃棄物事業経費（歳入）'!B158 -> 0 | AI158: 158
AH159: =+'廃棄物事業経費（歳入）'!B159 -> 0 | AI159: 159
AH160: =+'廃棄物事業経費（歳入）'!B160 -> 0 | AI160: 160
AH161: =+'廃棄物事業経費（歳入）'!B161 -> 0 | AI161: 161
AH162: =+'廃棄物事業経費（歳入）'!B162 -> 0 | AI162: 162
AH163: =+'廃棄物事業経費（歳入）'!B163 -> 0 | AI163: 163
AH164: =+'廃棄物事業経費（歳入）'!B164 -> 0 | AI164: 164
AH165: =+'廃棄物事業経費（歳入）'!B165 -> 0 | AI165: 165
AH166: =+'廃棄物事業経費（歳入）'!B166 -> 0 | AI166: 166
AH167: =+'廃棄物事業経費（歳入）'!B167 -> 0 | AI167: 167
AH168: =+'廃棄物事業経費（歳入）'!B168 -> 0 | AI168: 168
AH169: =+'廃棄物事業経費（歳入）'!B169 -> 0 | AI169: 169
AH170: =+'廃棄物事業経費（歳入）'!B170 -> 0 | AI170: 170
AH171: =+'廃棄物事業経費（歳入）'!B171 -> 0 | AI171: 171
AH172: =+'廃棄物事業経費（歳入）'!B172 -> 0 | AI172: 172
AH173: =+'廃棄物事業経費（歳入）'!B173 -> 0 | AI173: 173
AH174: =+'廃棄物事業経費（歳入）'!B174 -> 0 | AI174: 174
AH175: =+'廃棄物事業経費（歳入）'!B175 -> 0 | AI175: 175
AH176: =+'廃棄物事業経費（歳入）'!B176 -> 0 | AI176: 176
AH177: =+'廃棄物事業経費（歳入）'!B177 -> 0 | AI177: 177
AH178: =+'廃棄物事業経費（歳入）'!B178 -> 0 | AI178: 178
AH179: =+'廃棄物事業経費（歳入）'!B179 -> 0 | AI179: 179
AH180: =+'廃棄物事業経費（歳入）'!B180 -> 0 | AI180: 180
AH181: =+'廃棄物事業経費（歳入）'!B181 -> 0 | AI181: 181
AH182: =+'廃棄物事業経費（歳入）'!B182 -> 0 | AI182: 182
AH183: =+'廃棄物事業経費（歳入）'!B183 -> 0 | AI183: 183
AH184: =+'廃棄物事業経費（歳入）'!B184 -> 0 | AI184: 184
AH185: =+'廃棄物事業経費（歳入）'!B185 -> 0 | AI185: 185
AH186: =+'廃棄物事業経費（歳入）'!B186 -> 0 | AI186: 186
AH187: =+'廃棄物事業経費（歳入）'!B187 -> 0 | AI187: 187
AH188: =+'廃棄物事業経費（歳入）'!B188 -> 0 | AI188: 188
AH189: =+'廃棄物事業経費（歳入）'!B189 -> 0 | AI189: 189
AH190: =+'廃棄物事業経費（歳入）'!B190 -> 0 | AI190: 190
AH191: =+'廃棄物事業経費（歳入）'!B191 -> 0 | AI191: 191
AH192: =+'廃棄物事業経費（歳入）'!B192 -> 0 | AI192: 192
AH193: =+'廃棄物事業経費（歳入）'!B193 -> 0 | AI193: 193
AH194: =+'廃棄物事業経費（歳入）'!B194 -> 0 | AI194: 194
AH195: =+'廃棄物事業経費（歳入）'!B195 -> 0 | AI195: 195
AH196: =+'廃棄物事業経費（歳入）'!B196 -> 0 | AI196: 196
AH197: =+'廃棄物事業経費（歳入）'!B197 -> 0 | AI197: 197
AH198: =+'廃棄物事業経費（歳入）'!B198 -> 0 | AI198: 198
AH199: =+'廃棄物事業経費（歳入）'!B199 -> 0 | AI199: 199
AH200: =+'廃棄物事業経費（歳入）'!B200 -> 0 | AI200: 200
AH201: =+'廃棄物事業経費（歳入）'!B201 -> 0 | AI201: 201
AH202: =+'廃棄物事業経費（歳入）'!B202 -> 0 | AI202: 202
... 48 more rows
